Workbook

Sheet _TM_Sheet1 (hidden)
A1: Left | B1: Top | C1: Right | D1: Bottom | E1: Ref
A2: 1 | B2: 2 | C2: 7 | D2: 19 | E2: $A$2:$G$19

Sheet _TM_Reg Framework - Public Fina (hidden)
A1: Left | B1: Top | C1: Right | D1: Bottom | E1: Ref
A2: 2 | B2: 4 | C2: 3 | D2: 32 | E2: $B$4:$C$32

Sheet Completion schedule
A1: ='General information'!A1 -> Project STAR
A2: ='General information'!A2 -> xxx
A3: Complete Financial Statement Forms
A4: =Checks!A4 -> All checks ok
A7: =MAX($A$1:A6)+1 -> 1 | B7: Complete General information
D9: General information
A11: =MAX($A$1:A10)+1 -> 2 | B11: Complete Financial statement forms
D13: LGU's FS Forms
A15: =MAX($A$1:A14)+1 -> 3 | B15: Complete Notes to the FS
D17: Notes to the FS
A19: =MAX($A$1:A18)+1 -> 4 | B19: Complete Notes to the FS
D21: Complete additional evidence gathered section
A23: =MAX($A$1:A22)+1 -> 5 | B23: Complete summary of adjustments
D25: Summary of adjustments
A27: =MAX($A$1:A26)+1 -> 6 | B27: End

Sheet Excel basics
A1: ='General information'!A1 -> Project STAR
A2: ='General information'!A2 -> xxx
A3: Basic operations in excel
A4: =Checks!A4 -> All checks ok
A7: =MAX($A$1:A6)+1 -> 1 | B7: Basic shortcut combinations
D9: Command | E9: Explanation
D10: Ctrl + PgUp | E10: Go to previous sheet
D11: Ctrl + PgDn | E11: Go to next sheet
D12: Ctrl + Arrow | E12: Move to the edge of region
D13: Shift + Arrow | E13: Select next cell
D14: Ctrl + Shift + Arrow | E14: Select all cells containing data in the given direction
D15: Ctrl + Space | E15: Select all cells in current column
D16: Shift + Space | E16: Select all cells in current row
D17: Ctrl + Shift + '+' | E17: Insert cell/row/column above the selected cell(s)
D18: Ctrl + C | E18: Copy selection
D19: Ctrl + V | E19: Paste
D20: Ctrl + Z | E20: Undo the last action
A22: =MAX($A$1:A21)+1 -> 2 | B22: Operations in excel using the mouse
B24: =MAX($A$1:B23)+0.1 -> 2.1 | C24: Selecting data | E24: Click and hold the left button on the desired cell, then drag to select the whole section and release the button
E25: Or select the starting cell in a table and use the shortcut buttons Ctrl + Shift + Arrow
B27: =MAX($A$1:B25)+0.1 -> 2.2 | C27: Copying data | E27: After selecting data, right-click on the selection and chose Copy from the drop-down menu
E28: Or use the shortcut combination Ctrl + C
D29: Example:
B62: =MAX($A$1:B61)+0.1 -> 2.3 | C62: Pasting data | E62: Go to the desired place, right click on the empty cell and chose Paste from the drop-down menu
E63: Or use the shortcut combination Ctrl + V
D65: Example:
B96: =MAX($A$1:B95)+0.1 -> 2.4 | C96: Inserting rows | E96: Select a row by clicking on the row number on the left most section in a sheet
D98: Example:
E119: Right-click on the selected row and chose Insert from the drop-down menu
E120: Or use the shortcut combination Ctrl + Shift + '+'
E121: Repeat as many times as you need rows
D122: Example:
A144: =MAX($A$1:A143)+1 -> 3 | B144: Using formulas
C146: All cells have a reference depending on the column and row they appear - the cell located in column A and row 1 has a reference name 'A1'
C147: To right a formula for the program to automatically calculate or perform a task, select a cell then press '=' and then right the formula
C148: Example formulas are presented below
D150: Task | E150: Command
D151: Sum two cells, i.e. A1 and A2 | E151: =A1 + A2
D152: Subtract two cells, i.e. A1 and A2 | E152: =A1 - A2
D153: Multiply two cells, i.e. A1 and A2 | E153: =A1*A2
D154: Divide two cells, i.e. A1 and A2 | E154: =A1/A2
D155: Link a cell value to another cell, i.e. the Value in A1 to appear in A2 - in A2 right the following formula | E155: =A1
C157: You can either type the reference names of the cells in the formula, or select them using the mouse.
C158: You can prepare formulas between cells in different sheets - the process is the same - select the cell in which to write the formula then press '=', choose the first cell by left clicking on it with the mouse, right the operation (i.e. +/-) and select the second cell by left-clicking on it with the mouse and hit Enter button to complete the formula
A160: =MAX($A$1:A159)+1 -> 4 | B160: Hiding/unhiding columns/rows
C162: For the sake of presentation, some columns or rows may be hidden. To unhide or hide section click on the '+' symbol located above the column names or to the left of the row numbers
C164: Example:
A196: =MAX($A$1:A195)+1 -> 5 | B196: Copying whole sheets to another workbook
D198: To copy a whole sheet to another workbook, i.e. sheet LGU FS Template to a section in the Consolidation Financial model, right-click on the name of the sheet and choose Move or copy
D200: Example:
D223: From the pop-up window choose the desired destination workbook, i.e. Consolidation Financial model
D225: Example:
D243: From the list below, choose the location where to put the sheet into the destination workbook - for the Consolidation Financial model always choose to place the sheet Before sheet Template 2
D245: Example:
D264: In the Consolidation Financial model the financial information of all LGU FS Templates moved after the PBC--> sheet would be consolidated into the Tables 1 to 11
A267: =MAX($A$1:A266)+1 -> 6 | B267: End

Sheet General information
A1: =H11 -> Project STAR
A2: =H12 -> xxx
A3: =B7 -> General information / Te dhenat e pergjithshme
A4: =Checks!A4 -> All checks ok
A7: =MAX($A$1:A6)+1 -> 1 | B7: General information / Te dhenat e pergjithshme
B9: =MAX($A$1:B8)+0.1 -> 1.1 | C9: General / E pergjithshme
D11: Emri i projektit | E11: Project name | F11: emri | G11: name | H11: Project STAR
D12: Njesia e qeverisjes lokale | E12: Local government unit | F12: emri | G12: name | H12: xxx
D14: Pregatitur nga: | E14: Checklist prepared by: | F14: emri | G14: name | H14: xxx
F15: emri | G15: name
F16: emri | G16: name
F17: emri | G17: name
F18: emri | G18: name
D20: Approvuar nga: | E20: Checklist approved by: | F20: emri | G20: name
F21: data | G21: date
B23: =MAX($A$1:B21)+0.1 -> 1.2 | C23: Site visits / Vizitat ne terren
D25: Vizitat ne terren | E25: Dates of site visits:
D26: Vizita 1 | E26: Visit 1 | F26: data | G26: date
D27: Vizita 2 | E27: Visit 2 | F27: data | G27: date
D28: Vizita 3 | E28: Visit 3 | F28: data | G28: date
D29: Vizita 4 | E29: Visit 4 | F29: data | G29: date
D30: Vizita 5 | E30: Visit 5 | F30: data | G30: date
D31: Vizita 6 | E31: Visit 6 | F31: data | G31: date
D32: Vizita 7 | E32: Visit 7 | F32: data | G32: date
D33: Vizita 8 | E33: Visit 8 | F33: data | G33: date
D34: Vizita 9 | E34: Visit 9 | F34: data | G34: date
D35: Vizita 10 | E35: Visit 10 | F35: data | G35: date
B37: =MAX($A$1:B36)+0.1 -> 1.3 | C37: Interviewed personnel / Personeli i intervistuar
E39: Name | H39: Position
B60: =MAX($A$1:B59)+0.1 -> 1.4 | C60: Financial periods / Periudhat financiare
E62: Template timeline
D63: Fundi I periudhes raportuese | E63: Current reporting period end | G63: date | H63: 2014-12-31
D64: Fillimi I periudhes raportuese | E64: Current reporting period beginning | G64: date | H64: 2014-01-01
E65: Months in current reporting period | G65: months | H65: =MONTH(H63-H66) -> 12
D66: Fundi periudhes se meparshme raportuese | E66: Corresponding period | G66: date | H66: 2013-12-31
B68: =MAX($A$1:B67)+0.1 -> 1.5 | C68: Presentation / Prezentimi
D70: Njesia raportuese (1000 ose tjeter) | E70: Presentation currency | G70: ALL | H70: 1000
E71: Presentation currency text | G71: text | H71: (Shumat ne ALL'000, nëse nuk shprehet ndryshe)

Sheet Language (hidden)
A1: ='General information'!A1 -> Project STAR | E1: `
A2: ='General information'!A2 -> xxx
A4: =IF(Mastercheck=0, "All checks ok", "Errors in the model") -> All checks ok
A7: =MAX($A$1:A6)+1 -> 1 | B7: Headings
C9: =MAX($A$1:C8)+0.1 -> 1.1 | D9: Date related
D11: =D32&" "&DAY('General information'!$H$63)&" "&VLOOKUP(MONTH('General information'!$H$63),'Month notation'!$A:$B,2,FALSE)&" "&YEAR('General information'!$H$63) -> As at 31 December 2014
D12: =D32&" "&DAY('General information'!$H$66)&" "&VLOOKUP(MONTH('General information'!$H$66),'Month notation'!$A:$B,2,FALSE)&" "&YEAR('General information'!$H$66) -> As at 31 December 2013
D13: =D38&" "&DAY('General information'!$H$63)&" "&VLOOKUP(MONTH('General information'!$H$63),'Month notation'!A:B,2,FALSE)&" "&YEAR('General information'!$H$63) -> for the year ended 31 December 2014
D14: =D50&" "&DAY('General information'!$H$64)&" "&VLOOKUP(MONTH('General information'!$H$64),'Month notation'!$A:$B,2,FALSE)&" "&YEAR('General information'!$H$64) -> Opening accumulated depreciation 1 January 2014
D15: =D51&" "&DAY('General information'!H63)&" "&VLOOKUP(MONTH('General information'!H63),'Month notation'!A:B,2,FALSE)&" "&YEAR('General information'!H63) -> Closing accumulated depreciation 31 December 2014
D16: =D59&DAY('General information'!$H$64)&" "&VLOOKUP(MONTH('General information'!$H$64),'Month notation'!$A:$B,2,FALSE)&" "&YEAR('General information'!$H$64) -> Opening balance1 January 2014
D17: =D63&" "&DAY('General information'!H63)&" "&VLOOKUP(MONTH('General information'!H63),'Month notation'!A:B,2,FALSE)&" "&YEAR('General information'!H63) -> Closing balance 31 December 2014
D18: =IF('General information'!$H$65<12,"YTD "&YEAR('General information'!$H$63),D42&" "&YEAR('General information'!$H$63)) -> FY 2014
D19: =D42&" "&YEAR('General information'!$H$66) -> FY 2013
D20: =D115&" "&YEAR(curr_rep_date_end) -> Depreciation for 2014
D21: =D116&" "&D11 -> NBV as at As at 31 December 2014
D22: =D140&" "&(YEAR(prev_rep_per)-1) -> Inherited from 2012
D23: =D141&" "&(YEAR(curr_rep_date_end)-1) -> Budget for 2013
D24: =D145&" "&(YEAR(prev_rep_per)-1)&D146&" "&(YEAR(curr_rep_date_end)-1) -> Total revenue 2012 and 2013
D25: =D147&" "&YEAR(curr_rep_date_end) -> Used during 2014
D26: =D178&" "&DAY('General information'!H63)&" "&VLOOKUP(MONTH('General information'!H63),'Month notation'!A:B,2,FALSE)&" "&YEAR('General information'!H63) -> Carrying value of investment as at 31 December 2014
D27: =D179&" "&DAY('General information'!H63)&" "&VLOOKUP(MONTH('General information'!H63),'Month notation'!A:B,2,FALSE)&" "&YEAR('General information'!H63) -> Total outstanding liability as at 31 December 2014
D28: =D179&" "&DAY('General information'!H66)&" "&VLOOKUP(MONTH('General information'!H66),'Month notation'!A:B,2,FALSE)&" "&YEAR('General information'!H66) -> Total outstanding liability as at 31 December 2013
C30: =MAX($A$1:C29)+0.1 -> 1.2 | D30: Hard coded texts
D32: As at | E32: As at | F32: Mё
D33: Detailed list of outstanding invoices | E33: Detailed list of outstanding invoices | F33: Lista e detajuar e faturave të papaguara
D34: Inheritance Act - from 2014 to 2015 | E34: Inheritance Act - from 2014 to 2015 | F34: Trashëgimia Akti - 2014-2015
D35: Të arkëtueshme nga punonjësit, parapagimet dhe dënimet | E35: ='N3 Receivables from Employees'!$D$13 -> Të arkëtueshme nga punonjësit, parapagimet dhe dënimet | F35: Të arkëtueshme nga punonjësit, parapagimet dhe dënimet
D36: Detailed listing of materials and inventory objects | E36: Detailed listing of materials and inventory objects | F36: Listë e detajuar e materialeve dhe objekteve të inventarit
D37: Summary of adjustments | E37: Summary of adjustments | F37: Përmbledhje e rregullimeve
D38: for the year ended | E38: for the year ended | F38: Pёr vitin e mbyllur mё
D39: Summary of the financial performance | E39: Summary of the financial performance | F39: Pёrmbledhje e performancёs financiare
D40: Notes | E40: Notes | F40: Shёnime shpjeguese
D41: No | E41: No | F41: Numёr
D42: FY | E42: FY | F42: Vit ushtrimor
D43: Transaction during the year | E43: Transaction during the year | F43: Transaksione gjatё vitit
D44: Accounts and description | E44: Accounts and description | F44: Llogaria dhe pёrshkrimi
D45: Type of Adjustments: - Policy Modification ("PM") - Reclassifications ("RE") - Omissions ("OM") | E45: Type of Adjustments: - Policy Modification ("PM") - Reclassifications ("RE") - Omissions ("OM") | F45: Llojet e rregullimeve: - Modifikimi I Politikave (MP) - Riklasifikim (RI) - Pёrjashtime
D46: Debit | E46: Debit | F46: Debia
D47: Credit | E47: Credit | F47: Kredia
D48: Impacted statements | E48: Impacted statements | F48: Pasqyrat e prekura
D49: Acc. No. | E49: Acc. No. | F49: Numri I llogarisё
D50: Opening accumulated depreciation | E50: Opening accumulated depreciation | F50: Balanca hapёse e amortizimit tё akumuluar
D51: Closing accumulated depreciation | E51: Closing accumulated depreciation | F51: Balanca mbyllёse e amortizimit tё akumuluar
D52: Period movements | E52: Period movements | F52: Lёvizjet e periudhёs
D53: Account Number | E53: Account Number | F53: Numri I llogarisё
D54: Assets | E54: Assets | F54: Aktive
D55: Restated | E55: Restated | F55: Riparaqitur
D56: Evidence provided Reference | E56: Evidence provided Reference | F56: Referencё me informacionin nga klienti
D57: Treasury balance | E57: Treasury balance | F57: Balanca e thesarit
D58: Bank liquidity | E58: Bank liquidity | F58: Likuiditeti I bankёs
D59: Opening balance | E59: Opening balance | F59: Balanca hapёse
D60: Addtions during the year | E60: Addtions during the year | F60: Shtesat gjatё vitit
D61: Transfers | E61: Transfers | F61: Transferta
D62: Decrease during the year | E62: Decrease during the year | F62: Pakёsimet gjatё vitit
D63: Closing balance | E63: Closing balance | F63: Balancat mbyllёse
D64: Purchases | E64: Purchases | F64: Blerje
D65: Out | E65: Out | F65: Jashtё
D66: In | E66: In | F66: Brenda
D67: Movements | E67: Movements | F67: Lёvizjet
D68: Total | E68: Total | F68: Totali
D69: Sales | E69: Sales | F69: Shitjet
D70: Write off | E70: Write off | F70: Nxjerrje jashtё pёrdorimit
D71: Other decr. | E71: Other decr. | F71: Pakёsime tё tjera
D72: Depreciation charge for the year | E72: Depreciation charge for the year | F72: Amortizimi i vitit
D73: Other additions | E73: Other additions | F73: Shtesa tё tjera
D74: Annual average number of employees | E74: Annual average number of employees | F74: Numri mesatar vjetor i punonjёsve
D75: Turnover of employees during the year | E75: Turnover of employees during the year | F75: Qarkullimi I punonjёsve gjatё vitit
D76: Number of employees at year end | E76: Number of employees at year end | F76: Numri I punonjёsve nё fund tё vitit
D77: New employees | E77: New employees | F77: Punonjёs tё rinj
D78: Leavers | E78: Leavers | F78: Tё larguar
D79: Salaries and contributions | E79: Salaries and contributions | F79: Paga dhe kontribute
D80: Total salaries | E80: Total salaries | F80: Totali I pagave
D81: Additional rewards | E81: Additional rewards | F81: Shpёrblime shtesё
D82: Immediate social assistance | E82: Immediate social assistance | F82: Mbёshtetje sociale e menjёhershme
D83: Social and health insurance | E83: Social and health insurance | F83: Sigurimi shoqёror dhe shёndetёsor
D84: Other rewards | E84: Other rewards | F84: Shpёrblime tё tjera
D85: Income tax | E85: Income tax | F85: Tatimi mbi tё ardhurat
D86: Fixed Assets Regsiter | E86: Fixed Assets Regsiter | F86: Regjistri I aktiveve fikse
D87: Balance Sheet - Statement of assets (Form 1) | E87: Balance Sheet - Statement of assets (Form 1) | F87: Bilanci Kontabёl - Aktivi (Formati 1)
D88: Balance Sheet - Statement of fund and liabilities (Form 2) | E88: Balance Sheet - Statement of fund and liabilities (Form 2) | F88: Bilanci Kontabёl - Pasivi (Formati 2)
D89: Statement of expenses (Form 3/1) | E89: Statement of expenses (Form 3/1) | F89: Pasqyra e Shpenzimeve (Formati 3/1)
D90: Statement of revenues (Form 3/2) | E90: Statement of revenues (Form 3/2) | F90: Pasqyra e tё Ardhurave (Formati 3/2)
D91: Funds and expenses related to investments (Form 4) | E91: Funds and expenses related to investments (Form 4) | F91: Burimet dhe shpenzimet lidhur me investimet (Formati 4)
D92: Statement of cash flows (Form 5) | E92: Statement of cash flows (Form 5) | F92: Pasqyra mbi levizjen Cash (Formati 5)
D93: Statement of Fixed Assets' Balance and Changes during the year (Form 6) | E93: Statement of Fixed Assets' Balance and Changes during the year (Form 6) | F93: Pasyqra mbi gjendjen dhe ndryshimet nё Aktivet e Qёndrueshme (Formati 6)
D94: Statement of Fixed Assets' depreciation (Form 7) | E94: Statement of Fixed Assets' depreciation (Form 7) | F94: Pasqyra e amortizimit tё aktiveve tё qёndrueshme (Formati 7)
D95: Statement of changes in fund (Form 8) | E95: Statement of changes in fund (Form 8) | F95: Pasqyra e lёvizjes sё fondeve (Formati 8)
D96: Statement of number of employees and personnel expenses (Form 9) | E96: Statement of number of employees and personnel expenses (Form 9) | F96: Pasqyrё mbi numrin e punonjёsve dhe fondin e pagave (Formati 9)
D97: Consolidated Statement of Financial Position (Form 10) | E97: Consolidated Statement of Financial Position (Form 10) | F97: Pasqyrё Pёrmbledhёse e Konsoliduar e Gjendjes Financiare (Formati 10)
D98: Consolidated Statement of Revenues and Expenses (Form 11) | E98: Consolidated Statement of Revenues and Expenses (Form 11) | F98: Pasqyrё Pёrmbledhёse e Konsoliduar e tё ardhurave dhe shpenzimeve tё funksionimit (Formati 11)
D99: Notes to the Financial Statements | E99: Notes to the Financial Statements | F99: Shёnime shpjeguese tё Pasqyrave Financiare
D100: Asset description | E100: Asset description | F100: Pёrshkrimi I aktiveve
D101: Category | E101: Category | F101: Kategoria
D102: Category code | E102: Category code | F102: Kodi I kategorisё
D103: Location | E103: Location | F103: Vendodhje
D104: Purchase date | E104: Purchase date | F104: Data e blerjes
D105: Depreciation rate | E105: Depreciation rate | F105: Norma e amortizimit
D106: Year | E106: Year | F106: Viti
D107: Month | E107: Month | F107: Muaji
D108: Unit | E108: Unit | F108: Njёsia
D109: Unit price | E109: Unit price | F109: Cmimi pёr njёsi
D110: Cost | E110: Cost | F110: Kosto
D111: Accumulated depreciation as at 1 Jan 2015 | E111: Accumulated depreciation as at 1 Jan 2015 | F111: Amortizimi I akumuluar me 1 Jan 2015
D112: Unit | E112: Unit | F112: Njёsia
D113: Unit price | E113: Unit price | F113: Cmimi pёr njёsi
D114: Cost | E114: Cost | F114: Kosto
D115: Depreciation for | E115: Depreciation for | F115: Amortizimi pёr
D116: NBV as at | E116: NBV as at | F116: Vlera neto kontabёl mё
D117: Account numbers: | E117: Account numbers: | F117: Numrat e llogarisё
D118: Supporting evidence: | E118: Supporting evidence: | F118: Evidencё suportuese
D119: Supporting evidence to be provided by the LGU | E119: Supporting evidence to be provided by the LGU | F119: Evidencё suportuese nga LGU
D120: Reconciliation of Capital Expenditures and Other Expenses in the Financial Statements with Treasury | E120: Reconciliation of Capital Expenditures and Other Expenses in the Financial Statements with Treasury | F120: Rakordimi I Shpenzimeve Kapitale dhe Shpenzimeve tё tjera nё Pasqyrat Financiare me Thesarin
D121: Template for Trial Balance | E121: Template for Trial Balance | F121: Format pёr Bilancin Vёrtetues
D122: Property, plant and equipment | E122: Property, plant and equipment | F122: Aktive afatgjata materiale
D123: Depreciation FA | E123: Depreciation FA | F123: Amortizimi I aktiveve afatgjata materiale
D124: Unconditional Grant | E124: Unconditional Grant | F124: Grant I pakushtёzuar
D125: Other Operations with Gov. | E125: Other Operations with Gov. | F125: Operacione tё tjera me Qeverinё
D126: Unpaid salaries | E126: Unpaid salaries | F126: Paga tё papaguara
D127: Stamps | E127: Stamps | F127: Pulla
D128: Investments in process for PPE | E128: Investments in process for PPE | F128: Investime nё proces per aktivet afatgjata materiale
D129: Act of inhereted balances | E129: Act of inhereted balances | F129: Akt trashgimie
D130: Fixed Assets Regsiter | E130: Fixed Assets Regsiter | F130: Regjistri I aktiveve fikse
D131: Cost per item | E131: Cost per item | F131: Kosto pёr njёsi
D132: Debtor | E132: Debtor | F132: Debitor
D133: Originating date | E133: Originating date | F133: Data e krijimit
D134: Item description | E134: Item description | F134: Pershkrimi I njesive
D135: Location | E135: Location | F135: Vendodhje
D136: No of items | E136: No of items | F136: Numri I njesive
D137: Additional charge for the year | E137: Additional charge for the year | F137: Shtesat gjatё vitit
D138: Payments during the year | E138: Payments during the year | F138: Pagesat gjatё vitit
D139: Description | E139: Description | F139: Pёrshkrimi
D140: Inherited from | E140: Inherited from | F140: Trashёguar nga
D141: Budget for | E141: Budget for | F141: Buxhetuar pёr
D142: Grant plus revenue (Chapter 5) | E142: Grant plus revenue (Chapter 5) | F142: Granti plus tё ardhurat (kapitulli 5)
D143: Chapter 6 | E143: Chapter 6 | F143: Kapitulli 6
D144: Chapter 5 | E144: Chapter 5 | F144: Kapitulli 5
D145: Total revenue | E145: Total revenue | F145: Totali I tё ardhurave
D146: and | E146: and | F146: dhe
D147: Used during | E147: Used during | F147: Pёrdorur gjatё
D148: Balance to be carried forward | E148: Balance to be carried forward | F148: Balancat hapёse
D149: NIPT (Fiscal number) | E149: NIPT (Fiscal number) | F149: NIPT (numri fiskal)
D150: Originating date | E150: Originating date | F150: Data e krijimit
D151: Invoice no | E151: Invoice no | F151: Numri I faturёs
D152: Group | E152: Group | F152: Grupi
D153: Statement of expenses | E153: Statement of expenses | F153: Pasqyra e shpenzimeve
D154: Expenses reconciliation between Treasury and LGU bank book | E154: Expenses reconciliation between Treasury and LGU bank book | F154: Rakordimi I shpenzimeve midis Thesarit dhe librit te bankёs sё LGU
D155: Balance as per Treasury | E155: Balance as per Treasury | F155: Balanca sipas Thesarit
D156: Chapter 01 | E156: Chapter 01 | F156: Kapitulli 01
D157: Chapter 05 | E157: Chapter 05 | F157: Kapitulli 05
D158: Total Balance | E158: Total Balance | F158: Balanca totale
D159: Balance as per LGU's supporting documents | E159: Balance as per LGU's supporting documents | F159: Balanca sipas dokumentave suportues te LGU
D160: Difference | E160: Difference | F160: Diferenca
D161: Balance as per Treasury | E161: Balance as per Treasury | F161: Balanca sipas Thesarit
D162: Statement of revenue | E162: Statement of revenue | F162: Pasqyra e te Ardhurave
D163: Revenue reconciliation with Treausury | E163: Revenue reconciliation with Treausury | F163: Rakordimi I tё ardhurave me Thesarin
D164: Title | E164: Title | F164: Titulli
D165: Article | E165: Article | F165: Artikulli
D166: Total revenue received at bank - reconcile to accounts 700-719 in T3-2 | E166: Total revenue received at bank - reconcile to accounts 700-719 in T3-2 | F166: Totali I tё ardhurave grumbulluar me banke- rakordim me llogaritё 700-719 ne T3-2
D167: Transfers IN from the budget (chapter 7) - reconcile to accounts 720 in T3-2 | E167: Transfers IN from the budget (chapter 7) - reconcile to accounts 720 in T3-2 | F167: Transfertat e brendshme nga buxheti (kapitulli 7)- rakordim me llogaritё 720 nё T3-2
D168: Total revenue | E168: Total revenue | F168: Totali I tё ardhurave
D169: Transfers OUT to the budget (Reconcile to acc 8420 in T3-1) | E169: Transfers OUT to the budget (Reconcile to acc 8420 in T3-1) | F169: Transfertat e jashtme pёr buxhetin- rakordim me llogaritё 8420 nё T3-1
D170: Total revenue share of the institution | E170: Total revenue share of the institution | F170: Totali I tё ardhurave pjesё e institucionit
D171: Investment in Subsidiaries | E171: Investment in Subsidiaries | F171: Investime nё kompani degё
D172: Year of establishment | E172: Year of establishment | F172: Viti I krijimit
D173: Year of acquisition (if applicable) | E173: Year of acquisition (if applicable) | F173: Viti I blerjes (kur ka)
D174: % of ownership | E174: % of ownership | F174: Pёrqindja e pronёsisё
D175: Total equity | E175: Total equity | F175: Totali I kapitalit
D176: Share of Municipality | E176: Share of Municipality | F176: Pjesa e Bashkisё
D177: Impairment | E177: Impairment | F177: Zhvlerёsim
D178: Carrying value of investment as at | E178: Carrying value of investment as at | F178: Vlera e mbartur e investimeve mё
D179: Total outstanding liability as at | E179: Total outstanding liability as at | F179: Totali I detyrimeve mё
D180: Outstanding principal | E180: Outstanding principal | F180: Principali I papaguar
D181: Accrued interest | E181: Accrued interest | F181: Interesi I akumuluar
D182: Current portion | E182: Current portion | F182: Pjesa afatshkurtёr
D183: Non-current portion | E183: Non-current portion | F183: Pjesa afatgjatё
D184: Type of facility | E184: Type of facility | F184: Tipi I facilitetit
D185: Financing institution | E185: Financing institution | F185: Institucioni financues
D186: Facility amount | E186: Facility amount | F186: Vlera e facilitetit
D187: Contract date | E187: Contract date | F187: Data e kontratёs
D188: Term of contract | E188: Term of contract | F188: Termat e kontratёs
D189: Interest rate | E189: Interest rate | F189: Norma e interesit
D190: Collateral | E190: Collateral | F190: Kolateral
D191: Covenants | E191: Covenants | F191: Kontratё
D192: Loans and borrowings | E192: Loans and borrowings | F192: Huatё
D193: Type of facility | E193: Type of facility | F193: Tipi I facilitetit
D194: Financing institution | E194: Financing institution | F194: Institucioni financues
D195: Facility amount | E195: Facility amount | F195: Vlera e facilitetit
D196: Contract date | E196: Contract date | F196: Data e kontratёs
D197: Term of contract | E197: Term of contract | F197: Termat e kontratёs
D198: Interest rate | E198: Interest rate | F198: Norma e interesit
D199: Collateral | E199: Collateral | F199: Kolateral
D200: Covenants | E200: Covenants | F200: Kontratё
D201: Outstanding principal | E201: Outstanding principal | F201: Principali I papaguar
D202: Accrued interest | E202: Accrued interest | F202: Interesi I akumuluar
D203: Type of facility | E203: Type of facility | F203: Tipi I facilitetit
D204: Financing institution | E204: Financing institution | F204: Institucioni financues
D205: Facility amount | E205: Facility amount | F205: Vlera e facilitetit
D206: Contract date | E206: Contract date | F206: Data e kontratёs
D207: Term of contract | E207: Term of contract | F207: Termat e kontratёs
... 21 more rows

Sheet Month notation (hidden)
A1: 1 | B1: January | C1: January | D1: janar
A2: 2 | B2: February | C2: February | D2: shkurt
A3: 3 | B3: March | C3: March | D3: mars
A4: 4 | B4: April | C4: April | D4: prill
A5: 5 | B5: May | C5: May | D5: maj
A6: 6 | B6: June | C6: June | D6: qershor
A7: 7 | B7: July | C7: July | D7: korrik
A8: 8 | B8: August | C8: August | D8: gusht
A9: 9 | B9: September | C9: September | D9: Shtator
A10: 10 | B10: October | C10: October | D10: tetor
A11: 11 | B11: November | C11: November | D11: nëntor
A12: 12 | B12: December | C12: December | D12: dhjetor
A15: =curr_per -> 2014-12-31
A16: =prev_rep_per -> 2013-12-31

Sheet Financial performance
A1: ='General information'!A1 -> Project STAR
A2: ='General information'!A2 -> xxx
A3: =A8 -> Summary of the financial performance
A4: =Checks!A4 -> All checks ok
A7: ='General information'!A2 -> xxx
A8: =Language!D39 -> Summary of the financial performance
A9: =Language!D13 -> for the year ended 31 December 2014
A10: =ALL -> (Shumat ne ALL'000, nëse nuk shprehet ndryshe)
I11: =Language!$D$40 -> Notes | K11: =Language!$D$11 -> As at 31 December 2014 | M11: =Language!$D$12 -> As at 31 December 2013
D12: Sources of funds | F12: Burimet e fondeve | K12: =SUM(K13:K17) -> 0 | M12: =SUM(M13:M17) -> 0
E13: Unconditional government grant | G13: Granti qeveritar i pakushtezuar | I13: F3/2 | M13: ='F3-2'!J64 -> 0
E14: Conditional government grant | G14: Granti qeveritar I kushtezuar | I14: F3/2 | M14: ='F3-2'!J65 -> 0
E15: Own source revenues | G15: Te hyrat vetanake | I15: F3/2 | M15: ='F3-2'!J15+'F3-2'!J47 -> 0
E16: Participation of institution in national taxes | G16: Taksat | I16: F3/2 | M16: ='F3-2'!J68 -> 0
E17: Other donors | G17: Other donors | M17: 0
D19: Uses of funds | F19: Perdorimet e fondeve | G19: Perdorimet e fondeve | K19: =K20+K27+K30 -> 0 | M19: =M20+M27+M30 -> 0
D20: Expenditure | G20: Shpenzimet | K20: =SUM(K21:K26) -> 0 | M20: =SUM(M21:M26) -> 0
E21: Wages and salaries | G21: Pagat | I21: N7 | M21: ='N7 Expenses reconciliation'!I19+'N7 Expenses reconciliation'!I20 -> 0
E22: Goods and services | G22: Mallra dhe sherbime | I22: N7 | M22: ='N7 Expenses reconciliation'!I21 -> 0
E23: Capital expenditures | G23: Shpenzime kapitale | I23: F4 | M23: ='F4'!H47 -> 0
E24: Subsidies and transfers | G24: Subvencione dhe transferta | I24: N7 | M24: ='N7 Expenses reconciliation'!I23+'N7 Expenses reconciliation'!I25 -> 0
E25: Other expenses | G25: Shpenzime te tjera | I25: N7 | M25: 0
E26: Payments from 5% completion guarantee | G26: Pagesa nga 5% garanci per perfundim | I26: N5 | M26: ='N5 Inheritance Act'!M27 -> 0
D27: Other Transfers of Cash | G27: Transferime te tjera Keshi | K27: =SUM(K28:K29) -> 0 | M27: =SUM(M28:M29) -> 0
E28: Revenue allocated to government / Deposit to the budget | G28: Te ardhura te alokuara per qeverine / Depositim ne buxhet | I28: F5 | M28: ='F5'!H36 -> 0
E29: Unused conditional grant | G29: Granti i kushtezuar i paperdorur | I29: F5 | M29: ='F5'!H37 -> 0
D30: Remaining cash carried forward | F30: Kesh-i i mbetur i mbartur | K30: =K12-K20-K27 -> 0 | M30: =M12-M20-M27 -> 0

Sheet Summary of adjustments
A1: ='General information'!A1 -> Project STAR
A2: ='General information'!A2 -> xxx
A3: =A8 -> Summary of adjustments
A4: =Checks!A4 -> All checks ok
A7: ='General information'!A2 -> xxx
A8: =Language!$D$37 -> Summary of adjustments
A9: =Language!$D$13 -> for the year ended 31 December 2014
A10: =ALL -> (Shumat ne ALL'000, nëse nuk shprehet ndryshe)
B12: =Language!D41 -> No | C12: Llogaria dhe pershkrimi | D12: =Language!D44 -> Accounts and description | E12: =Language!$D$45 -> Type of Adjustments: - Policy Modification ("PM") - Reclassifications ("RE") - Omissions ("OM") | F12: =Language!$D$46 -> Debit | H12: =Language!$D$47 -> Credit | J12: =Language!$D$48 -> Impacted statements
B13: 1

Sheet FS Templates-->

Sheet Index - Templates
A1: ='General information'!A1 -> Project STAR
A2: ='General information'!A2 -> xxx
A3: Index of Financial Statements Forms (as per Directive 26 dated 26.12.2007)
A4: =Checks!A4 -> All checks ok
E9: Ref | F9: Statements' name in Albanian | G9: Statements' name in English
D10: Form 1 | E10: F1 | F10: Bilanci Kontabel - Aktivi | G10: Balance Sheet - Statement of Assets
D11: Form 2 | E11: F2 | F11: Bilanci Kontabel - Pasivi | G11: Balance Sheet - Statement of Fund and Liabilities
D12: Form 3/1 | E12: F3-1 | F12: Pasqyra e Shpenzimeve | G12: Statement of Expenses
D13: Form 3/2 | E13: F3-2 | F13: Pasqyra e te Ardhurave | G13: Statement of Revenues
D14: Form 4 | E14: F4 | F14: Burimet dhe shpenzimet lidhur me investimet | G14: Funds and expenses related to investments
D15: Form 5 | E15: F5 | F15: Pasqyra mbi levizjen Cash | G15: Statement of Cash Flows
D16: Form 6 | E16: F6 | F16: Pasyqra mbi gjendjen dhe ndryshimet ne Aktivet e Qendrueshme | G16: Statement of Fixed Assets' Balance and Changes during the year
D17: Form 7 | E17: F7 | F17: Pasqyra e amortizimit te aktiveve te qendrueshme | G17: Statement of Fixed Assets' depreciation
D18: Form 8 | E18: F8 | F18: Pasqyra e levizjes se fondeve | G18: Statement of Changes in Fund
D19: Form 9 | E19: F9 | F19: Pasqyre mbi numrin e punonjesve dhe fondin e pagave | G19: Statement of number of employees and personnel expenses
D20: Form 10 | E20: F10 (Cons) | F20: Pasqyre Permbledhese e Konsoliduar e Gjendjes Financiare | G20: Consolidated Statement of Financial Position
D21: Form 11 | E21: F11 (Cons) | F21: Pasqyre Permbledhese e Konsoliduare te ardhurave dhe shpenzimeve te funksionimit | G21: Consolidated Statement of Revenues and Expenses

Sheet Checks
A1: ='General information'!A1 -> Project STAR
A2: ='General information'!A2 -> xxx
A3: Checks
A4: =IF(Mastercheck=0, "All checks ok", "Reconciliation error") -> All checks ok | J4: =IF($F$7=J5,1,0) -> 1 | L4: =IF($F$7=L5,1,0) -> 0
H5: Restated | J5: =curr_rep_date_end -> 2014-12-31 | L5: =prev_rep_per -> 2013-12-31
D7: Supporting documentation relates to | E7: Evidenca mbeshtetese i referohet | F7: =curr_rep_date_end -> 2014-12-31
D9: Mastercheck | E9: Mastercheck | F9: =J9*J4+L9*L4+H9 -> 0 | H9: =ABS(SUMIF(D:D,"Check",H:H)) -> 0 | J9: =ABS(SUMIF(D:D,"Check",J:J)) -> 0 | L9: =ABS(SUMIF(D:D,"Check",L:L)) -> 0
A11: =MAX($A$1:A6)+1 -> 1 | B11: Kontrolli - Formatet 1-9
C13: =MAX($A$1:C12)+0.1 -> 1.1 | D13: Balance sheet | E13: Bilanci
D15: F2 | E15: F2 | H15: ='F2'!$N$55 -> 0 | J15: ='F2'!$P$55 -> 0 | L15: ='F2'!$R$55 -> 0
D16: F1 | E16: F1 | H16: ='F1'!$N$80 -> 0 | J16: ='F1'!$P$80 -> 0 | L16: ='F1'!$R$80 -> 0
D17: Check | E17: Check | H17: =ROUND(ABS(H16-H15), 0) -> 0 | J17: =ROUND(ABS(J16-J15), 0) -> 0 | L17: =ROUND(ABS(L16-L15), 0) -> 0
D19: Own funds - F8 | E19: Fondet e veta - F8 | H19: ='F8'!$Y$37 -> 0 | J19: ='F8'!AF37 -> 0 | L19: ='F8'!AF37 -> 0
D20: Net assets - current period - F1-F2 | E20: Aktivet neto - periudha e tanishme - F1-F2 | H20: ='F1'!N80-'F2'!N28-'F2'!N49 -> 0 | J20: ='F1'!P80-'F2'!P28-'F2'!P49 -> 0 | L20: ='F1'!R80-'F2'!R28-'F2'!R49 -> 0
D21: Check | E21: Check | H21: =ROUND(ABS(H20-H19), 0) -> 0 | J21: =ROUND(ABS(J20-J19), 0) -> 0 | L21: =ROUND(ABS(L20-L19), 0) -> 0
D23: Fixed assets - F6 | E23: Aktivet e qendrueshme - F6 | H23: ='F6'!$AH$33 -> 0 | J23: ='F6'!$AH$33 -> 0 | L23: ='F6'!$AH$33 -> 0
D24: Depreciation - F7 | E24: Amortizimi - F7 | H24: =-'F7'!$AD$18 -> 0 | J24: =-'F7'!$AD$18 -> 0 | L24: =-'F7'!$AD$18 -> 0
D25: Investments - F4 | E25: Investimet - F4 | H25: ='F4'!$R$47 -> 0 | J25: ='F4'!$R$47 -> 0 | L25: ='F4'!$R$47 -> 0
D26: NBV of fixed assets - F1 | E26: Vlera neto kontabel e aktiveve te qendrueshme - F1 | H26: ='F1'!P14+'F1'!P20 -> 0 | J26: ='F1'!P14+'F1'!P20 -> 0 | L26: ='F1'!R14+'F1'!R20 -> 0
D27: Check | E27: Check | H27: =ROUND(ABS(SUM(H23:H24,H25,-H26)), 0) -> 0 | J27: =ROUND(ABS(SUM(J23:J24,J25,-J26)), 0) -> 0 | L27: =ROUND(ABS(SUM(L23:L24,L25,-L26)), 0) -> 0
D29: Treasury funds - F5 | E29: Fondet e thesarti - F5 | H29: ='F5'!$M$40 -> 0 | J29: ='F5'!$M$40 -> 0 | L29: ='F5'!$M$40 -> 0
D30: Treasury funds - F1 | E30: Foncet e thesarit - F1 | H30: ='F1'!$P$69 -> 0 | J30: ='F1'!$P$69 -> 0 | L30: ='F1'!$R$69 -> 0
D31: Check | E31: Check | H31: =ROUND(ABS(H30-H29), 0) -> 0 | J31: =ROUND(ABS(J30-J29), 0) -> 0 | L31: =ROUND(ABS(L30-L29), 0) -> 0
D33: Net Assets - F10 | E33: Aktivete neto - F10 | H33: ='F10 (Cons)'!P111 -> 0 | J33: ='F10 (Cons)'!P111 -> 0 | L33: ='F10 (Cons)'!R111 -> 0
D34: Own funds - F2 | E34: Fondet e veta - F2 | H34: ='F2'!$N13 -> 0 | J34: ='F2'!$P$13 -> 0 | L34: ='F2'!$R$13 -> 0
H35: =ROUND(ABS(H34-H33), 0) -> 0 | J35: =ROUND(ABS(J34-J33), 0) -> 0 | L35: =ROUND(ABS(L34-L33), 0) -> 0
C37: =MAX($A$1:C32)+0.1 -> 1.2 | D37: Statement of Profit or Loss | E37: Pasqyra e te ardhurave dhe shpenzimeve
D39: F3-1 | E39: F3-1 | J39: ='F3-1'!$P$84 -> 0 | L39: ='F3-1'!$R$84 -> 0
D40: F3-2 | E40: F3-2 | J40: ='F3-2'!$P$100 -> 0 | L40: ='F3-2'!$R$100 -> 0
D41: Check | E41: Check | J41: =ROUND(ABS(J40-J39), 0) -> 0 | L41: =ROUND(ABS(L40-L39), 0) -> 0
D43: Salaries, bonuses - F3-1 | E43: Pagat, shperblimet - F3-1 | J43: ='F3-1'!P17+'F3-1'!P18 -> 0 | L43: ='F3-1'!R17+'F3-1'!R18 -> 0
D44: Salaries - F9 | E44: Pagat - F9 | J44: ='F9'!$T$16 -> 0 | L44: ='F9'!$T$16 -> 0
D45: Check | E45: Check | J45: =ROUND(ABS(SUM(J43,-J44)), 0) -> 0 | L45: =ROUND(ABS(SUM(L43,-L44)), 0) -> 0
A47: =MAX($A$1:A46)+1 -> 2 | B47: Kontrollet - Shenimet
D50: Fixed assets | E50: Aktivet e qendrueshme
D52: BV of fixed assets - N1 | E52: Vlera kontabel e aktiveve te qendrueshme - N1 | J52: ='N1 Fixed Assets Register'!$V$23 -> 0 | L52: ='N1 Fixed Assets Register'!$V$23 -> 0
D53: BV of fixed assets - F1 | E53: Vlera kontabel e aktiveve te qendrueshme - F1 | J53: =SUM('F1'!P15:P19,'F1'!P21:P34) -> 0 | L53: =SUM('F1'!R15:R19,'F1'!R21:R34) -> 0
D54: Check | E54: Check | J54: =ROUND(ABS(SUM(J52,-J53)), 0) -> 0 | L54: =ROUND(ABS(SUM(L52,-L53)), 0) -> 0
D56: List of inventory | E56: Lista e inventarit
D58: Inventory - N2 | E58: Inventari - N2 | J58: ='N2 List of Inventory'!$I$23 -> 0 | L58: ='N2 List of Inventory'!$I$23 -> 0
D59: Inventory - F1 | E59: Inventari - F1 | J59: ='F1'!P41 -> 0 | L59: ='F1'!R41 -> 0
D60: Check | E60: Check | J60: =ROUND(ABS(SUM(J58,-J59)), 0) -> 0 | L60: =ROUND(ABS(SUM(L58,-L59)), 0) -> 0
D62: Receivables from employees | E62: Te arketueshme nga punonjesit
D64: Receivables from employees - N3 | E64: Te arketueshme nga punonjesit - N3 | J64: ='N3 Receivables from Employees'!$L$89 -> 0 | L64: ='N3 Receivables from Employees'!$L$89 -> 0
D65: Receivables from employees - F1 | E65: Te arketueshme nga punonjesit - F1 | J65: ='F1'!P52 -> 0 | L65: ='F1'!R52 -> 0
D66: Check | E66: Check | J66: =ROUND(ABS(SUM(J64,-J65)), 0) -> 0 | L66: =ROUND(ABS(SUM(L64,-L65)), 0) -> 0
D68: Different debtors | E68: Debitore te ndryshem
D70: Different debtors - N4 | E70: Debitore te ndryshem - N4 | J70: ='N4 Different Debtors'!$L$37 -> 0 | L70: ='N4 Different Debtors'!$L$37 -> 0
D71: Different debtors - F1 | E71: Debitore te ndryshem - F1 | J71: ='F1'!P63 -> 0 | L71: ='F1'!R63 -> 0
D72: Check | E72: Check | J72: =ROUND(ABS(SUM(J70,-J71)), 0) -> 0 | L72: =ROUND(ABS(SUM(L70,-L71)), 0) -> 0
D74: Inheritance act | E74: Akti i Trashegemise
D76: Inheritance act - N5 | E76: Akti i Trashegemise - N5 | J76: ='N5 Inheritance Act'!$AB$33 -> 0 | L76: ='N5 Inheritance Act'!$AB$33 -> 0
D77: Inheritance act - F1 (Acc. 520) | E77: Akti i Trashegemise - F1 (Llog. 520) | J77: ='F1'!P69 -> 0 | L77: ='F1'!R69 -> 0
D78: Check | E78: Check | J78: =ROUND(ABS(SUM(J76,-J77)), 0) -> 0 | L78: =ROUND(ABS(SUM(L76,-L77)), 0) -> 0
D80: Creditors | E80: Kreditoret
D82: Creditors - N6 | E82: Kreditoret - N6 | J82: ='N6 Creditors'!$O$301 -> 0 | L82: ='N6 Creditors'!$O$301 -> 0
D83: Creditors - F2 | E83: Kreditoret - F2 | J83: ='F2'!P34 -> 0 | L83: ='F2'!R34 -> 0
D84: Check | E84: Check | J84: =ROUND(ABS(SUM(J82,-J83)), 0) -> 0 | L84: =ROUND(ABS(SUM(L82,-L83)), 0) -> 0
D86: Expenses | E86: Shpenzimet
D88: Expenses - N7 (cash basis) | E88: Shpenzimet - N7 (ne baze kesh-i) | J88: ='N7 Expenses reconciliation'!$Q$33 -> 0 | L88: ='N7 Expenses reconciliation'!$Q$33 -> 0
D89: Expenses - N12 (cash basis) | E89: Shpenzimet - N12 (ne baze kesh-i) | J89: ='N12 Rec. of FS with Treasury'!$E$55 -> 0 | L89: ='N12 Rec. of FS with Treasury'!$E$55 -> 0
D90: Check | E90: Check | J90: =ROUND(ABS(SUM(J88,-J89)), 0) -> 0 | L90: =ROUND(ABS(SUM(L88,-L89)), 0) -> 0
D92: Expenses - F3-1(accrual basis) | E92: Shpenzimet - F3-1(ne baze perllogaritjeje) | J92: ='F3-1'!P21+'F3-1'!P24+'F3-1'!P35+'F3-1'!P41+'F3-1'!P46+'F3-1'!P51+'F3-1'!P61+'F3-1'!P66+'F3-1'!P16 -> 0 | L92: ='F3-1'!R21+'F3-1'!R24+'F3-1'!R35+'F3-1'!R41+'F3-1'!R46+'F3-1'!R51+'F3-1'!R61+'F3-1'!R66+'F3-1'!R16 -> 0
D93: Expenses - N12 (accrual basis) | E93: Shpenzimet - N12 (ne baze perllogaritjeje) | J93: =L93 -> 0 | L93: ='N12 Rec. of FS with Treasury'!$Q$55 -> 0
D94: Check | E94: Check | J94: =ROUND(ABS(SUM(J92,-J93)), 0) -> 0 | L94: =ROUND(ABS(SUM(L92,-L93)), 0) -> 0
D96: Revenue reconciliation | E96: Rakordimi i te ardhurave
D98: Revenue reconciliation - N8 | E98: Rakordimi i te ardhurave - N8 | J98: ='N8 Revenue reconciliation'!$P$378 -> 0 | L98: ='N8 Revenue reconciliation'!$P$378 -> 0
D99: Revenue - F3-2 | E99: Te ardhurat - F3-2 | J99: ='F3-2'!P15+'F3-2'!P39+'F3-2'!P47 -> 0 | L99: ='F3-2'!R15+'F3-2'!R39+'F3-2'!R47 -> 0
D100: Check | E100: Check | J100: =ROUND(ABS(SUM(J98,-J99)), 0) -> 0 | L100: =ROUND(ABS(SUM(L98,-L99)), 0) -> 0
D102: Revenue transferred to government budget | E102: Te ardhurat e transferuara ne buxhetin e qeverise
D104: Revenue reconciliation - N8 | E104: Rakordimi i te ardhurave - N8 | J104: ='N8 Revenue reconciliation'!$P$377 -> 0 | L104: ='N8 Revenue reconciliation'!$P$377 -> 0
D105: Account 8420 in F3-1 | E105: Llogaria 8420 in F3-1 | J105: ='F3-1'!P77 -> 0 | L105: ='F3-1'!R77 -> 0
D106: Check | E106: Check | J106: =ROUND(ABS(SUM(J104,-J105)), 0) -> 0 | L106: =ROUND(ABS(SUM(L104,-L105)), 0) -> 0
D108: Subsidiaries | E108: Filialet
D110: Subsidiaries - N9 | E110: Filialet - N9 | J110: ='N9 Subsidiaries'!$R$19 -> 0 | L110: ='N9 Subsidiaries'!$R$19 -> 0
D111: Subsidiaries - F1 | E111: Filialet - F1 | J111: ='F1'!$P$37 -> 0 | L111: ='F1'!$R$37 -> 0
D112: Check | E112: Check | J112: =ROUND(ABS(SUM(J110,-J111)), 0) -> 0 | L112: =ROUND(ABS(SUM(L110,-L111)), 0) -> 0
D114: Loans and borrowings | E114: Borxhe dhe huamarrje
D116: Loans and borrowings - N10 | E116: Borxhe dhe huamarrje - N10 | J116: ='N10 Loans and borrowings'!I21+'N10 Loans and borrowings'!H21 -> 0 | L116: ='N10 Loans and borrowings'!R21+'N10 Loans and borrowings'!Q21 -> 0
D117: Loans and borrowings - F2 | E117: Borxhe dhe huamarrje - F2 | J117: ='F2'!P29 -> 0 | L117: ='F2'!R29 -> 0
D118: Check | E118: Check | J118: =ROUND(ABS(SUM(J116,-J117)), 0) -> 0 | L118: =ROUND(ABS(SUM(L116,-L117)), 0) -> 0
D120: Donor grants | E120: Grantet e donatoreve
D122: Donor grants - N11 | E122: Grantet e donatoreve - N11 | J122: ='N11 Donor grants'!H21 -> 0 | L122: ='N11 Donor grants'!P21 -> 0
D123: Donor grants - F3-2 | E123: Grantet e donatoreve - F3-2 | J123: ='F3-2'!$P$73 -> 0 | L123: ='F3-2'!$R$73 -> 0
D124: Check | E124: Check | J124: =ROUND(ABS(SUM(J122,-J123)), 0) -> 0 | L124: =ROUND(ABS(SUM(L122,-L123)), 0) -> 0
A126: =MAX($A$1:A125)+1 -> 3 | B126: Kontrollet - E dhena nga klienti
D128: Fixed assets | E128: Aktivet e qendrueshme
D129: PPE | E129: AQT | J129: =PPE!$D$5 -> 0 | L129: =PPE!$D$5 -> 0
D130: Investments | E130: Investimet | J130: ='Investments in process for PPE'!$D$5 -> 0 | L130: ='Investments in process for PPE'!$D$5 -> 0
D131: BV of fiNed assets - N1 | E131: Vlera neto e aktiveve te qendrueshhme - N1 | J131: =J52 -> 0 | L131: =L52 -> 0
D132: Check | E132: Check | J132: =ROUND(ABS(SUM(J129:J130,-J131)),0) -> 0 | L132: =ROUND(ABS(SUM(L129:L130,-L131)),0) -> 0
D134: Depreciation | E134: Amortizimi
D135: Depreciation | E135: Amortizimi | J135: ='Depreciation FA'!$D$5 -> 0 | L135: ='Depreciation FA'!$D$5 -> 0
D136: Depreciation Intangibles- F1 | E136: Amortizimi I aktiveve te patrupezuara- F1 | J136: ='F1'!P18 -> 0 | L136: ='F1'!R18 -> 0
D137: Depreciation Tangibles - F1 | E137: Amortizimi I aktiveve te trupezuara- F1 | J137: ='F1'!P30 -> 0 | L137: ='F1'!R30 -> 0
D138: Check | E138: Check | J138: =ROUND(ABS(SUM(J135,J136,J137)),0) -> 0 | L138: =ROUND(ABS(SUM(L135,L136,L137)),0) -> 0
D140: Inheritance act | E140: Akti i trashegemise
D142: Act of inherited balances | E142: Akti i shumave te trasheguara | J142: ='Act of Inhereted Balances'!$D$5 -> 0 | L142: ='Act of Inhereted Balances'!$D$5 -> 0
D143: Inheritance act - N5 | E143: Akti I trashegemise - N5 | J143: =J76 -> 0 | L143: =L76 -> 0
D144: Check | E144: Check | J144: =ROUND(ABS(SUM(J143,-J142)),0) -> 0 | L144: =ROUND(ABS(SUM(L143,-L142)),0) -> 0
D146: Payables to employees | E146: Shumat per t'u paguara punonjesve
D148: Payables to employees | E148: Te pagueshme ndaj punonjesve | J148: ='Unpaid Salaries'!$D$5 -> 0 | L148: ='Unpaid Salaries'!$D$5 -> 0
D149: Payables to employees - F2 | E149: Te pagueshme ndaj punonjesve - F2 | J149: ='F2'!$P$35 -> 0 | L149: ='F2'!$R$35 -> 0
D150: Check | E150: Check | J150: =ROUND(ABS(SUM(J148,-J149)),0) -> 0 | L150: =ROUND(ABS(SUM(L148,-L149)),0) -> 0
D152: Actual grants | E152: Grantet aktuale
D153: Actual grants | E153: Grantet aktuale | J153: ='Unconditional Grant '!$D$5 -> 0 | L153: ='Unconditional Grant '!$D$5 -> 0
D154: Grants from government - F3-2 | E154: Grantet nga qeveria - F3-2 | J154: ='F3-2'!P64 -> 0 | L154: ='F3-2'!R64 -> 0
D155: Check | E155: Check | J155: =ROUND(ABS(SUM(J153,-J154)),0) -> 0 | L155: =ROUND(ABS(SUM(L153,-L154)),0) -> 0
D157: Liabilities | E157: Detyrimet
D158: Other operations with Gov | E158: Aktivitete te tjera me qeverine | J158: ='Other Operations with Gov.'!$D$5 -> 0 | L158: ='Other Operations with Gov.'!$D$5 -> 0
D159: Te tjera operacione me shtetin(kreditor) - F2 | E159: Aktivitete te tjera me qeverine (kreditor) - F2 | J159: ='F2'!P39 -> 0 | L159: ='F2'!R39 -> 0
D160: Check | E160: Check | J160: =ROUND(ABS(SUM(J158,-J159)),0) -> 0 | L160: =ROUND(ABS(SUM(L158,-L159)),0) -> 0
D162: Other assets | E162: Aktive te tjera
D163: Stamps | E163: Vula | J163: =Stamps!$D$5 -> 0 | L163: =Stamps!$D$5 -> 0
D164: Other amounts - F1 | E164: Shuma te tjera - F1 | J164: ='F1'!P71 -> 0 | L164: ='F1'!R71 -> 0
D165: Check | E165: Check | J165: =ROUND(ABS(SUM(J163,-J164)),0) -> 0 | L165: =ROUND(ABS(SUM(L163,-L164)),0) -> 0

Sheet F1
A1: ='General information'!A1 -> Project STAR
A2: ='General information'!A2 -> xxx
A3: =A8 -> Balance Sheet - Statement of assets (Form 1)
A4: =Checks!A4 -> All checks ok
A7: ='General information'!A2 -> xxx
A8: =Language!$D$87 -> Balance Sheet - Statement of assets (Form 1)
A9: =Language!$D$13 -> for the year ended 31 December 2014
A10: =ALL -> (Shumat ne ALL'000, nëse nuk shprehet ndryshe)
A11: =Language!$D$41 -> No | B11: =Language!$D$49 -> Acc. No. | C11: EMERTIMI I LLOGARIVE TE AKTIVIT | D11: =Language!$D$54 -> Assets | F11: =Language!$D$40 -> Notes | H11: =J11&" "&Language!D55 -> As at 31 December 2014 Restated | J11: =Language!D11 -> As at 31 December 2014 | L11: =Language!D12 -> As at 31 December 2013 | N11: =H11 -> As at 31 December 2014 Restated | P11: =J11 -> As at 31 December 2014 | R11: =L11 -> As at 31 December 2013 | T11: =Language!$D$56 -> Evidence provided Reference
A12: 1 | B12: 12 | C12: Rezultate te mbartura(saldo debitore) | D12: Brought forward results
A13: 2 | B13: A | C13: AKTIVE TE QENDRUESHME | D13: Non Current Assets | H13: =H14+H20+H35 -> 0 | J13: =J14+J20+J35 -> 0 | L13: =L14+L20+L35 -> 0 | N13: =N14+N20+N35 -> 0 | P13: =P14+P20+P35 -> 0 | R13: =R14+R20+R35 -> 0
A14: 3 | B14: 20, 230 | C14: I.Te pa trupezuara | D14: I. Intangible Assets | H14: =SUM(H15:H19) -> 0 | J14: =SUM(J15:J19) -> 0 | L14: =SUM(L15:L19) -> 0 | N14: =SUM(N15:N19) -> 0 | P14: =SUM(P15:P19) -> 0 | R14: =SUM(R15:R19) -> 0
A15: 4 | B15: 201 | C15: Prime te emisionit dhe rimbursimit te huave | D15: Amounts to be remitted and loan reimbursements | H15: =N15/Presentation_curr -> 0 | J15: =P15/Presentation_curr -> 0 | L15: =R15/Presentation_curr -> 0 | N15: =P15 -> 0 | P15: ='LGU''s FS (Template)'!E8 -> 0 | R15: ='LGU''s FS (Template)'!F8 -> 0
A16: 5 | B16: 202 | C16: Studime dhe kerkime | D16: Studies and research | F16: F6, N1 | H16: =N16/Presentation_curr -> 0 | J16: =P16/Presentation_curr -> 0 | L16: =R16/Presentation_curr -> 0 | N16: =P16 -> 0 | P16: ='LGU''s FS (Template)'!E9 -> 0 | R16: ='LGU''s FS (Template)'!F9 -> 0 | T16: N1 Fixed Assets Register
A17: 6 | B17: 203 | C17: Koncesione, patenta,licenca e tjera ngjashme | D17: Concessions, license, other similar licenses | H17: =N17/Presentation_curr -> 0 | J17: =P17/Presentation_curr -> 0 | L17: =R17/Presentation_curr -> 0 | N17: 0 | P17: ='LGU''s FS (Template)'!E10 -> 0 | R17: ='LGU''s FS (Template)'!F10 -> 0
A18: 7 | B18: 209 | C18: Amortizimi i aktiveve qendrushme te pa trupezuara(-) | D18: Amortization of current intangible assets (-) | F18: F7, N1 | H18: =N18/Presentation_curr -> 0 | J18: =P18/Presentation_curr -> 0 | L18: =R18/Presentation_curr -> 0 | N18: 0 | P18: ='LGU''s FS (Template)'!E11 -> 0 | R18: ='LGU''s FS (Template)'!F11 -> 0 | T18: N1 Fixed Assets Register
A19: 8 | B19: 230 | C19: Shpenzime per rritjen e aktiv.qendr.patrupezuara | D19: Expenses for increase of current intangible assets | H19: =N19/Presentation_curr -> 0 | J19: =P19/Presentation_curr -> 0 | L19: =R19/Presentation_curr -> 0 | N19: 0 | P19: ='LGU''s FS (Template)'!E12 -> 0 | R19: ='LGU''s FS (Template)'!F12 -> 0
A20: 9 | B20: 21,23, 24,28 | C20: II.Akt.Qendr.te Trupezuara | D20: II. Tangible Assets | H20: =SUM(H21:H34) -> 0 | J20: =SUM(J21:J34) -> 0 | L20: =SUM(L21:L34) -> 0 | N20: =SUM(N21:N34) -> 0 | P20: =SUM(P21:P34) -> 0 | R20: =SUM(R21:R34) -> 0
A21: 10 | B21: 210 | C21: Toka,troje,Terene | D21: Land | H21: =N21/Presentation_curr -> 0 | J21: =P21/Presentation_curr -> 0 | L21: =R21/Presentation_curr -> 0 | N21: =P21 -> 0 | P21: ='LGU''s FS (Template)'!E14 -> 0 | R21: ='LGU''s FS (Template)'!F14 -> 0
A22: 11 | B22: 211 | C22: Pyje,Kullota Plantacione | D22: Forests, Pasture, Plantation | F22: F6, N1 | H22: 0 | J22: 0 | L22: 0 | N22: 0 | P22: ='LGU''s FS (Template)'!E15 -> 0 | R22: ='LGU''s FS (Template)'!F15 -> 0 | T22: N1 Fixed Assets Register
A23: 12 | B23: 212 | C23: Ndertime e Konstruksione | D23: Building and Constructions | F23: F6, N1 | H23: 0 | J23: 0 | L23: 0 | N23: 0 | P23: ='LGU''s FS (Template)'!E16 -> 0 | R23: ='LGU''s FS (Template)'!F16 -> 0 | T23: N1 Fixed Assets Register
A24: 13 | B24: 213 | C24: Rruge,rrjete,vepra ujore | D24: Roads, networks, water facilities | F24: F6, N1 | H24: 0 | J24: 0 | L24: 0 | N24: 0 | P24: ='LGU''s FS (Template)'!E17 -> 0 | R24: ='LGU''s FS (Template)'!F17 -> 0 | T24: N1 Fixed Assets Register
A25: 14 | B25: 214 | C25: Instalime teknike,makineri,paisje,vegla pune | D25: Technical installment, machinery, equipment, working tools | F25: F6, N1 | H25: 0 | J25: 0 | L25: 0 | N25: 0 | P25: ='LGU''s FS (Template)'!E18 -> 0 | R25: ='LGU''s FS (Template)'!F18 -> 0 | T25: N1 Fixed Assets Register
A26: 15 | B26: 215 | C26: Mjete transporti | D26: Transport vehicles | F26: F6, N1 | H26: 0 | J26: 0 | L26: 0 | N26: 0 | P26: ='LGU''s FS (Template)'!E19 -> 0 | R26: ='LGU''s FS (Template)'!F19 -> 0 | T26: N1 Fixed Assets Register
A27: 16 | B27: 216 | C27: Rezerva shtetrore | D27: Government reserve | H27: 0 | J27: 0 | L27: 0 | N27: 0 | P27: ='LGU''s FS (Template)'!E20 -> 0 | R27: ='LGU''s FS (Template)'!F20 -> 0
A28: 17 | B28: 217 | C28: Kafshe pune e prodhimi | D28: Working and production animals | H28: 0 | J28: 0 | L28: 0 | N28: 0 | P28: ='LGU''s FS (Template)'!E21 -> 0 | R28: ='LGU''s FS (Template)'!F21 -> 0
A29: 18 | B29: 218 | C29: Inventar ekonomik | D29: Economic Inventory | F29: F6, N1 | H29: 0 | J29: 0 | L29: 0 | N29: 0 | P29: ='LGU''s FS (Template)'!E22 -> 0 | R29: ='LGU''s FS (Template)'!F22 -> 0 | T29: N1 Fixed Assets Register
A30: 19 | B30: 219 | C30: Amortizimi aktiv.Qendr.te trupezuara(-) | D30: Depreciation of tangible assets | F30: F7, N1 | H30: 0 | J30: 0 | L30: 0 | N30: 0 | P30: ='LGU''s FS (Template)'!E23 -> 0 | R30: ='LGU''s FS (Template)'!F23 -> 0 | T30: N1 Fixed Assets Register
A31: 20 | B31: 231 | C31: Shpenzime proces per rritjen e AQT | D31: Expenses in process for increase of current tangible assets | F31: F4 | H31: 0 | J31: 0 | L31: 0 | N31: 0 | P31: ='LGU''s FS (Template)'!E24 -> 0 | R31: ='LGU''s FS (Template)'!F24 -> 0 | T31: F4 Statement
A32: 21 | B32: 232 | C32: Shpenzime proces per transferime kapitale | D32: Expenses in process for capital transfers | H32: 0 | J32: 0 | L32: 0 | N32: 0 | P32: ='LGU''s FS (Template)'!E25 -> 0 | R32: ='LGU''s FS (Template)'!F25 -> 0
A33: 22 | B33: 24 | C33: Aktive te Qend.te trupezuara te demtuara | D33: Damaged current tangible assets | H33: 0 | J33: 0 | L33: 0 | N33: 0 | P33: ='LGU''s FS (Template)'!E26 -> 0 | R33: ='LGU''s FS (Template)'!F26 -> 0
A34: 23 | B34: 28 | C34: Caktime | D34: Assignments | H34: 0 | J34: 0 | L34: 0 | N34: 0 | P34: ='LGU''s FS (Template)'!E27 -> 0 | R34: ='LGU''s FS (Template)'!F27 -> 0
A35: 24 | B35: 25.26 | C35: III.Aktive Financiare | D35: III. Financial Assets | H35: =SUM(H36:H37) -> 0 | J35: =SUM(J36:J37) -> 0 | L35: =SUM(L36:L37) -> 0 | N35: =SUM(N36:N37) -> 0 | P35: =SUM(P36:P37) -> 0 | R35: =SUM(R36:R37) -> 0
A36: 25 | B36: 25 | C36: Huadhenie e nenhuadhenie | D36: Loan and sub-loans | H36: =N36/Presentation_curr -> 0 | J36: =P36/Presentation_curr -> 0 | L36: =R36/Presentation_curr -> 0 | N36: =P36 -> 0 | P36: ='LGU''s FS (Template)'!E29 -> 0 | R36: ='LGU''s FS (Template)'!F29 -> 0
A37: 26 | B37: 26 | C37: Pjesmarrje ne kapitalin e vet | D37: Participation with own capital | H37: =N37/Presentation_curr -> 0 | J37: =P37/Presentation_curr -> 0 | L37: =R37/Presentation_curr -> 0 | N37: 0 | P37: ='LGU''s FS (Template)'!E30 -> 0 | R37: ='LGU''s FS (Template)'!F30 -> 0
A38: 27 | B38: B | C38: AKTIVE QARKULLUESE | D38: CURRENT ASSETS | H38: =H39+H49+H65 -> 0 | J38: =J39+J49+J65 -> 0 | L38: =L39+L49+L65 -> 0 | N38: =N39+N49+N65 -> 0 | P38: =P39+P49+P65 -> 0 | R38: =R39+R49+R65 -> 0
A39: 28 | B39: Klasa 3 | C39: I.Gjendja e Inventarit | D39: I. Inventory Status | H39: =SUM(H40:H48) -> 0 | J39: =SUM(J40:J48) -> 0 | L39: =SUM(L40:L48) -> 0 | N39: =SUM(N40:N48) -> 0 | P39: =SUM(P40:P48) -> 0 | R39: =SUM(R40:R48) -> 0
A40: 29 | B40: 31 | C40: Materiale | D40: Materials | F40: N2 | H40: =N40/Presentation_curr -> 0 | J40: =P40/Presentation_curr -> 0 | L40: =R40/Presentation_curr -> 0 | N40: =P40 -> 0 | P40: ='LGU''s FS (Template)'!E33 -> 0 | R40: ='LGU''s FS (Template)'!F33 -> 0 | T40: N2 List Inventory
A41: 30 | B41: 32 | C41: Objekte inventari | D41: Inventory Objects | F41: N2 | H41: 0 | J41: 0 | L41: 0 | N41: 0 | P41: ='LGU''s FS (Template)'!E34 -> 0 | R41: ='LGU''s FS (Template)'!F34 -> 0 | T41: N2 List Inventory
A42: 31 | B42: 33 | C42: Prodhime, punime e sherbime ne proces | D42: Production, work and services in process | H42: 0 | J42: 0 | L42: 0 | N42: 0 | P42: ='LGU''s FS (Template)'!E35 -> 0 | R42: ='LGU''s FS (Template)'!F35 -> 0
A43: 32 | B43: 34 | C43: Produkte | D43: Products | H43: 0 | J43: 0 | L43: 0 | N43: 0 | P43: ='LGU''s FS (Template)'!E36 -> 0 | R43: ='LGU''s FS (Template)'!F36 -> 0
A44: 33 | B44: 35 | C44: Mallra | D44: Goods | H44: 0 | J44: 0 | L44: 0 | N44: 0 | P44: ='LGU''s FS (Template)'!E37 -> 0 | R44: ='LGU''s FS (Template)'!F37 -> 0
A45: 34 | B45: 36 | C45: Gje e gjalle ne rritje e majmeri | D45: Animals fattening | H45: 0 | J45: 0 | L45: 0 | N45: 0 | P45: ='LGU''s FS (Template)'!E38 -> 0 | R45: ='LGU''s FS (Template)'!F38 -> 0
A46: 35 | B46: 37 | C46: Gjendje te pambritura ose prane te treteve | D46: Undelivered items or close to third party | H46: 0 | J46: 0 | L46: 0 | N46: 0 | P46: ='LGU''s FS (Template)'!E39 -> 0 | R46: ='LGU''s FS (Template)'!F39 -> 0
A47: 36 | B47: 38 | C47: Diferenca nga cmimet e magazinimit | D47: Differences from warehouse prices | H47: 0 | J47: 0 | L47: 0 | N47: 0 | P47: ='LGU''s FS (Template)'!E40 -> 0 | R47: ='LGU''s FS (Template)'!F40 -> 0
A48: 37 | B48: 39 | C48: Shuma te parashikuara per zhvleresim te inventarit(-) | D48: Forecasted amounts for inventory depreciation (-) | H48: 0 | J48: 0 | L48: 0 | N48: 0 | P48: ='LGU''s FS (Template)'!E41 -> 0 | R48: ='LGU''s FS (Template)'!F41 -> 0
A49: 38 | B49: Klasa 4 | C49: II.Kerkesa arketimi mbi Debitoret | D49: II. Request for receivables | H49: =SUM(H50:H64) -> 0 | J49: =SUM(J50:J64) -> 0 | L49: =SUM(L50:L64) -> 0 | N49: =SUM(N50:N64) -> 0 | P49: =SUM(P50:P64) -> 0 | R49: =SUM(R50:R64) -> 0
A50: 39 | B50: 409 | C50: Furnitore(Debitore),parapagime pagesa pjesore | D50: Suppliers, prepayments or partial payment | H50: =N50/Presentation_curr -> 0 | J50: =P50/Presentation_curr -> 0 | L50: =R50/Presentation_curr -> 0 | N50: =P50 -> 0 | P50: ='LGU''s FS (Template)'!E43 -> 0 | R50: ='LGU''s FS (Template)'!F43 -> 0
A51: 40 | B51: 411-418 | C51: Kliente e llogari te ngjashme | D51: Similar clients or accounts | H51: 0 | J51: 0 | L51: 0 | N51: 0 | P51: ='LGU''s FS (Template)'!E44 -> 0 | R51: ='LGU''s FS (Template)'!F44 -> 0
A52: 41 | B52: 423.429 | C52: Personeli, paradhenie, deficite e gjoba | D52: Employees, prepayment, deficits and penalties | F52: N3 | H52: 0 | J52: 0 | L52: 0 | N52: 0 | P52: ='LGU''s FS (Template)'!E45 -> 0 | R52: ='LGU''s FS (Template)'!F45 -> 0 | T52: N3 Receivables from Employees
A53: 42 | B53: 431 | C53: Te drejta e taksa per t'u derdhur ne shtet | D53: Rights and taxes to deposit to government | H53: 0 | J53: 0 | L53: 0 | N53: 0 | P53: ='LGU''s FS (Template)'!E46 -> 0 | R53: ='LGU''s FS (Template)'!F46 -> 0
A54: 43 | B54: 432 | C54: Tatime mbledh nga shteti per llog.Pushtetit Lokal | D54: Taxes collected from central government for the Local Government | H54: 0 | J54: 0 | L54: 0 | N54: 0 | P54: ='LGU''s FS (Template)'!E47 -> 0 | R54: ='LGU''s FS (Template)'!F47 -> 0
A55: 44 | B55: 433 | C55: Shenz.fatkeqesi natyrore qe mbulon shteti | D55: Expenses for natural disaster covered from the government | H55: 0 | J55: 0 | L55: 0 | N55: 0 | P55: ='LGU''s FS (Template)'!E48 -> 0 | R55: ='LGU''s FS (Template)'!F48 -> 0
A56: 45 | B56: 4342 | C56: Te tjera operacione me shtetin(debitor) | D56: Other operations with the government (debtor) | H56: 0 | J56: 0 | L56: 0 | N56: 0 | P56: ='LGU''s FS (Template)'!E49 -> 0 | R56: ='LGU''s FS (Template)'!F49 -> 0 | T56: Add explanation in FS
A57: 46 | B57: 435 | C57: Sigurime Shoqerore | D57: Social Insurance | H57: 0 | J57: 0 | L57: 0 | N57: 0 | P57: ='LGU''s FS (Template)'!E50 -> 0 | R57: ='LGU''s FS (Template)'!F50 -> 0
A58: 47 | B58: 436 | C58: Sigurime Shendetesore | D58: Health Insurance | H58: 0 | J58: 0 | L58: 0 | N58: 0 | P58: ='LGU''s FS (Template)'!E51 -> 0 | R58: ='LGU''s FS (Template)'!F51 -> 0
A59: 48 | B59: 437.438 | C59: Organizma te tjere shoqerore | D59: Other social organizations | H59: 0 | J59: 0 | L59: 0 | N59: 0 | P59: ='LGU''s FS (Template)'!E52 -> 0 | R59: ='LGU''s FS (Template)'!F52 -> 0
A60: 49 | B60: 44 | C60: Institucione te tjera publike | D60: Other public institutions | H60: 0 | J60: 0 | L60: 0 | N60: 0 | P60: ='LGU''s FS (Template)'!E53 -> 0 | R60: ='LGU''s FS (Template)'!F53 -> 0
A61: 50 | B61: 45 | C61: Mardhenie me instit.brenda dhe jasht sistemit | D61: Relationships with institutions in and outside the system | H61: 0 | J61: 0 | L61: 0 | N61: 0 | P61: ='LGU''s FS (Template)'!E54 -> 0 | R61: ='LGU''s FS (Template)'!F54 -> 0
A62: 51 | B62: 465 | C62: Efekte per t'u arketuar nga shitja let.vlere vendosjes | D62: Receivables from selling of bonds | H62: 0 | J62: 0 | L62: 0 | N62: 0 | P62: ='LGU''s FS (Template)'!E55 -> 0 | R62: ='LGU''s FS (Template)'!F55 -> 0
A63: 52 | B63: 468 | C63: Debitore te ndryshem | D63: Different Debtors | F63: N4 | H63: 0 | J63: 0 | L63: 0 | N63: 0 | P63: ='LGU''s FS (Template)'!E56 -> 0 | R63: ='LGU''s FS (Template)'!F56 -> 0 | T63: N4 Different Debtors
A64: 53 | B64: 49 | C64: Shuma te parashikuara per zhvleresim(-) | D64: Forecasted amounts for depreciation (-) | H64: 0 | J64: 0 | L64: 0 | N64: 0 | P64: ='LGU''s FS (Template)'!E57 -> 0 | R64: ='LGU''s FS (Template)'!F57 -> 0
A65: 54 | B65: 50.59 | C65: III.Llogarite financiare | D65: III. Financial accounts | H65: =SUM(H66:H74) -> 0 | J65: =SUM(J66:J74) -> 0 | L65: =SUM(L66:L74) -> 0 | N65: =SUM(N66:N74) -> 0 | P65: =SUM(P66:P74) -> 0 | R65: =SUM(R66:R74) -> 0
A66: 55 | B66: 50 | C66: Letra me vlere te vendosjes | D66: Securities | H66: =N66/Presentation_curr -> 0 | J66: =P66/Presentation_curr -> 0 | L66: =R66/Presentation_curr -> 0 | N66: =P66 -> 0 | P66: ='LGU''s FS (Template)'!E59 -> 0 | R66: ='LGU''s FS (Template)'!F59 -> 0
A67: 56 | B67: 511 | C67: Vlera per tu arketuar | D67: Amounts to receive | H67: 0 | J67: 0 | L67: 0 | N67: 0 | P67: ='LGU''s FS (Template)'!E60 -> 0 | R67: ='LGU''s FS (Template)'!F60 -> 0
A68: 57 | B68: 512 | C68: Llogari ne banke | D68: Bank | H68: 0 | J68: 0 | L68: 0 | N68: 0 | P68: ='LGU''s FS (Template)'!E61 -> 0 | R68: ='LGU''s FS (Template)'!F61 -> 0
A69: 58 | B69: 520 | C69: Disponibilitete ne thesar | D69: Treasury funds | F69: N5 | H69: 0 | J69: 0 | L69: 0 | N69: 0 | P69: ='LGU''s FS (Template)'!E62 -> 0 | R69: ='LGU''s FS (Template)'!F62 -> 0 | T69: N5 Inheritance Act
A70: 59 | B70: 531 | C70: Llogari ne arke | D70: Petty-cash | H70: 0 | J70: 0 | L70: 0 | N70: 0 | P70: ='LGU''s FS (Template)'!E63 -> 0 | R70: ='LGU''s FS (Template)'!F63 -> 0
A71: 60 | B71: 532 | C71: Vlera te tjera | D71: Other amounts | H71: 0 | J71: 0 | L71: 0 | N71: 0 | P71: ='LGU''s FS (Template)'!E64 -> 0 | R71: ='LGU''s FS (Template)'!F64 -> 0
A72: 61 | B72: 54 | C72: Akreditiva dhe paradhenie | D72: Recognized and prepayments | H72: 0 | J72: 0 | L72: 0 | N72: 0 | P72: ='LGU''s FS (Template)'!E65 -> 0 | R72: ='LGU''s FS (Template)'!F65 -> 0
A73: 62 | B73: 56 | C73: Llogari ne organizma krediti | D73: Accounts in Lending Institutions | H73: 0 | J73: 0 | L73: 0 | N73: 0 | P73: ='LGU''s FS (Template)'!E66 -> 0 | R73: ='LGU''s FS (Template)'!F66 -> 0
A74: 63 | B74: 59 | C74: Provigjone zhvlersimi letra me vlere vendosjes(-) | D74: devaluation provisions on securities(-) | H74: 0 | J74: 0 | L74: 0 | N74: 0 | P74: ='LGU''s FS (Template)'!E67 -> 0 | R74: ='LGU''s FS (Template)'!F67 -> 0
A75: 64 | B75: C | C75: LLOGARI TE TJERA AKTIVE | D75: Other Assets | H75: =SUM(H76:H78) -> 0 | J75: =SUM(J76:J78) -> 0 | L75: =SUM(L76:L78) -> 0 | N75: =SUM(N76:N78) -> 0 | P75: =SUM(P76:P78) -> 0 | R75: =SUM(R76:R78) -> 0
A76: 65 | B76: 477 | C76: Diferenca konvertimi aktive | D76: Assets conversion differences | H76: =N76/Presentation_curr -> 0 | J76: =P76/Presentation_curr -> 0 | L76: =R76/Presentation_curr -> 0 | N76: =P76 -> 0 | P76: ='LGU''s FS (Template)'!E69 -> 0 | R76: ='LGU''s FS (Template)'!F69 -> 0
A77: 66 | B77: 481 | C77: Shpenz.per tu shpernd.ne disa ushtrime | D77: Expenses to distribute in several exercises | H77: =N77/Presentation_curr -> 0 | J77: =P77/Presentation_curr -> 0 | L77: =R77/Presentation_curr -> 0 | N77: 0 | P77: ='LGU''s FS (Template)'!E70 -> 0 | R77: ='LGU''s FS (Template)'!F70 -> 0
A78: 67 | B78: 486 | C78: Shpenzime te periudhave te ardheshme | D78: Expenses in the future | H78: =N78/Presentation_curr -> 0 | J78: =P78/Presentation_curr -> 0 | L78: =R78/Presentation_curr -> 0 | N78: 0 | P78: ='LGU''s FS (Template)'!E71 -> 0 | R78: ='LGU''s FS (Template)'!F71 -> 0
A79: 68 | B79: 85 | C79: REZULTATI I USHTRIMIT(saldo debitore) | D79: EXERCISE RESULTS (saldo debitore) | H79: =N79/Presentation_curr -> 0 | J79: =P79/Presentation_curr -> 0 | L79: =R79/Presentation_curr -> 0 | N79: 0 | P79: ='LGU''s FS (Template)'!E72 -> 0 | R79: ='LGU''s FS (Template)'!F72 -> 0
A80: 69 | B80: X | C80: TOTALI I AKTIVIT | D80: ASSETS TOTAL | H80: =J12+H13+H38+H75+H79 -> 0 | J80: =L12+J13+J38+J75+J79 -> 0 | L80: =M12+L13+L38+L75+L79 -> 0 | N80: =P12+N13+N38+N75+N79 -> 0 | P80: =R12+P13+P38+P75+P79 -> 0 | R80: =S12+R13+R38+R75+R79 -> 0
N81: =P81 -> 0
A82: 70 | B82: 80.81 | C82: LLOGARITE JASHTE BILANCIT | D82: ACCOUNTS OUT OF BALANCE SHEET | H82: =N82/Presentation_curr -> 0 | J82: =SUM(J83) -> 0 | L82: =SUM(L83) -> 0 | N82: =P82 -> 0 | P82: =SUM(P83) -> 0 | R82: =SUM(R83) -> 0
A83: 71 | B83: 80,81 | C83: Evidenca aktive | D83: Active evidences | H83: =N83/Presentation_curr -> 0 | J83: =P83/Presentation_curr -> 0 | L83: =R83/Presentation_curr -> 0 | N83: 0 | P83: ='LGU''s FS (Template)'!E76 -> 0 | R83: ='LGU''s FS (Template)'!F76 -> 0

Sheet F2
A1: ='General information'!A1 -> Project STAR
A2: ='General information'!A2 -> xxx
A3: =A8 -> Balance Sheet - Statement of fund and liabilities (Form 2)
A4: =Checks!A4 -> All checks ok
A7: ='General information'!A2 -> xxx
A8: =Language!$D$88 -> Balance Sheet - Statement of fund and liabilities (Form 2)
A9: =Language!$D$13 -> for the year ended 31 December 2014
A10: =ALL -> (Shumat ne ALL'000, nëse nuk shprehet ndryshe)
A11: =Language!$D$41 -> No | B11: =Language!$D$49 -> Acc. No. | C11: EMERTIMI I LLOGARIVE TE PASIVIT | D11: Liabilities
F12: =Language!$D$40 -> Notes | H12: =Language!D11&" "&Language!D55 -> As at 31 December 2014 Restated | J12: =Language!$D$11 -> As at 31 December 2014 | L12: =Language!$D$12 -> As at 31 December 2013 | N12: =H12 -> As at 31 December 2014 Restated | P12: =J12 -> As at 31 December 2014 | R12: =L12 -> As at 31 December 2013 | T12: =Language!$D$56 -> Evidence provided Reference
A13: 1 | B13: A | C13: FONDE TE VETA | D13: OWN FUNDS | H13: =H14+H20+H24+H25+H26+H27 -> 0 | J13: =J14+J20+J24+J25+J26+J27 -> 0 | L13: =L14+L20+L24+L25+L26+L27 -> 0 | N13: =N14+N20+N24+N25+N26+N27 -> 0 | P13: =P14+P20+P24+P25+P26+P27 -> 0 | R13: =R14+R20+R24+R25+R26+R27 -> 0
A14: 2 | B14: 10 | C14: I. Fonde te veta | D14: I. Own funds | H14: =SUM(H15:H19) -> 0 | J14: =SUM(J15:J19) -> 0 | L14: =SUM(L15:L19) -> 0 | N14: =SUM(N15:N19) -> 0 | P14: =SUM(P15:P19) -> 0 | R14: =SUM(R15:R19) -> 0
A15: 3 | B15: 101 | C15: Fonde baze | D15: Base funds | F15: F8 | H15: =N15/Presentation_curr -> 0 | J15: =P15/Presentation_curr -> 0 | L15: =R15/Presentation_curr -> 0 | N15: =P15 -> 0 | P15: ='LGU''s FS (Template)'!E86 -> 0 | R15: ='LGU''s FS (Template)'!F86 -> 0 | T15: F8 Statement of changes in fund
A16: 4 | B16: 105 | C16: Grante te brendshme kapitale | D16: Capital internal grants | H16: =N16/Presentation_curr -> 0 | J16: =P16/Presentation_curr -> 0 | L16: =R16/Presentation_curr -> 0 | N16: =P16 -> 0 | P16: ='LGU''s FS (Template)'!E87 -> 0 | R16: ='LGU''s FS (Template)'!F87 -> 0
A17: 5 | B17: 106 | C17: Grante te huaja kapitale | D17: Capital foreigner grants | H17: =N17/Presentation_curr -> 0 | J17: =P17/Presentation_curr -> 0 | L17: =R17/Presentation_curr -> 0 | N17: 0 | P17: ='LGU''s FS (Template)'!E88 -> 0 | R17: ='LGU''s FS (Template)'!F88 -> 0
A18: 6 | B18: 107 | C18: Vlera Akt.Qend.te caktuara ne perdorim | D18: Current assets in use | H18: =N18/Presentation_curr -> 0 | J18: =P18/Presentation_curr -> 0 | L18: =R18/Presentation_curr -> 0 | N18: 0 | P18: ='LGU''s FS (Template)'!E89 -> 0 | R18: ='LGU''s FS (Template)'!F89 -> 0
A19: 7 | B19: 109 | C19: Rezerva nga rivlersimi aktiveve te qendrushme | D19: Reserves from revaluation of current assets | H19: =N19/Presentation_curr -> 0 | J19: =P19/Presentation_curr -> 0 | L19: =R19/Presentation_curr -> 0 | N19: 0 | P19: ='LGU''s FS (Template)'!E90 -> 0 | R19: ='LGU''s FS (Template)'!F90 -> 0
A20: 8 | B20: 11 | C20: II.Fonde te tjera te veta | D20: II. Other own funds | H20: =SUM(H21:H23) -> 0 | J20: =SUM(J21:J23) -> 0 | L20: =SUM(L21:L23) -> 0 | N20: =SUM(N21:N23) -> 0 | P20: =SUM(P21:P23) -> 0 | R20: =SUM(R21:R23) -> 0
A21: 9 | B21: 111 | C21: Fonde rezerve | D21: Reserve funds | H21: =N21/Presentation_curr -> 0 | J21: =P21/Presentation_curr -> 0 | L21: =R21/Presentation_curr -> 0 | N21: =P21 -> 0 | P21: ='LGU''s FS (Template)'!E92 -> 0 | R21: ='LGU''s FS (Template)'!F92 -> 0
A22: 10 | B22: 115 | C22: Caktim nga rezultati i vitit per investime | D22: Assignments from the year results for investments | H22: 0 | J22: 0 | L22: 0 | N22: 0 | P22: ='LGU''s FS (Template)'!E93 -> 0 | R22: ='LGU''s FS (Template)'!F93 -> 0
A23: 11 | B23: 116 | C23: Te ardhura nga shitja e Ak.Qendrushme | D23: Revenues from selling of current assets | H23: 0 | J23: 0 | L23: 0 | N23: 0 | P23: ='LGU''s FS (Template)'!E94 -> 0 | R23: ='LGU''s FS (Template)'!F94 -> 0
A24: 12 | B24: 12 | C24: III.Rezultati i mbartur | D24: III. Carried result | H24: 0 | J24: 0 | L24: 0 | N24: 0 | P24: ='LGU''s FS (Template)'!E95 -> 0 | R24: ='LGU''s FS (Template)'!F95 -> 0
A25: 13 | B25: 13 | C25: IV.Subvecione te jashtezakonshme( - ) | D25: IV. Exceptional subsidiaries ( - ) | H25: 0 | J25: 0 | L25: 0 | N25: 0 | P25: ='LGU''s FS (Template)'!E96 -> 0 | R25: ='LGU''s FS (Template)'!F96 -> 0
A26: 14 | B26: 14 | C26: V.Pjesemarrje te instit.ne invest.per te trete | D26: V. Participation of the institution in investing for third parties | H26: 0 | J26: 0 | L26: 0 | N26: 0 | P26: ='LGU''s FS (Template)'!E97 -> 0 | R26: ='LGU''s FS (Template)'!F97 -> 0
A27: 15 | B27: 15 | C27: VI.Shuma parashikuara per rreziqe e shpenz. | D27: VI. Forecasted amounts for disasters and expenses | H27: 0 | J27: 0 | L27: 0 | N27: 0 | P27: ='LGU''s FS (Template)'!E98 -> 0 | R27: ='LGU''s FS (Template)'!F98 -> 0
A28: 16 | B28: B | C28: D E T Y R I M E | D28: LIABILITIES | H28: =H29+H32 -> 0 | J28: =J29+J32 -> 0 | L28: =L29+L32 -> 0 | N28: =N29+N32 -> 0 | P28: =P29+P32 -> 0 | R28: =R29+R32 -> 0
A29: 17 | B29: 16,17,18 | C29: I.Borxhe afatgjate | D29: I. Long-term debts | H29: =SUM(H30:H31) -> 0 | J29: =SUM(J30:J31) -> 0 | L29: =SUM(L30:L31) -> 0 | N29: =P29 -> 0 | P29: =SUM(P30:P31) -> 0 | R29: =SUM(R30:R31) -> 0
A30: 18 | B30: 16 | C30: Huamarrje e brendeshme dhe te ngjashme | D30: Internal borrowing and similar | H30: =N30/Presentation_curr -> 0 | J30: =P30/Presentation_curr -> 0 | L30: =R30/Presentation_curr -> 0 | N30: 0 | P30: ='LGU''s FS (Template)'!E101 -> 0 | R30: ='LGU''s FS (Template)'!F101 -> 0
A31: 19 | B31: 17 | C31: Huamarrje e huaj | D31: Borrowing out of the country | H31: =N31/Presentation_curr -> 0 | J31: =P31/Presentation_curr -> 0 | L31: =R31/Presentation_curr -> 0 | N31: 0 | P31: ='LGU''s FS (Template)'!E102 -> 0 | R31: ='LGU''s FS (Template)'!F102 -> 0
A32: 20 | B32: Klasa 4 | C32: II.Detyrime afatshkurter | D32: II. Short term liabilities | H32: =SUM(H33:H48) -> 0 | J32: =SUM(J33:J48) -> 0 | L32: =SUM(L33:L48) -> 0 | N32: =SUM(N33:N48) -> 0 | P32: =SUM(P33:P48) -> 0 | R32: =SUM(R33:R48) -> 0
A33: 21 | B33: 419 | C33: Kliente(Kreditore), parapagese pjesore | D33: Clients (Creditors ), partial prepayment | H33: =N33/Presentation_curr -> 0 | J33: =P33/Presentation_curr -> 0 | L33: =R33/Presentation_curr -> 0 | N33: =P33 -> 0 | P33: ='LGU''s FS (Template)'!E104 -> 0 | R33: ='LGU''s FS (Template)'!F104 -> 0
A34: 22 | B34: 401-408 | C34: Furnitore e llogari te lidhura me to | D34: Suppliers and related accounts | F34: N6 | H34: 0 | J34: 0 | L34: 0 | N34: 0 | P34: ='LGU''s FS (Template)'!E105 -> 0 | R34: ='LGU''s FS (Template)'!F105 -> 0 | T34: N6 - Creditors
A35: 23 | B35: 42 | C35: Personeli e llogari te lidhura me to | D35: Employees and related accounts | H35: 0 | J35: 0 | L35: 0 | N35: 0 | P35: ='LGU''s FS (Template)'!E106 -> 0 | R35: ='LGU''s FS (Template)'!F106 -> 0
A36: 24 | B36: 431 | C36: Detyrime ndaj Shtetit per tatim-taksa | D36: Liabilities to government for taxes | H36: 0 | J36: 0 | L36: 0 | N36: 0 | P36: ='LGU''s FS (Template)'!E107 -> 0 | R36: ='LGU''s FS (Template)'!F107 -> 0
A37: 25 | B37: 432 | C37: Tatime mbedhura nga shteti per llog.Pusht.Lokal | D37: Taxes collected from government for the local government | H37: 0 | J37: 0 | L37: 0 | N37: 0 | P37: ='LGU''s FS (Template)'!E108 -> 0 | R37: ='LGU''s FS (Template)'!F108 -> 0
A38: 26 | B38: 433 | C38: Shteti fatkeqesi natyrore | D38: Government natural disaster | H38: 0 | J38: 0 | L38: 0 | N38: 0 | P38: ='LGU''s FS (Template)'!E109 -> 0 | R38: ='LGU''s FS (Template)'!F109 -> 0
A39: 27 | B39: 4341 | C39: Te tjera operacione me shtetin(kreditor) | D39: Te tjera operacione me shtetin(kreditor) | H39: 0 | J39: 0 | L39: 0 | N39: 0 | P39: ='LGU''s FS (Template)'!E110 -> 0 | R39: ='LGU''s FS (Template)'!F110 -> 0
A40: 28 | B40: 435 | C40: Sigurime shoqerore | D40: Social Insurance | H40: 0 | J40: 0 | L40: 0 | N40: 0 | P40: ='LGU''s FS (Template)'!E111 -> 0 | R40: ='LGU''s FS (Template)'!F111 -> 0
A41: 29 | B41: 436 | C41: Sigurime shendetsore | D41: Health Insurance | H41: 0 | J41: 0 | L41: 0 | N41: 0 | P41: ='LGU''s FS (Template)'!E112 -> 0 | R41: ='LGU''s FS (Template)'!F112 -> 0
A42: 30 | B42: 437.438 | C42: Organizma te tjere shoqerore | D42: Other social organizations | H42: 0 | J42: 0 | L42: 0 | N42: 0 | P42: ='LGU''s FS (Template)'!E113 -> 0 | R42: ='LGU''s FS (Template)'!F113 -> 0
A43: 31 | B43: 44 | C43: Institucione te tjera publike | D43: Other public institutions | H43: 0 | J43: 0 | L43: 0 | N43: 0 | P43: ='LGU''s FS (Template)'!E114 -> 0 | R43: ='LGU''s FS (Template)'!F114 -> 0
A44: 32 | B44: 45 | C44: Marrdhenie me institucione brenda e jasht sistemit | D44: Relationships with institutions in and outside the system | H44: 0 | J44: 0 | L44: 0 | N44: 0 | P44: ='LGU''s FS (Template)'!E115 -> 0 | R44: ='LGU''s FS (Template)'!F115 -> 0
A45: 33 | B45: 460 | C45: Huadhenes | D45: Borrower | H45: 0 | J45: 0 | L45: 0 | N45: 0 | P45: ='LGU''s FS (Template)'!E116 -> 0 | R45: ='LGU''s FS (Template)'!F116 -> 0
A46: 34 | B46: 464 | C46: Detyrime per t'u paguar per blerjen e letr,vlere | D46: Liabilities for bond purchasing | H46: 0 | J46: 0 | L46: 0 | N46: 0 | P46: ='LGU''s FS (Template)'!E117 -> 0 | R46: ='LGU''s FS (Template)'!F117 -> 0
A47: 35 | B47: 466 | C47: Kreditore per mjete ne ruajtje | D47: Creditors for assets under guard | F47: N5 | H47: 0 | J47: 0 | L47: 0 | N47: 0 | P47: ='LGU''s FS (Template)'!E118 -> 0 | R47: ='LGU''s FS (Template)'!F118 -> 0 | T47: N5 Inheritance Act
A48: 36 | B48: 467 | C48: Kreditore te ndryshem | D48: Other creditors | H48: 0 | J48: 0 | L48: 0 | N48: 0 | P48: ='LGU''s FS (Template)'!E119 -> 0 | R48: ='LGU''s FS (Template)'!F119 -> 0 | T48: Add explanation in FS
A49: 37 | B49: C | C49: LLOGARI TE TJERA | D49: OTHER ACCOUNTS | H49: =J49 -> 0 | J49: =SUM(J50:J53) -> 0 | L49: =SUM(L50:L53) -> 0 | N49: 0 | P49: =SUM(P50:P53) -> 0 | R49: =SUM(R50:R53) -> 0
A50: 38 | B50: 475 | C50: Te ardhura per tu regjist.vitet pasardhese | D50: incomes to register in the coming years | H50: =N50/Presentation_curr -> 0 | J50: =P50/Presentation_curr -> 0 | L50: =R50/Presentation_curr -> 0 | N50: 0 | P50: ='LGU''s FS (Template)'!E121 -> 0 | R50: ='LGU''s FS (Template)'!F121 -> 0
A51: 39 | B51: 478 | C51: Diferenca konvertime pasive | D51: passive converting differences | H51: =N51/Presentation_curr -> 0 | J51: =P51/Presentation_curr -> 0 | L51: =R51/Presentation_curr -> 0 | N51: 0 | P51: ='LGU''s FS (Template)'!E122 -> 0 | R51: ='LGU''s FS (Template)'!F122 -> 0
A52: 40 | B52: 480 | C52: Te ardhura per tu klasifikuar ose rregulluar | D52: Incomes to classify or adjust | H52: =N52/Presentation_curr -> 0 | J52: =P52/Presentation_curr -> 0 | L52: =R52/Presentation_curr -> 0 | N52: 0 | P52: ='LGU''s FS (Template)'!E123 -> 0 | R52: ='LGU''s FS (Template)'!F123 -> 0
A53: 41 | B53: 487 | C53: te ardhura te arketuara para nxjerrjes titullit | D53: incomes received before title exposure | H53: =N53/Presentation_curr -> 0 | J53: =P53/Presentation_curr -> 0 | L53: =R53/Presentation_curr -> 0 | N53: 0 | P53: ='LGU''s FS (Template)'!E124 -> 0 | R53: ='LGU''s FS (Template)'!F124 -> 0
A54: 42 | B54: 85 | C54: REZULTATI I USHTRIMIT(Saldo kreditore) | D54: Result (credit amount) | H54: =N54/Presentation_curr -> 0 | J54: =P54/Presentation_curr -> 0 | L54: =R54/Presentation_curr -> 0 | N54: 0 | P54: ='LGU''s FS (Template)'!E125 -> 0 | R54: ='LGU''s FS (Template)'!F125 -> 0
A55: 43 | B55: X | C55: T O T A L I I P A S I V I T | D55: TOTAL LIABILITY | H55: =H13+H28+H49+H54 -> 0 | J55: =J13+J28+J49+J54 -> 0 | L55: =L13+L28+L49+L54 -> 0 | N55: =N13+N28+N49+N54 -> 0 | P55: =P13+P28+P49+P54 -> 0 | R55: =R13+R28+R49+R54 -> 0
A57: 44 | B57: 80.81 | C57: LLOGARITE JASHTE BILANCIT | D57: ACCOUNTS OUT OF BALANCE SHEET | H57: =SUM(H58) -> 0 | J57: =SUM(J58) -> 0 | L57: =SUM(L58) -> 0 | N57: =P57 -> 0 | P57: =SUM(P58) -> 0 | R57: =SUM(R58) -> 0
A58: 45 | B58: 80,81 | C58: Evidenca pasive | D58: Passive evidences | H58: =N58/Presentation_curr -> 0 | J58: =P58/Presentation_curr -> 0 | L58: =R58/Presentation_curr -> 0 | N58: =P58 -> 0 | P58: ='LGU''s FS (Template)'!E129 -> 0 | R58: ='LGU''s FS (Template)'!F129 -> 0

Sheet F3-1
A1: ='General information'!A1 -> Project STAR
A2: ='General information'!A2 -> xxx
A3: =A8 -> Statement of expenses (Form 3/1)
A4: =Checks!A4 -> All checks ok
A7: ='General information'!A2 -> xxx
A8: =Language!$D$89 -> Statement of expenses (Form 3/1)
A9: =Language!$D$13 -> for the year ended 31 December 2014
A10: =ALL -> (Shumat ne ALL'000, nëse nuk shprehet ndryshe)
A11: =Language!$D$41 -> No | B11: =Language!$D$49 -> Acc. No. | C11: PERSHKRIMI I SHPENZIMEVE TE USHTRIMIT
D12: Description of Expenses | F12: =Language!$D$40 -> Notes | H12: =Language!D18&" "&Language!D55 -> FY 2014 Restated | J12: =Language!D18 -> FY 2014 | L12: =Language!D19 -> FY 2013 | N12: =H12 -> FY 2014 Restated | P12: =J12 -> FY 2014 | R12: =L12 -> FY 2013
A13: a | B13: b | C13: c | H13: 1 | J13: 2 | L13: 2 | N13: 1 | P13: 2 | R13: 2
A14: 1 | B14: Klasa 6 | C14: A. SHPENZIMET SHFRYTEZIMI (I - III) | D14: A. Expenses for exploitation/usage | H14: =SUM(H15+H54+H55) -> 0 | J14: =SUM(J15+J54+J55) -> 0 | L14: =SUM(L15+L54+L55) -> 0 | N14: =SUM(N15+N54+N55) -> 0 | P14: =SUM(P15+P54+P55) -> 0 | R14: =SUM(R15+R54+R55) -> 0
A15: 2 | B15: 60 | C15: I. Shpenzime Korrente | D15: I. Current expenses | H15: =SUM(H16+H21+H24+H35+H41+H46+H51) -> 0 | J15: =SUM(J16+J21+J24+J35+J41+J46+J51) -> 0 | L15: =SUM(L16+L21+L24+L35+L41+L46+L51) -> 0 | N15: =SUM(N16+N21+N24+N35+N41+N46+N51) -> 0 | P15: =SUM(P16+P21+P24+P35+P41+P46+P51) -> 0 | R15: =SUM(R16+R21+R24+R35+R41+R46+R51) -> 0
A16: 3 | B16: 600 | C16: Paga,shperblime e te tjera personeli | D16: Salaries, bonuses | H16: =SUM(H17:H20) -> 0 | J16: =SUM(J17:J20) -> 0 | L16: =SUM(L17:L20) -> 0 | N16: =SUM(N17:N20) -> 0 | P16: =SUM(P17:P20) -> 0 | R16: =SUM(R17:R20) -> 0
A17: 4 | B17: 6001 | C17: Paga, personeli i perhershem | D17: Salaries | H17: =N17/Presentation_curr -> 0 | J17: =P17/Presentation_curr -> 0 | L17: =R17/Presentation_curr -> 0 | N17: =P17 -> 0 | P17: ='LGU''s FS (Template)'!E141 -> 0 | R17: ='LGU''s FS (Template)'!F141 -> 0
A18: 5 | B18: 6002 | C18: Paga, personel I perkohshem | D18: Temporary salaries | H18: =N18/Presentation_curr -> 0 | J18: =P18/Presentation_curr -> 0 | L18: =R18/Presentation_curr -> 0 | N18: =P18 -> 0 | P18: ='LGU''s FS (Template)'!E142 -> 0 | R18: ='LGU''s FS (Template)'!F142 -> 0
A19: 6 | B19: 6003 | C19: Shperblime | D19: Bonuses | H19: =N19/Presentation_curr -> 0 | J19: =P19/Presentation_curr -> 0 | L19: =R19/Presentation_curr -> 0 | N19: 0 | P19: ='LGU''s FS (Template)'!E143 -> 0 | R19: ='LGU''s FS (Template)'!F143 -> 0
A20: 7 | B20: 6009 | C20: Shpenzime tjera personeli | D20: Other personal expenses | H20: =N20/Presentation_curr -> 0 | J20: =P20/Presentation_curr -> 0 | L20: =R20/Presentation_curr -> 0 | N20: 0 | P20: ='LGU''s FS (Template)'!E144 -> 0 | R20: ='LGU''s FS (Template)'!F144 -> 0
A21: 8 | B21: 601 | C21: Kontrib.te sig.shoq.e shendets. | D21: health and social insurance contributions | H21: =SUM(H22:H23) -> 0 | J21: =SUM(J22:J23) -> 0 | L21: =SUM(L22:L23) -> 0 | N21: =SUM(N22:N23) -> 0 | P21: =SUM(P22:P23) -> 0 | R21: =SUM(R22:R23) -> 0
A22: 9 | B22: 6010 | C22: Kontribute per sigurimet shoqerore | D22: Insurance contributions | H22: =N22/Presentation_curr -> 0 | J22: =P22/Presentation_curr -> 0 | L22: =R22/Presentation_curr -> 0 | N22: =P22 -> 0 | P22: ='LGU''s FS (Template)'!E146 -> 0 | R22: ='LGU''s FS (Template)'!F146 -> 0
A23: 10 | B23: 6011 | C23: Kontribute per sigurimet shendetesore | D23: Health insurance | H23: =N23/Presentation_curr -> 0 | J23: =P23/Presentation_curr -> 0 | L23: =R23/Presentation_curr -> 0 | N23: 0 | P23: ='LGU''s FS (Template)'!E147 -> 0 | R23: ='LGU''s FS (Template)'!F147 -> 0
A24: 11 | B24: 602 | C24: Mallra dhe sherbime te tjera | D24: Other goods and services | H24: =SUM(H25:H34) -> 0 | J24: =SUM(J25:J34) -> 0 | L24: =SUM(L25:L34) -> 0 | N24: =SUM(N25:N34) -> 0 | P24: =SUM(P25:P34) -> 0 | R24: =SUM(R25:R34) -> 0
A25: 12 | B25: 6020 | C25: Materiale zyre e te pergjitheshme | D25: stationary | H25: =N25/Presentation_curr -> 0 | J25: =P25/Presentation_curr -> 0 | L25: =R25/Presentation_curr -> 0 | N25: =P25 -> 0 | P25: ='LGU''s FS (Template)'!E149 -> 0 | R25: ='LGU''s FS (Template)'!F149 -> 0
A26: 13 | B26: 6021 | C26: Materiale dhe sherbime speciale | D26: Special services | H26: 0 | J26: 0 | L26: 0 | N26: 0 | P26: ='LGU''s FS (Template)'!E150 -> 0 | R26: ='LGU''s FS (Template)'!F150 -> 0
A27: 14 | B27: 6022 | C27: Sherbime nga te trete | D27: Services from third party | H27: 0 | J27: 0 | L27: 0 | N27: 0 | P27: ='LGU''s FS (Template)'!E151 -> 0 | R27: ='LGU''s FS (Template)'!F151 -> 0
A28: 15 | B28: 6023 | C28: Shpenzime transporti | D28: Transport expenses | H28: 0 | J28: 0 | L28: 0 | N28: 0 | P28: ='LGU''s FS (Template)'!E152 -> 0 | R28: ='LGU''s FS (Template)'!F152 -> 0
A29: 16 | B29: 6024 | C29: Shpenzime udhetimi | D29: Travel expense | H29: 0 | J29: 0 | L29: 0 | N29: 0 | P29: ='LGU''s FS (Template)'!E153 -> 0 | R29: ='LGU''s FS (Template)'!F153 -> 0
A30: 17 | B30: 6025 | C30: Shpenzime per mirembajtje te zakonshme | D30: Ordinary maintenance expenses | H30: 0 | J30: 0 | L30: 0 | N30: 0 | P30: ='LGU''s FS (Template)'!E154 -> 0 | R30: ='LGU''s FS (Template)'!F154 -> 0
A31: 18 | B31: 6026 | C31: Shpenzime per qeramarrje | D31: Rent expenses | H31: 0 | J31: 0 | L31: 0 | N31: 0 | P31: ='LGU''s FS (Template)'!E155 -> 0 | R31: ='LGU''s FS (Template)'!F155 -> 0
A32: 19 | B32: 6027 | C32: Shpenzime per detyrime per kompesime legale | D32: Expenses for legal liability for compensation | H32: 0 | J32: 0 | L32: 0 | N32: 0 | P32: ='LGU''s FS (Template)'!E156 -> 0 | R32: ='LGU''s FS (Template)'!F156 -> 0
A33: 20 | B33: 6028 | C33: Shpenzime te lidhura me huamarrjen per hua | D33: Borrowing costs related to loans | H33: 0 | J33: 0 | L33: 0 | N33: 0 | P33: ='LGU''s FS (Template)'!E157 -> 0 | R33: ='LGU''s FS (Template)'!F157 -> 0
A34: 21 | B34: 6029 | C34: Shpenzime te tjera operative | D34: Other operating expenses | H34: 0 | J34: 0 | L34: 0 | N34: 0 | P34: ='LGU''s FS (Template)'!E158 -> 0 | R34: ='LGU''s FS (Template)'!F158 -> 0
A35: 22 | B35: 603 | C35: Subvencionet | D35: Subsidies | H35: =SUM(H36:H40) -> 0 | J35: =SUM(J36:J40) -> 0 | L35: =SUM(L36:L40) -> 0 | N35: 0 | P35: =SUM(P36:P40) -> 0 | R35: =SUM(R36:R40) -> 0
A36: 23 | B36: 6030 | C36: Subvecione per diference cmimi | D36: Subsidies for price differences | H36: =N36/Presentation_curr -> 0 | J36: =P36/Presentation_curr -> 0 | L36: =R36/Presentation_curr -> 0 | N36: 0 | P36: ='LGU''s FS (Template)'!E160 -> 0 | R36: ='LGU''s FS (Template)'!F160 -> 0
A37: 24 | B37: 6031 | C37: Subvecione per te nxitur punesimin | D37: Subsidies to promote employment | H37: =N37/Presentation_curr -> 0 | J37: =P37/Presentation_curr -> 0 | L37: =R37/Presentation_curr -> 0 | N37: 0 | P37: ='LGU''s FS (Template)'!E161 -> 0 | R37: ='LGU''s FS (Template)'!F161 -> 0
A38: 25 | B38: 6032 | C38: Subvecione per te mbuluar humbjet | D38: Subsidies to cover loss | H38: =N38/Presentation_curr -> 0 | J38: =P38/Presentation_curr -> 0 | L38: =R38/Presentation_curr -> 0 | N38: 0 | P38: ='LGU''s FS (Template)'!E162 -> 0 | R38: ='LGU''s FS (Template)'!F162 -> 0
A39: 26 | B39: 6033 | C39: Subvecione per sipermarrjet individuale | D39: Subsidies for entrepreneurship | H39: =N39/Presentation_curr -> 0 | J39: =P39/Presentation_curr -> 0 | L39: =R39/Presentation_curr -> 0 | N39: 0 | P39: ='LGU''s FS (Template)'!E163 -> 0 | R39: ='LGU''s FS (Template)'!F163 -> 0
A40: 27 | B40: 6039 | C40: Subvecione te tjera | D40: Other subsidies | H40: =N40/Presentation_curr -> 0 | J40: =P40/Presentation_curr -> 0 | L40: =R40/Presentation_curr -> 0 | N40: 0 | P40: ='LGU''s FS (Template)'!E164 -> 0 | R40: ='LGU''s FS (Template)'!F164 -> 0
A41: 28 | B41: 604 | C41: Transferime korrente te brendshme | D41: Current internal transfers | H41: =SUM(H42:H45) -> 0 | J41: =SUM(J42:J45) -> 0 | L41: =SUM(L42:L45) -> 0 | N41: =SUM(N42:N45) -> 0 | P41: =SUM(P42:P45) -> 0 | R41: =SUM(R42:R45) -> 0
A42: 29 | B42: 6040 | C42: Transferime korente tek nivele tjera te Qeverise | D42: Current transfers to other government levels | H42: =N42/Presentation_curr -> 0 | J42: =P42/Presentation_curr -> 0 | L42: =R42/Presentation_curr -> 0 | N42: =P42 -> 0 | P42: ='LGU''s FS (Template)'!E166 -> 0 | R42: ='LGU''s FS (Template)'!F166 -> 0
A43: 30 | B43: 6041 | C43: Transferime korente tek institucione qeveritare te ndryshme | D43: Current transfers to various government institutions | H43: =N43/Presentation_curr -> 0 | J43: =P43/Presentation_curr -> 0 | L43: =R43/Presentation_curr -> 0 | N43: 0 | P43: ='LGU''s FS (Template)'!E167 -> 0 | R43: ='LGU''s FS (Template)'!F167 -> 0
A44: 31 | B44: 6042 | C44: Transferime korente tek Sigurimet Shoqerore e Shendetsore | D44: Current transfers for social and health insurance | H44: =N44/Presentation_curr -> 0 | J44: =P44/Presentation_curr -> 0 | L44: =R44/Presentation_curr -> 0 | N44: 0 | P44: ='LGU''s FS (Template)'!E168 -> 0 | R44: ='LGU''s FS (Template)'!F168 -> 0
A45: 32 | B45: 6044 | C45: Transferime korente tek Organizatat jo fitimprurse | D45: Current transfers for not for profit organizations | H45: =N45/Presentation_curr -> 0 | J45: =P45/Presentation_curr -> 0 | L45: =R45/Presentation_curr -> 0 | N45: 0 | P45: ='LGU''s FS (Template)'!E169 -> 0 | R45: ='LGU''s FS (Template)'!F169 -> 0
A46: 33 | B46: 605 | C46: Transferime korrente me jashte | D46: Current transfers with outsiders | H46: =SUM(H47:H50) -> 0 | J46: =SUM(J47:J50) -> 0 | L46: =SUM(L47:L50) -> 0 | N46: 0 | P46: =SUM(P47:P50) -> 0 | R46: =SUM(R47:R50) -> 0
A47: 34 | B47: 6051 | C47: Transferime Per Organizatat Nderkombetare | D47: Transfers for IOS | H47: =N47/Presentation_curr -> 0 | J47: =P47/Presentation_curr -> 0 | L47: =R47/Presentation_curr -> 0 | N47: 0 | P47: ='LGU''s FS (Template)'!E171 -> 0 | R47: ='LGU''s FS (Template)'!F171 -> 0
A48: 35 | B48: 6052 | C48: Transferime Per Qeverite e Huaja | D48: Transfers for foreign governments | H48: =N48/Presentation_curr -> 0 | J48: =P48/Presentation_curr -> 0 | L48: =R48/Presentation_curr -> 0 | N48: 0 | P48: ='LGU''s FS (Template)'!E172 -> 0 | R48: ='LGU''s FS (Template)'!F172 -> 0
A49: 36 | B49: 6053 | C49: Transferime Per institucionet jo fitimprurese te huaja | D49: Transfers for non not-for profit organizations | H49: =N49/Presentation_curr -> 0 | J49: =P49/Presentation_curr -> 0 | L49: =R49/Presentation_curr -> 0 | N49: 0 | P49: ='LGU''s FS (Template)'!E173 -> 0 | R49: ='LGU''s FS (Template)'!F173 -> 0
A50: 37 | B50: 6059 | C50: Transferime Te tjera korrente me jashte shtetit | D50: Other current transfers with foreign governments | H50: =N50/Presentation_curr -> 0 | J50: =P50/Presentation_curr -> 0 | L50: =R50/Presentation_curr -> 0 | N50: 0 | P50: ='LGU''s FS (Template)'!E174 -> 0 | R50: ='LGU''s FS (Template)'!F174 -> 0
A51: 38 | B51: 606 | C51: Transferta per buxh.familjare e individe | D51: Transfers family budges and other individuals | H51: =SUM(H52:H53) -> 0 | J51: =SUM(J52:J53) -> 0 | L51: =SUM(L52:L53) -> 0 | N51: =SUM(N52:N53) -> 0 | P51: =SUM(P52:P53) -> 0 | R51: =SUM(R52:R53) -> 0
A52: 39 | B52: 6060 | C52: Transferta Te paguara nga ISSH e ISKSH | D52: Transfers paid from ISS and HII | H52: =N52/Presentation_curr -> 0 | J52: =P52/Presentation_curr -> 0 | L52: =R52/Presentation_curr -> 0 | N52: =P52 -> 0 | P52: ='LGU''s FS (Template)'!E176 -> 0 | R52: ='LGU''s FS (Template)'!F176 -> 0
A53: 40 | B53: 6061 | C53: Transferta Paguara nga Inst.Tjera e Org.Pusht.Vendor | D53: Transfers paid from other institutions and Local government | H53: =N53/Presentation_curr -> 0 | J53: =P53/Presentation_curr -> 0 | L53: =R53/Presentation_curr -> 0 | N53: 0 | P53: ='LGU''s FS (Template)'!E177 -> 0 | R53: ='LGU''s FS (Template)'!F177 -> 0
A54: 41 | B54: 63 | C54: II. Ndryshimi I gjendjeve te inventarit ( + - ) | D54: II. Change in inventory balances | H54: =N54/Presentation_curr -> 0 | J54: =P54/Presentation_curr -> 0 | L54: =R54/Presentation_curr -> 0 | N54: 0 | P54: ='LGU''s FS (Template)'!E178 -> 0 | R54: ='LGU''s FS (Template)'!F178 -> 0
A55: 42 | B55: 68 | C55: III. Kuota amortizimi dhe shuma te parashikuara | D55: III.Depreciation rates and expected balances | H55: =SUM(H56:H59) -> 0 | J55: =SUM(J56:J59) -> 0 | L55: =SUM(L56:L59) -> 0 | N55: 0 | P55: =SUM(P56:P59) -> 0 | R55: =SUM(R56:R59) -> 0
A56: 43 | B56: 681 | C56: Kuotat e amortizimit te shfrytezimit | D56: Amortization rates on exploitation | H56: =N56/Presentation_curr -> 0 | J56: =P56/Presentation_curr -> 0 | L56: =R56/Presentation_curr -> 0 | N56: 0 | P56: ='LGU''s FS (Template)'!E180 -> 0 | R56: ='LGU''s FS (Template)'!F180 -> 0
A57: 44 | B57: 682 | C57: Vlera mbetur e AQ te nxjerra jasht perdorimit e shitura | D57: Residual value on fixed assets, damaged or disposed | H57: =N57/Presentation_curr -> 0 | J57: =P57/Presentation_curr -> 0 | L57: =R57/Presentation_curr -> 0 | N57: 0 | P57: ='LGU''s FS (Template)'!E181 -> 0 | R57: ='LGU''s FS (Template)'!F181 -> 0
A58: 45 | B58: 683 | C58: Shuma te parashikuara te shfrytezimit | D58: Amounts provided for exploitations | H58: =N58/Presentation_curr -> 0 | J58: =P58/Presentation_curr -> 0 | L58: =R58/Presentation_curr -> 0 | N58: 0 | P58: ='LGU''s FS (Template)'!E182 -> 0 | R58: ='LGU''s FS (Template)'!F182 -> 0
A59: 46 | B59: 686 | C59: Shuma te parashikuara per aktivet financiare | D59: Amounts provided for finance assets | H59: =N59/Presentation_curr -> 0 | J59: =P59/Presentation_curr -> 0 | L59: =R59/Presentation_curr -> 0 | N59: 0 | P59: ='LGU''s FS (Template)'!E183 -> 0 | R59: ='LGU''s FS (Template)'!F183 -> 0
A60: 47 | B60: 65, 66 | C60: B. SHPENZIME FINANCIARE(I+II) | D60: B. Finance expenses | H60: =SUM(H61+H66) -> 0 | J60: =SUM(J61+J66) -> 0 | L60: =SUM(L61+L66) -> 0 | N60: 0 | P60: =SUM(P61+P66) -> 0 | R60: =SUM(R61+R66) -> 0
A61: 48 | B61: 65 | C61: I. Shpen.financiare te brendshme | D61: I. Internal finance expenses | H61: =SUM(H62:H65) -> 0 | J61: =SUM(J62:J65) -> 0 | L61: =SUM(L62:L65) -> 0 | N61: 0 | P61: =SUM(P62:P65) -> 0 | R61: =SUM(R62:R65) -> 0
A62: 49 | B62: 650 | C62: Interesa per bono thesarit dhe kredi direkte | D62: Bond interest rates and direct loans | H62: =N62/Presentation_curr -> 0 | J62: =P62/Presentation_curr -> 0 | L62: =R62/Presentation_curr -> 0 | N62: 0 | P62: ='LGU''s FS (Template)'!E186 -> 0 | R62: ='LGU''s FS (Template)'!F186 -> 0
A63: 50 | B63: 651 | C63: Interesa per huamarrje te tj. Brendshme | D63: Borrowing costs related to loans | H63: =N63/Presentation_curr -> 0 | J63: =P63/Presentation_curr -> 0 | L63: =R63/Presentation_curr -> 0 | N63: 0 | P63: ='LGU''s FS (Template)'!E187 -> 0 | R63: ='LGU''s FS (Template)'!F187 -> 0
A64: 51 | B64: 652 | C64: Interesa Letra tjera vlere Qeverise | D64: Other interest on government securities | H64: =N64/Presentation_curr -> 0 | J64: =P64/Presentation_curr -> 0 | L64: =R64/Presentation_curr -> 0 | N64: 0 | P64: ='LGU''s FS (Template)'!E188 -> 0 | R64: ='LGU''s FS (Template)'!F188 -> 0
A65: 52 | B65: 656 | C65: Shpenz.nga kembimet valutore | D65: foreign exchange expenses | H65: =N65/Presentation_curr -> 0 | J65: =P65/Presentation_curr -> 0 | L65: =R65/Presentation_curr -> 0 | N65: 0 | P65: ='LGU''s FS (Template)'!E189 -> 0 | R65: ='LGU''s FS (Template)'!F189 -> 0
A66: 53 | B66: 66 | C66: II. Shpen.financiare te jashtme | D66: II. External finance expenses | H66: =SUM(H67:H69) -> 0 | J66: =SUM(J67:J69) -> 0 | L66: =SUM(L67:L69) -> 0 | N66: 0 | P66: =SUM(P67:P69) -> 0 | R66: =SUM(R67:R69) -> 0
A67: 54 | B67: 660 | C67: Interesa per huamarrje nga Qeveri.te Huaja | D67: Interest on loans from Foreign Governments | H67: =N67/Presentation_curr -> 0 | J67: =P67/Presentation_curr -> 0 | L67: =R67/Presentation_curr -> 0 | N67: 0 | P67: ='LGU''s FS (Template)'!E191 -> 0 | R67: ='LGU''s FS (Template)'!F191 -> 0
A68: 55 | B68: 661 | C68: Interesa per financime nga Institucionet.nderkomb | D68: Interest on financing from international organizations | H68: =N68/Presentation_curr -> 0 | J68: =P68/Presentation_curr -> 0 | L68: =R68/Presentation_curr -> 0 | N68: 0 | P68: ='LGU''s FS (Template)'!E192 -> 0 | R68: ='LGU''s FS (Template)'!F192 -> 0
A69: 56 | B69: 662 | C69: Interesa per huamarrje te tjera jashtme | D69: Interest on other foreign loans | H69: =N69/Presentation_curr -> 0 | J69: =P69/Presentation_curr -> 0 | L69: =R69/Presentation_curr -> 0 | N69: 0 | P69: ='LGU''s FS (Template)'!E193 -> 0 | R69: ='LGU''s FS (Template)'!F193 -> 0
A70: 57 | B70: 67 | C70: C. SHPENZ.TE JASHTEZAKONSHME | D70: C. Extraordinary Expenses | H70: =SUM(H71:H72) -> 0 | J70: =SUM(J71:J72) -> 0 | L70: =SUM(L71:L72) -> 0 | N70: 0 | P70: =SUM(P71:P72) -> 0 | R70: =SUM(R71:R72) -> 0
A71: 58 | B71: 677 | C71: Humbje nga gabime te lejuara ne ushtr.paraardhese | D71: Losses from allowed errors from previous years | H71: =N71/Presentation_curr -> 0 | J71: =P71/Presentation_curr -> 0 | L71: =R71/Presentation_curr -> 0 | N71: 0 | P71: ='LGU''s FS (Template)'!E195 -> 0 | R71: ='LGU''s FS (Template)'!F195 -> 0
A72: 59 | B72: 678 | C72: Shpenzime te tjera te jashtzakonshme | D72: Other Extraordinary expenses | H72: =N72/Presentation_curr -> 0 | J72: =P72/Presentation_curr -> 0 | L72: =R72/Presentation_curr -> 0 | N72: 0 | P72: ='LGU''s FS (Template)'!E196 -> 0 | R72: ='LGU''s FS (Template)'!F196 -> 0
A73: 60 | B73: Klasa 6 | C73: TOTALI I SHPENZIMEVE | D73: TOTAL EXPENSES | H73: =(H14+H60+H70) -> 0 | J73: =(J14+J60+J70) -> 0 | L73: =(L14+L60+L70) -> 0 | N73: =(N14+N60+N70) -> 0 | P73: =(P14+P60+P70) -> 0 | R73: =(R14+R60+R70) -> 0
A74: 61 | B74: 82,83,84 | C74: D. OPERAC.KORIGJ.REZULTATIT | D74: D. RESULT CORRECTIONS ACTIVITES | H74: =SUM(H75:H81) -> 0 | J74: =SUM(J75:J81) -> 0 | L74: =SUM(L75:L81) -> 0 | N74: =SUM(N75:N81) -> 0 | P74: =SUM(P75:P81) -> 0 | R74: =SUM(R75:R81) -> 0
A75: 62 | B75: 828 | C75: Tituj te ardhurash te anulluara | D75: Names of cancelled revenues | H75: =N75/Presentation_curr -> 0 | J75: =P75/Presentation_curr -> 0 | L75: =R75/Presentation_curr -> 0 | N75: =P75 -> 0 | P75: ='LGU''s FS (Template)'!E199 -> 0 | R75: ='LGU''s FS (Template)'!F199 -> 0
A76: 63 | B76: 831 | C76: Caktim te ardh.funks.per investime | D76: Determination of revenues for investments | H76: 0 | J76: 0 | L76: 0 | N76: 0 | P76: ='LGU''s FS (Template)'!E200 -> 0 | R76: ='LGU''s FS (Template)'!F200 -> 0
A77: 64 | B77: 8420 | C77: Derdhje te ardhura ne buxhet | D77: Revenues deposited in the budget | H77: 0 | J77: 0 | L77: 0 | N77: 0 | P77: ='LGU''s FS (Template)'!E201 -> 0 | R77: ='LGU''s FS (Template)'!F201 -> 0
A78: 65 | B78: 8421 | C78: Derdhje buxhet te ardhuurave pa perdorura | D78: Deposit in the budget of unused revenues | H78: 0 | J78: 0 | L78: 0 | N78: 0 | P78: ='LGU''s FS (Template)'!E202 -> 0 | R78: ='LGU''s FS (Template)'!F202 -> 0
A79: 66 | B79: 8422 | C79: Transferim te ardhurave brenda sistemit | D79: Transfers of revenues within the system | H79: 0 | J79: 0 | L79: 0 | N79: 0 | P79: ='LGU''s FS (Template)'!E203 -> 0 | R79: ='LGU''s FS (Template)'!F203 -> 0
A80: 67 | B80: 8423 | C80: Transferime per ndrysh gjendje | D80: Transfers for changes in situation | H80: 0 | J80: 0 | L80: 0 | N80: 0 | P80: ='LGU''s FS (Template)'!E204 -> 0 | R80: ='LGU''s FS (Template)'!F204 -> 0
A81: 68 | B81: 8424 | C81: Transferim per debitore te konstatuar e te ngjashme | D81: Transfers for identified debtors and similar items | H81: 0 | J81: 0 | L81: 0 | N81: 0 | P81: ='LGU''s FS (Template)'!E205 -> 0 | R81: ='LGU''s FS (Template)'!F205 -> 0
A82: 69 | B82: Klasa 6 e 8 | C82: TOTALI OPERACIONEVE | D82: TOTAL FROM OPERATIONS | H82: =H73+H74 -> 0 | J82: =J73+J74 -> 0 | L82: =L73+L74 -> 0 | N82: =N73+N74 -> 0 | P82: =P73+P74 -> 0 | R82: =R73+R74 -> 0
A83: 70 | B83: 85 | C83: REZULTATI NGA FUNKSIONIMI | D83: RESULTS FROM FUNCTIONING | H83: =N83/Presentation_curr -> 0 | J83: =P83/Presentation_curr -> 0 | L83: =R83/Presentation_curr -> 0 | N83: =P83-'Summary of adjustments'!$H$17 -> 0 | P83: ='LGU''s FS (Template)'!E207 -> 0 | R83: ='LGU''s FS (Template)'!F207 -> 0
A84: 71 | B84: X | C84: T O T A L I | D84: TOTAL | H84: =SUM(H82:H83) -> 0 | J84: =SUM(J82:J83) -> 0 | L84: =SUM(L82:L83) -> 0 | N84: =SUM(N82:N83) -> 0 | P84: =SUM(P82:P83) -> 0 | R84: =SUM(R82:R83) -> 0

Sheet F3-2
A1: ='General information'!A1 -> Project STAR
A2: ='General information'!A2 -> xxx
A3: =A8 -> Statement of revenues (Form 3/2)
A4: =Checks!A4 -> All checks ok
A7: ='General information'!A2 -> xxx
A8: =Language!$D$90 -> Statement of revenues (Form 3/2)
A9: =Language!$D$13 -> for the year ended 31 December 2014
A10: =ALL -> (Shumat ne ALL'000, nëse nuk shprehet ndryshe)
A12: =Language!$D$41 -> No | B12: =Language!$D$49 -> Acc. No. | D12: Description of Revenues | F12: =Language!$D$40 -> Notes | H12: =Language!D18&" "&Language!D55 -> FY 2014 Restated | J12: =Language!D18 -> FY 2014 | L12: =Language!D19 -> FY 2013 | N12: =H12 -> FY 2014 Restated | P12: =J12 -> FY 2014 | R12: =L12 -> FY 2013
A13: a | B13: b | C13: c | H13: 1 | J13: 2 | L13: 2 | N13: 1 | P13: 2 | R13: 2
A14: 1 | B14: Klasa 7 | C14: A. TE ARDHURA TE SHFRYTEZIMIT(I - VI) | D14: A. REVENUES | H14: =SUM(H15+H39+H47+H62+H76+H77) -> 0 | J14: =SUM(J15+J39+J47+J62+J76+J77) -> 0 | L14: =SUM(L15+L39+L47+L62+L76+L77) -> 0 | N14: =SUM(N15+N39+N47+N62+N76+N77) -> 0 | P14: =SUM(P15+P39+P47+P62+P76+P77) -> 0 | R14: =SUM(R15+R39+R47+R62+R76+R77) -> 0
A15: 2 | B15: 70 | C15: I. TE ARDHURA TATIMORE(a+b+c+d+e+f+g) | D15: I. TAX INCOMES | H15: =SUM(H16+H21+H25+H31+H36+H37+H38) -> 0 | J15: =SUM(J16+J21+J25+J31+J36+J37+J38) -> 0 | L15: =SUM(L16+L21+L25+L31+L36+L37+L38) -> 0 | N15: =SUM(N16+N21+N25+N31+N36+N37+N38) -> 0 | P15: =SUM(P16+P21+P25+P31+P36+P37+P38) -> 0 | R15: =SUM(R16+R21+R25+R31+R36+R37+R38) -> 0
A16: 3 | B16: 700 | C16: a) Mbi te ardhurat,fitimin e ardh.kapitale | D16: a) on revenues, profit, and equity revenue | H16: =SUM(H17:H20) -> 0 | J16: =SUM(J17:J20) -> 0 | L16: =SUM(L17:L20) -> 0 | N16: =SUM(N17:N20) -> 0 | P16: =SUM(P17:P20) -> 0 | R16: =SUM(R17:R20) -> 0
A17: 4 | B17: 7000 | C17: - Tatim mbi te ardhurat personale | D17: personal income tax | H17: =N17/Presentation_curr -> 0 | J17: =P17/Presentation_curr -> 0 | L17: =R17/Presentation_curr -> 0 | N17: =P17 -> 0 | P17: ='LGU''s FS (Template)'!E223 -> 0 | R17: ='LGU''s FS (Template)'!F223 -> 0
A18: 5 | B18: 7001 | C18: - Tatim mbi fitimin | D18: income tax | H18: =N18/Presentation_curr -> 0 | J18: =P18/Presentation_curr -> 0 | L18: =R18/Presentation_curr -> 0 | N18: =P18 -> 0 | P18: ='LGU''s FS (Template)'!E224 -> 0 | R18: ='LGU''s FS (Template)'!F224 -> 0
A19: 6 | B19: 7002 | C19: - Takse e tatim mbi biznesin e vogel | D19: small business tax | H19: =N19/Presentation_curr -> 0 | J19: =P19/Presentation_curr -> 0 | L19: =R19/Presentation_curr -> 0 | N19: 0 | P19: ='LGU''s FS (Template)'!E225 -> 0 | R19: ='LGU''s FS (Template)'!F225 -> 0
A20: 7 | B20: 7009 | C20: - Tjera tatime | D20: other tax | H20: =N20/Presentation_curr -> 0 | J20: =P20/Presentation_curr -> 0 | L20: =R20/Presentation_curr -> 0 | N20: 0 | P20: ='LGU''s FS (Template)'!E226 -> 0 | R20: ='LGU''s FS (Template)'!F226 -> 0
A21: 8 | B21: 702 | C21: b) Tatime mbi pasurine | D21: b) Property tax | H21: =SUM(H22:H24) -> 0 | J21: =SUM(J22:J24) -> 0 | L21: =SUM(L22:L24) -> 0 | N21: =SUM(N22:N24) -> 0 | P21: =SUM(P22:P24) -> 0 | R21: =SUM(R22:R24) -> 0
A22: 9 | B22: 7020 | C22: - Mbi pasurine e pa lujteshme | D22: on immovable property | H22: =N22/Presentation_curr -> 0 | J22: =P22/Presentation_curr -> 0 | L22: =R22/Presentation_curr -> 0 | N22: =P22 -> 0 | P22: ='LGU''s FS (Template)'!E228 -> 0 | R22: ='LGU''s FS (Template)'!F228 -> 0
A23: 10 | B23: 7021 | C23: - Mbi shitjen e pasurise se palujteshme | D23: sales of immovable property | H23: =N23/Presentation_curr -> 0 | J23: =P23/Presentation_curr -> 0 | L23: =R23/Presentation_curr -> 0 | N23: 0 | P23: ='LGU''s FS (Template)'!E229 -> 0 | R23: ='LGU''s FS (Template)'!F229 -> 0
A24: 11 | B24: 7029 | C24: - Te tjera mbi pasurine | D24: other on property | H24: =N24/Presentation_curr -> 0 | J24: =P24/Presentation_curr -> 0 | L24: =R24/Presentation_curr -> 0 | N24: 0 | P24: ='LGU''s FS (Template)'!E230 -> 0 | R24: ='LGU''s FS (Template)'!F230 -> 0
A25: 12 | B25: 703 | C25: c) Tatime mbi mallrat e sherbimet brenda vendit | D25: c) tax upon goods and services in the country | H25: =SUM(H26:H30) -> 0 | J25: =SUM(J26:J30) -> 0 | L25: =SUM(L26:L30) -> 0 | N25: =SUM(N26:N30) -> 0 | P25: =SUM(P26:P30) -> 0 | R25: =SUM(R26:R30) -> 0
A26: 13 | B26: 7030 | C26: - Tatimi mbi Vleren e Shtuar(TVSH) | D26: VAT | H26: =N26/Presentation_curr -> 0 | J26: =P26/Presentation_curr -> 0 | L26: =R26/Presentation_curr -> 0 | N26: =P26 -> 0 | P26: ='LGU''s FS (Template)'!E232 -> 0 | R26: ='LGU''s FS (Template)'!F232 -> 0
A27: 14 | B27: 7031 | C27: - Akciza | D27: Special taxes | H27: =N27/Presentation_curr -> 0 | J27: =P27/Presentation_curr -> 0 | L27: =R27/Presentation_curr -> 0 | N27: 0 | P27: ='LGU''s FS (Template)'!E233 -> 0 | R27: ='LGU''s FS (Template)'!F233 -> 0
A28: 15 | B28: 7032 | C28: - Takse mbi sherbimet specifike | D28: tax upon specific services | H28: =N28/Presentation_curr -> 0 | J28: =P28/Presentation_curr -> 0 | L28: =R28/Presentation_curr -> 0 | N28: 0 | P28: ='LGU''s FS (Template)'!E234 -> 0 | R28: ='LGU''s FS (Template)'!F234 -> 0
A29: 16 | B29: 7033 | C29: - Takse mbi perd.mallrave e lejim veprimtarie | D29: tax upon goods usage and activity permission | H29: =N29/Presentation_curr -> 0 | J29: =P29/Presentation_curr -> 0 | L29: =R29/Presentation_curr -> 0 | N29: 0 | P29: ='LGU''s FS (Template)'!E235 -> 0 | R29: ='LGU''s FS (Template)'!F235 -> 0
A30: 17 | B30: 7035 | C30: - Takse vendore mbi perd.mallrave e lejim veprimtarie | D30: local tax on goods usage and activity permission | H30: =N30/Presentation_curr -> 0 | J30: =P30/Presentation_curr -> 0 | L30: =R30/Presentation_curr -> 0 | N30: 0 | P30: ='LGU''s FS (Template)'!E236 -> 0 | R30: ='LGU''s FS (Template)'!F236 -> 0
A31: 18 | B31: 704 | C31: d) Takse mbi tregtine e transaks..nderkombetare | D31: d) tax upon commercial and international transactions | H31: =SUM(H32:H35) -> 0 | J31: =SUM(J32:J35) -> 0 | L31: =SUM(L32:L35) -> 0 | N31: =SUM(N32:N35) -> 0 | P31: =SUM(P32:P35) -> 0 | R31: =SUM(R32:R35) -> 0
A32: 19 | B32: 7040 | C32: - Takse doganore per mallrat e importit | D32: duties on import goods | H32: =N32/Presentation_curr -> 0 | J32: =P32/Presentation_curr -> 0 | L32: =R32/Presentation_curr -> 0 | N32: =P32 -> 0 | P32: ='LGU''s FS (Template)'!E238 -> 0 | R32: ='LGU''s FS (Template)'!F238 -> 0
A33: 20 | B33: 7041 | C33: - Takse doganore per mallrat e eksportit | D33: duties on export goods | H33: =N33/Presentation_curr -> 0 | J33: =P33/Presentation_curr -> 0 | L33: =R33/Presentation_curr -> 0 | N33: 0 | P33: ='LGU''s FS (Template)'!E239 -> 0 | R33: ='LGU''s FS (Template)'!F239 -> 0
A34: 21 | B34: 7042 | C34: - Tarife sherbimi doganor dhe kaliposte | D34: custom tariff and post service | H34: =N34/Presentation_curr -> 0 | J34: =P34/Presentation_curr -> 0 | L34: =R34/Presentation_curr -> 0 | N34: 0 | P34: ='LGU''s FS (Template)'!E240 -> 0 | R34: ='LGU''s FS (Template)'!F240 -> 0
A35: 22 | B35: 7049 | C35: - Te tjera taksa mbi treg.e trans.nderkomb. | D35: other tax upon international commercial transport | H35: =N35/Presentation_curr -> 0 | J35: =P35/Presentation_curr -> 0 | L35: =R35/Presentation_curr -> 0 | N35: 0 | P35: ='LGU''s FS (Template)'!E241 -> 0 | R35: ='LGU''s FS (Template)'!F241 -> 0
A36: 23 | B36: 705 | C36: e) Taksa e rruges | D36: e) road tax | H36: =SUM(H37:H40) -> 0 | J36: =SUM(J37:J40) -> 0 | L36: =SUM(L37:L40) -> 0 | N36: =SUM(N37:N40) -> 0 | P36: =SUM(P37:P40) -> 0 | R36: =SUM(R37:R40) -> 0
A37: 24 | B37: 708 | C37: f) Te tjera tatime e taksa kombtare | D37: f) other national tax | H37: =N37/Presentation_curr -> 0 | J37: =P37/Presentation_curr -> 0 | L37: =R37/Presentation_curr -> 0 | N37: =P37 -> 0 | P37: ='LGU''s FS (Template)'!E243 -> 0 | R37: ='LGU''s FS (Template)'!F243 -> 0
A38: 25 | B38: 709 | C38: g) Kamat vonesa | D38: g) penalty interest | H38: =N38/Presentation_curr -> 0 | J38: =P38/Presentation_curr -> 0 | L38: =R38/Presentation_curr -> 0 | N38: 0 | P38: ='LGU''s FS (Template)'!E244 -> 0 | R38: ='LGU''s FS (Template)'!F244 -> 0
A39: 26 | B39: 75 | C39: II. KONTRIBUTE SHOQERORE E SHENDETSORE | D39: II. SOCIAL AND HEALTH INSURANCE | H39: =SUM(H40:H46) -> 0 | J39: =SUM(J40:J46) -> 0 | L39: =SUM(L40:L46) -> 0 | N39: 0 | P39: =SUM(P40:P46) -> 0 | R39: =SUM(R40:R46) -> 0
A40: 27 | B40: 750 | C40: - Nga te punesuarit | D40: from employee's | H40: =N40/Presentation_curr -> 0 | J40: =P40/Presentation_curr -> 0 | L40: =R40/Presentation_curr -> 0 | N40: 0 | P40: ='LGU''s FS (Template)'!E246 -> 0 | R40: ='LGU''s FS (Template)'!F246 -> 0
A41: 28 | B41: 751 | C41: - Nga punedhenesit | D41: from employer | H41: 0 | J41: 0 | L41: 0 | N41: 0 | P41: ='LGU''s FS (Template)'!E247 -> 0 | R41: ='LGU''s FS (Template)'!F247 -> 0
A42: 29 | B42: 752 | C42: - Nga te vetepunesuarit | D42: from self employees | H42: 0 | J42: 0 | L42: 0 | N42: 0 | P42: ='LGU''s FS (Template)'!E248 -> 0 | R42: ='LGU''s FS (Template)'!F248 -> 0
A43: 30 | B43: 753 | C43: - Nga fermeret | D43: from farmers | H43: 0 | J43: 0 | L43: 0 | N43: 0 | P43: ='LGU''s FS (Template)'!E249 -> 0 | R43: ='LGU''s FS (Template)'!F249 -> 0
A44: 31 | B44: 754 | C44: - Nga sigurimet vullnetare | D44: form volunteer insurance | H44: 0 | J44: 0 | L44: 0 | N44: 0 | P44: ='LGU''s FS (Template)'!E250 -> 0 | R44: ='LGU''s FS (Template)'!F250 -> 0
A45: 32 | B45: 755 | C45: - Kontrib.buxhetit per Sigurimet Shoqerore | D45: Budget contribution for Social Insurance | H45: 0 | J45: 0 | L45: 0 | N45: 0 | P45: ='LGU''s FS (Template)'!E251 -> 0 | R45: ='LGU''s FS (Template)'!F251 -> 0
A46: 33 | B46: 756 | C46: - Kontrib.buxhetit per Sigurimet Shendetes | D46: Budget contribution for Health Insurance | H46: 0 | J46: 0 | L46: 0 | N46: 0 | P46: ='LGU''s FS (Template)'!E252 -> 0 | R46: ='LGU''s FS (Template)'!F252 -> 0
A47: 34 | B47: 71 | C47: III. TE ARDHUTRA JO TATIMORE(a+b+c) | D47: III. NON TAX REVENUES | H47: =SUM(H48+H53+H61) -> 0 | J47: =SUM(J48+J53+J61) -> 0 | L47: =SUM(L48+L53+L61) -> 0 | N47: =SUM(N48+N53+N61) -> 0 | P47: =SUM(P48+P53+P61) -> 0 | R47: =SUM(R48+R53+R61) -> 0
A48: 35 | B48: 710 | C48: a) Nga ndermarrjet dhe pronesia | D48: a) from enterprise and ownership | H48: =SUM(H49:H51) -> 0 | J48: =SUM(J49:J51) -> 0 | L48: =SUM(L49:L51) -> 0 | N48: =SUM(N49:N51) -> 0 | P48: =SUM(P49:P51) -> 0 | R48: =SUM(R49:R51) -> 0
A49: 36 | B49: 7100 | C49: - Nga nderm.publike jo financiare | D49: from public non financial enterprise | H49: =N49/Presentation_curr -> 0 | J49: =P49/Presentation_curr -> 0 | L49: =R49/Presentation_curr -> 0 | N49: =P49 -> 0 | P49: ='LGU''s FS (Template)'!E255 -> 0 | R49: ='LGU''s FS (Template)'!F255 -> 0
A50: 37 | B50: 7101 | C50: - Nga nderm.publike financiare | D50: from public financial enterprise | H50: =N50/Presentation_curr -> 0 | J50: =P50/Presentation_curr -> 0 | L50: =R50/Presentation_curr -> 0 | N50: 0 | P50: ='LGU''s FS (Template)'!E256 -> 0 | R50: ='LGU''s FS (Template)'!F256 -> 0
A51: 38 | B51: 7109 | C51: - Te tjera nga ndermarrjet dhe pronesia | D51: others from enterprise and ownership | H51: =N51/Presentation_curr -> 0 | J51: =P51/Presentation_curr -> 0 | L51: =R51/Presentation_curr -> 0 | N51: 0 | P51: ='LGU''s FS (Template)'!E257 -> 0 | R51: ='LGU''s FS (Template)'!F257 -> 0
A53: 39 | B53: 711 | C53: b) Sherbime administ.e ardhura sekondare | D53: b) Administrative service and secondary revenues | H53: =SUM(H54:H60) -> 0 | J53: =SUM(J54:J60) -> 0 | L53: =SUM(L54:L60) -> 0 | N53: =SUM(N54:N60) -> 0 | P53: =SUM(P54:P60) -> 0 | R53: =SUM(R54:R60) -> 0
A54: 40 | B54: 7110 | C54: - Tarifa administrative dhe rregullatore | D54: administrative tariffs and regulations | H54: =N54/Presentation_curr -> 0 | J54: =P54/Presentation_curr -> 0 | L54: =R54/Presentation_curr -> 0 | N54: =P54 -> 0 | P54: ='LGU''s FS (Template)'!E259 -> 0 | R54: ='LGU''s FS (Template)'!F259 -> 0
A55: 41 | B55: 7111 | C55: - Te ardhura sekondare e pagesa sherbimesh | D55: secondary revenues and payments of services | H55: 0 | J55: 0 | L55: 0 | N55: 0 | P55: ='LGU''s FS (Template)'!E260 -> 0 | R55: ='LGU''s FS (Template)'!F260 -> 0
A56: 42 | B56: 7112 | C56: - Takse per veprime gjyqsore e noteriale | D56: tax for legal actions and notary | H56: 0 | J56: 0 | L56: 0 | N56: 0 | P56: ='LGU''s FS (Template)'!E261 -> 0 | R56: ='LGU''s FS (Template)'!F261 -> 0
A57: 43 | B57: 7113 | C57: - Nga shitja e mallrave e sherbimeve | D57: from goods and services sales | H57: 0 | J57: 0 | L57: 0 | N57: 0 | P57: ='LGU''s FS (Template)'!E262 -> 0 | R57: ='LGU''s FS (Template)'!F262 -> 0
A58: 44 | B58: 7114 | C58: - Te ardhura nga biletat | D58: revenues from tickets | H58: 0 | J58: 0 | L58: 0 | N58: 0 | P58: ='LGU''s FS (Template)'!E263 -> 0 | R58: ='LGU''s FS (Template)'!F263 -> 0
A59: 45 | B59: 7115 | C59: - Gjoba dhe kamatvonesa,sekuestrime e zhdemtime | D59: fines and late-fees, sequestration and compensation | H59: 0 | J59: 0 | L59: 0 | N59: 0 | P59: ='LGU''s FS (Template)'!E264 -> 0 | R59: ='LGU''s FS (Template)'!F264 -> 0
A60: 46 | B60: 7116 | C60: - Te ardhura nga transferimi prones,legalizimi ndertimeve pa leje | D60: revenues from ownership transfer, legalization of buildings without permits | H60: 0 | J60: 0 | L60: 0 | N60: 0 | P60: ='LGU''s FS (Template)'!E265 -> 0 | R60: ='LGU''s FS (Template)'!F265 -> 0
A61: 47 | B61: 719 | C61: c) Te tjera te ardhura jo tatimore | D61: c) other non tax revenues | H61: 0 | J61: 0 | L61: 0 | N61: 0 | P61: ='LGU''s FS (Template)'!E266 -> 0 | R61: ='LGU''s FS (Template)'!F266 -> 0
A62: 48 | B62: 72 | C62: IV.GRANTE KORENTE(a+b) | D62: IV. ACTUAL GRANTS (a+b) | H62: =SUM(H63+H73) -> 0 | J62: =SUM(J63+J73) -> 0 | L62: =SUM(L63+L73) -> 0 | N62: =SUM(N63+N73) -> 0 | P62: =SUM(P63+P73) -> 0 | R62: =SUM(R63+R73) -> 0
A63: 49 | B63: 720 | C63: a) Grant korent I brendeshem | D63: a) internal actual grant | H63: =SUM(H64:H72) -> 0 | J63: =SUM(J64:J72) -> 0 | L63: =SUM(L64:L72) -> 0 | N63: =SUM(N64:N72) -> 0 | P63: =SUM(P64:P72) -> 0 | R63: =SUM(R64:R72) -> 0
A64: 50 | B64: 7200 | C64: - Nga I njejti nivel Qeverisje | D64: from same Government level | H64: =N64/Presentation_curr -> 0 | J64: =P64/Presentation_curr -> 0 | L64: =R64/Presentation_curr -> 0 | N64: =P64 -> 0 | P64: ='LGU''s FS (Template)'!E269 -> 0 | R64: ='LGU''s FS (Template)'!F269 -> 0
A65: 51 | B65: 7201 | C65: - Nga nivele tjera Qeverisje | D65: from other Government levels | H65: 0 | J65: 0 | L65: 0 | N65: 0 | P65: ='LGU''s FS (Template)'!E270 -> 0 | R65: ='LGU''s FS (Template)'!F270 -> 0
A66: 52 | B66: 7202 | C66: - Nga buxheti per pagesa.posacme te ISSH | D66: from budget for special payments to Social Institute | H66: 0 | J66: 0 | L66: 0 | N66: 0 | P66: ='LGU''s FS (Template)'!E271 -> 0 | R66: ='LGU''s FS (Template)'!F271 -> 0
A67: 53 | B67: 7203 | C67: - Nga buxheti per mbul.deficiti te ISSH e ISKSH | D67: from budget to cover the deficit of Social Institute and Healthcare Institute | H67: 0 | J67: 0 | L67: 0 | N67: 0 | P67: ='LGU''s FS (Template)'!E272 -> 0 | R67: ='LGU''s FS (Template)'!F272 -> 0
A68: 54 | B68: 7204 | C68: - Pjesmarrje instit.ne tatime nacionale | D68: participation of institution in national taxes | H68: 0 | J68: 0 | L68: 0 | N68: 0 | P68: ='LGU''s FS (Template)'!E273 -> 0 | R68: ='LGU''s FS (Template)'!F273 -> 0
A69: 55 | B69: 7205 | C69: - Financ.shtese nga te ardh.kriju.brenda sistemit | D69: additional finances created within the system | H69: 0 | J69: 0 | L69: 0 | N69: 0 | P69: ='LGU''s FS (Template)'!E274 -> 0 | R69: ='LGU''s FS (Template)'!F274 -> 0
A70: 56 | B70: 7206 | C70: - Financim I pritshem nga buxheti | D70: expected financing from budget | H70: 0 | J70: 0 | L70: 0 | N70: =P70 -> 0 | P70: ='LGU''s FS (Template)'!E275 -> 0 | R70: ='LGU''s FS (Template)'!F275 -> 0
A71: 57 | B71: 7207 | C71: - Sponsorizime nga te trete | D71: third party sponsorship | H71: 0 | J71: 0 | L71: 0 | N71: 0 | P71: ='LGU''s FS (Template)'!E276 -> 0 | R71: ='LGU''s FS (Template)'!F276 -> 0
A72: 58 | B72: 7209 | C72: - Te tjera grante te brendshme | D72: other internal grants | H72: 0 | J72: 0 | L72: 0 | N72: 0 | P72: ='LGU''s FS (Template)'!E277 -> 0 | R72: ='LGU''s FS (Template)'!F277 -> 0
A73: 59 | B73: 721 | C73: b) Grant korent I jashtem | D73: b) external actual grants | H73: =SUM(H74:H75) -> 0 | J73: =SUM(J74:J75) -> 0 | L73: =SUM(L74:L75) -> 0 | N73: 0 | P73: =SUM(P74:P75) -> 0 | R73: =SUM(R74:R75) -> 0
A74: 60 | B74: 7210 | C74: - Nga Qeveri te Huaja | D74: from foreigner Governments | H74: =N74/Presentation_curr -> 0 | J74: =P74/Presentation_curr -> 0 | L74: =R74/Presentation_curr -> 0 | N74: 0 | P74: ='LGU''s FS (Template)'!E280 -> 0 | R74: ='LGU''s FS (Template)'!F280 -> 0
A75: 61 | B75: 7211 | C75: - Nga Organizata Nderkombetare | D75: from international organizations | H75: =N75/Presentation_curr -> 0 | J75: =P75/Presentation_curr -> 0 | L75: =R75/Presentation_curr -> 0 | N75: 0 | P75: ='LGU''s FS (Template)'!E281 -> 0 | R75: ='LGU''s FS (Template)'!F281 -> 0
A76: 62 | B76: 73 | C76: V. NDRYSHIM GJENDJEVE PRODUKTEVE | D76: V. CHANGES IN PRODCUTS BALANCE | H76: =N76/Presentation_curr -> 0 | J76: =P76/Presentation_curr -> 0 | L76: =R76/Presentation_curr -> 0 | N76: 0 | P76: ='LGU''s FS (Template)'!E282 -> 0 | R76: ='LGU''s FS (Template)'!F282 -> 0
A77: 63 | B77: 78 | C77: VI.PUNIME PER INVESTIME E RIMARRJE | D77: VI. WORK INVESTMENTS AND RETAKINGS | H77: =SUM(H78:H83) -> 0 | J77: =SUM(J78:J83) -> 0 | L77: =SUM(L78:L83) -> 0 | N77: 0 | P77: =SUM(P78:P83) -> 0 | R77: =SUM(R78:R83) -> 0
A78: 64 | B78: 781 | C78: Punime,investime ne ekonomi | D78: works, investments in economy | H78: =N78/Presentation_curr -> 0 | J78: =P78/Presentation_curr -> 0 | L78: =R78/Presentation_curr -> 0 | N78: 0 | P78: ='LGU''s FS (Template)'!E284 -> 0 | R78: ='LGU''s FS (Template)'!F284 -> 0
A79: 65 | B79: 782 | C79: Rimarrje parash.per aktive qarkulluese | D79: Forecasted retakings for liquid assets | H79: 0 | J79: 0 | L79: 0 | N79: 0 | P79: ='LGU''s FS (Template)'!E285 -> 0 | R79: ='LGU''s FS (Template)'!F285 -> 0
A80: 66 | B80: 783 | C80: Rimarrje parash.per aktivet e qendrushme | D80: Forecasted retakings for fixed assets | H80: 0 | J80: 0 | L80: 0 | N80: 0 | P80: ='LGU''s FS (Template)'!E286 -> 0 | R80: ='LGU''s FS (Template)'!F286 -> 0
A81: 67 | B81: 784 | C81: Suprim shumave parash.per shp.v.ardhshme | D81: prepayment of expenses in the years to come | H81: 0 | J81: 0 | L81: 0 | N81: 0 | P81: ='LGU''s FS (Template)'!E287 -> 0 | R81: ='LGU''s FS (Template)'!F287 -> 0
A82: 68 | B82: 785 | C82: Perdorim shumave parash.per shp.v.ardhshme | D82: Use of funds of the year to come | H82: 0 | J82: 0 | L82: 0 | N82: 0 | P82: ='LGU''s FS (Template)'!E288 -> 0 | R82: ='LGU''s FS (Template)'!F288 -> 0
A83: 69 | B83: 787 | C83: Terheqje nga seks.investimeve | D83: withdraw from investments | H83: 0 | J83: 0 | L83: 0 | N83: 0 | P83: ='LGU''s FS (Template)'!E289 -> 0 | R83: ='LGU''s FS (Template)'!F289 -> 0
A84: 70 | B84: 76 | C84: B. TE ARDHURA FINANCIARE | D84: B. FINANCIAL INCOMES | H84: =SUM(H85:H88) -> 0 | J84: =SUM(J85:J88) -> 0 | L84: =SUM(L85:L88) -> 0 | N84: 0 | P84: =SUM(P85:P88) -> 0 | R84: =SUM(R85:R88) -> 0
A85: 71 | B85: 760 | C85: Nga interesat e huadhenies brendshme | D85: from internal borrowing interests | H85: =N85/Presentation_curr -> 0 | J85: =P85/Presentation_curr -> 0 | L85: =R85/Presentation_curr -> 0 | N85: 0 | P85: ='LGU''s FS (Template)'!E291 -> 0 | R85: ='LGU''s FS (Template)'!F291 -> 0
A86: 72 | B86: 761 | C86: Nga interesat hudhenies se huaj | D86: from external borrowing interests | H86: =N86/Presentation_curr -> 0 | J86: =P86/Presentation_curr -> 0 | L86: =R86/Presentation_curr -> 0 | N86: 0 | P86: ='LGU''s FS (Template)'!E292 -> 0 | R86: ='LGU''s FS (Template)'!F292 -> 0
A87: 73 | B87: 765 | C87: Te ardhura nga interesat e depozitave | D87: incomes from deposits interests | H87: =N87/Presentation_curr -> 0 | J87: =P87/Presentation_curr -> 0 | L87: =R87/Presentation_curr -> 0 | N87: 0 | P87: ='LGU''s FS (Template)'!E293 -> 0 | R87: ='LGU''s FS (Template)'!F293 -> 0
A88: 74 | B88: 766 | C88: Te ardhura nga kembimet valutore | D88: revenues from exchange rates | H88: =N88/Presentation_curr -> 0 | J88: =P88/Presentation_curr -> 0 | L88: =R88/Presentation_curr -> 0 | N88: 0 | P88: ='LGU''s FS (Template)'!E294 -> 0 | R88: ='LGU''s FS (Template)'!F294 -> 0
A89: 75 | B89: 77 | C89: C. TE ARDHURA TE JASHTZAKONSHME | D89: C. EXTRAORDINARY REVENUES | H89: =SUM(H90:H93) -> 0 | J89: =SUM(J90:J93) -> 0 | L89: =SUM(L90:L93) -> 0 | N89: 0 | P89: =SUM(P90:P93) -> 0 | R89: =SUM(R90:R93) -> 0
A90: 76 | B90: 773 | C90: Nga veprimtari te mbyllura e ndryshime tjera trategjise | D90: from closed activities and changes in strategy | H90: =N90/Presentation_curr -> 0 | J90: =P90/Presentation_curr -> 0 | L90: =R90/Presentation_curr -> 0 | N90: 0 | P90: ='LGU''s FS (Template)'!E295 -> 0 | R90: ='LGU''s FS (Template)'!F295 -> 0
A91: 77 | B91: 777 | C91: Nga gabime te lejuara ne ushtrimet paraardhese | D91: from mistakes allowed in previous exercise | H91: =N91/Presentation_curr -> 0 | J91: =P91/Presentation_curr -> 0 | L91: =R91/Presentation_curr -> 0 | N91: 0 | P91: ='LGU''s FS (Template)'!E296 -> 0 | R91: ='LGU''s FS (Template)'!F296 -> 0
A92: 78 | B92: 778 | C92: Korigjime nga vitet e kaluara | D92: correction from previous year | H92: =N92/Presentation_curr -> 0 | J92: =P92/Presentation_curr -> 0 | L92: =R92/Presentation_curr -> 0 | N92: 0 | P92: ='LGU''s FS (Template)'!E297 -> 0 | R92: ='LGU''s FS (Template)'!F297 -> 0
A93: 79 | B93: 779 | C93: Te ardhura te tjera | D93: Other revenues | H93: =N93/Presentation_curr -> 0 | J93: =P93/Presentation_curr -> 0 | L93: =R93/Presentation_curr -> 0 | N93: 0 | P93: ='LGU''s FS (Template)'!E298 -> 0 | R93: ='LGU''s FS (Template)'!F298 -> 0
A94: 80 | B94: Klasa 7 | C94: TOTALI I TE ARDHURAVE | D94: TOTAL INCOMES | H94: =SUM(H14+H84+H89) -> 0 | J94: =SUM(J14+J84+J89) -> 0 | L94: =SUM(L14+L84+L89) -> 0 | N94: =SUM(N14+N84+N89) -> 0 | P94: =SUM(P14+P84+P89) -> 0 | R94: =SUM(R14+R84+R89) -> 0
A95: 81 | B95: 82.84 | C95: D. OPERAC.KORIGJ.REZULTATIT | D95: D. RESULT CORRECTIONS ACTIVITES | H95: =SUM(H96:H97) -> 0 | J95: =SUM(J96:J97) -> 0 | L95: =SUM(L96:L97) -> 0 | N95: =SUM(N96:N97) -> 0 | P95: =SUM(P96:P97) -> 0 | R95: =SUM(R96:R97) -> 0
A96: 82 | B96: 829 | C96: Urdh.shp.anulluar ose parashkruar | D96: canceled or under written expense order | H96: =N96/Presentation_curr -> 0 | J96: =P96/Presentation_curr -> 0 | L96: =R96/Presentation_curr -> 0 | N96: =P96 -> 0 | P96: ='LGU''s FS (Template)'!E301 -> 0 | R96: ='LGU''s FS (Template)'!F301 -> 0
A97: 83 | B97: 841 | C97: Transferimi i ndryshimt te gjendjeje | D97: status change transfer | H97: =N97/Presentation_curr -> 0 | J97: =P97/Presentation_curr -> 0 | L97: =R97/Presentation_curr -> 0 | N97: 0 | P97: ='LGU''s FS (Template)'!E302 -> 0 | R97: ='LGU''s FS (Template)'!F302 -> 0
A98: 84 | B98: Klasa 7 e 8 | C98: TOTALI OPERACIONEVE | D98: TOTAL FROM OPERATIONS | H98: =SUM(H94:H95) -> 0 | J98: =SUM(J94:J95) -> 0 | L98: =SUM(L94:L95) -> 0 | N98: =SUM(N94:N95) -> 0 | P98: =SUM(P94:P95) -> 0 | R98: =SUM(R94:R95) -> 0
A99: 85 | B99: 85 | C99: REZULTATI I VEPRIMTARISE | D99: RESULTS FROM FUNCTIONING | H99: =N99/Presentation_curr -> 0 | J99: =P99/Presentation_curr -> 0 | L99: =R99/Presentation_curr -> 0 | N99: =P99 -> 0 | P99: ='LGU''s FS (Template)'!E304 -> 0 | R99: ='LGU''s FS (Template)'!F304 -> 0
A100: 86 | B100: X | C100: T O T A L I | D100: TOTAL | H100: =SUM(H98:H99) -> 0 | J100: =SUM(J98:J99) -> 0 | L100: =SUM(L98:L99) -> 0 | N100: =SUM(N98:N99) -> 0 | P100: =SUM(P98:P99) -> 0 | R100: =SUM(R98:R99) -> 0

Sheet F4
A1: ='General information'!A1 -> Project STAR
A2: ='General information'!A2 -> xxx
A3: =A8 -> Funds and expenses related to investments (Form 4)
A4: =Checks!A4 -> All checks ok
A7: ='General information'!A2 -> xxx
A8: =Language!$D$91 -> Funds and expenses related to investments (Form 4)
A9: =Language!$D$13 -> for the year ended 31 December 2014
A10: =ALL -> (Shumat ne ALL'000, nëse nuk shprehet ndryshe)
A11: =Language!$D$41 -> No | B11: =Language!$D$53 -> Account Number | C11: EMERTIMI | D11: Description
F12: =M12 -> Opening balance1 January 2014 | H12: =O12 -> Transaction during the year | K12: =R12 -> Closing balance 31 December 2014 | M12: =Language!D16 -> Opening balance1 January 2014 | O12: =Language!D43 -> Transaction during the year | R12: =Language!$D$17 -> Closing balance 31 December 2014
H13: =O13 -> Debit | I13: =P13 -> Credit | O13: =Language!$D$46 -> Debit | P13: =Language!$D$47 -> Credit
A14: a | C14: b | F14: =M14 -> c | H14: =O14 -> d | I14: =P14 -> e | K14: =R14 -> f | M14: c | O14: d | P14: e | R14: f
A15: 1 | B15: I | C15: BURIMET PER INVESTIME | D15: SOURCE OF FUNDS | F15: =M15/Presentation_curr -> 0 | H15: =O15/Presentation_curr -> 0 | I15: =P15/Presentation_curr -> 0 | K15: =R15/Presentation_curr -> 0 | M15: =SUM(M16+M21+M25+M32+M33+M40) -> 0 | O15: =SUM(O16+O21+O25+O32+O33+O40) -> 0 | P15: =SUM(P16+P21+P25+P32+P33+P40) -> 0 | R15: =SUM(R16+R21+R25+R32+R33+R40) -> 0
A16: 2 | B16: 105 | C16: Grante te brendshme kapitale | D16: Internal capital grants | F16: 0 | H16: 0 | I16: 0 | K16: 0 | M16: =SUM(M17:M20) -> 0 | O16: =SUM(O17:O20) -> 0 | P16: =SUM(P17:P20) -> 0 | R16: =SUM(R17:R20) -> 0
A17: 3 | B17: 1050 | C17: Nga I njejti nivel qeverisjeje | D17: from the same government level | F17: 0 | H17: 0 | I17: 0 | K17: 0 | M17: ='LGU''s FS (Template)'!E318 -> 0 | O17: ='LGU''s FS (Template)'!F318 -> 0 | P17: ='LGU''s FS (Template)'!G318 -> 0 | R17: =M17+P17-O17 -> 0
A18: 4 | B18: 1051 | C18: Nga nivele te tjera te Qeverisjes | D18: from other Government levels | F18: 0 | H18: 0 | I18: 0 | K18: 0 | M18: ='LGU''s FS (Template)'!E319 -> 0 | O18: ='LGU''s FS (Template)'!F319 -> 0 | P18: ='LGU''s FS (Template)'!G319 -> 0 | R18: =M18+P18-O18 -> 0
A19: 5 | B19: 1052 | C19: Kontribute te te treteve per investime | D19: third parties contribution for investments | F19: 0 | H19: 0 | I19: 0 | K19: 0 | M19: ='LGU''s FS (Template)'!E320 -> 0 | O19: ='LGU''s FS (Template)'!F320 -> 0 | P19: ='LGU''s FS (Template)'!G320 -> 0 | R19: 0
A20: 6 | B20: 1059 | C20: Grante te brendeshme ne natyre | D20: internal grants in nature | F20: 0 | H20: 0 | I20: 0 | K20: 0 | M20: ='LGU''s FS (Template)'!E321 -> 0 | O20: ='LGU''s FS (Template)'!F321 -> 0 | P20: ='LGU''s FS (Template)'!G321 -> 0 | R20: 0
A21: 7 | B21: 106 | C21: Grante te huaja Kapitale | D21: Foreigner Capital grants | F21: 0 | H21: 0 | I21: 0 | K21: 0 | M21: =SUM(M22:M24) -> 0 | O21: =SUM(O22:O24) -> 0 | P21: =SUM(P22:P24) -> 0 | R21: =SUM(R22:R24) -> 0
A22: 8 | B22: 1060 | C22: Nga qeveri te huaja | D22: From foreigner governments | F22: 0 | H22: 0 | I22: 0 | K22: 0 | M22: ='LGU''s FS (Template)'!E323 -> 0 | O22: ='LGU''s FS (Template)'!F323 -> 0 | P22: ='LGU''s FS (Template)'!G323 -> 0 | R22: 0
A23: 9 | B23: 1061 | C23: Nga institucione nderkombetare | D23: from international institutions | F23: 0 | H23: 0 | I23: 0 | K23: 0 | M23: ='LGU''s FS (Template)'!E324 -> 0 | O23: ='LGU''s FS (Template)'!F324 -> 0 | P23: ='LGU''s FS (Template)'!G324 -> 0 | R23: 0
A24: 10 | B24: 1069 | C24: Grante te huaja ne natyre | D24: foreigner grants in nature | F24: 0 | H24: 0 | I24: 0 | K24: 0 | M24: ='LGU''s FS (Template)'!E325 -> 0 | O24: ='LGU''s FS (Template)'!F325 -> 0 | P24: ='LGU''s FS (Template)'!G325 -> 0 | R24: 0
A25: 11 | B25: 14 | C25: Grante kapitale per investime per te trete | D25: Capital grants for investments to third parties | F25: 0 | H25: 0 | I25: 0 | K25: 0 | M25: =SUM(M26:M27) -> 0 | O25: =SUM(O26:O27) -> 0 | P25: =SUM(P26:P27) -> 0 | R25: =SUM(R26:R27) -> 0
A26: 12 | B26: 145 | C26: Grante brendsh. kapitale per pjesm. ne invest. ne te trete | D26: Internal grants, participation capital in investments for third parties | F26: 0 | H26: 0 | I26: 0 | K26: 0 | M26: ='LGU''s FS (Template)'!E327 -> 0 | O26: ='LGU''s FS (Template)'!F327 -> 0 | P26: ='LGU''s FS (Template)'!G327 -> 0 | R26: 0
A27: 13 | B27: 146 | C27: Grante te huaja kapitale per pjesm. ne invest. ne te trete | D27: Foreigner grants, participation capital in investments for third parties | F27: 0 | H27: 0 | I27: 0 | K27: 0 | M27: ='LGU''s FS (Template)'!E328 -> 0 | O27: ='LGU''s FS (Template)'!F328 -> 0 | P27: ='LGU''s FS (Template)'!G328 -> 0 | R27: 0
A28: 14 | B28: 11 | C28: Fonde te tjera te veta | D28: Other own funds | F28: 0 | H28: 0 | I28: 0 | K28: 0 | M28: =SUM(M29:M31) -> 0 | O28: =SUM(O29:O31) -> 0 | P28: =SUM(P29:P31) -> 0 | R28: =SUM(R29:R31) -> 0
A29: 15 | B29: 111 | C29: Fonde rezerve | D29: reserve funds | F29: 0 | H29: 0 | I29: 0 | K29: 0 | M29: ='LGU''s FS (Template)'!E330 -> 0 | O29: ='LGU''s FS (Template)'!F330 -> 0 | P29: ='LGU''s FS (Template)'!G330 -> 0 | R29: 0
A30: 16 | B30: 115 | C30: Caktim fondi per investime nga rezultati I vitit | D30: Fund allocation for investments from result of the year | F30: 0 | H30: 0 | I30: 0 | K30: 0 | M30: ='LGU''s FS (Template)'!E331 -> 0 | O30: ='LGU''s FS (Template)'!F331 -> 0 | P30: ='LGU''s FS (Template)'!G331 -> 0 | R30: 0
A31: 17 | B31: 116 | C31: Te ardhura nga Shitja e aktiveve te qendrueshme | D31: Revenues from tangible assets sales | F31: 0 | H31: 0 | I31: 0 | K31: 0 | M31: ='LGU''s FS (Template)'!E332 -> 0 | O31: ='LGU''s FS (Template)'!F332 -> 0 | P31: ='LGU''s FS (Template)'!G332 -> 0 | R31: 0
A32: 18 | B32: 12 | C32: Rezultati I Mbartur | D32: Carried result | F32: 0 | H32: 0 | I32: 0 | K32: 0 | M32: ='LGU''s FS (Template)'!E333 -> 0 | O32: ='LGU''s FS (Template)'!F333 -> 0 | P32: ='LGU''s FS (Template)'!G333 -> 0 | R32: =M32+P32-O32 -> 0
A33: 19 | B33: 16 | C33: Huamarrje brendshme e tjera ngjashme | D33: Internal borrowing and similar | F33: 0 | H33: 0 | I33: 0 | K33: 0 | M33: =SUM(M34:M36) -> 0 | O33: =SUM(O37:O39) -> 0 | P33: =SUM(P34:P36) -> 0 | R33: =SUM(R34:R39) -> 0
A34: 20 | B34: 160 | C34: Bono thesari dhe kredi direkte(te hyra) | D34: Bonds and direct credit (entry) | F34: 0 | H34: 0 | I34: 0 | K34: 0 | M34: ='LGU''s FS (Template)'!E335 -> 0 | O34: ='LGU''s FS (Template)'!F335 -> 0 | P34: ='LGU''s FS (Template)'!G335 -> 0 | R34: =M34+P34 -> 0
A35: 21 | B35: 161 | C35: Te tjera huamarrje te brendshme (Te hyra) | D35: Other internal borrowing (entry) | F35: 0 | H35: 0 | I35: 0 | K35: 0 | M35: ='LGU''s FS (Template)'!E336 -> 0 | O35: ='LGU''s FS (Template)'!F336 -> 0 | P35: ='LGU''s FS (Template)'!G336 -> 0 | R35: =M35+P35 -> 0
A36: 22 | B36: 162 | C36: Huamarrje ne Letra me vlere(te hyra) | D36: Borrowing through securities (entry) | F36: 0 | H36: 0 | I36: 0 | K36: 0 | M36: ='LGU''s FS (Template)'!E337 -> 0 | O36: ='LGU''s FS (Template)'!F337 -> 0 | P36: ='LGU''s FS (Template)'!G337 -> 0 | R36: =M36+P36 -> 0
A37: 23 | B37: 165 | C37: Bono thesari dhe kredi direkte(te dala) | D37: Bonds and direct credit (outing) | F37: 0 | H37: 0 | I37: 0 | K37: 0 | M37: ='LGU''s FS (Template)'!E338 -> 0 | O37: ='LGU''s FS (Template)'!F338 -> 0 | P37: ='LGU''s FS (Template)'!G338 -> 0 | R37: =O37 -> 0
A38: 24 | B38: 166 | C38: Te tjera huamarrje te brendshme (te dala) | D38: Other internal borrowing (outing) | F38: 0 | H38: 0 | I38: 0 | K38: 0 | M38: ='LGU''s FS (Template)'!E339 -> 0 | O38: ='LGU''s FS (Template)'!F339 -> 0 | P38: ='LGU''s FS (Template)'!G339 -> 0 | R38: =O38 -> 0
A39: 25 | B39: 167 | C39: Huamarrje ne Letra me vlere(te dala) | D39: Borrowing through securities (outing) | F39: 0 | H39: 0 | I39: 0 | K39: 0 | M39: ='LGU''s FS (Template)'!E340 -> 0 | O39: ='LGU''s FS (Template)'!F340 -> 0 | P39: ='LGU''s FS (Template)'!G340 -> 0 | R39: =O39 -> 0
A40: 26 | B40: 17 | C40: Huamarrje nga Qeveri te huaja | D40: Borrowing from foreigner Governments | F40: 0 | H40: 0 | I40: 0 | K40: 0 | M40: =SUM(M41:M43) -> 0 | O40: =SUM(O44:O46) -> 0 | P40: =SUM(P41:P43) -> 0 | R40: =SUM(R41:R46) -> 0
A41: 27 | B41: 170 | C41: Huamarrje nga qeveri te huaja (te hyra) | D41: Borrowing from foreigner governments (entry) | F41: 0 | H41: 0 | I41: 0 | K41: 0 | M41: ='LGU''s FS (Template)'!E342 -> 0 | O41: ='LGU''s FS (Template)'!F342 -> 0 | P41: ='LGU''s FS (Template)'!G342 -> 0 | R41: =M41+P41 -> 0
A42: 28 | B42: 171 | C42: Huamarrje nga institucione nderkombetare(te hyra) | D42: Borrowing from international institutions (entry) | F42: 0 | H42: 0 | I42: 0 | K42: 0 | M42: ='LGU''s FS (Template)'!E343 -> 0 | O42: ='LGU''s FS (Template)'!F343 -> 0 | P42: ='LGU''s FS (Template)'!G343 -> 0 | R42: =M42+P42 -> 0
A43: 29 | B43: 172 | C43: Huamarrje te tjera (Te hyra) | D43: Other borrowings (entry) | F43: 0 | H43: 0 | I43: 0 | K43: 0 | M43: ='LGU''s FS (Template)'!E344 -> 0 | O43: ='LGU''s FS (Template)'!F344 -> 0 | P43: ='LGU''s FS (Template)'!G344 -> 0 | R43: =M43+P43 -> 0
A44: 30 | B44: 175 | C44: Huamarrje nga Qeveri te huaja(te dala) | D44: Borrowing from foreigner Governments (outing) | F44: 0 | H44: 0 | I44: 0 | K44: 0 | M44: ='LGU''s FS (Template)'!E345 -> 0 | O44: ='LGU''s FS (Template)'!F345 -> 0 | P44: ='LGU''s FS (Template)'!G345 -> 0 | R44: =O44 -> 0
A45: 31 | B45: 176 | C45: Huamarrje nga institucione nderkombetare(te dala) | D45: Borrowing from international institutions (outing) | F45: 0 | H45: 0 | I45: 0 | K45: 0 | M45: ='LGU''s FS (Template)'!E346 -> 0 | O45: ='LGU''s FS (Template)'!F346 -> 0 | P45: ='LGU''s FS (Template)'!G346 -> 0 | R45: =O45 -> 0
A46: 32 | B46: 177 | C46: Huamarrje te tjera (Te dala) | D46: Other borrowings (outing) | F46: 0 | H46: 0 | I46: 0 | K46: 0 | M46: ='LGU''s FS (Template)'!E347 -> 0 | O46: ='LGU''s FS (Template)'!F347 -> 0 | P46: ='LGU''s FS (Template)'!G347 -> 0 | R46: =O46 -> 0
A47: 33 | B47: II | C47: SHPENZIMET PER INVESTIME | D47: EXPENSES FOR INVESTMENTS | F47: =M47/Presentation_curr -> 0 | H47: =O47/Presentation_curr -> 0 | I47: =P47/Presentation_curr -> 0 | K47: =R47/Presentation_curr -> 0 | M47: =SUM(M48+M49+M60+M59+M65) -> 0 | O47: =SUM(O48+O49+O60+O59+O65) -> 0 | P47: =SUM(P48+P49+P60+P59+P65) -> 0 | R47: =R48+R49+R59+R60+R65 -> 0
A48: 34 | B48: 230 | C48: Shpenzime per rritjen e AQ te patrupezuara | D48: Expenses for increase of Intangible Assets | F48: 0 | H48: 0 | I48: 0 | K48: 0 | M48: ='LGU''s FS (Template)'!E349 -> 0 | O48: ='LGU''s FS (Template)'!F349 -> 0 | P48: ='LGU''s FS (Template)'!G349 -> 0 | R48: =M48+O48-P48 -> 0
A49: 35 | B49: 231 | C49: Shpenzime per rritjen e AQ te trupezuara | D49: Expenses for increase of Tangible Assets | F49: 0 | H49: 0 | I49: 0 | K49: 0 | M49: =SUM(M50:M58) -> 0 | O49: =SUM(O50:O58) -> 0 | P49: =SUM(P50:P58) -> 0 | R49: =SUM(R50:R58) -> 0
A50: 36 | B50: 2310 | C50: Toka,troje e terene | D50: Land | F50: 0 | H50: 0 | I50: 0 | K50: 0 | M50: ='LGU''s FS (Template)'!E351 -> 0 | O50: ='LGU''s FS (Template)'!F351 -> 0 | P50: ='LGU''s FS (Template)'!G351 -> 0 | R50: =M50+O50-P50 -> 0
A51: 37 | B51: 2311 | C51: Pyje,kullota,plantacione | D51: Forests, Pasture, Plantation | F51: 0 | H51: 0 | I51: 0 | K51: 0 | M51: ='LGU''s FS (Template)'!E352 -> 0 | O51: ='LGU''s FS (Template)'!F352 -> 0 | P51: ='LGU''s FS (Template)'!G352 -> 0 | R51: =M51+O51-P51 -> 0
A52: 38 | B52: 2312 | C52: Ndertime e konstruksione | D52: Building and Constructions | F52: 0 | H52: 0 | I52: 0 | K52: 0 | M52: ='LGU''s FS (Template)'!E353 -> 0 | O52: ='LGU''s FS (Template)'!F353 -> 0 | P52: ='LGU''s FS (Template)'!G353 -> 0 | R52: 0
A53: 39 | B53: 2313 | C53: Rruge, rrjete dhe vepra ujore | D53: Roads, networks, water facilities | F53: 0 | H53: 0 | I53: 0 | K53: 0 | M53: ='LGU''s FS (Template)'!E354 -> 0 | O53: ='LGU''s FS (Template)'!F354 -> 0 | P53: ='LGU''s FS (Template)'!G354 -> 0 | R53: 0
A54: 40 | B54: 2314 | C54: Instalime teknike,paisje,instrumenta dhe vegla pune | D54: Technical installment, machinery, equipment, working tools | F54: 0 | H54: 0 | I54: 0 | K54: 0 | M54: ='LGU''s FS (Template)'!E355 -> 0 | O54: ='LGU''s FS (Template)'!F355 -> 0 | P54: ='LGU''s FS (Template)'!G355 -> 0 | R54: 0
A55: 41 | B55: 2315 | C55: Mjete te transportit | D55: Transport vehicles | F55: 0 | H55: 0 | I55: 0 | K55: 0 | M55: ='LGU''s FS (Template)'!E356 -> 0 | O55: ='LGU''s FS (Template)'!F356 -> 0 | P55: ='LGU''s FS (Template)'!G356 -> 0 | R55: 0
A56: 42 | B56: 2316 | C56: Rezerva shteterore | D56: Government reserve | F56: 0 | H56: 0 | I56: 0 | K56: 0 | M56: ='LGU''s FS (Template)'!E357 -> 0 | O56: ='LGU''s FS (Template)'!F357 -> 0 | P56: ='LGU''s FS (Template)'!G357 -> 0 | R56: 0
A57: 43 | B57: 2317 | C57: Kafshe pune e prodhimi | D57: Working and production animals | F57: 0 | H57: 0 | I57: 0 | K57: 0 | M57: ='LGU''s FS (Template)'!E358 -> 0 | O57: ='LGU''s FS (Template)'!F358 -> 0 | P57: ='LGU''s FS (Template)'!G358 -> 0 | R57: 0
A58: 44 | B58: 2318 | C58: Inventar ekonomik | D58: Economic Inventory | F58: 0 | H58: 0 | I58: 0 | K58: 0 | M58: ='LGU''s FS (Template)'!E359 -> 0 | O58: ='LGU''s FS (Template)'!F359 -> 0 | P58: ='LGU''s FS (Template)'!G359 -> 0 | R58: 0
A59: 45 | B59: 232 | C59: Transferimet kapitale | D59: Capital transfers | F59: 0 | H59: 0 | I59: 0 | K59: 0 | M59: ='LGU''s FS (Template)'!E360 -> 0 | O59: ='LGU''s FS (Template)'!F360 -> 0 | P59: ='LGU''s FS (Template)'!G360 -> 0 | R59: =M59+O59-P59 -> 0
A60: 46 | B60: 25 | C60: Huadhenie dhe nenhuadhenie | D60: Lending | F60: 0 | H60: 0 | I60: 0 | K60: 0 | M60: =SUM(M61:M62) -> 0 | O60: =SUM(O61:O62) -> 0 | P60: =SUM(P63:P64) -> 0 | R60: =SUM(R61:R64) -> 0
A61: 47 | B61: 255 | C61: Te dala per huadhenie dhe nenhuadhenie te brendshme | D61: Outing for internal lending | F61: 0 | H61: 0 | I61: 0 | K61: 0 | M61: ='LGU''s FS (Template)'!E362 -> 0 | O61: ='LGU''s FS (Template)'!F362 -> 0 | P61: ='LGU''s FS (Template)'!G362 -> 0 | R61: =M61+O61 -> 0
A62: 48 | B62: 256 | C62: Te dala per transaksionet e huadhenies se huaj | D62: Outing for transactions of foreigner lending | F62: 0 | H62: 0 | I62: 0 | K62: 0 | M62: ='LGU''s FS (Template)'!E363 -> 0 | O62: ='LGU''s FS (Template)'!F363 -> 0 | P62: ='LGU''s FS (Template)'!G363 -> 0 | R62: =M62+O62 -> 0
A63: 49 | B63: 250 | C63: Te hyra nga principali I huadhenieve te brendshme | D63: Entry from internal lending principal | F63: 0 | H63: 0 | I63: 0 | K63: 0 | M63: ='LGU''s FS (Template)'!E364 -> 0 | O63: ='LGU''s FS (Template)'!F364 -> 0 | P63: ='LGU''s FS (Template)'!G364 -> 0 | R63: =P63 -> 0
A64: 50 | B64: 251 | C64: Te hyra nga principali I transaks. te huadhenies se huaj | D64: Entry from foreigner lendings principal transaction | F64: 0 | H64: 0 | I64: 0 | K64: 0 | M64: ='LGU''s FS (Template)'!E365 -> 0 | O64: ='LGU''s FS (Template)'!F365 -> 0 | P64: ='LGU''s FS (Template)'!G365 -> 0 | R64: =P64 -> 0
A65: 51 | B65: 26 | C65: Pjesmarrje ne kapitalin e vet | D65: Participation with own equity | F65: 0 | H65: 0 | I65: 0 | K65: 0 | M65: =SUM(M66:M69) -> 0 | O65: =SUM(O66:O69) -> 0 | P65: =SUM(P66:P69) -> 0 | R65: =SUM(R66:R69) -> 0
A66: 52 | B66: 265 | C66: Te dala per kapitale te veta ne nderm. publike jofitimprurese | D66: Outing for own equity in non profit public enterprise | F66: 0 | H66: 0 | I66: 0 | K66: 0 | M66: ='LGU''s FS (Template)'!E367 -> 0 | O66: ='LGU''s FS (Template)'!F367 -> 0 | P66: ='LGU''s FS (Template)'!G367 -> 0 | R66: =M66+O66-P66 -> 0
A67: 53 | B67: 266 | C67: Te dala per kapitale te veta ne institucionet financiare | D67: outing for own equity in financial institutions | F67: 0 | H67: 0 | I67: 0 | K67: 0 | M67: ='LGU''s FS (Template)'!E368 -> 0 | O67: ='LGU''s FS (Template)'!F368 -> 0 | P67: ='LGU''s FS (Template)'!G368 -> 0 | R67: =M67+O67-P67 -> 0
A68: 54 | B68: 267 | C68: Te dala per kapitale te veta ne joint venture | D68: Outing for own equity in joint venture | F68: 0 | H68: 0 | I68: 0 | K68: 0 | M68: ='LGU''s FS (Template)'!E369 -> 0 | O68: ='LGU''s FS (Template)'!F369 -> 0 | P68: ='LGU''s FS (Template)'!G369 -> 0 | R68: =M68+O68-P68 -> 0
A69: 55 | B69: 269 | C69: Te dala per kapitale te veta te tjera | D69: Outing for own equity other | F69: 0 | H69: 0 | I69: 0 | K69: 0 | M69: ='LGU''s FS (Template)'!E370 -> 0 | O69: ='LGU''s FS (Template)'!F370 -> 0 | P69: ='LGU''s FS (Template)'!G370 -> 0 | R69: =M69+O69-P69 -> 0
A70: 56 | C70: TOTALI (I + II) | D70: Total (I + II) | F70: 0 | H70: 0 | I70: 0 | K70: 0 | M70: =SUM(M47+M15) -> 0 | O70: =SUM(O47+O15) -> 0 | P70: =SUM(P47+P15) -> 0 | R70: =SUM(R47+R15) -> 0

Sheet F5
A1: ='General information'!A1 -> Project STAR
A2: ='General information'!A2 -> xxx
A3: =A8 -> Statement of cash flows (Form 5)
A4: =Checks!A4 -> All checks ok
A7: ='General information'!A2 -> xxx
A8: =Language!$D$92 -> Statement of cash flows (Form 5)
A9: =Language!$D$13 -> for the year ended 31 December 2014
A10: =ALL -> (Shumat ne ALL'000, nëse nuk shprehet ndryshe)
A11: =Language!$D$41 -> No | B11: EMERTIMI | C11: Description
E12: =Language!$D$40 -> Notes | G12: =M12 -> Treasury balance | J12: =P12 -> Bank liquidity | M12: =Language!$D$57 -> Treasury balance | P12: =Language!$D$58 -> Bank liquidity
G13: =M13 -> Debit | H13: =N13 -> Credit | J13: =P13 -> Debit | K13: =Q13 -> Credit | M13: =Language!$D$46 -> Debit | N13: =Language!$D$47 -> Credit | P13: =Language!$D$46 -> Debit | Q13: =Language!$D$47 -> Credit
A14: a | B14: b | G14: =M14 -> c | H14: =N14 -> d | J14: =P14 -> e | K14: =Q14 -> f | M14: c | N14: d | P14: e | Q14: f
A15: 1 | B15: I.TEPRICA NE CELJE TE USHTRIMIT | C15: I. OPENING BALANCE | E15: N5 | G15: =M15/Presentation_curr -> 0 | H15: =N15/Presentation_curr -> 0 | J15: =P15/Presentation_curr -> 0 | K15: =Q15/Presentation_curr -> 0 | M15: ='LGU''s FS (Template)'!E383 -> 0 | N15: ='LGU''s FS (Template)'!F383 -> 0 | P15: ='LGU''s FS (Template)'!G383 -> 0 | Q15: ='LGU''s FS (Template)'!H383 -> 0
A16: 2 | B16: II.ARKETIMET E VITIT"CASH" | C16: II. RECEIVABLES "CASH" | G16: 0 | H16: 0 | J16: 0 | K16: 0 | M16: =SUM(M17+M20) -> 0 | N16: =SUM(N17+N20) -> 0 | P16: =SUM(P17+P20) -> 0 | Q16: =SUM(Q17+Q20) -> 0
A17: 3 | B17: 1. Fonde nga buxheti | C17: 1. Funds from budget | G17: 0 | H17: 0 | J17: 0 | K17: 0 | M17: =SUM(M18:M19) -> 0 | N17: =SUM(N18:N19) -> 0 | P17: =SUM(P18:P19) -> 0 | Q17: =SUM(Q18:Q19) -> 0
A18: 4 | B18: - Fonde buxhetore korente(Plani me ndryshimet) | C18: actual budget funds (Budget with changes) | E18: F3-2 | G18: 0 | H18: 0 | J18: 0 | K18: 0 | M18: ='LGU''s FS (Template)'!E386 -> 0 | N18: ='LGU''s FS (Template)'!F386 -> 0 | P18: ='LGU''s FS (Template)'!G386 -> 0 | Q18: ='LGU''s FS (Template)'!H386 -> 0
A19: 5 | B19: - Fonde buxhetore kapitale(Plani me ndryshimet) | C19: capital budget funds (Budget with changes) | G19: 0 | H19: 0 | J19: 0 | K19: 0 | M19: ='LGU''s FS (Template)'!E387 -> 0 | N19: ='LGU''s FS (Template)'!F387 -> 0 | P19: ='LGU''s FS (Template)'!G387 -> 0 | Q19: ='LGU''s FS (Template)'!H387 -> 0
A20: 6 | B20: 2. Te ardhura e te hyra gjate vitit ne "Cash" | C20: 2. Incomes and revenues during the year in "Cash" | G20: 0 | H20: 0 | J20: 0 | K20: 0 | M20: =SUM(M21:M27) -> 0 | N20: =SUM(N21:N27) -> 0 | P20: =SUM(P21:P27) -> 0 | Q20: =SUM(Q21:Q27) -> 0
A21: 7 | B21: - Te ardhura tatimore ne "Cash" | C21: Tax revenues in "Cash" | E21: N8 | G21: 0 | H21: 0 | J21: 0 | K21: 0 | M21: ='LGU''s FS (Template)'!E389 -> 0 | N21: ='LGU''s FS (Template)'!F389 -> 0 | P21: ='LGU''s FS (Template)'!G389 -> 0 | Q21: ='LGU''s FS (Template)'!H389 -> 0
A22: 8 | B22: - Kontribute te sigurimeve shoq. e shendets. ne "Cash" | C22: Social and health insurance in "Cash" | G22: 0 | H22: 0 | J22: 0 | K22: 0 | M22: ='LGU''s FS (Template)'!E390 -> 0 | N22: ='LGU''s FS (Template)'!F390 -> 0 | P22: ='LGU''s FS (Template)'!G390 -> 0 | Q22: ='LGU''s FS (Template)'!H390 -> 0
A23: 9 | B23: - Te ardhura jo tatimore ne "Cash" | C23: Non tax revenues "Cash" | G23: 0 | H23: 0 | J23: 0 | K23: 0 | M23: ='LGU''s FS (Template)'!E391 -> 0 | N23: ='LGU''s FS (Template)'!F391 -> 0 | P23: ='LGU''s FS (Template)'!G391 -> 0 | Q23: ='LGU''s FS (Template)'!H391 -> 0
A24: 10 | B24: - Te ardhura nga interesat "Cash" | C24: Interact incomes "Cash" | G24: 0 | H24: 0 | J24: 0 | K24: 0 | M24: ='LGU''s FS (Template)'!E392 -> 0 | N24: ='LGU''s FS (Template)'!F392 -> 0 | P24: ='LGU''s FS (Template)'!G392 -> 0 | Q24: ='LGU''s FS (Template)'!H392 -> 0
A25: 11 | B25: - Sponsorizime, grante e te ardhura te tjera "Cash" | C25: Sponsorships, grants and other revenues "cash" | G25: 0 | H25: 0 | J25: 0 | K25: 0 | M25: ='LGU''s FS (Template)'!E393 -> 0 | N25: ='LGU''s FS (Template)'!F393 -> 0 | P25: ='LGU''s FS (Template)'!G393 -> 0 | Q25: ='LGU''s FS (Template)'!H393 -> 0
A26: 12 | B26: - Kredi dhe huamarrje te ndryshme | C26: loans and different lending | G26: 0 | H26: 0 | J26: 0 | K26: 0 | M26: ='LGU''s FS (Template)'!E394 -> 0 | N26: ='LGU''s FS (Template)'!F394 -> 0 | P26: ='LGU''s FS (Template)'!G394 -> 0 | Q26: ='LGU''s FS (Template)'!H394 -> 0
A27: 13 | B27: - Te hyra nga mjetet ne ruajtje "Cash" | C27: entry from storage "Cash" | G27: 0 | H27: 0 | J27: 0 | K27: 0 | M27: ='LGU''s FS (Template)'!E395 -> 0 | N27: ='LGU''s FS (Template)'!F395 -> 0 | P27: ='LGU''s FS (Template)'!G395 -> 0 | Q27: ='LGU''s FS (Template)'!H395 -> 0
A28: 14 | B28: III.PAGESAT E VITIT "CASH" | C28: III. PAYMENTS OF THE YEAR "CASH" | E28: N7 | G28: 0 | H28: 0 | J28: 0 | K28: 0 | M28: =SUM(M29:M34) -> 0 | N28: =SUM(N29:N34) -> 0 | P28: =SUM(P29:P34) -> 0 | Q28: =SUM(Q29:Q34) -> 0
A29: 15 | B29: 1, Pagesa nga buxheti per shpenzime korente | C29: 1, payment from the budget for actual expenses | G29: 0 | H29: 0 | J29: 0 | K29: 0 | M29: ='LGU''s FS (Template)'!E397 -> 0 | N29: ='LGU''s FS (Template)'!F397 -> 0 | P29: ='LGU''s FS (Template)'!G397 -> 0 | Q29: ='LGU''s FS (Template)'!H397 -> 0
A30: 16 | B30: 2, Pagesa nga buxheti per shenzime kapitale | C30: 2, payments from the budget for capital expenses | G30: 0 | H30: 0 | J30: 0 | K30: 0 | M30: ='LGU''s FS (Template)'!E398 -> 0 | N30: ='LGU''s FS (Template)'!F398 -> 0 | P30: ='LGU''s FS (Template)'!G398 -> 0 | Q30: ='LGU''s FS (Template)'!H398 -> 0
A31: 17 | B31: 3, Pagesa nga te ardhurat per shpenzime korente | C31: 3, payments from revenues for actual expenses | G31: 0 | H31: 0 | J31: 0 | K31: 0 | M31: ='LGU''s FS (Template)'!E399 -> 0 | N31: ='LGU''s FS (Template)'!F399 -> 0 | P31: ='LGU''s FS (Template)'!G399 -> 0 | Q31: ='LGU''s FS (Template)'!H399 -> 0
A32: 18 | B32: 4, Pagesa nga te ardhurat per shpenzime kapitale | C32: 4, payments from revenues from capital expenses | G32: 0 | H32: 0 | J32: 0 | K32: 0 | M32: ='LGU''s FS (Template)'!E400 -> 0 | N32: ='LGU''s FS (Template)'!F400 -> 0 | P32: ='LGU''s FS (Template)'!G400 -> 0 | Q32: ='LGU''s FS (Template)'!H400 -> 0
A33: 19 | B33: 5, Pagesa nga mjetet ne ruajtje | C33: 5, payments from storage | G33: 0 | H33: 0 | J33: 0 | K33: 0 | M33: ='LGU''s FS (Template)'!E401 -> 0 | N33: ='LGU''s FS (Template)'!F401 -> 0 | P33: ='LGU''s FS (Template)'!G401 -> 0 | Q33: ='LGU''s FS (Template)'!H401 -> 0
A34: 20 | B34: 6, Pagesa te tjera | C34: 6, Other payments | G34: 0 | H34: 0 | J34: 0 | K34: 0 | M34: ='LGU''s FS (Template)'!E402 -> 0 | N34: ='LGU''s FS (Template)'!F402 -> 0 | P34: ='LGU''s FS (Template)'!G402 -> 0 | Q34: ='LGU''s FS (Template)'!H402 -> 0
A35: 21 | B35: IV. TRANSFERTA | C35: IV. TRANSFERS | G35: 0 | H35: 0 | J35: 0 | K35: 0 | M35: =SUM(M36:M38) -> 0 | N35: =SUM(N36:N38) -> 0 | P35: =SUM(P36:P38) -> 0 | Q35: =SUM(Q36:Q38) -> 0
A36: 22 | B36: 1, Derdhe te ardhurave buxhet | C36: 1, Deposit of revenues in the budget | E36: F3-1 | G36: 0 | H36: 0 | J36: 0 | K36: 0 | M36: ='LGU''s FS (Template)'!E404 -> 0 | N36: ='LGU''s FS (Template)'!F404 -> 0 | P36: ='LGU''s FS (Template)'!G404 -> 0 | Q36: ='LGU''s FS (Template)'!H404 -> 0
A37: 23 | B37: 2, Autorizime buxhetore te pa perdorura(krente dhe kapitale) | C37: 2, unused budget (actual and capital) | E37: F3-1 | G37: 0 | H37: 0 | J37: 0 | K37: 0 | M37: ='LGU''s FS (Template)'!E405 -> 0 | N37: ='LGU''s FS (Template)'!F405 -> 0 | P37: ='LGU''s FS (Template)'!G405 -> 0 | Q37: ='LGU''s FS (Template)'!H405 -> 0
A38: 24 | B38: 3, Levizje te brendshme e transferta te tjera | C38: 3, internal movements and transfers | G38: 0 | H38: 0 | J38: 0 | K38: 0 | M38: ='LGU''s FS (Template)'!E406 -> 0 | N38: ='LGU''s FS (Template)'!F406 -> 0 | P38: ='LGU''s FS (Template)'!G406 -> 0 | Q38: ='LGU''s FS (Template)'!H406 -> 0
A39: 25 | B39: V. SHUMA E LEVIZJEVE ( I deri IV ) | C39: V. MOVEMENTS TOTAL (I UP TO IV) | G39: 0 | H39: 0 | J39: 0 | K39: 0 | M39: =SUM(M15+M16+M28+M35) -> 0 | N39: =SUM(N15+N16+N28+N35) -> 0 | P39: =SUM(P15+P16+P28+P35) -> 0 | Q39: =SUM(Q15+Q16+Q28+Q35) -> 0
A40: 26 | B40: VI. TEPRICA NE MBYLLJE TE USHTRIMIT | C40: VI. CLOSING BALANCE | E40: F1, N5 | G40: 0 | H40: 0 | J40: 0 | K40: 0 | M40: =M39-N39 -> 0 | P40: =Q39-P39 -> 0

Sheet F6
A1: ='General information'!A1 -> Project STAR
A2: ='General information'!A2 -> xxx
A3: =A8 -> Statement of Fixed Assets' Balance and Changes during the year (Form 6)
A4: =Checks!A4 -> All checks ok
A7: ='General information'!A2 -> xxx
A8: =Language!$D$93 -> Statement of Fixed Assets' Balance and Changes during the year (Form 6)
A9: =Language!$D$13 -> for the year ended 31 December 2014
A10: =ALL -> (Shumat ne ALL'000, nëse nuk shprehet ndryshe)
F12: =U12 -> Opening balance | H12: =W12 -> Addtions during the year | N12: =AC12 -> Decrease during the year | S12: =AH12 -> Closing balance | U12: =Language!$D$59 -> Opening balance | W12: =Language!$D$60 -> Addtions during the year | AC12: =Language!$D$62 -> Decrease during the year | AH12: =Language!$D$63 -> Closing balance
I13: =X13 -> Transfers | X13: =Language!$D$61 -> Transfers
A14: =Language!$D$41 -> No | D14: Description | H14: =W14 -> Purchases | I14: =X14 -> Out | J14: =Y14 -> In | K14: =Z14 -> Movements | L14: =AA14 -> Total | N14: =AC14 -> Sales | O14: =AD14 -> Write off | P14: =AE14 -> Other decr. | Q14: =AF14 -> Total | W14: =Language!$D$64 -> Purchases | X14: =Language!$D$65 -> Out | Y14: =Language!$D$66 -> In | Z14: =Language!$D$67 -> Movements | AA14: =Language!$D$68 -> Total | AC14: =Language!$D$69 -> Sales | AD14: =Language!$D$70 -> Write off | AE14: =Language!$D$71 -> Other decr. | AF14: =Language!$D$68 -> Total
A15: a | B15: b | C15: c | F15: =U15 -> 1 | H15: =W15 -> 2 | I15: =X15 -> 3 | J15: =Y15 -> 4 | K15: =Z15 -> 5 | L15: =AA15 -> 6 | N15: 7 | O15: 8 | P15: 9 | Q15: 10 | R15: =AG15 -> 0 | S15: =AH15 -> 11 | U15: 1 | W15: 2 | X15: 3 | Y15: 4 | Z15: 5 | AA15: 6 | AC15: 7 | AD15: 8 | AE15: 9 | AF15: 10 | AH15: 11
A16: 1 | C16: I. TE PA TRUPEZUARA | D16: I. INTAGIBLE | F16: =U16/Presentation_curr -> 0 | H16: =W16/Presentation_curr -> 0 | I16: =X16/Presentation_curr -> 0 | J16: =Y16/Presentation_curr -> 0 | K16: =Z16/Presentation_curr -> 0 | L16: =AA16/Presentation_curr -> 0 | N16: =AC16/Presentation_curr -> 0 | O16: =AD16/Presentation_curr -> 0 | P16: =AE16/Presentation_curr -> 0 | Q16: =AF16/Presentation_curr -> 0 | S16: =AH16/Presentation_curr -> 0 | U16: =SUM(U17:U20) -> 0 | W16: =SUM(W17:W20) -> 0 | X16: 0 | Y16: 0 | Z16: 0 | AA16: 0 | AC16: 0 | AD16: 0 | AE16: 0 | AF16: 0 | AH16: 0
A17: 2 | B17: 201 | C17: Prime te emisionit dhe rimbursimit te huave | D17: Amounts to be remitted and loan reimbursements | F17: 0 | H17: 0 | I17: 0 | J17: 0 | K17: 0 | L17: 0 | N17: 0 | O17: 0 | P17: 0 | Q17: 0 | S17: 0 | U17: ='LGU''s FS (Template)'!E423 -> 0 | W17: ='LGU''s FS (Template)'!F423 -> 0 | X17: ='LGU''s FS (Template)'!G423 -> 0 | Y17: ='LGU''s FS (Template)'!H423 -> 0 | Z17: ='LGU''s FS (Template)'!I423 -> 0 | AA17: ='LGU''s FS (Template)'!J423 -> 0 | AC17: ='LGU''s FS (Template)'!K423 -> 0 | AD17: ='LGU''s FS (Template)'!L423 -> 0 | AE17: ='LGU''s FS (Template)'!M423 -> 0 | AF17: ='LGU''s FS (Template)'!N423 -> 0 | AH17: =U17+AA17-AF17 -> 0
A18: 3 | B18: 202 | C18: Studime dhe kerkime | D18: Studies and research | F18: 0 | H18: 0 | I18: 0 | J18: 0 | K18: 0 | L18: 0 | N18: 0 | O18: 0 | P18: 0 | Q18: 0 | S18: 0 | U18: ='LGU''s FS (Template)'!E424 -> 0 | W18: ='LGU''s FS (Template)'!F424 -> 0 | X18: ='LGU''s FS (Template)'!G424 -> 0 | Y18: ='LGU''s FS (Template)'!H424 -> 0 | Z18: ='LGU''s FS (Template)'!I424 -> 0 | AA18: ='LGU''s FS (Template)'!J424 -> 0 | AC18: ='LGU''s FS (Template)'!K424 -> 0 | AD18: ='LGU''s FS (Template)'!L424 -> 0 | AE18: ='LGU''s FS (Template)'!M424 -> 0 | AF18: ='LGU''s FS (Template)'!N424 -> 0 | AH18: =U18+AA18-AF18 -> 0
A19: 4 | B19: 203 | C19: Koncesione, patenta,licenca e tjera ngjashme | D19: Concessions, license, other similar licenses | F19: 0 | H19: 0 | I19: 0 | J19: 0 | K19: 0 | L19: 0 | N19: 0 | O19: 0 | P19: 0 | Q19: 0 | S19: 0 | U19: ='LGU''s FS (Template)'!E425 -> 0 | W19: ='LGU''s FS (Template)'!F425 -> 0 | X19: ='LGU''s FS (Template)'!G425 -> 0 | Y19: ='LGU''s FS (Template)'!H425 -> 0 | Z19: ='LGU''s FS (Template)'!I425 -> 0 | AA19: ='LGU''s FS (Template)'!J425 -> 0 | AC19: ='LGU''s FS (Template)'!K425 -> 0 | AD19: ='LGU''s FS (Template)'!L425 -> 0 | AE19: ='LGU''s FS (Template)'!M425 -> 0 | AF19: ='LGU''s FS (Template)'!N425 -> 0 | AH19: =U19+AA19-AF19 -> 0
A20: 4/1 | B20: 230 | C20: Shpenz.per rritjen e aktiv.qendr.patrupezuara | D20: Expenses for increase of current intangible assets | F20: 0 | H20: 0 | I20: 0 | J20: 0 | K20: 0 | L20: 0 | N20: 0 | O20: 0 | P20: 0 | Q20: 0 | S20: 0 | U20: ='LGU''s FS (Template)'!E426 -> 0 | W20: ='LGU''s FS (Template)'!F426 -> 0 | X20: ='LGU''s FS (Template)'!G426 -> 0 | Y20: ='LGU''s FS (Template)'!H426 -> 0 | Z20: ='LGU''s FS (Template)'!I426 -> 0 | AA20: ='LGU''s FS (Template)'!J426 -> 0 | AC20: ='LGU''s FS (Template)'!K426 -> 0 | AD20: ='LGU''s FS (Template)'!L426 -> 0 | AE20: ='LGU''s FS (Template)'!M426 -> 0 | AF20: ='LGU''s FS (Template)'!N426 -> 0 | AH20: =U20+AA20-AF20 -> 0
A21: 5 | C21: II. TE TRUPEZUARA | D21: II. TANGIBLE | F21: 0 | H21: 0 | I21: 0 | J21: 0 | K21: 0 | L21: 0 | N21: 0 | O21: 0 | P21: 0 | Q21: 0 | S21: 0 | U21: =SUM(U22:U32) -> 0 | W21: =SUM(W22:W32) -> 0 | X21: 0 | Y21: 0 | Z21: 0 | AA21: 0 | AC21: 0 | AD21: 0 | AE21: 0 | AF21: 0 | AH21: 0
A22: 6 | B22: 210 | C22: Toka,troje,Terene | D22: Land | F22: 0 | H22: 0 | I22: 0 | J22: 0 | K22: 0 | L22: 0 | N22: 0 | O22: 0 | P22: 0 | Q22: 0 | S22: 0 | U22: ='LGU''s FS (Template)'!E428 -> 0 | W22: ='LGU''s FS (Template)'!F428 -> 0 | X22: ='LGU''s FS (Template)'!G428 -> 0 | Y22: ='LGU''s FS (Template)'!H428 -> 0 | Z22: ='LGU''s FS (Template)'!I428 -> 0 | AA22: ='LGU''s FS (Template)'!J428 -> 0 | AC22: ='LGU''s FS (Template)'!K428 -> 0 | AD22: ='LGU''s FS (Template)'!L428 -> 0 | AE22: ='LGU''s FS (Template)'!M428 -> 0 | AF22: ='LGU''s FS (Template)'!N428 -> 0 | AH22: =U22+AA22-AF22 -> 0
A23: 7 | B23: 211 | C23: Pyje,Kullota Plantacione | D23: Forests, Pasture, Plantation | F23: 0 | H23: 0 | I23: 0 | J23: 0 | K23: 0 | L23: 0 | N23: 0 | O23: 0 | P23: 0 | Q23: 0 | S23: 0 | U23: ='LGU''s FS (Template)'!E429 -> 0 | W23: ='LGU''s FS (Template)'!F429 -> 0 | X23: ='LGU''s FS (Template)'!G429 -> 0 | Y23: ='LGU''s FS (Template)'!H429 -> 0 | Z23: ='LGU''s FS (Template)'!I429 -> 0 | AA23: ='LGU''s FS (Template)'!J429 -> 0 | AC23: ='LGU''s FS (Template)'!K429 -> 0 | AD23: ='LGU''s FS (Template)'!L429 -> 0 | AE23: ='LGU''s FS (Template)'!M429 -> 0 | AF23: ='LGU''s FS (Template)'!N429 -> 0 | AH23: 0
A24: 8 | B24: 212 | C24: Ndertime e Konstruksione | D24: Building and Constructions | F24: 0 | H24: 0 | I24: 0 | J24: 0 | K24: 0 | L24: 0 | N24: 0 | O24: 0 | P24: 0 | Q24: 0 | S24: 0 | U24: ='LGU''s FS (Template)'!E430 -> 0 | W24: ='LGU''s FS (Template)'!F430 -> 0 | X24: ='LGU''s FS (Template)'!G430 -> 0 | Y24: ='LGU''s FS (Template)'!H430 -> 0 | Z24: ='LGU''s FS (Template)'!I430 -> 0 | AA24: ='LGU''s FS (Template)'!J430 -> 0 | AC24: ='LGU''s FS (Template)'!K430 -> 0 | AD24: ='LGU''s FS (Template)'!L430 -> 0 | AE24: ='LGU''s FS (Template)'!M430 -> 0 | AF24: ='LGU''s FS (Template)'!N430 -> 0 | AH24: 0
A25: 9 | B25: 213 | C25: Rruge,rrjete,vepra ujore | D25: Roads, networks, water facilities | F25: 0 | H25: 0 | I25: 0 | J25: 0 | K25: 0 | L25: 0 | N25: 0 | O25: 0 | P25: 0 | Q25: 0 | S25: 0 | U25: ='LGU''s FS (Template)'!E431 -> 0 | W25: ='LGU''s FS (Template)'!F431 -> 0 | X25: ='LGU''s FS (Template)'!G431 -> 0 | Y25: ='LGU''s FS (Template)'!H431 -> 0 | Z25: ='LGU''s FS (Template)'!I431 -> 0 | AA25: ='LGU''s FS (Template)'!J431 -> 0 | AC25: ='LGU''s FS (Template)'!K431 -> 0 | AD25: ='LGU''s FS (Template)'!L431 -> 0 | AE25: ='LGU''s FS (Template)'!M431 -> 0 | AF25: ='LGU''s FS (Template)'!N431 -> 0 | AH25: 0
A26: 10 | B26: 214 | C26: Instalime teknike,makineri,paisje,vegla pune | D26: Technical installment, machinery, equipment, working tools | F26: 0 | H26: 0 | I26: 0 | J26: 0 | K26: 0 | L26: 0 | N26: 0 | O26: 0 | P26: 0 | Q26: 0 | S26: 0 | U26: ='LGU''s FS (Template)'!E432 -> 0 | W26: ='LGU''s FS (Template)'!F432 -> 0 | X26: ='LGU''s FS (Template)'!G432 -> 0 | Y26: ='LGU''s FS (Template)'!H432 -> 0 | Z26: ='LGU''s FS (Template)'!I432 -> 0 | AA26: ='LGU''s FS (Template)'!J432 -> 0 | AC26: ='LGU''s FS (Template)'!K432 -> 0 | AD26: ='LGU''s FS (Template)'!L432 -> 0 | AE26: ='LGU''s FS (Template)'!M432 -> 0 | AF26: ='LGU''s FS (Template)'!N432 -> 0 | AH26: 0
A27: 11 | B27: 215 | C27: Mjete transporti | D27: Transport vehicles | F27: 0 | H27: 0 | I27: 0 | J27: 0 | K27: 0 | L27: 0 | N27: 0 | O27: 0 | P27: 0 | Q27: 0 | S27: 0 | U27: ='LGU''s FS (Template)'!E433 -> 0 | W27: ='LGU''s FS (Template)'!F433 -> 0 | X27: ='LGU''s FS (Template)'!G433 -> 0 | Y27: ='LGU''s FS (Template)'!H433 -> 0 | Z27: ='LGU''s FS (Template)'!I433 -> 0 | AA27: ='LGU''s FS (Template)'!J433 -> 0 | AC27: ='LGU''s FS (Template)'!K433 -> 0 | AD27: ='LGU''s FS (Template)'!L433 -> 0 | AE27: ='LGU''s FS (Template)'!M433 -> 0 | AF27: ='LGU''s FS (Template)'!N433 -> 0 | AH27: 0
A28: 12 | B28: 216 | C28: Rezerva shtetrore | D28: Government reserve | F28: 0 | H28: 0 | I28: 0 | J28: 0 | K28: 0 | L28: 0 | N28: 0 | O28: 0 | P28: 0 | Q28: 0 | S28: 0 | U28: ='LGU''s FS (Template)'!E434 -> 0 | W28: ='LGU''s FS (Template)'!F434 -> 0 | X28: ='LGU''s FS (Template)'!G434 -> 0 | Y28: ='LGU''s FS (Template)'!H434 -> 0 | Z28: ='LGU''s FS (Template)'!I434 -> 0 | AA28: ='LGU''s FS (Template)'!J434 -> 0 | AC28: ='LGU''s FS (Template)'!K434 -> 0 | AD28: ='LGU''s FS (Template)'!L434 -> 0 | AE28: ='LGU''s FS (Template)'!M434 -> 0 | AF28: ='LGU''s FS (Template)'!N434 -> 0 | AH28: 0
A29: 13 | B29: 217 | C29: Kafshe pune e prodhimi | D29: Working and production animals | F29: 0 | H29: 0 | I29: 0 | J29: 0 | K29: 0 | L29: 0 | N29: 0 | O29: 0 | P29: 0 | Q29: 0 | S29: 0 | U29: ='LGU''s FS (Template)'!E435 -> 0 | W29: ='LGU''s FS (Template)'!F435 -> 0 | X29: ='LGU''s FS (Template)'!G435 -> 0 | Y29: ='LGU''s FS (Template)'!H435 -> 0 | Z29: ='LGU''s FS (Template)'!I435 -> 0 | AA29: ='LGU''s FS (Template)'!J435 -> 0 | AC29: ='LGU''s FS (Template)'!K435 -> 0 | AD29: ='LGU''s FS (Template)'!L435 -> 0 | AE29: ='LGU''s FS (Template)'!M435 -> 0 | AF29: ='LGU''s FS (Template)'!N435 -> 0 | AH29: 0
A30: 14 | B30: 218 | C30: Inventar ekonomik | D30: Economic Inventory | F30: 0 | H30: 0 | I30: 0 | J30: 0 | K30: 0 | L30: 0 | N30: 0 | O30: 0 | P30: 0 | Q30: 0 | S30: 0 | U30: ='LGU''s FS (Template)'!E436 -> 0 | W30: ='LGU''s FS (Template)'!F436 -> 0 | X30: ='LGU''s FS (Template)'!G436 -> 0 | Y30: ='LGU''s FS (Template)'!H436 -> 0 | Z30: ='LGU''s FS (Template)'!I436 -> 0 | AA30: ='LGU''s FS (Template)'!J436 -> 0 | AC30: ='LGU''s FS (Template)'!K436 -> 0 | AD30: ='LGU''s FS (Template)'!L436 -> 0 | AE30: ='LGU''s FS (Template)'!M436 -> 0 | AF30: ='LGU''s FS (Template)'!N436 -> 0 | AH30: 0
A31: 17 | B31: 24 | C31: Aktive te Qend.te trupezuara te demtuara | D31: Damaged current tangible assets | F31: 0 | H31: 0 | I31: 0 | J31: 0 | K31: 0 | L31: 0 | N31: 0 | O31: 0 | P31: 0 | Q31: 0 | S31: 0 | U31: ='LGU''s FS (Template)'!E437 -> 0 | W31: ='LGU''s FS (Template)'!F437 -> 0 | X31: ='LGU''s FS (Template)'!G437 -> 0 | Y31: ='LGU''s FS (Template)'!H437 -> 0 | Z31: ='LGU''s FS (Template)'!I437 -> 0 | AA31: ='LGU''s FS (Template)'!J437 -> 0 | AC31: ='LGU''s FS (Template)'!K437 -> 0 | AD31: ='LGU''s FS (Template)'!L437 -> 0 | AE31: ='LGU''s FS (Template)'!M437 -> 0 | AF31: ='LGU''s FS (Template)'!N437 -> 0 | AH31: 0
A32: 18 | B32: 28 | C32: Caktime | D32: Assignments | F32: 0 | H32: 0 | I32: 0 | J32: 0 | K32: 0 | L32: 0 | N32: 0 | O32: 0 | P32: 0 | Q32: 0 | S32: 0 | U32: ='LGU''s FS (Template)'!E438 -> 0 | W32: ='LGU''s FS (Template)'!F438 -> 0 | X32: ='LGU''s FS (Template)'!G438 -> 0 | Y32: ='LGU''s FS (Template)'!H438 -> 0 | Z32: ='LGU''s FS (Template)'!I438 -> 0 | AA32: ='LGU''s FS (Template)'!J438 -> 0 | AC32: ='LGU''s FS (Template)'!K438 -> 0 | AD32: ='LGU''s FS (Template)'!L438 -> 0 | AE32: ='LGU''s FS (Template)'!M438 -> 0 | AF32: ='LGU''s FS (Template)'!N438 -> 0 | AH32: 0
A33: 19 | C33: T O T A L I ( I + II ) | D33: T O T A L ( I + II ) | F33: 0 | H33: 0 | I33: 0 | J33: 0 | K33: 0 | L33: 0 | N33: 0 | O33: 0 | P33: 0 | Q33: 0 | S33: 0 | U33: =SUM(U16+U21) -> 0 | W33: =SUM(W16+W21) -> 0 | X33: 0 | Y33: 0 | Z33: 0 | AA33: 0 | AC33: 0 | AD33: 0 | AE33: 0 | AF33: 0 | AH33: 0

Sheet F7
A1: ='General information'!A1 -> Project STAR
A2: ='General information'!A2 -> xxx
A3: =A8 -> Statement of Fixed Assets' depreciation (Form 7)
A4: =Checks!A4 -> All checks ok
A7: ='General information'!A2 -> xxx
A8: =Language!$D$94 -> Statement of Fixed Assets' depreciation (Form 7)
A9: =Language!$D$13 -> for the year ended 31 December 2014
A10: =ALL -> (Shumat ne ALL'000, nëse nuk shprehet ndryshe)
A12: =Language!$D$41 -> No | B12: =Language!$D$49 -> Acc. No. | C12: EMERTIMI | D12: Description | F12: =S12 -> Opening accumulated depreciation 1 January 2014 | Q12: =AD12 -> Closing accumulated depreciation 31 December 2014 | S12: =Language!$D$14 -> Opening accumulated depreciation 1 January 2014 | AD12: =Language!$D$15 -> Closing accumulated depreciation 31 December 2014
H13: =U13 -> Addtions during the year | L13: =Y13 -> Decrease during the year | U13: =Language!$D$60 -> Addtions during the year | Y13: =Language!$D$62 -> Decrease during the year
H14: =U14 -> Depreciation charge for the year | I14: =V14 -> Other additions | J14: =W14 -> Total | L14: =Y14 -> Sales | M14: =Z14 -> Write off | N14: =AA14 -> Other decr. | O14: =AB14 -> Total | U14: =Language!$D$72 -> Depreciation charge for the year | V14: =Language!$D$73 -> Other additions | W14: =Language!$D$68 -> Total | Y14: =Language!$D$69 -> Sales | Z14: =Language!$D$70 -> Write off | AA14: =Language!$D$71 -> Other decr. | AB14: =Language!$D$68 -> Total
A15: a | B15: b | C15: c | F15: =S15 -> 1 | G15: 0 | H15: 2 | I15: 3 | J15: 4 | K15: 0 | L15: 5 | M15: 6 | N15: 7 | O15: 8 | P15: 0 | Q15: 9 | S15: 1 | U15: 2 | V15: 3 | W15: 4 | Y15: 5 | Z15: 6 | AA15: 7 | AB15: 8 | AD15: 9
A16: 1 | B16: 209 | C16: I. PATRUPEZUARA | D16: I. INTAGIBLE | F16: =S16/Presentation_curr -> 0 | H16: 0 | I16: 0 | J16: 0 | L16: 0 | M16: 0 | N16: 0 | O16: 0 | Q16: 0 | S16: ='LGU''s FS (Template)'!E448 -> 0 | U16: ='LGU''s FS (Template)'!F448 -> 0 | V16: ='LGU''s FS (Template)'!G448 -> 0 | W16: =SUM(U16:V16) -> 0 | Y16: ='LGU''s FS (Template)'!K448 -> 0 | Z16: ='LGU''s FS (Template)'!L448 -> 0 | AA16: ='LGU''s FS (Template)'!M448 -> 0 | AB16: =SUM(Y16:AA16) -> 0 | AD16: =S16+W16-AB16 -> 0
A17: 2 | B17: 219 | C17: II. TRUPEZUARA | D17: II. TANGIBLE | F17: 0 | H17: 0 | I17: 0 | J17: 0 | L17: 0 | M17: 0 | N17: 0 | O17: 0 | Q17: 0 | S17: ='LGU''s FS (Template)'!E449 -> 0 | U17: ='LGU''s FS (Template)'!F449 -> 0 | V17: ='LGU''s FS (Template)'!G449 -> 0 | W17: =SUM(U17:V17) -> 0 | Y17: ='LGU''s FS (Template)'!K449 -> 0 | Z17: ='LGU''s FS (Template)'!L449 -> 0 | AA17: ='LGU''s FS (Template)'!M449 -> 0 | AB17: =SUM(Y17:AA17) -> 0 | AD17: =S17+W17-AB17 -> 0
C18: T O T A L I ( I + II ) | D18: TOTAL (I + II) | F18: 0 | H18: 0 | I18: 0 | J18: 0 | L18: 0 | M18: 0 | N18: 0 | O18: 0 | Q18: 0 | S18: =SUM(S16:S17) -> 0 | U18: 0 | V18: 0 | W18: 0 | Y18: 0 | Z18: 0 | AA18: 0 | AB18: 0 | AD18: 0

Sheet F8
A1: ='General information'!A1 -> Project STAR
A2: ='General information'!A2 -> xxx
A3: =A8 -> Statement of changes in fund (Form 8)
A4: =Checks!A4 -> All checks ok
A7: ='General information'!A2 -> xxx
A8: =Language!$D$95 -> Statement of changes in fund (Form 8)
A9: =Language!$D$13 -> for the year ended 31 December 2014
A10: =ALL -> (Shumat ne ALL'000, nëse nuk shprehet ndryshe)
F11: =T11 -> Restated | T11: =Language!$D$55 -> Restated
A12: =Language!$D$41 -> No | B12: =Language!$D$49 -> Acc. No. | C12: EMERTIMI | D12: Description | F12: =T12 -> Opening balance1 January 2014 | K12: =Y12 -> Closing balance 31 December 2014 | M12: =AA12 -> Opening balance1 January 2014 | R12: =AF12 -> Closing balance 31 December 2014 | T12: =AA12 -> Opening balance1 January 2014 | Y12: =AF12 -> Closing balance 31 December 2014 | AA12: =Language!$D$16 -> Opening balance1 January 2014 | AF12: =Language!$D$17 -> Closing balance 31 December 2014
H13: =V13 -> Period movements | O13: =AC13 -> Period movements | V13: =AC13 -> Period movements | AC13: =Language!D52 -> Period movements
F14: =T14 -> Credit | H14: =V14 -> Debit | I14: =W14 -> Credit | J14: 0 | K14: Credit | M14: =AA14 -> Credit | O14: =AC14 -> Debit | P14: Credit | Q14: 0 | R14: Credit | T14: =AA14 -> Credit | V14: =AC14 -> Debit | W14: =AD14 -> Credit | Y14: =AF14 -> Credit | AA14: =Language!$D$47 -> Credit | AC14: =Language!$D$46 -> Debit | AD14: =Language!$D$47 -> Credit | AF14: =Language!$D$47 -> Credit
A15: a | B15: b | C15: c | F15: =T15 -> 1 | H15: =V15 -> 2 | I15: 3 | J15: 0 | K15: 4=1+3-2 | M15: =AA15 -> 1 | O15: 2 | P15: 3 | Q15: 0 | R15: 4=1+3-2 | T15: =AA15 -> 1 | V15: =AC15 -> 2 | W15: =AD15 -> 3 | Y15: =AF15 -> 4=1+3-2 | AA15: 1 | AC15: 2 | AD15: 3 | AF15: 4=1+3-2
A16: 1 | B16: 101 | C16: FONDE BAZE | D16: BASE FUND | F16: =T16/Presentation_curr -> 0 | H16: =V16/Presentation_curr -> 0 | I16: =W16/Presentation_curr -> 0 | J16: =X16/Presentation_curr -> 0 | K16: =Y16/Presentation_curr -> 0 | M16: =AA16/Presentation_curr -> 0 | O16: =AC16/Presentation_curr -> 0 | P16: =AD16/Presentation_curr -> 0 | Q16: =AE16/Presentation_curr -> 0 | R16: =AF16/Presentation_curr -> 0 | T16: =SUM(T17:T23) -> 0 | V16: =SUM(V17:V23) -> 0 | W16: =SUM(W17:W23) -> 0 | Y16: =SUM(Y17:Y23) -> 0 | AA16: =SUM(AA17:AA23) -> 0 | AC16: =SUM(AC17:AC23) -> 0 | AD16: =SUM(AD17:AD23) -> 0 | AF16: =SUM(AF17:AF23) -> 0
A17: 2 | B17: 1010 | C17: Fondi baze gjendje | D17: Status of base fund | F17: 0 | H17: 0 | I17: 0 | J17: 0 | K17: 0 | M17: 0 | O17: 0 | P17: 0 | Q17: 0 | R17: 0 | T17: 0 | Y17: =T17+W17-V17 -> 0 | AA17: ='LGU''s FS (Template)'!E465 -> 0 | AC17: ='LGU''s FS (Template)'!F465 -> 0 | AD17: ='LGU''s FS (Template)'!G465 -> 0 | AF17: =AA17+AD17-AC17 -> 0
A18: 3 | B18: 1011 | C18: Shtesa fondi baze | D18: Additions base fund | F18: 0 | H18: 0 | I18: 0 | J18: 0 | K18: 0 | M18: 0 | O18: 0 | P18: 0 | Q18: 0 | R18: 0 | T18: 0 | Y18: 0 | AA18: ='LGU''s FS (Template)'!E466 -> 0 | AC18: ='LGU''s FS (Template)'!F466 -> 0 | AD18: ='LGU''s FS (Template)'!G466 -> 0 | AF18: 0
A19: 4 | B19: 1012 | C19: Pakesime te fondit baze | D19: Decrease base fund | F19: 0 | H19: 0 | I19: 0 | J19: 0 | K19: 0 | M19: 0 | O19: 0 | P19: 0 | Q19: 0 | R19: 0 | T19: 0 | Y19: 0 | AA19: ='LGU''s FS (Template)'!E467 -> 0 | AC19: ='LGU''s FS (Template)'!F467 -> 0 | AD19: ='LGU''s FS (Template)'!G467 -> 0 | AF19: 0
A20: 5 | B20: 1013 | C20: Pekesim nga konsumi i aktiveve qendrushshme | D20: Decrease from tangible assets consume | F20: 0 | H20: 0 | I20: 0 | J20: 0 | K20: 0 | M20: 0 | O20: 0 | P20: 0 | Q20: 0 | R20: 0 | T20: 0 | Y20: 0 | AA20: ='LGU''s FS (Template)'!E468 -> 0 | AC20: ='LGU''s FS (Template)'!F468 -> 0 | AD20: ='LGU''s FS (Template)'!G468 -> 0 | AF20: 0
A21: 6 | B21: 1014 | C21: Pakesim nga shitja e aktiveve te qendrushme | D21: Decrease from selling tangible assets | F21: 0 | H21: 0 | I21: 0 | J21: 0 | K21: 0 | M21: 0 | O21: 0 | P21: 0 | Q21: 0 | R21: 0 | T21: 0 | Y21: 0 | AA21: ='LGU''s FS (Template)'!E469 -> 0 | AC21: ='LGU''s FS (Template)'!F469 -> 0 | AD21: ='LGU''s FS (Template)'!G469 -> 0 | AF21: 0
A22: 7 | B22: 1015 | C22: Pakesim nga nxjerrja jasht perdorimit e AQ | D22: Decrease from | F22: 0 | H22: 0 | I22: 0 | J22: 0 | K22: 0 | M22: 0 | O22: 0 | P22: 0 | Q22: 0 | R22: 0 | T22: 0 | Y22: 0 | AA22: ='LGU''s FS (Template)'!E470 -> 0 | AC22: ='LGU''s FS (Template)'!F470 -> 0 | AD22: ='LGU''s FS (Template)'!G470 -> 0 | AF22: 0
A23: 8 | B23: 1016 | C23: Pekseim nga transfertat e AQ | D23: decrease from transferring tangible assets | F23: 0 | H23: 0 | I23: 0 | J23: 0 | K23: 0 | M23: 0 | O23: 0 | P23: 0 | Q23: 0 | R23: 0 | T23: 0 | Y23: 0 | AA23: ='LGU''s FS (Template)'!E471 -> 0 | AC23: ='LGU''s FS (Template)'!F471 -> 0 | AD23: ='LGU''s FS (Template)'!G471 -> 0 | AF23: 0
A24: 9 | B24: 109 | C24: DIFERENCA RIVLERSIMI AQ | D24: DIFFERENCE IN TANGIBLE ASSETS REVALUATION | F24: 0 | H24: 0 | I24: 0 | J24: 0 | K24: 0 | M24: 0 | O24: 0 | P24: 0 | Q24: 0 | R24: 0 | T24: 0 | Y24: 0 | AA24: ='LGU''s FS (Template)'!E472 -> 0 | AC24: ='LGU''s FS (Template)'!F472 -> 0 | AD24: ='LGU''s FS (Template)'!G472 -> 0 | AF24: 0
A25: 10 | B25: 105,107,11,12,13,145,15,85 | C25: FONDI I BRENDESHEM | D25: INTERNAL FUND | F25: 0 | H25: 0 | I25: 0 | J25: 0 | K25: 0 | M25: 0 | O25: 0 | P25: 0 | Q25: 0 | R25: 0 | T25: =SUM(T26:T33) -> 0 | V25: =SUM(V26:V33) -> 0 | W25: =SUM(W26:W33) -> 0 | Y25: =SUM(Y26:Y33) -> 0 | AA25: =SUM(AA26:AA33) -> 0 | AC25: =SUM(AC26:AC33) -> 0 | AD25: =SUM(AD26:AD33) -> 0 | AF25: =SUM(AF26:AF33) -> 0
A26: 11 | B26: 105 | C26: Grante brendeshme kapitale | D26: Capital internal grants | F26: 0 | H26: 0 | I26: 0 | J26: 0 | K26: 0 | M26: 0 | O26: 0 | P26: 0 | Q26: 0 | R26: 0 | T26: 0 | Y26: =T26-V26+W26 -> 0 | AA26: ='LGU''s FS (Template)'!E474 -> 0 | AC26: ='LGU''s FS (Template)'!F474 -> 0 | AD26: ='LGU''s FS (Template)'!G474 -> 0 | AF26: =AA26+AD26-AC26 -> 0
A27: 12 | B27: 107 | C27: Vlera te caktuara ne perdorim | D27: Current assets in use | F27: 0 | H27: 0 | I27: 0 | J27: 0 | K27: 0 | M27: 0 | O27: 0 | P27: 0 | Q27: 0 | R27: 0 | T27: 0 | Y27: 0 | AA27: ='LGU''s FS (Template)'!E475 -> 0 | AC27: ='LGU''s FS (Template)'!F475 -> 0 | AD27: ='LGU''s FS (Template)'!G475 -> 0 | AF27: 0
A28: 13 | B28: 11 | C28: Fonde te tjera veta | D28: Other own funds | F28: 0 | H28: 0 | I28: 0 | J28: 0 | K28: 0 | M28: 0 | O28: 0 | P28: 0 | Q28: 0 | R28: 0 | T28: 0 | Y28: 0 | AA28: ='LGU''s FS (Template)'!E476 -> 0 | AC28: ='LGU''s FS (Template)'!F476 -> 0 | AD28: ='LGU''s FS (Template)'!G476 -> 0 | AF28: 0
A29: 14 | B29: 12 | C29: Rezultat I mbartur | D29: Carried result | F29: 0 | H29: 0 | I29: 0 | J29: 0 | K29: 0 | M29: 0 | O29: 0 | P29: 0 | Q29: 0 | R29: 0 | T29: =AA33 -> 0 | Y29: 0 | AA29: ='LGU''s FS (Template)'!E477 -> 0 | AC29: ='LGU''s FS (Template)'!F477 -> 0 | AD29: ='LGU''s FS (Template)'!G477 -> 0 | AF29: 0
A30: 15 | B30: 13 | C30: Subvecione jashtzakoneshme | D30: Exceptional subsidiaries | F30: 0 | H30: 0 | I30: 0 | J30: 0 | K30: 0 | M30: 0 | O30: 0 | P30: 0 | Q30: 0 | R30: 0 | T30: 0 | Y30: 0 | AA30: ='LGU''s FS (Template)'!E478 -> 0 | AC30: ='LGU''s FS (Template)'!F478 -> 0 | AD30: ='LGU''s FS (Template)'!G478 -> 0 | AF30: 0
A31: 16 | B31: 145 | C31: Grante brendsh.kapitale per investime per trete | D31: Participation of the institution in investing for third parties | F31: 0 | H31: 0 | I31: 0 | J31: 0 | K31: 0 | M31: 0 | O31: 0 | P31: 0 | Q31: 0 | R31: 0 | T31: 0 | Y31: 0 | AA31: ='LGU''s FS (Template)'!E479 -> 0 | AC31: ='LGU''s FS (Template)'!F479 -> 0 | AD31: ='LGU''s FS (Template)'!G479 -> 0 | AF31: 0
A32: 17 | B32: 15 | C32: Shuma te parashikuara rreziqe e shpenzime | D32: Forecasted amounts for disasters and expenses | F32: 0 | H32: 0 | I32: 0 | J32: 0 | K32: 0 | M32: 0 | O32: 0 | P32: 0 | Q32: 0 | R32: 0 | T32: 0 | Y32: 0 | AA32: ='LGU''s FS (Template)'!E480 -> 0 | AC32: ='LGU''s FS (Template)'!F480 -> 0 | AD32: ='LGU''s FS (Template)'!G480 -> 0 | AF32: 0
A33: 18 | B33: 85 | C33: Rezultati I ushtrimit | D33: Result | F33: 0 | H33: 0 | I33: 0 | J33: 0 | K33: 0 | M33: 0 | O33: 0 | P33: 0 | Q33: 0 | R33: 0 | T33: 0 | Y33: 0 | AA33: ='LGU''s FS (Template)'!E481 -> 0 | AC33: ='LGU''s FS (Template)'!F481 -> 0 | AD33: ='LGU''s FS (Template)'!G481 -> 0 | AF33: 0
A34: 19 | B34: 106.146 | C34: FONDI I JASHTEM | D34: EXTERNAL FUND | F34: 0 | H34: 0 | I34: 0 | J34: 0 | K34: 0 | M34: 0 | O34: 0 | P34: 0 | Q34: 0 | R34: 0 | T34: 0 | Y34: 0 | AA34: ='LGU''s FS (Template)'!E482 -> 0 | AC34: ='LGU''s FS (Template)'!F482 -> 0 | AD34: ='LGU''s FS (Template)'!G482 -> 0 | AF34: 0
A35: 20 | B35: 106 | C35: Grante te Huaja Kapitale | D35: Capital foreigner grants | F35: 0 | H35: 0 | I35: 0 | J35: 0 | K35: 0 | M35: 0 | O35: 0 | P35: 0 | Q35: 0 | R35: 0 | T35: 0 | Y35: 0 | AA35: ='LGU''s FS (Template)'!E483 -> 0 | AC35: ='LGU''s FS (Template)'!F483 -> 0 | AD35: ='LGU''s FS (Template)'!G483 -> 0 | AF35: 0
A36: 21 | B36: 146 | C36: Grante huaja.kapitale per investime per trete | D36: Capital foreigner grants investing for third parties | F36: 0 | H36: 0 | I36: 0 | J36: 0 | K36: 0 | M36: 0 | O36: 0 | P36: 0 | Q36: 0 | R36: 0 | T36: 0 | Y36: 0 | AA36: ='LGU''s FS (Template)'!E484 -> 0 | AC36: ='LGU''s FS (Template)'!F484 -> 0 | AD36: ='LGU''s FS (Template)'!G484 -> 0 | AF36: 0
A37: 22 | C37: FONDI I KONSOLIDUAR ( 1 deri 4) | D37: CONSOLIDATED FUND (1up to 4) | F37: 0 | H37: 0 | I37: 0 | J37: 0 | K37: 0 | M37: 0 | O37: 0 | P37: 0 | Q37: 0 | R37: 0 | T37: =T16+T24+T25+T34 -> 0 | V37: =V16+V24+V25+V34 -> 0 | W37: =W16+W24+W25+W34 -> 0 | Y37: =Y16+Y24+Y25+Y34 -> 0 | AA37: =AA16+AA24+AA25+AA34 -> 0 | AC37: =AC16+AC24+AC25+AC34 -> 0 | AD37: =AD16+AD24+AD25+AD34 -> 0 | AF37: =AF16+AF24+AF25+AF34 -> 0

Sheet F9
A1: ='General information'!A1 -> Project STAR
A2: ='General information'!A2 -> xxx
A3: =A8 -> Statement of number of employees and personnel expenses (Form 9)
A4: =Checks!A4 -> All checks ok
A7: ='General information'!A2 -> xxx
A8: =Language!$D$96 -> Statement of number of employees and personnel expenses (Form 9)
A9: =Language!$D$13 -> for the year ended 31 December 2014
A10: =ALL -> (Shumat ne ALL'000, nëse nuk shprehet ndryshe)
A12: No | B12: Kategorite | D12: Categories | E12: =P12 -> Annual average number of employees | F12: =Q12 -> Turnover of employees during the year | G12: =R12 -> 0 | H12: =S12 -> Number of employees at year end | I12: =T12 -> Salaries and contributions | P12: =Language!$D$74 -> Annual average number of employees | Q12: =Language!$D$75 -> Turnover of employees during the year | S12: =Language!$D$76 -> Number of employees at year end | T12: =Language!$D$79 -> Salaries and contributions
F14: =Q14 -> New employees | G14: Leavers | I14: =T14 -> Total salaries | J14: Additional rewards | K14: Immediate social assistance | L14: Social and health insurance | M14: Other rewards | N14: Income tax | Q14: =Language!$D$77 -> New employees | R14: =Language!$D$78 -> Leavers | T14: =Language!$D$80 -> Total salaries | U14: =Language!$D$81 -> Additional rewards | V14: =Language!$D$82 -> Immediate social assistance | W14: =Language!$D$83 -> Social and health insurance | X14: =Language!$D$84 -> Other rewards | Y14: =Language!$D$85 -> Income tax
A15: a | B15: b | E15: =P15 -> 1 | F15: 2 | G15: 3 | H15: =S15 -> 4 | I15: 5 | J15: 6 | K15: 7 | L15: 8 | M15: 9 | N15: 10 | P15: 1 | Q15: 2 | R15: 3 | S15: 4 | T15: 5 | U15: 6 | V15: 7 | W15: 8 | X15: 9 | Y15: 10
B16: Numeri i punonjesve gjithesej ( 1+2+3+4+5) | D16: Total number of employees ( 1+2+3+4+5+6) | E16: =P16 -> 0 | F16: 0 | G16: 0 | H16: =S16 -> 0 | I16: =T16/Presentation_curr -> 0 | J16: 0 | K16: 0 | L16: 0 | M16: 0 | N16: 0 | P16: =SUM(P17:P22) -> 0 | Q16: =SUM(Q17:Q22) -> 0 | R16: 0 | S16: 0 | T16: 0 | U16: 0 | V16: 0 | W16: 0 | X16: 0 | Y16: 0
A17: 1 | B17: Drejtues | D17: Directors | E17: =P17 -> 0 | F17: =Q17 -> 0 | G17: =R17 -> 0 | H17: =S17 -> 0 | I17: 0 | J17: 0 | K17: 0 | L17: 0 | M17: 0 | N17: 0 | P17: ='LGU''s FS (Template)'!E496 -> 0 | Q17: ='LGU''s FS (Template)'!F496 -> 0 | R17: ='LGU''s FS (Template)'!G496 -> 0 | S17: =P17+Q17-R17 -> 0 | T17: ='LGU''s FS (Template)'!I496 -> 0 | U17: ='LGU''s FS (Template)'!J496 -> 0 | V17: ='LGU''s FS (Template)'!K496 -> 0 | W17: ='LGU''s FS (Template)'!L496 -> 0 | X17: ='LGU''s FS (Template)'!M496 -> 0 | Y17: ='LGU''s FS (Template)'!N496 -> 0
A18: 2 | B18: Spec.arsim te larte | D18: High level education specialist | E18: 0 | F18: 0 | G18: 0 | H18: 0 | I18: 0 | J18: 0 | K18: 0 | L18: 0 | M18: 0 | N18: 0 | P18: ='LGU''s FS (Template)'!E497 -> 0 | Q18: ='LGU''s FS (Template)'!F497 -> 0 | R18: ='LGU''s FS (Template)'!G497 -> 0 | S18: 0 | T18: ='LGU''s FS (Template)'!I497 -> 0 | U18: ='LGU''s FS (Template)'!J497 -> 0 | V18: ='LGU''s FS (Template)'!K497 -> 0 | W18: ='LGU''s FS (Template)'!L497 -> 0 | X18: ='LGU''s FS (Template)'!M497 -> 0 | Y18: ='LGU''s FS (Template)'!N497 -> 0
A19: 3 | B19: T e k n i k e | D19: Technical | E19: 0 | F19: 0 | G19: 0 | H19: 0 | I19: 0 | J19: 0 | K19: 0 | L19: 0 | M19: 0 | N19: 0 | P19: ='LGU''s FS (Template)'!E498 -> 0 | Q19: ='LGU''s FS (Template)'!F498 -> 0 | R19: ='LGU''s FS (Template)'!G498 -> 0 | S19: 0 | T19: ='LGU''s FS (Template)'!I498 -> 0 | U19: ='LGU''s FS (Template)'!J498 -> 0 | V19: ='LGU''s FS (Template)'!K498 -> 0 | W19: ='LGU''s FS (Template)'!L498 -> 0 | X19: ='LGU''s FS (Template)'!M498 -> 0 | Y19: ='LGU''s FS (Template)'!N498 -> 0
A20: 4 | B20: Nepunes te thjeshte | D20: Ordinary officers | E20: 0 | F20: 0 | G20: 0 | H20: 0 | I20: 0 | J20: 0 | K20: 0 | L20: 0 | M20: 0 | N20: 0 | P20: ='LGU''s FS (Template)'!E499 -> 0 | Q20: ='LGU''s FS (Template)'!F499 -> 0 | R20: ='LGU''s FS (Template)'!G499 -> 0 | S20: 0 | T20: ='LGU''s FS (Template)'!I499 -> 0 | U20: ='LGU''s FS (Template)'!J499 -> 0 | V20: ='LGU''s FS (Template)'!K499 -> 0 | W20: ='LGU''s FS (Template)'!L499 -> 0 | X20: ='LGU''s FS (Template)'!M499 -> 0 | Y20: ='LGU''s FS (Template)'!N499 -> 0
A21: 5 | B21: Punetore | D21: Employees | E21: 0 | F21: 0 | G21: 0 | H21: 0 | I21: 0 | J21: 0 | K21: 0 | L21: 0 | M21: 0 | N21: 0 | P21: ='LGU''s FS (Template)'!E500 -> 0 | Q21: ='LGU''s FS (Template)'!F500 -> 0 | R21: ='LGU''s FS (Template)'!G500 -> 0 | S21: 0 | T21: ='LGU''s FS (Template)'!I500 -> 0 | U21: ='LGU''s FS (Template)'!J500 -> 0 | V21: ='LGU''s FS (Template)'!K500 -> 0 | W21: ='LGU''s FS (Template)'!L500 -> 0 | X21: ='LGU''s FS (Template)'!M500 -> 0 | Y21: ='LGU''s FS (Template)'!N500 -> 0
A22: 6 | B22: Punonjes te perkohshem | D22: Temporary employees | E22: 0 | F22: 0 | G22: 0 | H22: 0 | I22: 0 | J22: 0 | K22: 0 | L22: 0 | M22: 0 | N22: 0 | P22: ='LGU''s FS (Template)'!E501 -> 0 | Q22: ='LGU''s FS (Template)'!F501 -> 0 | R22: ='LGU''s FS (Template)'!G501 -> 0 | S22: 0 | T22: ='LGU''s FS (Template)'!I501 -> 0 | U22: ='LGU''s FS (Template)'!J501 -> 0 | V22: ='LGU''s FS (Template)'!K501 -> 0 | W22: ='LGU''s FS (Template)'!L501 -> 0 | X22: ='LGU''s FS (Template)'!M501 -> 0 | Y22: ='LGU''s FS (Template)'!N501 -> 0

Sheet F10 (Cons)
A1: ='General information'!A1 -> Project STAR
A2: ='General information'!A2 -> xxx
A3: =A8 -> Consolidated Statement of Financial Position (Form 10)
A4: =Checks!A4 -> All checks ok
A7: ='General information'!A2 -> xxx
A8: =Language!$D$97 -> Consolidated Statement of Financial Position (Form 10)
A9: =Language!$D$13 -> for the year ended 31 December 2014
A10: =ALL -> (Shumat ne ALL'000, nëse nuk shprehet ndryshe)
A12: =Language!$D$41 -> No | B12: =Language!$D$49 -> Acc. No. | C12: EMERTIMI | D12: Description
F13: =Language!$D$40 -> Notes | H13: =N13 -> FY 2014 Restated | J13: =P13 -> FY 2014 | L13: =R13 -> FY 2013 | N13: =P13&" "&Language!D55 -> FY 2014 Restated | P13: =Language!$D$18 -> FY 2014 | R13: =Language!$D$19 -> FY 2013
A14: 1 | B14: 2 | C14: 3 | D14: 3 | H14: =N14 -> 4 | J14: =P14 -> 5 | L14: =R14 -> 6 | N14: 4 | P14: 5 | R14: 6
A15: 1 | B15: A | C15: A K T I V E | D15: Assets | H15: =N15/Presentation_curr -> 0 | J15: =P15/Presentation_curr -> 0 | L15: =R15/Presentation_curr -> 0 | N15: =N16+N53+N79 -> 0 | P15: =P16+P53+P79 -> 0 | R15: =R16+R53+R79 -> 0
A16: 2 | B16: I | C16: AKTIVE QARKULLUESE ( 1 - 3 ) | D16: Current Assets | H16: 0 | J16: 0 | L16: 0 | N16: =N17+N27+N43 -> 0 | P16: =P17+P27+P43 -> 0 | R16: =R17+R27+R43 -> 0
A17: 3 | B17: Klasa 5 | C17: 1. Arka, Banka dhe Diponibilitete | D17: 1. Petty- Cash, Banks, and Funds Availability | H17: 0 | J17: 0 | L17: 0 | N17: =SUM(N18:N26) -> 0 | P17: =SUM(P18:P26) -> 0 | R17: =SUM(R18:R26) -> 0
A18: 4 | B18: 50 | C18: Letra me vlere te vendosjes | D18: Securities settlement | H18: 0 | J18: 0 | L18: 0 | N18: ='F1'!N66 -> 0 | P18: ='LGU''s FS (Template)'!E525 -> 0 | R18: ='LGU''s FS (Template)'!F525 -> 0
A19: 5 | B19: 511 | C19: Vlera per tu arketuar | D19: Receivables | H19: 0 | J19: 0 | L19: 0 | N19: ='F1'!N67 -> 0 | P19: ='LGU''s FS (Template)'!E526 -> 0 | R19: ='LGU''s FS (Template)'!F526 -> 0
A20: 6 | B20: 512 | C20: Llogari ne banke | D20: Bank accounts | H20: 0 | J20: 0 | L20: 0 | N20: ='F1'!N68 -> 0 | P20: ='LGU''s FS (Template)'!E527 -> 0 | R20: ='LGU''s FS (Template)'!F527 -> 0
A21: 7 | B21: 52O | C21: Disponibilitete ne thesar | D21: Disposables | H21: 0 | J21: 0 | L21: 0 | N21: ='F1'!N69 -> 0 | P21: ='LGU''s FS (Template)'!E528 -> 0 | R21: ='LGU''s FS (Template)'!F528 -> 0
A22: 8 | B22: 531 | C22: Arka | D22: Petty-cash | H22: 0 | J22: 0 | L22: 0 | N22: ='F1'!N70 -> 0 | P22: ='LGU''s FS (Template)'!E529 -> 0 | R22: ='LGU''s FS (Template)'!F529 -> 0
A23: 9 | B23: 532 | C23: Vlera te tjera | D23: Other amounts | H23: 0 | J23: 0 | L23: 0 | N23: ='F1'!N71 -> 0 | P23: ='LGU''s FS (Template)'!E530 -> 0 | R23: ='LGU''s FS (Template)'!F530 -> 0
A24: 10 | B24: 54 | C24: Akreditiva dhe paradhenie | D24: accreditation and prepayments | H24: 0 | J24: 0 | L24: 0 | N24: ='F1'!N72 -> 0 | P24: ='LGU''s FS (Template)'!E531 -> 0 | R24: ='LGU''s FS (Template)'!F531 -> 0
A25: 11 | B25: 56 | C25: Llogari ne organizma krediti | D25: Accounts in Lending Institutions | H25: 0 | J25: 0 | L25: 0 | N25: ='F1'!N73 -> 0 | P25: ='LGU''s FS (Template)'!E532 -> 0 | R25: ='LGU''s FS (Template)'!F532 -> 0
A26: 12 | B26: 59 | C26: Provigjone zhvlersimi,letra me vlere(-) | D26: Depreciation provisions, securities (-) | H26: 0 | J26: 0 | L26: 0 | N26: ='F1'!N74 -> 0 | P26: ='LGU''s FS (Template)'!E533 -> 0 | R26: ='LGU''s FS (Template)'!F533 -> 0
A27: 13 | B27: Klasa 4 | C27: 2. Llogari te Arketueshme | D27: 2. Receivables | H27: 0 | J27: 0 | L27: 0 | N27: =SUM(N28:N42) -> 0 | P27: =SUM(P28:P42) -> 0 | R27: =SUM(R28:R42) -> 0
A28: 14 | B28: 409 | C28: Furnitore(Debitore),parapagime pagesa pjesore | D28: Suppliers, prepayments or partial payment | H28: 0 | J28: 0 | L28: 0 | N28: ='F1'!N50 -> 0 | P28: ='LGU''s FS (Template)'!E535 -> 0 | R28: ='LGU''s FS (Template)'!F535 -> 0
A29: 15 | B29: 41 | C29: Kliente e llogari te ngjashme | D29: Clients of similar accounts | H29: 0 | J29: 0 | L29: 0 | N29: ='F1'!N51 -> 0 | P29: ='LGU''s FS (Template)'!E536 -> 0 | R29: ='LGU''s FS (Template)'!F536 -> 0
A30: 16 | B30: 423 e 429 | C30: Personeli, paradhenie, deficite e gjoba | D30: Employees, prepayment, deficits and fees | H30: 0 | J30: 0 | L30: 0 | N30: ='F1'!N52 -> 0 | P30: ='LGU''s FS (Template)'!E537 -> 0 | R30: ='LGU''s FS (Template)'!F537 -> 0
A31: 17 | B31: 431 | C31: Shteti tatim taksa | D31: Government taxes | H31: 0 | J31: 0 | L31: 0 | N31: ='F1'!N53 -> 0 | P31: ='LGU''s FS (Template)'!E538 -> 0 | R31: ='LGU''s FS (Template)'!F538 -> 0
A32: 18 | B32: 432 | C32: Tatime mbledh nga shteti per llog.Pushtetit Lokal | D32: Government tax collector for Local government | H32: 0 | J32: 0 | L32: 0 | N32: ='F1'!N54 -> 0 | P32: ='LGU''s FS (Template)'!E539 -> 0 | R32: ='LGU''s FS (Template)'!F539 -> 0
A33: 19 | B33: 433 | C33: Shteti fatkeqesi natyrore | D33: Government natural disasters | H33: 0 | J33: 0 | L33: 0 | N33: ='F1'!N55 -> 0 | P33: ='LGU''s FS (Template)'!E540 -> 0 | R33: ='LGU''s FS (Template)'!F540 -> 0
A34: 20 | B34: 4342 | C34: Te tjera operacione me shtetin(debitor) | D34: Other operations with the government (debtor) | H34: 0 | J34: 0 | L34: 0 | N34: ='F1'!N56 -> 0 | P34: ='LGU''s FS (Template)'!E541 -> 0 | R34: ='LGU''s FS (Template)'!F541 -> 0
A35: 21 | B35: 435 | C35: Sigurime Shoqerore | D35: Social Insurance | H35: 0 | J35: 0 | L35: 0 | N35: ='F1'!N57 -> 0 | P35: ='LGU''s FS (Template)'!E542 -> 0 | R35: ='LGU''s FS (Template)'!F542 -> 0
A36: 22 | B36: 436 | C36: Sigurime Shendetesore | D36: Health Insurance | H36: 0 | J36: 0 | L36: 0 | N36: ='F1'!N58 -> 0 | P36: ='LGU''s FS (Template)'!E543 -> 0 | R36: ='LGU''s FS (Template)'!F543 -> 0
A37: 23 | B37: 437e 438 | C37: Organizma te tjere shoqerore | D37: Other social organizations | H37: 0 | J37: 0 | L37: 0 | N37: ='F1'!N59 -> 0 | P37: ='LGU''s FS (Template)'!E544 -> 0 | R37: ='LGU''s FS (Template)'!F544 -> 0
A38: 24 | B38: 44 | C38: Institucione te tjera publike | D38: Other public institutions | H38: 0 | J38: 0 | L38: 0 | N38: ='F1'!N60 -> 0 | P38: ='LGU''s FS (Template)'!E545 -> 0 | R38: ='LGU''s FS (Template)'!F545 -> 0
A39: 25 | B39: 45 | C39: Mardhenie me instit.brenda dhe jasht sistemit | D39: Relationships with institutions in and outside the system | H39: 0 | J39: 0 | L39: 0 | N39: ='F1'!N61 -> 0 | P39: ='LGU''s FS (Template)'!E546 -> 0 | R39: ='LGU''s FS (Template)'!F546 -> 0
A40: 26 | B40: 465 | C40: Efekte per tu arketuar nga shitja e letrave vlere | D40: Receivables from selling of bonds | H40: 0 | J40: 0 | L40: 0 | N40: ='F1'!N62 -> 0 | P40: ='LGU''s FS (Template)'!E547 -> 0 | R40: ='LGU''s FS (Template)'!F547 -> 0
A41: 27 | B41: 468 | C41: Deditore te ndryshem | D41: Different Debtors | H41: 0 | J41: 0 | L41: 0 | N41: ='F1'!N63 -> 0 | P41: ='LGU''s FS (Template)'!E548 -> 0 | R41: ='LGU''s FS (Template)'!F548 -> 0
A42: 28 | B42: 49 | C42: Shuma parashikuara per zhvleresim(-) | D42: Forecasted amounts for depreciation (-) | H42: 0 | J42: 0 | L42: 0 | N42: ='F1'!N64 -> 0 | P42: ='LGU''s FS (Template)'!E549 -> 0 | R42: ='LGU''s FS (Template)'!F549 -> 0
A43: 29 | B43: Klasa 3 | C43: 3. llogarite e gjendjes se inventarit | D43: 3. Current Inventory accounts | H43: 0 | J43: 0 | L43: 0 | N43: =SUM(N44:N52) -> 0 | P43: =SUM(P44:P52) -> 0 | R43: =SUM(R44:R52) -> 0
A44: 30 | B44: 31 | C44: Materiale | D44: Materials | H44: 0 | J44: 0 | L44: 0 | N44: ='F1'!N40 -> 0 | P44: ='LGU''s FS (Template)'!E551 -> 0 | R44: ='LGU''s FS (Template)'!F551 -> 0
A45: 31 | B45: 32 | C45: Objekte inventari | D45: Inventory Objects | H45: 0 | J45: 0 | L45: 0 | N45: ='F1'!N41 -> 0 | P45: ='LGU''s FS (Template)'!E552 -> 0 | R45: ='LGU''s FS (Template)'!F552 -> 0
A46: 32 | B46: 33 | C46: Prodhime, punime e sherbime ne proces | D46: Production, work and services in process | H46: 0 | J46: 0 | L46: 0 | N46: ='F1'!N42 -> 0 | P46: ='LGU''s FS (Template)'!E553 -> 0 | R46: ='LGU''s FS (Template)'!F553 -> 0
A47: 33 | B47: 34 | C47: Produkte | D47: Products | H47: =N47/Presentation_curr -> 0 | J47: =P47/Presentation_curr -> 0 | L47: =R47/Presentation_curr -> 0 | N47: ='F1'!N43 -> 0 | P47: ='LGU''s FS (Template)'!E554 -> 0 | R47: ='LGU''s FS (Template)'!F554 -> 0
A48: 34 | B48: 35 | C48: Mallra | D48: Goods | H48: 0 | J48: 0 | L48: 0 | N48: ='F1'!N44 -> 0 | P48: ='LGU''s FS (Template)'!E555 -> 0 | R48: ='LGU''s FS (Template)'!F555 -> 0
A49: 35 | B49: 36 | C49: Gje e gjalle ne rritje e majmeri | D49: Animals fattening | H49: 0 | J49: 0 | L49: 0 | N49: ='F1'!N45 -> 0 | P49: ='LGU''s FS (Template)'!E556 -> 0 | R49: ='LGU''s FS (Template)'!F556 -> 0
A50: 36 | B50: 37 | C50: Gjendje te pambritura ose prane te treteve | D50: Undelivered items or close to third party | H50: 0 | J50: 0 | L50: 0 | N50: ='F1'!N46 -> 0 | P50: ='LGU''s FS (Template)'!E557 -> 0 | R50: ='LGU''s FS (Template)'!F557 -> 0
A51: 37 | B51: 38 | C51: Diferenca nga cmimet e magazinimit | D51: Differences from warehouse prices | H51: 0 | J51: 0 | L51: 0 | N51: ='F1'!N47 -> 0 | P51: ='LGU''s FS (Template)'!E558 -> 0 | R51: ='LGU''s FS (Template)'!F558 -> 0
A52: 38 | B52: 39 | C52: Shuma te parashikuara per Zhvleresim(-) | D52: Forecasted amounts for inventory depreciation (-) | H52: 0 | J52: 0 | L52: 0 | N52: ='F1'!N48 -> 0 | P52: ='LGU''s FS (Template)'!E559 -> 0 | R52: ='LGU''s FS (Template)'!F559 -> 0
A53: 39 | B53: II | C53: AKTIVE JO QARKULLUESE ( 1 - 4 ) | D53: Non-current Assets | H53: 0 | J53: 0 | L53: 0 | N53: =N54+N58+N61+N74 -> 0 | P53: =P54+P58+P61+P74 -> 0 | R53: =R54+R58+R61+R74 -> 0
A54: 40 | B54: 23 | C54: 1.Investime | D54: 1. Investments | H54: 0 | J54: 0 | L54: 0 | N54: =SUM(N55:N57) -> 0 | P54: =SUM(P55:P57) -> 0 | R54: =SUM(R55:R57) -> 0
A55: 41 | B55: 230 | C55: Shpenzime per rritjen e AQ pa trupezuara | D55: Capitalized expense as Intangible Assets | H55: 0 | J55: 0 | L55: 0 | N55: ='F1'!N19 -> 0 | P55: ='LGU''s FS (Template)'!E562 -> 0 | R55: ='LGU''s FS (Template)'!F562 -> 0
A56: 42 | B56: 231 | C56: Shpenz.per rritjen e AQ te trupezuara | D56: Capitalized expense as Tangible Assets | H56: 0 | J56: 0 | L56: 0 | N56: ='F1'!N31 -> 0 | P56: ='LGU''s FS (Template)'!E563 -> 0 | R56: ='LGU''s FS (Template)'!F563 -> 0
A57: 43 | B57: 232 | C57: Transferime kapitale | D57: Transfers in capital | H57: 0 | J57: 0 | L57: 0 | N57: ='F1'!N32 -> 0 | P57: ='LGU''s FS (Template)'!E564 -> 0 | R57: ='LGU''s FS (Template)'!F564 -> 0
A58: 44 | B58: 25,26 | C58: 2.Aktive Financiare | D58: 2. Finance assets | H58: 0 | J58: 0 | L58: 0 | N58: =SUM(N59:N60) -> 0 | P58: =SUM(P59:P60) -> 0 | R58: =SUM(R59:R60) -> 0
A59: 45 | B59: 25 | C59: Huadhenie e nenhuadhenie | D59: Lending | H59: 0 | J59: 0 | L59: 0 | N59: ='F1'!N36 -> 0 | P59: ='LGU''s FS (Template)'!E566 -> 0 | R59: ='LGU''s FS (Template)'!F566 -> 0
A60: 46 | B60: 26 | C60: Pjesmarrje ne kapitalin e vet | D60: Equity | H60: 0 | J60: 0 | L60: 0 | N60: ='F1'!N37 -> 0 | P60: ='LGU''s FS (Template)'!E567 -> 0 | R60: ='LGU''s FS (Template)'!F567 -> 0
A61: 47 | B61: 21,24,28 | C61: 3.Aktive te Qendrushme te trupezuara | D61: 3. Tangible assets | H61: 0 | J61: 0 | L61: 0 | N61: =SUM(N62:N73) -> 0 | P61: =SUM(P62:P73) -> 0 | R61: =SUM(R62:R73) -> 0
A62: 48 | B62: 210 | C62: Toka,troje,terene | D62: Property. Plan | H62: 0 | J62: 0 | L62: 0 | N62: ='F1'!N21 -> 0 | P62: ='LGU''s FS (Template)'!E569 -> 0 | R62: ='LGU''s FS (Template)'!F569 -> 0
A63: 49 | B63: 211 | C63: Pyje,kullota,plantacione | D63: Forests, pastures, plantations | H63: 0 | J63: 0 | L63: 0 | N63: ='F1'!N22 -> 0 | P63: ='LGU''s FS (Template)'!E570 -> 0 | R63: ='LGU''s FS (Template)'!F570 -> 0
A64: 50 | B64: 212 | C64: Ndertime | D64: Construction works | H64: 0 | J64: 0 | L64: 0 | N64: ='F1'!N23 -> 0 | P64: ='LGU''s FS (Template)'!E571 -> 0 | R64: ='LGU''s FS (Template)'!F571 -> 0
A65: 51 | B65: 213 | C65: Rruge,rrjete,vepra ujore | D65: Roads, networks, water facilities | H65: 0 | J65: 0 | L65: 0 | N65: ='F1'!N24 -> 0 | P65: ='LGU''s FS (Template)'!E572 -> 0 | R65: ='LGU''s FS (Template)'!F572 -> 0
A66: 52 | B66: 214 | C66: Instalime teknike,makineri,paisje,vegla pune | D66: Technical installment, machinery, equipment, working tools | H66: 0 | J66: 0 | L66: 0 | N66: ='F1'!N25 -> 0 | P66: ='LGU''s FS (Template)'!E573 -> 0 | R66: ='LGU''s FS (Template)'!F573 -> 0
A67: 53 | B67: 215 | C67: Mjete transporti | D67: Transport vehicles | H67: 0 | J67: 0 | L67: 0 | N67: ='F1'!N26 -> 0 | P67: ='LGU''s FS (Template)'!E574 -> 0 | R67: ='LGU''s FS (Template)'!F574 -> 0
A68: 54 | B68: 216 | C68: Rezerva shtetrore | D68: Government reserve | H68: 0 | J68: 0 | L68: 0 | N68: ='F1'!N27 -> 0 | P68: ='LGU''s FS (Template)'!E575 -> 0 | R68: ='LGU''s FS (Template)'!F575 -> 0
A69: 55 | B69: 217 | C69: Kafshe pune e prodhimi | D69: Working and production animals | H69: 0 | J69: 0 | L69: 0 | N69: ='F1'!N28 -> 0 | P69: ='LGU''s FS (Template)'!E576 -> 0 | R69: ='LGU''s FS (Template)'!F576 -> 0
A70: 56 | B70: 218 | C70: Inventar ekonomik | D70: Economic Inventory | H70: 0 | J70: 0 | L70: 0 | N70: ='F1'!N29 -> 0 | P70: ='LGU''s FS (Template)'!E577 -> 0 | R70: ='LGU''s FS (Template)'!F577 -> 0
A71: 57 | B71: 219 | C71: Amortizimi aktiveve te qendrushme te trupezuara(-) | D71: tangible assets depreciation | H71: 0 | J71: 0 | L71: 0 | N71: ='F1'!N30 -> 0 | P71: ='LGU''s FS (Template)'!E578 -> 0 | R71: ='LGU''s FS (Template)'!F578 -> 0
A72: 58 | B72: 24 | C72: Aktive te Qend.te trupezuara te demtuara | D72: incorporated tangible assets | H72: 0 | J72: 0 | L72: 0 | N72: ='F1'!N33 -> 0 | P72: ='LGU''s FS (Template)'!E579 -> 0 | R72: ='LGU''s FS (Template)'!F579 -> 0
A73: 59 | B73: 28 | C73: Caktime | D73: Assignments | H73: 0 | J73: 0 | L73: 0 | N73: ='F1'!N34 -> 0 | P73: ='LGU''s FS (Template)'!E580 -> 0 | R73: ='LGU''s FS (Template)'!F580 -> 0
A74: 60 | B74: 20 | C74: 4. Aktive te Qendrushme te pa trupezuara | D74: 4. Intangible assets | H74: 0 | J74: 0 | L74: 0 | N74: =SUM(N75:N78) -> 0 | P74: ='LGU''s FS (Template)'!E581 -> 0 | R74: ='LGU''s FS (Template)'!F581 -> 0
A75: 61 | B75: 201 | C75: Prime dhe emisione te rimbursimit te huave | D75: Premiums and loan reimbursement | H75: 0 | J75: 0 | L75: 0 | N75: ='F1'!N15 -> 0 | P75: ='LGU''s FS (Template)'!E582 -> 0 | R75: ='LGU''s FS (Template)'!F582 -> 0
A76: 62 | B76: 202 | C76: Studime e kerkime | D76: Research and development | H76: 0 | J76: 0 | L76: 0 | N76: ='F1'!N16 -> 0 | P76: ='LGU''s FS (Template)'!E583 -> 0 | R76: ='LGU''s FS (Template)'!F583 -> 0
A77: 63 | B77: 203 | C77: Koncesione,patenta, licenca e tjera ngjashme | D77: Concessions, driving licenses and other similar | H77: 0 | J77: 0 | L77: 0 | N77: ='F1'!N17 -> 0 | P77: ='LGU''s FS (Template)'!E584 -> 0 | R77: ='LGU''s FS (Template)'!F584 -> 0
A78: 64 | B78: 209 | C78: Amortizimi I aktiveve te qendrushme pa trupezuara(-) | D78: Intangible assets depreciation | H78: 0 | J78: 0 | L78: 0 | N78: ='F1'!N18 -> 0 | P78: ='LGU''s FS (Template)'!E585 -> 0 | R78: ='LGU''s FS (Template)'!F585 -> 0
A79: 65 | B79: III | C79: AKTIVE TE TJERA | D79: Other assets | H79: =N79/Presentation_curr -> 0 | J79: =P79/Presentation_curr -> 0 | L79: =R79/Presentation_curr -> 0 | N79: =SUM(N80:N82) -> 0 | P79: =SUM(P80:P82) -> 0 | R79: =SUM(R80:R82) -> 0
A80: 66 | B80: 477 | C80: Diferenca konvertimi aktive | D80: foreign exchange diff. | H80: 0 | J80: 0 | L80: 0 | N80: ='F1'!N76 -> 0 | P80: ='LGU''s FS (Template)'!E587 -> 0 | R80: ='LGU''s FS (Template)'!F587 -> 0
A81: 67 | B81: 481 | C81: Shpenz.per tu shpernd.ne disa ushtrime | D81: expenses allocated to diff workings | H81: 0 | J81: 0 | L81: 0 | N81: ='F1'!N77 -> 0 | P81: ='LGU''s FS (Template)'!E588 -> 0 | R81: ='LGU''s FS (Template)'!F588 -> 0
A82: 68 | B82: 486 | C82: Shpenzime te periudhave te ardheshme | D82: Future expense | H82: 0 | J82: 0 | L82: 0 | N82: ='F1'!N78 -> 0 | P82: ='LGU''s FS (Template)'!E589 -> 0 | R82: ='LGU''s FS (Template)'!F589 -> 0
A83: 69 | B83: B | C83: P A S I V E | D83: Liabilities | H83: 0 | J83: 0 | L83: 0 | N83: =N84+N103+N105 -> 0 | P83: =P84+P103+P105 -> 0 | R83: =R84+R103+R105 -> 0
A84: 70 | B84: I | C84: DETYRIME QARKULLUESE ( 1 - 2 ) | D84: Current liabilities | H84: 0 | J84: 0 | L84: 0 | N84: =N85+N102 -> 0 | P84: =P85+P102 -> 0 | R84: =R85+R102 -> 0
A85: 71 | B85: Klasa 4 | C85: 1. Llogari te pagushme | D85: 1. Accounts payable | H85: 0 | J85: 0 | L85: 0 | N85: =SUM(N86:N101) -> 0 | P85: =SUM(P86:P101) -> 0 | R85: =SUM(R86:R101) -> 0
A86: 72 | B86: 419 | C86: Kliente(Kreditore), parapagese pjesore | D86: Creditors, forest prepayments | H86: 0 | J86: 0 | L86: 0 | N86: ='F2'!N33 -> 0 | P86: ='LGU''s FS (Template)'!E593 -> 0 | R86: ='LGU''s FS (Template)'!F593 -> 0
A87: 73 | B87: 40 | C87: Furnitore e llogari te lidhura me to | D87: Suppliers | H87: 0 | J87: 0 | L87: 0 | N87: ='F2'!N34 -> 0 | P87: ='LGU''s FS (Template)'!E594 -> 0 | R87: ='LGU''s FS (Template)'!F594 -> 0
A88: 74 | B88: 42 | C88: Personeli e llogari te lidhura me to | D88: employees and accounts related to them | H88: 0 | J88: 0 | L88: 0 | N88: ='F2'!N35 -> 0 | P88: ='LGU''s FS (Template)'!E595 -> 0 | R88: ='LGU''s FS (Template)'!F595 -> 0
A89: 75 | B89: 431 | C89: Shteti tatim-taksa | D89: Government tax | H89: 0 | J89: 0 | L89: 0 | N89: ='F2'!N36 -> 0 | P89: ='LGU''s FS (Template)'!E596 -> 0 | R89: ='LGU''s FS (Template)'!F596 -> 0
A90: 76 | B90: 432 | C90: Tatime mbedhura nga shteti per llog.Pusht.Lokal | D90: Taxes collected from government for the local government | H90: 0 | J90: 0 | L90: 0 | N90: ='F2'!N37 -> 0 | P90: ='LGU''s FS (Template)'!E597 -> 0 | R90: ='LGU''s FS (Template)'!F597 -> 0
A91: 77 | B91: 433 | C91: Shteti fatkeqesi natyrore | D91: Government natural disaster | H91: 0 | J91: 0 | L91: 0 | N91: ='F2'!N38 -> 0 | P91: ='LGU''s FS (Template)'!E598 -> 0 | R91: ='LGU''s FS (Template)'!F598 -> 0
A92: 78 | B92: 4341 | C92: Te tjera operacione me shtetin(kreditor) | D92: Other operational Creditors with the government | H92: 0 | J92: 0 | L92: 0 | N92: ='F2'!N39 -> 0 | P92: ='LGU''s FS (Template)'!E599 -> 0 | R92: ='LGU''s FS (Template)'!F599 -> 0
A93: 79 | B93: 435 | C93: Sigurime shoqerore | D93: Social Insurance | H93: 0 | J93: 0 | L93: 0 | N93: ='F2'!N40 -> 0 | P93: ='LGU''s FS (Template)'!E600 -> 0 | R93: ='LGU''s FS (Template)'!F600 -> 0
A94: 80 | B94: 436 | C94: Sigurime shendetsore | D94: Health Insurance | H94: 0 | J94: 0 | L94: 0 | N94: ='F2'!N41 -> 0 | P94: ='LGU''s FS (Template)'!E601 -> 0 | R94: ='LGU''s FS (Template)'!F601 -> 0
A95: 81 | B95: 437438 | C95: Organizma te tjere shoqerore | D95: Other social organizations | H95: 0 | J95: 0 | L95: 0 | N95: ='F2'!N42 -> 0 | P95: ='LGU''s FS (Template)'!E602 -> 0 | R95: ='LGU''s FS (Template)'!F602 -> 0
A96: 82 | B96: 44 | C96: Institucione te tjera publike | D96: Other public institutions | H96: 0 | J96: 0 | L96: 0 | N96: ='F2'!N43 -> 0 | P96: ='LGU''s FS (Template)'!E603 -> 0 | R96: ='LGU''s FS (Template)'!F603 -> 0
A97: 83 | B97: 45 | C97: Marrdhenie me institucione brenda e jasht sistemit | D97: Relationships with institutions in and outside the system | H97: 0 | J97: 0 | L97: 0 | N97: ='F2'!N44 -> 0 | P97: ='LGU''s FS (Template)'!E604 -> 0 | R97: ='LGU''s FS (Template)'!F604 -> 0
A98: 84 | B98: 460 | C98: Huadhenes | D98: Borrowings | H98: 0 | J98: 0 | L98: 0 | N98: ='F2'!N45 -> 0 | P98: ='LGU''s FS (Template)'!E605 -> 0 | R98: ='LGU''s FS (Template)'!F605 -> 0
A99: 85 | B99: 464 | C99: Detyrime per t' paguar per blerjen e letrave me vlere | D99: outstanding liabilities for securities | H99: 0 | J99: 0 | L99: 0 | N99: ='F2'!N46 -> 0 | P99: ='LGU''s FS (Template)'!E606 -> 0 | R99: ='LGU''s FS (Template)'!F606 -> 0
A100: 86 | B100: 466 | C100: Kreditore per mjete ne ruajtje | D100: Creditors for assets under guard | H100: 0 | J100: 0 | L100: 0 | N100: ='F2'!N47 -> 0 | P100: ='LGU''s FS (Template)'!E607 -> 0 | R100: ='LGU''s FS (Template)'!F607 -> 0
A101: 87 | B101: 467 | C101: Kreditore te ndryshem | D101: Sundry creditors | H101: 0 | J101: 0 | L101: 0 | N101: ='F2'!N48 -> 0 | P101: ='LGU''s FS (Template)'!E608 -> 0 | R101: ='LGU''s FS (Template)'!F608 -> 0
A102: 88 | B102: 16 | C102: 2.Huamarrje Afat Shkurter te brendshme | D102: 2. Non-current liabilities | H102: 0 | J102: 0 | L102: 0 | N102: ='F2'!$N$30 -> 0 | P102: ='LGU''s FS (Template)'!E609 -> 0 | R102: ='LGU''s FS (Template)'!F609 -> 0
A103: 89 | B103: II | C103: DETYRIME JO QARKULLUESE | D103: Non liquid liabilities | H103: 0 | J103: 0 | L103: 0 | N103: =N104 -> 0 | P103: =P104 -> 0 | R103: =R104 -> 0
A104: 90 | B104: 17 | C104: 1.Hua te jashtme | D104: 1. Foreign loans | H104: 0 | J104: 0 | L104: 0 | N104: ='F2'!$N$31 -> 0 | P104: ='LGU''s FS (Template)'!E611 -> 0 | R104: ='LGU''s FS (Template)'!F611 -> 0
A105: 91 | B105: III | C105: PASIVE TE TJERA | D105: Other liabilities | H105: 0 | J105: 0 | L105: 0 | N105: =SUM(N106:N109) -> 0 | P105: =SUM(P106:P109) -> 0 | R105: =SUM(R106:R109) -> 0
A106: 92 | B106: 475 | C106: Te ardhura per tu regjist.vitet pasardhese | D106: registered incomes for coming years | H106: 0 | J106: 0 | L106: 0 | N106: ='F2'!N50 -> 0 | P106: ='LGU''s FS (Template)'!E613 -> 0 | R106: ='LGU''s FS (Template)'!F613 -> 0
A107: 93 | B107: 478 | C107: Diferenca konvertime pasive | D107: foreign exchange liabilities | H107: 0 | J107: 0 | L107: 0 | N107: ='F2'!N51 -> 0 | P107: ='LGU''s FS (Template)'!E614 -> 0 | R107: ='LGU''s FS (Template)'!F614 -> 0
A108: 94 | B108: 480 | C108: Te ardhura per tu klasifikuar ose rregulluar | D108: Incomes to classify or adjust | H108: 0 | J108: 0 | L108: 0 | N108: ='F2'!N52 -> 0 | P108: ='LGU''s FS (Template)'!E615 -> 0 | R108: ='LGU''s FS (Template)'!F615 -> 0
A109: 95 | B109: 487 | C109: Te ardhura te arketuara para nxjerrjes titullit | D109: incomes received before title exposure | H109: 0 | J109: 0 | L109: 0 | N109: ='F2'!N53 -> 0 | P109: ='LGU''s FS (Template)'!E616 -> 0 | R109: ='LGU''s FS (Template)'!F616 -> 0
A110: 96 | C110: AKTIVET NETO ( A - B ) | D110: Net assets (A - B) | H110: 0 | J110: 0 | L110: 0 | N110: =N15-N83 -> 0 | P110: =P15-P83 -> 0 | R110: =R15-R83 -> 0
A111: 97 | C111: PERFAQESUAR: Nga Fondi i Kosoliduar | D111: Presented: Consolidated budget | H111: 0 | J111: 0 | L111: 0 | N111: =N110-N112 -> 0 | P111: ='LGU''s FS (Template)'!E618 -> 0 | R111: ='LGU''s FS (Template)'!F618 -> 0
A112: 98 | C112: Nga kjo ; Rezult.e mbartura e te ushtrimit(+-) | D112: Carried forward results | H112: 0 | J112: 0 | L112: 0 | N112: ='F2'!N54+'F2'!N24-'F1'!N79-'F1'!N12 -> 0 | P112: ='LGU''s FS (Template)'!E619 -> 0 | R112: ='LGU''s FS (Template)'!F619 -> 0

Sheet _TM_Sheet2 (hidden)
A1: Left | B1: Top | C1: Right | D1: Bottom | E1: Ref
A2: 3 | B2: 5 | C2: 8 | D2: 18 | E2: $C$5:$H$18

Sheet F11 (Cons)
A1: ='General information'!A1 -> Project STAR
A2: ='General information'!A2 -> xxx
A3: =A8 -> Consolidated Statement of Revenues and Expenses (Form 11)
A4: =Checks!A4 -> All checks ok
A7: ='General information'!A2 -> xxx
A8: =Language!$D$98 -> Consolidated Statement of Revenues and Expenses (Form 11)
A9: =Language!$D$13 -> for the year ended 31 December 2014
A10: =ALL -> (Shumat ne ALL'000, nëse nuk shprehet ndryshe)
A12: =Language!$D$41 -> No | B12: =Language!$D$49 -> Acc. No. | C12: EMERTIMI | D12: Description
F13: =Language!$D$40 -> Notes | H13: =N13 -> FY 2014 Restated | J13: =P13 -> FY 2014 | L13: =R13 -> FY 2013 | N13: =P13&" "&Language!D55 -> FY 2014 Restated | P13: =Language!$D$18 -> FY 2014 | R13: =Language!$D$19 -> FY 2013
A14: 1 | B14: 2 | C14: c | D14: 3 | H14: =N14 -> 4 | J14: =P14 -> 5 | L14: =R14 -> 6 | N14: 4 | P14: 5 | R14: 6
A15: 1 | B15: A | C15: TE ARDHURA GJITHESEJ | D15: TOTAL REVENUES | H15: =N15/Presentation_curr -> 0 | J15: =P15/Presentation_curr -> 0 | L15: =R15/Presentation_curr -> 0 | N15: =N16+N37+N40+N45+N46 -> 0 | P15: =P16+P37+P40+P45+P46 -> 0 | R15: =R16+R37+R40+R45+R46 -> 0
A16: 2 | B16: 70,750,71 | C16: I. TE ARDHURA E KONTRIBUTE | D16: I. REVENUES AND CONTRIBUTES | H16: 0 | J16: 0 | L16: 0 | N16: =N17+N25+N33 -> 0 | P16: =P17+P25+P33 -> 0 | R16: =R17+R25+R33 -> 0
A17: 3 | B17: 70 | C17: 1. Te Ardhura Tatimore | D17: 1. Tax revenues upon | H17: 0 | J17: 0 | L17: 0 | N17: =SUM(N18:N24) -> 0 | P17: =SUM(P18:P24) -> 0 | R17: =SUM(R18:R24) -> 0
A18: 4 | B18: 700 | C18: Mbi te ardhurat,fitimin e ardh.kapitale | D18: Revenues, profit and capital incomes | H18: 0 | J18: 0 | L18: 0 | N18: ='F3-2'!$N$16 -> 0 | P18: ='LGU''s FS (Template)'!E634 -> 0 | R18: ='LGU''s FS (Template)'!F634 -> 0
A19: 5 | B19: 702 | C19: Tatime mbi pasurine | D19: Wealth tax | H19: 0 | J19: 0 | L19: 0 | N19: ='F3-2'!$N$21 -> 0 | P19: ='LGU''s FS (Template)'!E635 -> 0 | R19: ='LGU''s FS (Template)'!F635 -> 0
A20: 6 | B20: 703 | C20: Tatime mbi mallrat e sherbimet brenda vendit | D20: tax upon goods and services within the country | H20: 0 | J20: 0 | L20: 0 | N20: ='F3-2'!$N$25 -> 0 | P20: ='LGU''s FS (Template)'!E636 -> 0 | R20: ='LGU''s FS (Template)'!F636 -> 0
A21: 7 | B21: 704 | C21: Takse mbi tregtine e transaks..nderkombetare | D21: tax on retail and international transactions | H21: 0 | J21: 0 | L21: 0 | N21: ='F3-2'!$N$31 -> 0 | P21: ='LGU''s FS (Template)'!E637 -> 0 | R21: ='LGU''s FS (Template)'!F637 -> 0
A22: 8 | B22: 705 | C22: Taksa e rruges | D22: Road tax | H22: 0 | J22: 0 | L22: 0 | N22: ='F3-2'!$N$36 -> 0 | P22: ='LGU''s FS (Template)'!E638 -> 0 | R22: ='LGU''s FS (Template)'!F638 -> 0
A23: 9 | B23: 708 | C23: Te tjera tatime e taksa | D23: other taxes | H23: 0 | J23: 0 | L23: 0 | N23: ='F3-2'!$N$37 -> 0 | P23: ='LGU''s FS (Template)'!E639 -> 0 | R23: ='LGU''s FS (Template)'!F639 -> 0
A24: 10 | B24: 709 | C24: Kamat vonesa | D24: Kamat vonesa | H24: 0 | J24: 0 | L24: 0 | N24: ='F3-2'!$N$38 -> 0 | P24: ='LGU''s FS (Template)'!E640 -> 0 | R24: ='LGU''s FS (Template)'!F640 -> 0
A25: 11 | B25: 75 | C25: 2. Kontribute te sig.shoqerore e shendetsore | D25: 2. Contributions and social and health insurance | H25: 0 | J25: 0 | L25: 0 | N25: =SUM(N26:N32) -> 0 | P25: =SUM(P26:P32) -> 0 | R25: =SUM(R26:R32) -> 0
A26: 12 | B26: 750 | C26: Nga te punesuarit | D26: from employees | H26: 0 | J26: 0 | L26: 0 | N26: ='F3-2'!N40 -> 0 | P26: ='LGU''s FS (Template)'!E642 -> 0 | R26: ='LGU''s FS (Template)'!F642 -> 0
A27: 13 | B27: 751 | C27: Nga punedhenesit | D27: from employer | H27: 0 | J27: 0 | L27: 0 | N27: ='F3-2'!N41 -> 0 | P27: ='LGU''s FS (Template)'!E643 -> 0 | R27: ='LGU''s FS (Template)'!F643 -> 0
A28: 14 | B28: 752 | C28: Nga te vetpunesuarit | D28: from self employees | H28: 0 | J28: 0 | L28: 0 | N28: ='F3-2'!N42 -> 0 | P28: ='LGU''s FS (Template)'!E644 -> 0 | R28: ='LGU''s FS (Template)'!F644 -> 0
A29: 15 | B29: 753 | C29: Nga fermeret | D29: from farmers | H29: 0 | J29: 0 | L29: 0 | N29: ='F3-2'!N43 -> 0 | P29: ='LGU''s FS (Template)'!E645 -> 0 | R29: ='LGU''s FS (Template)'!F645 -> 0
A30: 16 | B30: 754 | C30: Nga sigurimet vullnetare | D30: from volunteer insurance | H30: 0 | J30: 0 | L30: 0 | N30: ='F3-2'!N44 -> 0 | P30: ='LGU''s FS (Template)'!E646 -> 0 | R30: ='LGU''s FS (Template)'!F646 -> 0
A31: 17 | B31: 755 | C31: Kontribute te buxhetit per sigurime shoqerore | D31: contributes from budget on social insurance | H31: 0 | J31: 0 | L31: 0 | N31: ='F3-2'!N45 -> 0 | P31: ='LGU''s FS (Template)'!E647 -> 0 | R31: ='LGU''s FS (Template)'!F647 -> 0
A32: 18 | B32: 756 | C32: Kontribute te buxhetit per sigurime shendetesore | D32: contributes from budget on health insurance | H32: 0 | J32: 0 | L32: 0 | N32: ='F3-2'!N46 -> 0 | P32: ='LGU''s FS (Template)'!E648 -> 0 | R32: ='LGU''s FS (Template)'!F648 -> 0
A33: 19 | B33: 71 | C33: 3. Te Ardhura jo tatimore | D33: 3. Non tax revenues | H33: 0 | J33: 0 | L33: 0 | N33: =SUM(N34:N36) -> 0 | P33: =SUM(P34:P36) -> 0 | R33: =SUM(R34:R36) -> 0
A34: 20 | B34: 710 | C34: Nga ndermarrjet dhe pronesia | D34: from organic enterprise and ownership | H34: 0 | J34: 0 | L34: 0 | N34: ='F3-2'!N48 -> 0 | P34: ='LGU''s FS (Template)'!E650 -> 0 | R34: ='LGU''s FS (Template)'!F650 -> 0
A35: 21 | B35: 711 | C35: Sherbime administ.e ardhura sekondare | D35: administrative service and secondary revenues | H35: 0 | J35: 0 | L35: 0 | N35: ='F3-2'!N53 -> 0 | P35: ='LGU''s FS (Template)'!E651 -> 0 | R35: ='LGU''s FS (Template)'!F651 -> 0
A36: 22 | B36: 719 | C36: Te tjera te ardhura jo tatimore | D36: other non tax revenues | H36: 0 | J36: 0 | L36: 0 | N36: ='F3-2'!N61 -> 0 | P36: ='LGU''s FS (Template)'!E652 -> 0 | R36: ='LGU''s FS (Template)'!F652 -> 0
A37: 23 | B37: 72 | C37: II.GRANTE KORENTE TE PERGJITHSHEM | D37: II. GENERAL ACTUAL GRANTS | H37: 0 | J37: 0 | L37: 0 | N37: =SUM(N38:N39) -> 0 | P37: =SUM(P38:P39) -> 0 | R37: =SUM(R38:R39) -> 0
A38: 24 | B38: 720 | C38: Grant korent I brendeshem | D38: Internal actual grant | H38: 0 | J38: 0 | L38: 0 | N38: ='F3-2'!N63 -> 0 | P38: ='LGU''s FS (Template)'!E654 -> 0 | R38: ='LGU''s FS (Template)'!F654 -> 0
A39: 25 | B39: 721 | C39: Grant korent I jashtem | D39: External actual grant | H39: 0 | J39: 0 | L39: 0 | N39: ='F3-2'!N73 -> 0 | P39: ='LGU''s FS (Template)'!E655 -> 0 | R39: ='LGU''s FS (Template)'!F655 -> 0
A40: 26 | C40: III.TE ARDHURA FINANCIARE | D40: III. FINANCIAL REVENUES | H40: 0 | J40: 0 | L40: 0 | N40: =SUM(N41:N44) -> 0 | P40: =SUM(P41:P44) -> 0 | R40: =SUM(R41:R44) -> 0
A41: 27 | B41: 760 | C41: Nga interesat e huadhenies brendshme | D41: from interests of internal borrowings | H41: 0 | J41: 0 | L41: 0 | N41: ='F3-2'!N85 -> 0 | P41: ='LGU''s FS (Template)'!E657 -> 0 | R41: ='LGU''s FS (Template)'!F657 -> 0
A42: 28 | B42: 761 | C42: Nga interesat hudhenies se huaj | D42: from interests of external borrowings | H42: 0 | J42: 0 | L42: 0 | N42: ='F3-2'!N86 -> 0 | P42: ='LGU''s FS (Template)'!E658 -> 0 | R42: ='LGU''s FS (Template)'!F658 -> 0
A43: 29 | B43: 765 | C43: Te ardhura nga interesat e depozitave | D43: revenues from deposits interests | H43: 0 | J43: 0 | L43: 0 | N43: ='F3-2'!N87 -> 0 | P43: ='LGU''s FS (Template)'!E659 -> 0 | R43: ='LGU''s FS (Template)'!F659 -> 0
A44: 30 | B44: 766 | C44: Te ardhura nga kembimet valutore | D44: revenues from exchange | H44: 0 | J44: 0 | L44: 0 | N44: ='F3-2'!N88 -> 0 | P44: ='LGU''s FS (Template)'!E660 -> 0 | R44: ='LGU''s FS (Template)'!F660 -> 0
A45: 31 | B45: 78 | C45: IV.PUNIME PER INVESTIME E RIMARRJE | D45: IV. WORKS FOR INVESTMENTS AND RETAKINGS | H45: 0 | J45: 0 | L45: 0 | N45: ='F3-2'!N77 -> 0 | P45: ='LGU''s FS (Template)'!E661 -> 0 | R45: ='LGU''s FS (Template)'!F661 -> 0
A46: 32 | B46: 77 | C46: V. TE ARDHURA TE TJERA | D46: V. OTHER REVENUES | H46: 0 | J46: 0 | L46: 0 | N46: ='F3-2'!N89 -> 0 | P46: ='LGU''s FS (Template)'!E662 -> 0 | R46: ='LGU''s FS (Template)'!F662 -> 0
A47: 33 | B47: B | C47: SHPENZIME GJITHESEJ | D47: TOTAL EXPENSES | H47: =N47/Presentation_curr -> 0 | J47: =P47/Presentation_curr -> 0 | L47: =R47/Presentation_curr -> 0 | N47: =N48+N67+N68+N71 -> 0 | P47: =P48+P67+P68+P71 -> 0 | R47: =R48+R67+R68+R71 -> 0
A48: 34 | C48: I. SHPENZIME KORENTE | D48: I. ACTUAL EXPENSES | H48: 0 | J48: 0 | L48: 0 | N48: =N49+N52+N63+N64+N65+N66 -> 0 | P48: =P49+P52+P63+P64+P65+P66 -> 0 | R48: =R49+R52+R63+R64+R65+R66 -> 0
A49: 35 | B49: 600601 | C49: 1. Paga dhe kontribute personeli | D49: 1. Salaries and employees contribution | H49: 0 | J49: 0 | L49: 0 | N49: =SUM(N50:N51) -> 0 | P49: =SUM(P50:P51) -> 0 | R49: =SUM(R50:R51) -> 0
A50: 36 | B50: 600 | C50: Paga,shperblime e te tjera personeli | D50: Salaries, rewards and other | H50: 0 | J50: 0 | L50: 0 | N50: ='F3-1'!$N$16 -> 0 | P50: ='LGU''s FS (Template)'!E666 -> 0 | R50: ='LGU''s FS (Template)'!F666 -> 0
A51: 37 | B51: 601 | C51: Kontrib.te sig.shoq.e shendets. | D51: Contributes of social and health insurance | H51: 0 | J51: 0 | L51: 0 | N51: ='F3-1'!$N$21 -> 0 | P51: ='LGU''s FS (Template)'!E667 -> 0 | R51: ='LGU''s FS (Template)'!F667 -> 0
A52: 38 | B52: 602 | C52: 2.Mallra e sherbime | D52: 2. Goods and Services | H52: 0 | J52: 0 | L52: 0 | N52: =SUM(N53:N63) -> 0 | P52: =SUM(P53:P63) -> 0 | R52: =SUM(R53:R63) -> 0
A53: 39 | B53: 6020 | C53: Materiale zyre e te pergjitheshme | D53: General office equipment | H53: 0 | J53: 0 | L53: 0 | N53: ='F3-1'!N25 -> 0 | P53: ='LGU''s FS (Template)'!E669 -> 0 | R53: ='LGU''s FS (Template)'!F669 -> 0
A54: 40 | B54: 6021 | C54: Materiale e sherbime speciale | D54: Special service and materials | H54: 0 | J54: 0 | L54: 0 | N54: ='F3-1'!N26 -> 0 | P54: ='LGU''s FS (Template)'!E670 -> 0 | R54: ='LGU''s FS (Template)'!F670 -> 0
A55: 41 | B55: 6022 | C55: Sherbime nga te trete | D55: Services from third party | H55: 0 | J55: 0 | L55: 0 | N55: ='F3-1'!N27 -> 0 | P55: ='LGU''s FS (Template)'!E671 -> 0 | R55: ='LGU''s FS (Template)'!F671 -> 0
A56: 42 | B56: 6023 | C56: Shpenzime transporti | D56: Transport expenses | H56: 0 | J56: 0 | L56: 0 | N56: ='F3-1'!N28 -> 0 | P56: ='LGU''s FS (Template)'!E672 -> 0 | R56: ='LGU''s FS (Template)'!F672 -> 0
A57: 43 | B57: 6024 | C57: Shpenzime udhetimi | D57: Traveling expenses | H57: 0 | J57: 0 | L57: 0 | N57: ='F3-1'!N29 -> 0 | P57: ='LGU''s FS (Template)'!E673 -> 0 | R57: ='LGU''s FS (Template)'!F673 -> 0
A58: 44 | B58: 6025 | C58: Shpenzime per mirembajtje te zakonshme | D58: Ordinary maintenance expenses | H58: 0 | J58: 0 | L58: 0 | N58: ='F3-1'!N30 -> 0 | P58: ='LGU''s FS (Template)'!E674 -> 0 | R58: ='LGU''s FS (Template)'!F674 -> 0
A59: 45 | B59: 6026 | C59: Shpenzime per qeramarrje | D59: Rental expenses | H59: 0 | J59: 0 | L59: 0 | N59: ='F3-1'!N31 -> 0 | P59: ='LGU''s FS (Template)'!E675 -> 0 | R59: ='LGU''s FS (Template)'!F675 -> 0
A60: 46 | B60: 6027 | C60: Shpenzime per detyrime e kompesime legale | D60: Expenses for legal compensation and liabilities | H60: 0 | J60: 0 | L60: 0 | N60: ='F3-1'!N32 -> 0 | P60: ='LGU''s FS (Template)'!E676 -> 0 | R60: ='LGU''s FS (Template)'!F676 -> 0
A61: 47 | B61: 6028 | C61: Shpenzime te lidhura me huamarrjen | D61: Expenses related to borrowings | H61: 0 | J61: 0 | L61: 0 | N61: ='F3-1'!N33 -> 0 | P61: ='LGU''s FS (Template)'!E677 -> 0 | R61: ='LGU''s FS (Template)'!F677 -> 0
A62: 48 | B62: 6029 | C62: Shpenzime te tjera | D62: Other expenses | H62: 0 | J62: 0 | L62: 0 | N62: ='F3-1'!N34 -> 0 | P62: ='LGU''s FS (Template)'!E678 -> 0 | R62: ='LGU''s FS (Template)'!F678 -> 0
A63: 49 | B63: 603 | C63: 3.Subvecionet | D63: 3. Subsidies | H63: 0 | J63: 0 | L63: 0 | N63: ='F3-1'!N35 -> 0 | P63: ='LGU''s FS (Template)'!E679 -> 0 | R63: ='LGU''s FS (Template)'!F679 -> 0
A64: 50 | B64: 604 | C64: 4.Transferime korrente te brendshme | D64: 4. Internal actual transfers | H64: 0 | J64: 0 | L64: 0 | N64: ='F3-1'!N41 -> 0 | P64: ='LGU''s FS (Template)'!E680 -> 0 | R64: ='LGU''s FS (Template)'!F680 -> 0
A65: 51 | B65: 605 | C65: 5.Transferime korrente me jashte | D65: 5. External actual transfers | H65: 0 | J65: 0 | L65: 0 | N65: ='F3-1'!N46 -> 0 | P65: ='LGU''s FS (Template)'!E681 -> 0 | R65: ='LGU''s FS (Template)'!F681 -> 0
A66: 52 | B66: 606 | C66: 6.Transferta per buxh.familjare e individe | D66: 6. Budget transfers for families and individuals | H66: 0 | J66: 0 | L66: 0 | N66: ='F3-1'!N51 -> 0 | P66: ='LGU''s FS (Template)'!E682 -> 0 | R66: ='LGU''s FS (Template)'!F682 -> 0
A67: 53 | B67: 68 | C67: II.KUOTA AMORTIZIMI E SHUMA PARASHIK. | D67: II. AMORTIZATION QUOTES AND FORECASTED AMOUNT | H67: 0 | J67: 0 | L67: 0 | N67: ='F3-1'!N55 -> 0 | P67: ='LGU''s FS (Template)'!E683 -> 0 | R67: ='LGU''s FS (Template)'!F683 -> 0
A68: 54 | B68: 65.66 | C68: III. SHPENZIME FINANCIARE | D68: III. FINANCIAL EXPENSES | H68: 0 | J68: 0 | L68: 0 | N68: =SUM(N69:N70) -> 0 | P68: =SUM(P69:P70) -> 0 | R68: =SUM(R69:R70) -> 0
A69: 55 | C69: 1. Shpenzime financiare te brendshme | D69: 1. Internal financial service | H69: 0 | J69: 0 | L69: 0 | N69: ='F3-1'!$N$61 -> 0 | P69: ='LGU''s FS (Template)'!E685 -> 0 | R69: ='LGU''s FS (Template)'!F685 -> 0
A70: 56 | C70: 2. Shpenzime financiare te jashtme | D70: 2. External financial service | H70: 0 | J70: 0 | L70: 0 | N70: ='F3-1'!$N$66 -> 0 | P70: ='LGU''s FS (Template)'!E686 -> 0 | R70: ='LGU''s FS (Template)'!F686 -> 0
A71: 57 | B71: 67 | C71: IV. SHPENZIME TE TJERA | D71: IV. OTHER EXPENSES | H71: 0 | J71: 0 | L71: 0 | N71: ='F3-1'!$N$70 -> 0 | P71: ='LGU''s FS (Template)'!E687 -> 0 | R71: ='LGU''s FS (Template)'!F687 -> 0
A72: 58 | B72: C | C72: TE ARDHURAT NETO KONSTATUAR | D72: DETERMINED NET INCOME | H72: 0 | J72: 0 | L72: 0 | N72: =N15-N47 -> 0 | P72: =P15-P47 -> 0 | R72: =R15-R47 -> 0
A73: 59 | C73: Nga kjo ; Rezultatet e funksionimit | D73: From this: Functioning results | H73: 0 | J73: 0 | L73: 0 | N73: ='F3-1'!N83-'F3-2'!N99 -> 0 | P73: ='LGU''s FS (Template)'!E689 -> 0 | R73: ='LGU''s FS (Template)'!F689 -> 0
A74: 60 | C74: Grante te konstatuara funksionimi | D74: Functioning observed grants | H74: 0 | J74: 0 | L74: 0 | N74: =N72-N73 -> 0 | P74: ='LGU''s FS (Template)'!E690 -> 0 | R74: ='LGU''s FS (Template)'!F690 -> 0

Sheet Notes to FS-->

Sheet Index - Notes to FS
A1: ='General information'!A1 -> Project STAR
A2: ='General information'!A2 -> xxx
A3: Index of Notes supporting financial statements
A4: =Checks!A4 -> All checks ok
E9: Ref | F9: Statements' name in Albanian | G9: Statements' name in English
D10: Note 1 | E10: N1 | F10: Regjistri I aktiveve fikse | G10: Fixed assets register
D11: Note 2 | E11: N2 | F11: Listë e detajuar e materialeve dhe objekteve të inventarit | G11: List of inventory
D12: Note 3 | E12: N3 | F12: Të arkëtueshme nga punonjësit, parapagimet dhe dënimet | G12: Receivables from employees
D13: Note 4 | E13: N4 | F13: Lista e detajuar e debitorëve | G13: Different debtors
D14: Note 5 | E14: N5 | F14: Trashëgimia Akti - 2014-2015 | G14: Inheritance act
D15: Note 6 | E15: N6 | F15: Lista e detajuar e faturave të papaguara | G15: Creditors
D16: Note 7 | E16: N7 | F16: Rakordimi I shpenzimeve midis Thesarit dhe librit te bankёs sё LGU | G16: Expense reconciliation
D17: Note 8 | E17: N8 | F17: Rakordimi I tё ardhurave me Thesarin | G17: Revenue reconciliation
D18: Note 9 | E18: N9 | F18: Investime nё kompani degё | G18: Subsidiaries
D19: Note 10 | E19: N10 | F19: Huatё | G19: Loans and borrowings
D20: Note 11 | E20: N11 | F20: Grante dhurues | G20: Donor grants
D21: Note 12 | E21: N12 | F21: Rakordimi I Shpenzimeve Kapitale dhe Shpenzimeve tё tjera nё Pasqyrat Financiare me Thesarin | G21: Rec. of FS with Treasury
D22: Note 13 | E22: N13 | F22: Format pёr Bilancin Vёrtetues | G22: Trial balance

Sheet N1 Fixed Assets Register
A1: ='General information'!A1 -> Project STAR
A2: ='General information'!A2 -> xxx
A3: =B8 -> Notes to the Financial Statements
A4: =Checks!A4 -> All checks ok
B7: ='General information'!H12 -> xxx
B8: =Language!$D$99 -> Notes to the Financial Statements
B9: =Language!$D$13 -> for the year ended 31 December 2014
B10: =ALL -> (Shumat ne ALL'000, nëse nuk shprehet ndryshe)
B12: =Language!D117 -> Account numbers: | E12: 201 - 208
B13: =Language!D118 -> Supporting evidence: | E13: =Language!$D$130 -> Fixed Assets Regsiter
B16: =Language!$D$100 -> Asset description | C16: =Language!$D$101 -> Category | D16: =Language!$D$102 -> Category code | E16: =Language!$D$103 -> Location | F16: =Language!$D$104 -> Purchase date | G16: =Language!$D$105 -> Depreciation rate | H16: =Language!$D$106 -> Year | I16: =Language!$D$107 -> Month | J16: =Q16 -> Unit | K16: Unit price | L16: Cost | M16: Opening accumulated depreciation 1 January 2014 | N16: Depreciation for 2014 | O16: NBV as at As at 31 December 2014 | Q16: =Language!$D$112 -> Unit | R16: =Language!$D$113 -> Unit price | S16: =Language!$D$114 -> Cost | T16: =Language!$D$14 -> Opening accumulated depreciation 1 January 2014 | U16: =Language!$D$20 -> Depreciation for 2014 | V16: =Language!$D$21 -> NBV as at As at 31 December 2014 | Y16: Depreciation Rates
B17: xxx | D17: 1 | G17: =VLOOKUP(D17,X18:Z27,3,FALSE) -> 0.01 | H17: 2014-05-05 | J17: =Q17/Presentation_curr -> 0 | K17: 0 | L17: 0 | M17: 0 | N17: 0 | O17: 0 | U17: =MAX(MIN(IF(D17=$X$21,(S17-T17)*G17,(S17*G17))*IF(H17>curr_rep_date_beg,(365-_xlfn.DAYS(H17,curr_rep_date_beg))/365,1),S17-ABS(T17)),0) -> 0 | X17: Code | Y17: Cathegory | Z17: Annual Rate | AA17: Method
B18: xxx | D18: 2 | G18: =VLOOKUP(D18,X19:Z28,3,FALSE) -> 0.01 | H18: 2013-04-01 | J18: =Q18/Presentation_curr -> 0 | K18: 0 | L18: 0 | M18: 0 | N18: 0 | O18: 0 | U18: =MAX(MIN(IF(D18=$X$21,(S18-T18)*G18,(S18*G18))*IF(H18>curr_rep_date_beg,(365-_xlfn.DAYS(H18,curr_rep_date_beg))/365,1),S18-ABS(T18)),0) -> 0 | X18: 1 | Y18: Vepra | Z18: 0.01 | AA18: Vlere fillestare
B19: xxx | G19: =VLOOKUP(D19,X20:Z29,3,FALSE) ->  | J19: 0 | K19: 0 | L19: 0 | M19: 0 | N19: 0 | O19: 0 | X19: 2 | Y19: Ndertesa e konstruksione | Z19: 0.01 | AA19: Vlere fillestare
B20: xxx | G20: =VLOOKUP(D20,X21:Z30,3,FALSE) ->  | J20: 0 | K20: 0 | L20: 0 | M20: 0 | N20: 0 | O20: 0 | X20: 3 | Y20: Inventar ekonomik | Z20: 0.03 | AA20: Vlere fillestare
B21: … | J21: 0 | K21: 0 | L21: 0 | M21: 0 | N21: 0 | O21: 0 | X21: 4 | Y21: Paisje informatike | Z21: 0.25 | AA21: Vlere e mbetur
J22: 0 | K22: 0 | L22: 0 | M22: 0 | N22: 0 | O22: 0 | X22: 5 | Y22: Makineri e paisje | Z22: 0.058 | AA22: Vlere fillestare
B23: Total | L23: 0 | M23: 0 | N23: 0 | O23: 0 | S23: =SUM(S17:S22) -> 0 | T23: =SUM(T17:T22) -> 0 | U23: =SUM(U17:U22) -> 0 | V23: =SUM(V17:V22) -> 0 | X23: 6 | Y23: Mjete transporti | Z23: 0.138 | AA23: Vlere fillestare
X24: 7 | Y24: Ne proces | Z24: 0 | AA24: Vlere fillestare
X25: 8 | Y25: Toka | Z25: 0 | AA25: Vlere fillestare
X26: 9 | Y26: Studime e kerkime | Z26: 0.1 | AA26: Vlere fillestare
X27: 10 | Y27: Koncensione e patenta | Z27: 0 | AA27: Vlere fillestare

Sheet N2 List of Inventory
A1: ='General information'!A1 -> Project STAR
A2: ='General information'!A2 -> xxx
A3: =B8 -> Supporting evidence to be provided by the LGU
A4: =Checks!A4 -> All checks ok
B7: ='General information'!H12 -> xxx
B8: =Language!$D$119 -> Supporting evidence to be provided by the LGU
B9: =Language!$D$13 -> for the year ended 31 December 2014
B10: =ALL -> (Shumat ne ALL'000, nëse nuk shprehet ndryshe)
B12: =Language!D117 -> Account numbers: | D12: 31 and 32
B13: =Language!D118 -> Supporting evidence: | D13: =Language!$D$36 -> Detailed listing of materials and inventory objects
B15: =Language!$D$41 -> No | C15: =Language!$D$134 -> Item description | D15: =Language!$D$135 -> Location | E15: =Language!$D$136 -> No of items | F15: =H15 -> Cost per item | G15: =I15 -> Closing balance 31 December 2014 | H15: =Language!$D$131 -> Cost per item | I15: =Language!$D$17 -> Closing balance 31 December 2014
E16: 1 | F16: =H16 -> 2 | G16: =I16 -> 3 = 1 x 2 | H16: 2 | I16: 3 = 1 x 2
B17: 1 | F17: =H17/Presentation_curr -> 0 | G17: 0
B18: 2 | F18: 0 | G18: 0
B19: 3 | F19: 0 | G19: 0
B20: 4 | F20: 0 | G20: 0
B21: 5 | F21: 0 | G21: 0
B22: … | F22: 0 | G22: 0
C23: Total | G23: =I23/Presentation_curr -> 0

Sheet N3 Receivables from Employees
A1: ='General information'!A1 -> Project STAR
A2: ='General information'!A2 -> xxx
A3: =B8 -> Supporting evidence to be provided by the LGU
A4: =Checks!A4 -> All checks ok
B7: ='General information'!H12 -> xxx | P7: 4 | Q7: 5 | R7: 6 | S7: 7 | T7: 8
B8: =Language!$D$119 -> Supporting evidence to be provided by the LGU
B9: =Language!$D$13 -> for the year ended 31 December 2014
B10: =ALL -> (Shumat ne ALL'000, nëse nuk shprehet ndryshe) | N10: =B10 -> (Shumat ne ALL'000, nëse nuk shprehet ndryshe)
B12: =Language!D117 -> Account numbers: | D12: 423 | N12: =B12 -> Account numbers: | P12: =D12 -> 423
B13: =Language!D118 -> Supporting evidence: | D13: =Language!$D$35 -> Të arkëtueshme nga punonjësit, parapagimet dhe dënimet | N13: =B13 -> Supporting evidence: | P13: =D13 -> Të arkëtueshme nga punonjësit, parapagimet dhe dënimet
B15: =Language!$D$132 -> Debtor | D15: =Language!$D$133 -> Originating date | E15: =I15 -> Opening balance1 January 2014 | F15: =J15 -> Additional charge for the year | G15: =K15 -> Payments during the year | H15: =L15 -> Closing balance 31 December 2014 | I15: =Language!$D$16 -> Opening balance1 January 2014 | J15: =Language!$D$137 -> Additional charge for the year | K15: =Language!$D$138 -> Payments during the year | L15: =Language!$D$17 -> Closing balance 31 December 2014
B16: Overpayments to suppliers:
D17: Pre 2006
D18: Pre 2006
D19: Pre 2006
B20: Overpayments to employees pre 2007 | D20: Pre 2007
B21: Overpayments of employees after 2007 and before 2010 | D21: 2007-2010
B22: Total | E22: =SUM(E17:E21) -> 0 | F22: =SUM(F17:F21) -> 0 | G22: =SUM(G17:G21) -> 0 | H22: =SUM(H17:H21) -> 0
B26: =B15 -> Debtor | D26: =D15 -> Originating date | E26: Opening balance1 January 2014 | F26: Additional charge for the year | G26: Payments during the year | H26: Closing balance 31 December 2014 | I26: Opening balance1 January 2014 | J26: Additional charge for the year | K26: Payments during the year | L26: Closing balance 31 December 2014 | N26: No | O26: Debtor | P26: =D26 -> Originating date | Q26: =E26 -> Opening balance1 January 2014 | R26: =F26 -> Additional charge for the year | S26: =G26 -> Payments during the year | T26: =H26 -> Closing balance 31 December 2014
A27: =H27 -> 0 | B27: 1 | E27: =I27/Presentation_curr -> 0 | F27: =J27/Presentation_curr -> 0 | G27: =K27/Presentation_curr -> 0 | H27: =L27/Presentation_curr -> 0 | N27: 1 | O27: Name 1 | P27: =IF(VLOOKUP(LARGE(N3_Large,$N27),N3_vlookup,P$7,0)=0,"",VLOOKUP(LARGE(N3_Large,$N27),N3_vlookup,P$7,0)) -> 
A28: =H28 -> 0 | B28: 2 | E28: 0 | F28: 0 | G28: 0 | H28: 0 | N28: 2 | O28: Name 2
A29: 0 | B29: 3 | E29: 0 | F29: 0 | G29: 0 | H29: 0 | N29: 3 | O29: Name 3
A30: 0 | B30: 4 | E30: 0 | F30: 0 | G30: 0 | H30: 0 | N30: 4 | O30: Name 4
A31: 0 | B31: 5 | E31: 0 | F31: 0 | G31: 0 | H31: 0 | N31: 5 | O31: Name 5
A32: 0 | B32: 6 | E32: 0 | F32: 0 | G32: 0 | H32: 0 | N32: 6 | O32: Name 6
A33: 0 | B33: 7 | E33: 0 | F33: 0 | G33: 0 | H33: 0 | N33: 7 | O33: Name 7
A34: 0 | B34: 8 | E34: 0 | F34: 0 | G34: 0 | H34: 0 | N34: 8 | O34: Name 8
A35: 0 | B35: 9 | E35: 0 | F35: 0 | G35: 0 | H35: 0 | N35: 9 | O35: Name 9
A36: 0 | B36: 10 | E36: 0 | F36: 0 | G36: 0 | H36: 0 | N36: 10 | O36: Name 10
A37: 0 | B37: 11 | E37: 0 | F37: 0 | G37: 0 | H37: 0 | O37: Other | T37: =SUM($H$27:$H$88)-SUM($T$27:$T$36) -> 0
A38: 0 | B38: 12 | E38: 0 | F38: 0 | G38: 0 | H38: 0 | O38: Total | T38: =H89 -> 0
A39: 0 | B39: 13 | E39: 0 | F39: 0 | G39: 0 | H39: 0
A40: 0 | B40: 14 | E40: 0 | F40: 0 | G40: 0 | H40: 0
A41: 0 | B41: 15 | E41: 0 | F41: 0 | G41: 0 | H41: 0
A42: 0 | B42: 16 | E42: 0 | F42: 0 | G42: 0 | H42: 0
A43: 0 | B43: 17 | E43: 0 | F43: 0 | G43: 0 | H43: 0
A44: 0 | B44: 18 | E44: 0 | F44: 0 | G44: 0 | H44: 0
A45: 0 | B45: 19 | E45: 0 | F45: 0 | G45: 0 | H45: 0
A46: 0 | B46: 20 | E46: 0 | F46: 0 | G46: 0 | H46: 0
A47: 0 | B47: 21 | E47: 0 | F47: 0 | G47: 0 | H47: 0
A48: 0 | B48: 22 | E48: 0 | F48: 0 | G48: 0 | H48: 0
A49: 0 | B49: 23 | E49: 0 | F49: 0 | G49: 0 | H49: 0
A50: 0 | B50: 24 | E50: 0 | F50: 0 | G50: 0 | H50: 0
A51: 0 | B51: 25 | E51: 0 | F51: 0 | G51: 0 | H51: 0
A52: 0 | B52: 26 | E52: 0 | F52: 0 | G52: 0 | H52: 0
A53: 0 | B53: 27 | E53: 0 | F53: 0 | G53: 0 | H53: 0
A54: 0 | B54: 28 | E54: 0 | F54: 0 | G54: 0 | H54: 0
A55: 0 | B55: 29 | E55: 0 | F55: 0 | G55: 0 | H55: 0
A56: 0 | B56: 30 | E56: 0 | F56: 0 | G56: 0 | H56: 0
A57: 0 | B57: 31 | E57: 0 | F57: 0 | G57: 0 | H57: 0
A58: 0 | B58: 32 | E58: 0 | F58: 0 | G58: 0 | H58: 0
A59: 0 | B59: 33 | E59: =I59/Presentation_curr -> 0 | F59: =J59/Presentation_curr -> 0 | G59: =K59/Presentation_curr -> 0 | H59: =L59/Presentation_curr -> 0
A60: 0 | B60: 34 | E60: 0 | F60: 0 | G60: 0 | H60: 0
A61: 0 | B61: 35 | E61: 0 | F61: 0 | G61: 0 | H61: 0
A62: 0 | B62: 36 | E62: 0 | F62: 0 | G62: 0 | H62: 0
A63: 0 | B63: 37 | E63: 0 | F63: 0 | G63: 0 | H63: 0
A64: 0 | B64: 38 | E64: 0 | F64: 0 | G64: 0 | H64: 0
A65: 0 | B65: 39 | E65: 0 | F65: 0 | G65: 0 | H65: 0
A66: 0 | B66: 40 | E66: 0 | F66: 0 | G66: 0 | H66: 0
A67: 0 | B67: 41 | E67: 0 | F67: 0 | G67: 0 | H67: 0
A68: 0 | B68: 42 | E68: 0 | F68: 0 | G68: 0 | H68: 0
A69: 0 | B69: 43 | E69: 0 | F69: 0 | G69: 0 | H69: 0
A70: 0 | B70: 44 | E70: 0 | F70: 0 | G70: 0 | H70: 0
A71: 0 | B71: 45 | E71: 0 | F71: 0 | G71: 0 | H71: 0
A72: 0 | B72: 46 | E72: 0 | F72: 0 | G72: 0 | H72: 0
A73: 0 | B73: 47 | E73: 0 | F73: 0 | G73: 0 | H73: 0
A74: 0 | B74: 48 | E74: 0 | F74: 0 | G74: 0 | H74: 0
A75: 0 | B75: 49 | E75: 0 | F75: 0 | G75: 0 | H75: 0
A76: 0 | B76: 50 | E76: 0 | F76: 0 | G76: 0 | H76: 0
A77: 0 | B77: 51 | E77: 0 | F77: 0 | G77: 0 | H77: 0
A78: 0 | B78: 52 | E78: 0 | F78: 0 | G78: 0 | H78: 0
A79: 0 | B79: 53 | E79: 0 | F79: 0 | G79: 0 | H79: 0
A80: 0 | B80: 54 | E80: 0 | F80: 0 | G80: 0 | H80: 0
A81: 0 | B81: 55 | E81: 0 | F81: 0 | G81: 0 | H81: 0
A82: 0 | B82: 56 | E82: 0 | F82: 0 | G82: 0 | H82: 0
A83: 0 | B83: 57 | E83: 0 | F83: 0 | G83: 0 | H83: 0
A84: 0 | B84: 58 | E84: 0 | F84: 0 | G84: 0 | H84: 0
A85: 0 | B85: 59 | E85: 0 | F85: 0 | G85: 0 | H85: 0
A86: 0 | B86: 60 | E86: 0 | F86: 0 | G86: 0 | H86: 0
A87: 0 | B87: … | E87: 0 | F87: 0 | G87: 0 | H87: 0
A88: 0 | B88: … | E88: 0 | F88: 0 | G88: 0 | H88: 0
C89: Total | E89: 0 | F89: 0 | G89: 0 | H89: 0 | L89: =SUM(L27:L88) -> 0

Sheet N4 Different Debtors
A1: ='General information'!A1 -> Project STAR
A2: ='General information'!A2 -> xxx
A3: =B8 -> Supporting evidence to be provided by the LGU
A4: =Checks!A4 -> All checks ok
B7: ='General information'!H12 -> xxx | R7: 4 | S7: 5 | T7: 6 | U7: 7 | V7: 8
B8: =Language!$D$119 -> Supporting evidence to be provided by the LGU
B9: =Language!$D$13 -> for the year ended 31 December 2014
B10: =ALL -> (Shumat ne ALL'000, nëse nuk shprehet ndryshe) | P10: =ALL -> (Shumat ne ALL'000, nëse nuk shprehet ndryshe)
B12: =Language!D117 -> Account numbers: | D12: 428 | P12: =B12 -> Account numbers: | R12: =D12 -> 428
B13: =Language!D118 -> Supporting evidence: | D13: Detailed list of debtors | P13: Supporting evidence: | R13: Detailed list of debtors
B15: =Language!$D$41 -> No | C15: =Language!$D$132 -> Debtor | D15: =Language!$D$133 -> Originating date | E15: =I15 -> Opening balance1 January 2014 | F15: =J15 -> Additional charge for the year | G15: =K15 -> Payments during the year | H15: =L15 -> Closing balance 31 December 2014 | I15: =Language!$D$16 -> Opening balance1 January 2014 | J15: =Language!$D$137 -> Additional charge for the year | K15: =Language!$D$138 -> Payments during the year | L15: =Language!$D$17 -> Closing balance 31 December 2014 | P15: No | Q15: Debtor | R15: Originating date | S15: =E15 -> Opening balance1 January 2014 | T15: Additional charge for the year | U15: Payments during the year | V15: Closing balance 31 December 2014
A16: =H16 -> 0 | B16: 1 | E16: =I16/Presentation_curr -> 0 | F16: =J16/Presentation_curr -> 0 | G16: =K16/Presentation_curr -> 0 | H16: =L16/Presentation_curr -> 0 | P16: 1 | Q16: Name 1 | R16: =IF(VLOOKUP(LARGE(N4_Large,$P16),N4_Vlookup,R$7,0)=0,"",VLOOKUP(LARGE(N4_Large,$P16),N4_Vlookup,R$7,0)) -> 
A17: =H17 -> 0 | B17: 2 | E17: 0 | F17: 0 | G17: 0 | H17: 0 | P17: 2 | Q17: Name 2
A18: 0 | B18: 3 | E18: 0 | F18: 0 | G18: 0 | H18: 0 | P18: 3 | Q18: Name 3
A19: 0 | B19: 4 | E19: 0 | F19: 0 | G19: 0 | H19: 0 | P19: 4 | Q19: Name 4
A20: 0 | B20: 5 | E20: 0 | F20: 0 | G20: 0 | H20: 0 | P20: 5 | Q20: Name 5
A21: 0 | B21: 6 | E21: 0 | F21: 0 | G21: 0 | H21: 0 | P21: 6 | Q21: Name 6
A22: 0 | B22: 7 | E22: 0 | F22: 0 | G22: 0 | H22: 0 | P22: 7 | Q22: Name 7
A23: 0 | B23: 8 | E23: 0 | F23: 0 | G23: 0 | H23: 0 | P23: 8 | Q23: Name 8
A24: 0 | B24: 9 | E24: 0 | F24: 0 | G24: 0 | H24: 0 | P24: 9 | Q24: Name 9
A25: 0 | B25: 10 | E25: 0 | F25: 0 | G25: 0 | H25: 0 | P25: 10 | Q25: Name 10
A26: 0 | B26: 11 | E26: 0 | F26: 0 | G26: 0 | H26: 0 | Q26: Other | V26: =V27-SUM(V16:V25) -> 0
A27: 0 | B27: 12 | E27: 0 | F27: 0 | G27: 0 | H27: 0 | Q27: Total | V27: =H37 -> 0
A28: 0 | B28: 13 | E28: 0 | F28: 0 | G28: 0 | H28: 0
I29: =SUM(I16:I28) -> 0 | J29: =SUM(J16:J28) -> 0 | K29: =SUM(K16:K28) -> 0 | L29: =SUM(L16:L28) -> 0
C30: Fees from the municipality police:
A31: =H31 -> 0 | B31: 14 | E31: =I31/Presentation_curr -> 0 | F31: 0 | G31: 0 | H31: 0
A32: 0 | B32: 15 | E32: 0 | F32: 0 | G32: 0 | H32: 0
A33: 0 | B33: 16 | E33: 0 | F33: 0 | G33: 0 | H33: 0
A34: 0 | B34: 17 | E34: 0 | F34: 0 | G34: 0 | H34: 0
A35: 0 | B35: 18 | E35: 0 | F35: 0 | G35: 0 | H35: 0
A36: 0 | B36: … | E36: 0 | F36: 0 | G36: 0 | H36: 0
C37: Total | E37: 9868.176 | F37: 3951.062 | G37: 1697.781 | H37: 0 | I37: 9868176 | J37: 3951062 | K37: 1697781 | L37: =SUM(L29:L36) -> 0

Sheet N5 Inheritance Act
A1: ='General information'!A1 -> Project STAR
A2: ='General information'!A2 -> xxx
A3: =B8 -> Supporting evidence to be provided by the LGU
A4: =Checks!A4 -> All checks ok
B7: ='General information'!H12 -> xxx
B8: =Language!$D$119 -> Supporting evidence to be provided by the LGU
B9: =Language!$D$13 -> for the year ended 31 December 2014
B10: =ALL -> (Shumat ne ALL'000, nëse nuk shprehet ndryshe)
B12: =Language!D117 -> Account numbers: | D12: 520
B13: =Language!D118 -> Supporting evidence: | D13: =Language!$D$34 -> Inheritance Act - from 2014 to 2015
D16: =Q16 -> Inherited from 2012 | H16: =U16 -> Budget for 2013 | Q16: =Language!$D$22 -> Inherited from 2012 | U16: =Language!$D$23 -> Budget for 2013
B17: =Language!$D$139 -> Description | C17: Description | D17: =Q17 -> Grant plus revenue (Chapter 5) | E17: =R17 -> Chapter 6 | F17: Total | H17: Chapter 5 | I17: Chapter 6 | J17: Total | L17: =Y17 -> Total revenue 2012 and 2013 | M17: =Z17 -> Used during 2014 | O17: =AB17 -> Balance to be carried forward | Q17: =Language!$D$142 -> Grant plus revenue (Chapter 5) | R17: =Language!$D$143 -> Chapter 6 | S17: =Language!$D$68 -> Total | U17: =Language!$D$144 -> Chapter 5 | V17: =Language!$D$143 -> Chapter 6 | W17: =Language!$D$68 -> Total | Y17: =Language!$D$24 -> Total revenue 2012 and 2013 | Z17: =Language!$D$25 -> Used during 2014 | AB17: =Language!$D$148 -> Balance to be carried forward
B18: 1 | C18: 1 | D18: =Q18 -> 2 | E18: 3 | F18: 4=2+3 | H18: 5 | I18: 6 | J18: 7=5+6 | L18: =Y18 -> 8=4+7 | M18: =Z18 -> 9 | O18: =AB18 -> 10=8-9 | Q18: 2 | R18: 3 | S18: 4=2+3 | U18: 5 | V18: 6 | W18: 7=5+6 | Y18: 8=4+7 | Z18: 9 | AB18: 10=8-9
B19: Granti dhe tё ardhurat e trashёguara nga viti 2012 | C19: Grant plus revenue b/f from 2012 | D19: =Q19/Presentation_curr -> 0 | E19: =R19/Presentation_curr -> 0 | F19: =S19/Presentation_curr -> 0 | H19: =U19/Presentation_curr -> 0 | I19: =V19/Presentation_curr -> 0 | J19: =W19/Presentation_curr -> 0 | L19: =Y19/Presentation_curr -> 0 | M19: =Z19/Presentation_curr -> 0 | O19: =AB19/Presentation_curr -> 0 | S19: =Q19+R19 -> 0 | W19: =U19+V19 -> 0 | Y19: =S19+W19 -> 0 | AB19: =Y19-Z19 -> 0
B20: Grante konkuruese | C20: Competetive grants | D20: 0 | E20: 0 | F20: 0 | H20: 0 | I20: 0 | J20: 0 | L20: 0 | M20: 0 | O20: 0 | S20: =Q20+R20 -> 0 | W20: 0 | Y20: 0 | AB20: =Y20-Z20 -> 0
B21: Granti nga Buxheti pёr 2013 | C21: Budgeted grant for 2013 | D21: 0 | E21: 0 | F21: 0 | H21: 0 | I21: 0 | J21: 0 | L21: 0 | M21: 0 | O21: 0 | S21: 0 | W21: =U21+V21 -> 0 | Y21: 0 | AB21: 0
B22: Tё ardhurat e realizuara | C22: Realized revenue | D22: 0 | E22: 0 | F22: 0 | H22: 0 | I22: 0 | J22: 0 | L22: 0 | M22: 0 | O22: 0 | S22: 0 | W22: =U22+V22 -> 0 | Y22: 0 | AB22: 0
B23: Pjesёmarrja e institucioneve | C23: Participation of institutions | D23: 0 | E23: 0 | F23: 0 | H23: 0 | I23: 0 | J23: 0 | L23: 0 | M23: 0 | O23: 0 | S23: 0 | W23: 0 | Y23: 0 | AB23: 0
B24: Tё ardhurat nga ALUIZNI | C24: Revenue from "ALUIZMI" | D24: 0 | E24: 0 | F24: 0 | H24: 0 | I24: 0 | J24: 0 | L24: 0 | M24: 0 | O24: 0 | S24: 0 | W24: 0 | Y24: 0 | AB24: 0
B25: Tё tjera | C25: Other | D25: 0 | E25: 0 | F25: 0 | H25: 0 | I25: 0 | J25: 0 | L25: 0 | M25: 0 | O25: 0 | S25: 0 | W25: 0 | Y25: 0 | AB25: 0
B26: Shuma - Kapitulli 5 | C26: Balance - chapter 5 | D26: 0 | E26: 0 | F26: 0 | H26: 0 | I26: 0 | J26: 0 | L26: 0 | M26: 0 | O26: 0 | Q26: =SUM(Q19:Q25) -> 0 | R26: =SUM(R19:R25) -> 0 | S26: =SUM(S19:S25) -> 0 | U26: =SUM(U19:U25) -> 0 | V26: =SUM(V19:V25) -> 0 | W26: =SUM(W19:W25) -> 0 | Y26: =SUM(Y19:Y25) -> 0 | Z26: =SUM(Z19:Z25) -> 0 | AB26: =SUM(AB19:AB25) -> 0
B27: 5% Garanci punimesh | C27: 5% Completion Guarantee | D27: 0 | E27: 0 | F27: 0 | H27: 0 | I27: 0 | J27: 0 | L27: 0 | M27: 0 | O27: 0 | S27: =Q27+R27 -> 0 | W27: =U27+V27 -> 0 | AB27: =Y27-Z27 -> 0
B28: Burime tё brendshme | C28: Internal sources | D28: 0 | E28: 0 | F28: 0 | H28: 0 | I28: 0 | J28: 0 | L28: 0 | M28: 0 | O28: 0 | S28: =Q28+R28 -> 0 | W28: 0 | AB28: 0
B29: Sponzorime | C29: Sponsorships | D29: 0 | E29: 0 | F29: 0 | H29: 0 | I29: 0 | J29: 0 | L29: 0 | M29: 0 | O29: 0 | S29: 0 | W29: 0 | AB29: 0
B30: Depozita tё tjera | C30: Other deposits | D30: 0 | E30: 0 | F30: 0 | H30: 0 | I30: 0 | J30: 0 | L30: 0 | M30: 0 | O30: 0 | S30: 0 | W30: 0 | AB30: 0
B31: Tё tjera | C31: Other | D31: 0 | E31: 0 | F31: 0 | H31: 0 | I31: 0 | J31: 0 | L31: 0 | M31: 0 | O31: 0 | S31: 0 | W31: 0 | AB31: 0
B32: Shuma - Kapitulli 6 | C32: Balance - chapter 6 | D32: 0 | E32: 0 | F32: 0 | H32: 0 | I32: 0 | J32: 0 | L32: 0 | M32: 0 | O32: 0 | Q32: =SUM(Q27:Q31) -> 0 | R32: =SUM(R27:R31) -> 0 | S32: =SUM(S27:S31) -> 0 | U32: =SUM(U27:U31) -> 0 | V32: =SUM(V27:V31) -> 0 | W32: =SUM(W27:W31) -> 0 | Y32: =SUM(Y27:Y31) -> 0 | Z32: =SUM(Z27:Z31) -> 0 | AB32: =SUM(AB27:AB31) -> 0
B33: Total | C33: Total | D33: 0 | E33: 0 | F33: 0 | H33: 0 | I33: 0 | J33: 0 | L33: 0 | M33: 0 | O33: 0 | Q33: =Q26+Q32 -> 0 | R33: =R26+R32 -> 0 | S33: =S26+S32 -> 0 | U33: =U26+U32 -> 0 | V33: =V26+V32 -> 0 | W33: =W26+W32 -> 0 | Y33: =Y26+Y32 -> 0 | Z33: =Z26+Z32 -> 0 | AB33: =AB26+AB32 -> 0

Sheet N6 Creditors
A1: ='General information'!A1 -> Project STAR
A2: ='General information'!A2 -> xxx
A3: =B8 -> Supporting evidence to be provided by the LGU
A4: =Checks!A4 -> All checks ok
B7: ='General information'!H12 -> xxx | S7: 6 | T7: 7 | U7: 8 | V7: 9 | W7: 10 | X7: 11
B8: =Language!$D$119 -> Supporting evidence to be provided by the LGU
B9: =Language!$D$13 -> for the year ended 31 December 2014
B10: =ALL -> (Shumat ne ALL'000, nëse nuk shprehet ndryshe)
Q11: =ALL -> (Shumat ne ALL'000, nëse nuk shprehet ndryshe)
B12: =Language!D117 -> Account numbers: | E12: 401 - 408
B13: =Language!D118 -> Supporting evidence: | E13: =Language!$D$33 -> Detailed list of outstanding invoices | Q13: =B12 -> Account numbers: | S13: =E12 -> 401 - 408
Q14: Supporting evidence: | S14: Detailed list of outstanding invoices
B16: =Language!$D$41 -> No | C16: =Language!$D$47 -> Credit | D16: =Language!$D$149 -> NIPT (Fiscal number) | E16: =Language!$D$151 -> Invoice no | F16: =Language!$D$150 -> Originating date | G16: Payment date | H16: Overdue (Yes//No) | I16: Amount as per invoice/contract | J16: Estimated penalties (if applicable) | K16: =O16 -> Closing balance 31 December 2014 | M16: Amount as per invoice/contract | N16: Estimated penalties (if applicable) | O16: =Language!$D$17 -> Closing balance 31 December 2014 | Q16: =$B$16 -> No | R16: =$C$16 -> Credit | S16: =F16 -> Originating date | T16: Payment date | U16: Overdue (Yes//No) | V16: Amount as per invoice/contract | W16: Estimated penalties (if applicable) | X16: Closing balance 31 December 2014
A17: =K17 -> 0 | B17: 1 | I17: =M17/Presentation_curr -> 0 | J17: =N17/Presentation_curr -> 0 | K17: =O17/Presentation_curr -> 0 | O17: =M17+N17 -> 0 | Q17: 1 | R17: Name 1 | S17: =IF(VLOOKUP(LARGE(N6_Large,$Q17),N6_Vlookup,S$7,0)=0,"",VLOOKUP(LARGE(N6_Large,$Q17),N6_Vlookup,S$7,0)) -> 
A18: =K18 -> 0 | B18: 2 | I18: 0 | J18: 0 | K18: 0 | O18: =M18+N18 -> 0 | Q18: 2 | R18: Name 2
A19: 0 | B19: 3 | I19: 0 | J19: 0 | K19: 0 | O19: 0 | Q19: 3 | R19: Name 3
A20: 0 | B20: 4 | I20: 0 | J20: 0 | K20: 0 | O20: 0 | Q20: 4 | R20: Name 4
A21: 0 | B21: 5 | I21: 0 | J21: 0 | K21: 0 | O21: 0 | Q21: 5 | R21: Name 5
A22: 0 | B22: 6 | I22: 0 | J22: 0 | K22: 0 | O22: 0 | Q22: 6 | R22: Name 6
A23: 0 | B23: 7 | I23: 0 | J23: 0 | K23: 0 | O23: 0 | Q23: 7 | R23: Name 7
A24: 0 | B24: 8 | I24: 0 | J24: 0 | K24: 0 | O24: 0 | Q24: 8 | R24: Name 8
A25: 0 | B25: 9 | I25: 0 | J25: 0 | K25: 0 | O25: 0 | Q25: 9 | R25: Name 9
A26: 0 | B26: 10 | I26: 0 | J26: 0 | K26: 0 | O26: 0 | Q26: 10 | R26: Name 10
A27: 0 | B27: 11 | I27: 0 | J27: 0 | K27: 0 | O27: 0 | R27: Other | X27: =X28-SUM($X$17:$X$26) -> 0
A28: 0 | B28: 12 | I28: 0 | J28: 0 | K28: 0 | O28: 0 | R28: Total | X28: =K301 -> 0
A29: 0 | B29: 13 | I29: 0 | J29: 0 | K29: 0 | O29: 0
A30: 0 | B30: 14 | I30: 0 | J30: 0 | K30: 0 | O30: 0
A31: 0 | B31: 15 | I31: 0 | J31: 0 | K31: 0 | O31: 0
A32: 0 | B32: 16 | I32: 0 | J32: 0 | K32: 0 | O32: 0
A33: 0 | B33: 17 | I33: 0 | J33: 0 | K33: 0 | O33: 0
A34: 0 | B34: 18 | I34: 0 | J34: 0 | K34: 0 | O34: 0
A35: 0 | B35: 19 | I35: 0 | J35: 0 | K35: 0 | O35: 0
A36: 0 | B36: 20 | I36: 0 | J36: 0 | K36: 0 | O36: 0
A37: 0 | B37: 21 | I37: 0 | J37: 0 | K37: 0 | O37: 0
A38: 0 | B38: 22 | I38: 0 | J38: 0 | K38: 0 | O38: 0
A39: 0 | B39: 23 | I39: 0 | J39: 0 | K39: 0 | O39: 0
A40: 0 | B40: 24 | I40: 0 | J40: 0 | K40: 0 | O40: 0
A41: 0 | B41: 25 | I41: 0 | J41: 0 | K41: 0 | O41: 0
A42: 0 | B42: 26 | I42: 0 | J42: 0 | K42: 0 | O42: 0
A43: 0 | B43: 27 | I43: 0 | J43: 0 | K43: 0 | O43: 0
A44: 0 | B44: 28 | I44: 0 | J44: 0 | K44: 0 | O44: 0
A45: 0 | B45: 29 | I45: 0 | J45: 0 | K45: 0 | O45: 0
A46: 0 | B46: 30 | I46: 0 | J46: 0 | K46: 0 | O46: 0
A47: 0 | B47: 31 | I47: 0 | J47: 0 | K47: 0 | O47: 0
A48: 0 | B48: 32 | I48: 0 | J48: 0 | K48: 0 | O48: 0
A49: 0 | B49: 33 | I49: 0 | J49: 0 | K49: 0 | O49: 0
A50: 0 | B50: 34 | I50: 0 | J50: 0 | K50: 0 | O50: 0
A51: 0 | B51: 35 | I51: 0 | J51: 0 | K51: 0 | O51: 0
A52: 0 | B52: 36 | I52: 0 | J52: 0 | K52: 0 | O52: 0
A53: 0 | B53: 37 | I53: 0 | J53: 0 | K53: 0 | O53: 0
A54: 0 | B54: 38 | I54: 0 | J54: 0 | K54: 0 | O54: 0
A55: 0 | B55: 39 | I55: 0 | J55: 0 | K55: 0 | O55: 0
A56: 0 | B56: 40 | I56: 0 | J56: 0 | K56: 0 | O56: 0
A57: 0 | B57: 41 | I57: 0 | J57: 0 | K57: 0 | O57: 0
A58: 0 | B58: 42 | I58: 0 | J58: 0 | K58: 0 | O58: 0
A59: 0 | B59: 43 | I59: 0 | J59: 0 | K59: 0 | O59: 0
A60: 0 | B60: 44 | I60: 0 | J60: 0 | K60: 0 | O60: 0
A61: 0 | B61: 45 | I61: 0 | J61: 0 | K61: 0 | O61: 0
A62: 0 | B62: 46 | I62: 0 | J62: 0 | K62: 0 | O62: 0
A63: 0 | B63: 47 | I63: 0 | J63: 0 | K63: 0 | O63: 0
A64: 0 | B64: 48 | I64: 0 | J64: 0 | K64: 0 | O64: 0
A65: 0 | B65: 49 | I65: 0 | J65: 0 | K65: 0 | O65: 0
A66: 0 | B66: 50 | I66: 0 | J66: 0 | K66: 0 | O66: 0
A67: 0 | I67: 0 | J67: 0 | K67: 0 | O67: 0
A68: 0 | B68: 51 | I68: 0 | J68: 0 | K68: 0 | O68: 0
A69: 0 | B69: 52 | I69: 0 | J69: 0 | K69: 0 | O69: 0
A70: 0 | B70: 53 | I70: 0 | J70: 0 | K70: 0 | O70: 0
A71: 0 | B71: 54 | I71: 0 | J71: 0 | K71: 0 | O71: 0
A72: 0 | B72: 55 | I72: 0 | J72: 0 | K72: 0 | O72: 0
A73: 0 | B73: 56 | I73: 0 | J73: 0 | K73: 0 | O73: 0
A74: 0 | B74: 57 | I74: 0 | J74: 0 | K74: 0 | O74: 0
A75: 0 | B75: 58 | I75: 0 | J75: 0 | K75: 0 | O75: 0
A76: 0 | B76: 59 | I76: 0 | J76: 0 | K76: 0 | O76: 0
A77: 0 | B77: 60 | I77: 0 | J77: 0 | K77: 0 | O77: 0
A78: 0 | B78: 61 | I78: 0 | J78: 0 | K78: 0 | O78: 0
A79: 0 | B79: 62 | I79: 0 | J79: 0 | K79: 0 | O79: 0
A80: 0 | B80: 63 | I80: 0 | J80: 0 | K80: 0 | O80: 0
A81: 0 | B81: 64 | I81: =M81/Presentation_curr -> 0 | J81: =N81/Presentation_curr -> 0 | K81: =O81/Presentation_curr -> 0 | O81: 0
A82: =K82 -> 0 | B82: 65 | I82: 0 | J82: 0 | K82: 0 | O82: =M82+N82 -> 0
A83: 0 | B83: 66 | I83: 0 | J83: 0 | K83: 0 | O83: 0
A84: 0 | B84: 67 | I84: 0 | J84: 0 | K84: 0 | O84: 0
A85: 0 | B85: 68 | I85: 0 | J85: 0 | K85: 0 | O85: 0
A86: 0 | B86: 69 | I86: 0 | J86: 0 | K86: 0 | O86: 0
A87: 0 | B87: 70 | I87: 0 | J87: 0 | K87: 0 | O87: 0
A88: 0 | B88: 71 | I88: 0 | J88: 0 | K88: 0 | O88: 0
A89: 0 | B89: 72 | I89: 0 | J89: 0 | K89: 0 | O89: 0
A90: 0 | B90: 73 | I90: 0 | J90: 0 | K90: 0 | O90: 0
A91: 0 | B91: 74 | I91: 0 | J91: 0 | K91: 0 | O91: 0
A92: 0 | B92: 75 | I92: 0 | J92: 0 | K92: 0 | O92: 0
A93: 0 | B93: 76 | I93: 0 | J93: 0 | K93: 0 | O93: 0
A94: 0 | B94: 77 | I94: 0 | J94: 0 | K94: 0 | O94: 0
A95: 0 | B95: 78 | I95: 0 | J95: 0 | K95: 0 | O95: 0
A96: 0 | B96: 79 | I96: 0 | J96: 0 | K96: 0 | O96: 0
A97: 0 | B97: 80 | I97: 0 | J97: 0 | K97: 0 | O97: 0
A98: 0 | B98: 81 | I98: 0 | J98: 0 | K98: 0 | O98: 0
A99: 0 | B99: 82 | I99: 0 | J99: 0 | K99: 0 | O99: 0
A100: 0 | B100: 83 | I100: 0 | J100: 0 | K100: 0 | O100: 0
A101: 0 | B101: 84 | I101: 0 | J101: 0 | K101: 0 | O101: 0
A102: 0 | B102: 85 | I102: 0 | J102: 0 | K102: 0 | O102: 0
A103: 0 | B103: 86 | I103: 0 | J103: 0 | K103: 0 | O103: 0
A104: 0 | B104: 87 | I104: 0 | J104: 0 | K104: 0 | O104: 0
A105: 0 | B105: 88 | I105: 0 | J105: 0 | K105: 0 | O105: 0
A106: 0 | B106: 89 | I106: 0 | J106: 0 | K106: 0 | O106: 0
A107: 0 | B107: 90 | I107: 0 | J107: 0 | K107: 0 | O107: 0
A108: 0 | B108: 91 | I108: 0 | J108: 0 | K108: 0 | O108: 0
A109: 0 | B109: 92 | I109: 0 | J109: 0 | K109: 0 | O109: 0
A110: 0 | B110: 93 | I110: 0 | J110: 0 | K110: 0 | O110: 0
A111: 0 | B111: 94 | I111: 0 | J111: 0 | K111: 0 | O111: 0
A112: 0 | B112: 95 | I112: 0 | J112: 0 | K112: 0 | O112: 0
A113: 0 | B113: 96 | I113: 0 | J113: 0 | K113: 0 | O113: 0
A114: 0 | B114: 97 | I114: 0 | J114: 0 | K114: 0 | O114: 0
A115: 0 | B115: 98 | I115: 0 | J115: 0 | K115: 0 | O115: 0
A116: 0 | B116: 99 | I116: 0 | J116: 0 | K116: 0 | O116: 0
A117: 0 | B117: 100 | I117: 0 | J117: 0 | K117: 0 | O117: 0
A118: 0 | I118: 0 | J118: 0 | K118: 0 | O118: 0
A119: 0 | B119: 101 | I119: 0 | J119: 0 | K119: 0 | O119: 0
A120: 0 | B120: 102 | I120: 0 | J120: 0 | K120: 0 | O120: 0
A121: 0 | B121: 103 | I121: 0 | J121: 0 | K121: 0 | O121: 0
A122: 0 | B122: 104 | I122: 0 | J122: 0 | K122: 0 | O122: 0
A123: 0 | B123: 105 | I123: 0 | J123: 0 | K123: 0 | O123: 0
A124: 0 | B124: 106 | I124: 0 | J124: 0 | K124: 0 | O124: 0
A125: 0 | B125: 107 | I125: 0 | J125: 0 | K125: 0 | O125: 0
A126: 0 | B126: 108 | I126: 0 | J126: 0 | K126: 0 | O126: 0
A127: 0 | B127: 109 | I127: 0 | J127: 0 | K127: 0 | O127: 0
A128: 0 | B128: 110 | I128: 0 | J128: 0 | K128: 0 | O128: 0
A129: 0 | B129: 111 | I129: 0 | J129: 0 | K129: 0 | O129: 0
A130: 0 | B130: 112 | I130: 0 | J130: 0 | K130: 0 | O130: 0
A131: 0 | B131: 113 | I131: 0 | J131: 0 | K131: 0 | O131: 0
A132: 0 | B132: 114 | I132: 0 | J132: 0 | K132: 0 | O132: 0
A133: 0 | B133: 115 | I133: 0 | J133: 0 | K133: 0 | O133: 0
A134: 0 | B134: 116 | I134: 0 | J134: 0 | K134: 0 | O134: 0
A135: 0 | B135: 117 | I135: 0 | J135: 0 | K135: 0 | O135: 0
A136: 0 | B136: 118 | I136: 0 | J136: 0 | K136: 0 | O136: 0
A137: 0 | B137: 119 | I137: 0 | J137: 0 | K137: 0 | O137: 0
A138: 0 | B138: 120 | I138: 0 | J138: 0 | K138: 0 | O138: 0
A139: 0 | B139: 121 | I139: 0 | J139: 0 | K139: 0 | O139: 0
A140: 0 | B140: 122 | I140: 0 | J140: 0 | K140: 0 | O140: 0
A141: 0 | B141: 123 | I141: 0 | J141: 0 | K141: 0 | O141: 0
A142: 0 | B142: 124 | I142: 0 | J142: 0 | K142: 0 | O142: 0
A143: 0 | B143: 125 | I143: 0 | J143: 0 | K143: 0 | O143: 0
A144: 0 | B144: 126 | I144: 0 | J144: 0 | K144: 0 | O144: 0
A145: 0 | B145: 127 | I145: =M145/Presentation_curr -> 0 | J145: =N145/Presentation_curr -> 0 | K145: =O145/Presentation_curr -> 0 | O145: 0
A146: =K146 -> 0 | B146: 128 | I146: 0 | J146: 0 | K146: 0 | O146: =M146+N146 -> 0
A147: 0 | B147: 129 | I147: 0 | J147: 0 | K147: 0 | O147: 0
A148: 0 | B148: 130 | I148: 0 | J148: 0 | K148: 0 | O148: 0
A149: 0 | B149: 131 | I149: 0 | J149: 0 | K149: 0 | O149: 0
A150: 0 | B150: 132 | I150: 0 | J150: 0 | K150: 0 | O150: 0
A151: 0 | B151: 133 | I151: 0 | J151: 0 | K151: 0 | O151: 0
A152: 0 | B152: 134 | I152: 0 | J152: 0 | K152: 0 | O152: 0
A153: 0 | B153: 135 | I153: 0 | J153: 0 | K153: 0 | O153: 0
A154: 0 | B154: 136 | I154: 0 | J154: 0 | K154: 0 | O154: 0
A155: 0 | B155: 137 | I155: 0 | J155: 0 | K155: 0 | O155: 0
A156: 0 | B156: 138 | I156: 0 | J156: 0 | K156: 0 | O156: 0
A157: 0 | B157: 139 | I157: 0 | J157: 0 | K157: 0 | O157: 0
A158: 0 | B158: 140 | I158: 0 | J158: 0 | K158: 0 | O158: 0
A159: 0 | B159: 141 | I159: 0 | J159: 0 | K159: 0 | O159: 0
A160: 0 | B160: 142 | I160: 0 | J160: 0 | K160: 0 | O160: 0
A161: 0 | B161: 143 | I161: 0 | J161: 0 | K161: 0 | O161: 0
A162: 0 | B162: 144 | I162: 0 | J162: 0 | K162: 0 | O162: 0
A163: 0 | B163: 145 | I163: 0 | J163: 0 | K163: 0 | O163: 0
A164: 0 | B164: 146 | I164: 0 | J164: 0 | K164: 0 | O164: 0
A165: 0 | B165: 147 | I165: 0 | J165: 0 | K165: 0 | O165: 0
A166: 0 | B166: 148 | I166: 0 | J166: 0 | K166: 0 | O166: 0
A167: 0 | B167: 149 | I167: 0 | J167: 0 | K167: 0 | O167: 0
A168: 0 | B168: 150 | I168: 0 | J168: 0 | K168: 0 | O168: 0
A169: 0 | I169: 0 | J169: 0 | K169: 0 | O169: 0
A170: 0 | B170: 151 | I170: 0 | J170: 0 | K170: 0 | O170: 0
A171: 0 | B171: 152 | I171: 0 | J171: 0 | K171: 0 | O171: 0
A172: 0 | B172: 153 | I172: 0 | J172: 0 | K172: 0 | O172: 0
A173: 0 | B173: 154 | I173: 0 | J173: 0 | K173: 0 | O173: 0
A174: 0 | B174: 155 | I174: 0 | J174: 0 | K174: 0 | O174: 0
A175: 0 | B175: 156 | I175: 0 | J175: 0 | K175: 0 | O175: 0
A176: 0 | B176: 157 | I176: 0 | J176: 0 | K176: 0 | O176: 0
A177: 0 | B177: 158 | I177: 0 | J177: 0 | K177: 0 | O177: 0
A178: 0 | B178: 159 | I178: 0 | J178: 0 | K178: 0 | O178: 0
A179: 0 | B179: 160 | I179: 0 | J179: 0 | K179: 0 | O179: 0
A180: 0 | B180: 161 | I180: 0 | J180: 0 | K180: 0 | O180: 0
A181: 0 | B181: 162 | I181: 0 | J181: 0 | K181: 0 | O181: 0
A182: 0 | B182: 163 | I182: 0 | J182: 0 | K182: 0 | O182: 0
A183: 0 | B183: 164 | I183: 0 | J183: 0 | K183: 0 | O183: 0
A184: 0 | B184: 165 | I184: 0 | J184: 0 | K184: 0 | O184: 0
A185: 0 | B185: 166 | I185: 0 | J185: 0 | K185: 0 | O185: 0
A186: 0 | B186: 167 | I186: 0 | J186: 0 | K186: 0 | O186: 0
A187: 0 | B187: 168 | I187: 0 | J187: 0 | K187: 0 | O187: 0
A188: 0 | B188: 169 | I188: 0 | J188: 0 | K188: 0 | O188: 0
A189: 0 | B189: 170 | I189: 0 | J189: 0 | K189: 0 | O189: 0
A190: 0 | B190: 171 | I190: 0 | J190: 0 | K190: 0 | O190: 0
A191: 0 | B191: 172 | I191: 0 | J191: 0 | K191: 0 | O191: 0
A192: 0 | B192: 173 | I192: 0 | J192: 0 | K192: 0 | O192: 0
A193: 0 | B193: 174 | I193: 0 | J193: 0 | K193: 0 | O193: 0
A194: 0 | B194: 175 | I194: 0 | J194: 0 | K194: 0 | O194: 0
A195: 0 | B195: 176 | I195: 0 | J195: 0 | K195: 0 | O195: 0
A196: 0 | B196: 177 | I196: 0 | J196: 0 | K196: 0 | O196: 0
A197: 0 | B197: 178 | I197: 0 | J197: 0 | K197: 0 | O197: 0
A198: 0 | B198: 179 | I198: 0 | J198: 0 | K198: 0 | O198: 0
A199: 0 | B199: 180 | I199: 0 | J199: 0 | K199: 0 | O199: 0
A200: 0 | B200: 181 | I200: 0 | J200: 0 | K200: 0 | O200: 0
A201: 0 | B201: 182 | I201: 0 | J201: 0 | K201: 0 | O201: 0
A202: 0 | B202: 183 | I202: 0 | J202: 0 | K202: 0 | O202: 0
A203: 0 | B203: 184 | I203: 0 | J203: 0 | K203: 0 | O203: 0
... 98 more rows

Sheet N7 Expenses reconciliation
A1: ='General information'!A1 -> Project STAR
A2: ='General information'!A2 -> xxx
A3: =B8 -> Supporting evidence to be provided by the LGU
A4: =Checks!A4 -> All checks ok
B7: ='General information'!H12 -> xxx
B8: =Language!$D$119 -> Supporting evidence to be provided by the LGU
B9: =Language!$D$13 -> for the year ended 31 December 2014
B10: =ALL -> (Shumat ne ALL'000, nëse nuk shprehet ndryshe)
B12: =Language!D117 -> Account numbers: | E12: =M12 -> Statement of expenses | M12: =Language!D153 -> Statement of expenses
B13: =Language!D118 -> Supporting evidence: | E13: =M13 -> Expenses reconciliation between Treasury and LGU bank book | M13: =Language!D154 -> Expenses reconciliation between Treasury and LGU bank book
E16: =M16 -> Balance as per Treasury | I16: =Q16 -> Balance as per LGU's supporting documents | K16: =S16 -> Difference | M16: =Language!D161 -> Balance as per Treasury | Q16: =Language!$D$159 -> Balance as per LGU's supporting documents | S16: =Language!$D$160 -> Difference
B17: =Language!$D$152 -> Group | C17: Pershkrimi | D17: =Language!$D$139 -> Description | E17: =M17 -> Chapter 01 | F17: =N17 -> Chapter 05 | G17: =O17 -> Total Balance | I17: =Q17 -> 0 | K17: =S17 -> 0 | M17: =Language!$D$156 -> Chapter 01 | N17: =Language!$D$157 -> Chapter 05 | O17: =Language!$D$158 -> Total Balance
E18: =M18 -> 1 | F18: =N18 -> 2 | G18: =O18 -> 3=1+2 | I18: =Q18 -> 4 | K18: =S18 -> 5=3-4 | M18: 1 | N18: 2 | O18: 3=1+2 | Q18: 4 | S18: 5=3-4
B19: 600 | C19: Paga,shperblime e te tjera personeli | D19: Salaries, bonuses | E19: =M19/Presentation_curr -> 0 | F19: =N19/Presentation_curr -> 0 | G19: =O19/Presentation_curr -> 0 | H19: =P19/Presentation_curr -> 0 | I19: =Q19/Presentation_curr -> 0 | J19: =R19/Presentation_curr -> 0 | K19: =S19/Presentation_curr -> 0 | O19: =M19+N19 -> 0 | S19: =O19-Q19 -> 0
B20: 601 | C20: Kontrib.te sig.shoq.e shendets. | D20: health and social insurance contributions | E20: 0 | F20: 0 | G20: 0 | H20: 0 | I20: 0 | J20: 0 | K20: 0 | O20: 0 | S20: 0
B21: 602 | C21: Mallra dhe sherbime te tjera | D21: Other goods and services | E21: 0 | F21: 0 | G21: 0 | H21: 0 | I21: 0 | J21: 0 | K21: 0 | O21: 0 | S21: 0
B22: 603 | C22: Subvencionet | D22: Subsidies | E22: 0 | F22: 0 | G22: 0 | H22: 0 | I22: 0 | J22: 0 | K22: 0 | O22: 0 | S22: 0
B23: 604 | C23: Transferime korrente te brendshme | D23: Current interanl tranfers | E23: 0 | F23: 0 | G23: 0 | H23: 0 | I23: 0 | J23: 0 | K23: 0 | O23: 0 | S23: 0
B24: 605 | C24: Transferime korrente me jashte | D24: Current tranfers with outsiders | E24: 0 | F24: 0 | G24: 0 | H24: 0 | I24: 0 | J24: 0 | K24: 0 | O24: 0 | S24: 0
B25: 606 | C25: Transferta per buxh.familjare e individe | D25: Tranfers family budges and other individuals | E25: 0 | F25: 0 | G25: 0 | H25: 0 | I25: 0 | J25: 0 | K25: 0 | O25: 0 | S25: 0
B26: 650 | C26: Interesa per bono thesarit dhe kredi direkte | D26: Bond interest rates and direct loans | E26: 0 | F26: 0 | G26: 0 | H26: 0 | I26: 0 | J26: 0 | K26: 0 | O26: 0 | S26: 0
B27: 651 | C27: Interesa per huamarrje te tj. Brendshme | D27: Borrowing costs related to loans | E27: 0 | F27: 0 | G27: 0 | H27: 0 | I27: 0 | J27: 0 | K27: 0 | O27: 0 | S27: 0
B28: 652 | C28: Interesa Letra tjera vlere Qeverise | D28: Other interst on government securities | E28: 0 | F28: 0 | G28: 0 | H28: 0 | I28: 0 | J28: 0 | K28: 0 | O28: 0 | S28: 0
B29: 656 | C29: Shpenz.nga kembimet valutore | D29: foreign exchange expenses | E29: 0 | F29: 0 | G29: 0 | H29: 0 | I29: 0 | J29: 0 | K29: 0 | O29: 0 | S29: 0
B30: 660 | C30: Interesa per huamarrje nga Qeveri.te Huaja | D30: Interest on loans from Foreign Governments | E30: 0 | F30: 0 | G30: 0 | H30: 0 | I30: 0 | J30: 0 | K30: 0 | O30: 0 | S30: 0
B31: 661 | C31: Interesa per financime nga Institucionet.nderkomb | D31: Interest on financing from international organizations | E31: 0 | F31: 0 | G31: 0 | H31: 0 | I31: 0 | J31: 0 | K31: 0 | O31: 0 | S31: 0
B32: 662 | C32: Interesa per huamarrje te tjera jashtme | D32: Interest on other foreign loans | E32: 0 | F32: 0 | G32: 0 | H32: 0 | I32: 0 | J32: 0 | K32: 0 | O32: 0 | S32: 0
D33: Total | E33: 0 | F33: 0 | G33: 0 | H33: 0 | I33: 0 | J33: 0 | K33: 0 | M33: =SUM(M19:M32) -> 0 | N33: =SUM(N19:N32) -> 0 | O33: =SUM(O19:O32) -> 0 | Q33: =SUM(Q19:Q32) -> 0 | S33: =O33-Q33 -> 0 | U33: Check: | V33: =Q33-('Bank Journal ''13'!#REF!-'Expenses Treasury Report ''13'!#REF!) -> 

Sheet N8 Revenue reconciliation
A1: ='General information'!A1 -> Project STAR
A2: ='General information'!A2 -> xxx
A3: =B8 -> Supporting evidence to be provided by the LGU
A4: =Checks!A4 -> All checks ok
B7: ='General information'!H12 -> xxx
B8: =Language!$D$119 -> Supporting evidence to be provided by the LGU
B9: =Language!$D$13 -> for the year ended 31 December 2014
B10: (Amounts in ALL'000, unless otherwise stated)
B12: =Language!D117 -> Account numbers: | F12: =Language!D162 -> Statement of revenue
B13: =Language!D118 -> Supporting evidence: | F13: =Language!D163 -> Revenue reconciliation with Treausury
B15: =Language!$D$152 -> Group | C15: =Language!$D$164 -> Title | D15: =Language!$D$165 -> Article | E15: Pershkrimi | F15: =Language!$D$139 -> Description | G15: =M15 -> Total revenue received at bank - reconcile to accounts 700-719 in T3-2 | H15: =N15 -> Transfers IN from the budget (chapter 7) - reconcile to accounts 720 in T3-2 | I15: =O15 -> Total revenue | J15: =P15 -> Transfers OUT to the budget (Reconcile to acc 8420 in T3-1) | K15: =Q15 -> Total revenue share of the institution | M15: =Language!$D$166 -> Total revenue received at bank - reconcile to accounts 700-719 in T3-2 | N15: =Language!$D$167 -> Transfers IN from the budget (chapter 7) - reconcile to accounts 720 in T3-2 | O15: =Language!$D$168 -> Total revenue | P15: =Language!$D$169 -> Transfers OUT to the budget (Reconcile to acc 8420 in T3-1) | Q15: =Language!$D$170 -> Total revenue share of the institution
G16: 1 | H16: 2 | I16: 3=1+2 | J16: 4 | K16: 5=3-4 | M16: 1 | N16: 2 | O16: 3=1+2 | P16: 4 | Q16: 5=3-4
B17: 700 | C17: 7000 | D17: 7000000 | E17: (B) Tatim mbi te ardhurat personale | G17: =M17/Presentation_curr -> 0 | H17: =N17/Presentation_curr -> 0 | I17: =O17/Presentation_curr -> 0 | J17: =P17/Presentation_curr -> 0 | K17: =Q17/Presentation_curr -> 0 | O17: =M17+N17 -> 0 | Q17: =O17-P17 -> 0
B18: 700 | C18: 7000 | D18: 7000100 | E18: Tatim nga te punesuarit ne sherbimin publik | G18: 0 | H18: 0 | I18: 0 | J18: 0 | K18: 0 | O18: =M18+N18 -> 0 | Q18: =O18-P18 -> 0
B19: 700 | C19: 7000 | D19: 7000200 | E19: Tatim nga te punesuarit ne sherbimin jo-publik | G19: 0 | H19: 0 | I19: 0 | J19: 0 | K19: 0 | O19: 0 | Q19: 0
B20: 700 | C20: 7000 | D20: 7000300 | E20: Tatim mbi te ardhurat nga interesat | G20: 0 | H20: 0 | I20: 0 | J20: 0 | K20: 0 | O20: 0 | Q20: 0
B21: 700 | C21: 7000 | D21: 7000400 | E21: Tatim mbi te ardhurat nga qirate | G21: 0 | H21: 0 | I21: 0 | J21: 0 | K21: 0 | O21: 0 | Q21: 0
B22: 700 | C22: 7000 | D22: 7000500 | E22: Tatim mbi fituesit e lojrave te fatit | G22: 0 | H22: 0 | I22: 0 | J22: 0 | K22: 0 | O22: 0 | Q22: 0
B23: 700 | C23: 7000 | D23: 7000600 | E23: Tatim mbi te ardhurat personale biznes i vogel me xhiro 2 - 8 miljone | G23: 0 | H23: 0 | I23: 0 | J23: 0 | K23: 0 | O23: 0 | Q23: 0
B24: 700 | C24: 7000 | D24: 7000900 | E24: Te tjera tatime mbi te ardhurat mbajtur ne burim | G24: 0 | H24: 0 | I24: 0 | J24: 0 | K24: 0 | O24: 0 | Q24: 0
B25: 700 | C25: 7000 | D25: 7000901 | E25: Tatim ne Burim per legalizimin e shumes net e holla nga individet (3%) | G25: 0 | H25: 0 | I25: 0 | J25: 0 | K25: 0 | O25: 0 | Q25: 0
B26: 700 | C26: 7001 | D26: 7001000 | E26: (B) Tatim mbi fitimin | G26: 0 | H26: 0 | I26: 0 | J26: 0 | K26: 0 | O26: 0 | Q26: 0
B27: 700 | C27: 7001 | D27: 7001100 | E27: Tatim mbi fitimin nga ndermarjet e sektorit publik | G27: 0 | H27: 0 | I27: 0 | J27: 0 | K27: 0 | O27: 0 | Q27: 0
B28: 700 | C28: 7001 | D28: 7001200 | E28: Tatim mbi fitimin nga subjektet e sektorit privat | G28: 0 | H28: 0 | I28: 0 | J28: 0 | K28: 0 | O28: 0 | Q28: 0
B29: 700 | C29: 7001 | D29: 7001300 | E29: Tatim mbi fitimin nga subjektet e "lojrave te fatit" | G29: 0 | H29: 0 | I29: 0 | J29: 0 | K29: 0 | O29: 0 | Q29: 0
B30: 700 | C30: 7002 | D30: 7002000 | E30: (B) Takse dhe tatime mbi bisnesin e vogel | G30: 0 | H30: 0 | I30: 0 | J30: 0 | K30: 0 | O30: 0 | Q30: 0
B31: 700 | C31: 7002 | D31: 7002100 | E31: Takse vendore mbi bisnesin e vogel | F31: Local fee on small business | G31: 0 | H31: 0 | I31: 0 | J31: 0 | K31: 0 | O31: 0 | Q31: 0
B32: 700 | C32: 7002 | D32: 7002200 | E32: Tatim i thjeshtuar mbi fitimin | F32: Simplified tax on profits | G32: 0 | H32: 0 | I32: 0 | J32: 0 | K32: 0 | O32: 0 | Q32: 0
B33: 700 | C33: 7009 | D33: 7009000 | E33: (B) Te tjera tatime mbi te ardhurat personale, fitimin dhe te ardhurat kapitale | G33: 0 | H33: 0 | I33: 0 | J33: 0 | K33: 0 | O33: 0 | Q33: 0
B34: 700 | C34: 7009 | D34: 7009100 | E34: Tatimet mbi te ardhurat nga dividentet dhe aksionet | G34: 0 | H34: 0 | I34: 0 | J34: 0 | K34: 0 | O34: 0 | Q34: 0
B35: 700 | C35: 7009 | D35: 7009200 | E35: Tatimet mbi te drejten e autorit dhe pronesine intelektuale | G35: 0 | H35: 0 | I35: 0 | J35: 0 | K35: 0 | O35: 0 | Q35: 0
B36: 700 | C36: 7009 | D36: 7009900 | E36: Te tjera taksa mbi te ardhurat personale, fitimin e te ardhurat kapitale | G36: 0 | H36: 0 | I36: 0 | J36: 0 | K36: 0 | O36: 0 | Q36: 0
B37: 700 | C37: 7009 | D37: 7009999 | E37: (B) Tax budget release | G37: 0 | H37: 0 | I37: 0 | J37: 0 | K37: 0 | O37: 0 | Q37: 0
B38: 702 | C38: 7020 | D38: 7020000 | E38: (B) Tatim mbi pasurine (Budget Only) | G38: 0 | H38: 0 | I38: 0 | J38: 0 | K38: 0 | O38: 0 | Q38: 0
B39: 702 | C39: 7020 | D39: 7020100 | E39: (B,A) Tatim mbi token bujqesore | F39: Tax on agricultural land | G39: 0 | H39: 0 | I39: 0 | J39: 0 | K39: 0 | O39: 0 | Q39: 0
B40: 702 | C40: 7020 | D40: 7020200 | E40: (B,A) Tatim mbi ndertesat | F40: Tax on buildings | G40: 0 | H40: 0 | I40: 0 | J40: 0 | K40: 0 | O40: 0 | Q40: 0
B41: 702 | C41: 7020 | D41: 7020300 | E41: Tatim nga rivlersimi I pasurise se personave juridik (3%) | G41: 0 | H41: 0 | I41: 0 | J41: 0 | K41: 0 | O41: 0 | Q41: 0
B42: 702 | C42: 7020 | D42: 7020400 | E42: Tatim nga rivlersimi I pasurise se personave juridik (5%) | G42: 0 | H42: 0 | I42: 0 | J42: 0 | K42: 0 | O42: 0 | Q42: 0
B43: 702 | C43: 7020 | D43: 7020500 | E43: Tatim nga rivlersimi I pasurise se individeve (1%) | G43: 0 | H43: 0 | I43: 0 | J43: 0 | K43: 0 | O43: 0 | Q43: 0
B44: 702 | C44: 7021 | D44: 7021100 | E44: Tatim, shitja e pasurise se paluajteshme | G44: 0 | H44: 0 | I44: 0 | J44: 0 | K44: 0 | O44: 0 | Q44: 0
B45: 702 | C45: 7021 | D45: 7021200 | E45: Tatim, trashegimia dhe dhurimi | G45: 0 | H45: 0 | I45: 0 | J45: 0 | K45: 0 | O45: 0 | Q45: 0
B46: 702 | C46: 7029 | D46: 7029000 | E46: (B) Te tjera taksa | G46: 0 | H46: 0 | I46: 0 | J46: 0 | K46: 0 | O46: 0 | Q46: 0
B47: 702 | C47: 7029 | D47: 7029100 | E47: Te tjera takse per shitjen e pasurive te luajtshme | G47: 0 | H47: 0 | I47: 0 | J47: 0 | K47: 0 | O47: 0 | Q47: 0
B48: 702 | C48: 7029 | D48: 7029200 | E48: Taksa per kalimin e te drejtes se pronesise se pasurise se paluajtshme | F48: Fee for the transfer of the right of ownership of immovable property | G48: 0 | H48: 0 | I48: 0 | J48: 0 | K48: 0 | O48: 0 | Q48: 0
B49: 703 | C49: 7030 | D49: 7030000 | E49: (B) TVSH - Tatim mbi Vleren e Shtuar | G49: 0 | H49: 0 | I49: 0 | J49: 0 | K49: 0 | O49: 0 | Q49: 0
B50: 703 | C50: 7030 | D50: 7030100 | E50: TVSH mbi mallrat dhe sherbimet brenda vendit | G50: 0 | H50: 0 | I50: 0 | J50: 0 | K50: 0 | O50: 0 | Q50: 0
B51: 703 | C51: 7030 | D51: 7030200 | E51: TVSH mbi mallrat e importuara | G51: 0 | H51: 0 | I51: 0 | J51: 0 | K51: 0 | O51: 0 | Q51: 0
B52: 703 | C52: 7031 | D52: 7031000 | E52: (B) Akciza | G52: 0 | H52: 0 | I52: 0 | J52: 0 | K52: 0 | O52: 0 | Q52: 0
B53: 703 | C53: 7031 | D53: 7031100 | E53: Akcize cigaret | G53: 0 | H53: 0 | I53: 0 | J53: 0 | K53: 0 | O53: 0 | Q53: 0
B54: 703 | C54: 7031 | D54: 7031200 | E54: Pije alkoolike - akcise e parapaguar | G54: 0 | H54: 0 | I54: 0 | J54: 0 | K54: 0 | O54: 0 | Q54: 0
B55: 703 | C55: 7031 | D55: 7031300 | E55: Pije alkoolike - akcise e mbledhur nga Dogana | G55: 0 | H55: 0 | I55: 0 | J55: 0 | K55: 0 | O55: 0 | Q55: 0
B56: 703 | C56: 7031 | D56: 7031400 | E56: Akcize karburanti i prodhuar ne vend | G56: 0 | H56: 0 | I56: 0 | J56: 0 | K56: 0 | O56: 0 | Q56: 0
B57: 703 | C57: 7031 | D57: 7031500 | E57: Akcize karburanti i importuar | G57: 0 | H57: 0 | I57: 0 | J57: 0 | K57: 0 | O57: 0 | Q57: 0
B58: 703 | C58: 7031 | D58: 7031600 | E58: Akcize - kafe | G58: 0 | H58: 0 | I58: 0 | J58: 0 | K58: 0 | O58: 0 | Q58: 0
B59: 703 | C59: 7031 | D59: 7031700 | E59: Takse e akcizes per ambalazhin(Plastik,qelq,i perzjere) | G59: 0 | H59: 0 | I59: 0 | J59: 0 | K59: 0 | O59: 0 | Q59: 0
B60: 703 | C60: 7031 | D60: 7031900 | E60: Akcize - te tjera (alkol per prodhim pijesh etj.) | G60: 0 | H60: 0 | I60: 0 | J60: 0 | K60: 0 | O60: 0 | Q60: 0
B61: 703 | C61: 7032 | D61: 7032000 | E61: (B) Taksa mbi sherbime specifike | G61: 0 | H61: 0 | I61: 0 | J61: 0 | K61: 0 | O61: 0 | Q61: 0
B62: 703 | C62: 7032 | D62: 7032100 | E62: Takse mbi llotarite | G62: 0 | H62: 0 | I62: 0 | J62: 0 | K62: 0 | O62: 0 | Q62: 0
B63: 703 | C63: 7032 | D63: 7032200 | E63: Takse mbi bingot dhe lojrat aritmetike | G63: 0 | H63: 0 | I63: 0 | J63: 0 | K63: 0 | O63: 0 | Q63: 0
B64: 703 | C64: 7032 | D64: 7032300 | E64: Takse mbi automatet e lojrave te fatit dhe bilardot | G64: 0 | H64: 0 | I64: 0 | J64: 0 | K64: 0 | O64: 0 | Q64: 0
B65: 703 | C65: 7032 | D65: 7032400 | E65: Takse mbi kazinote | G65: 0 | H65: 0 | I65: 0 | J65: 0 | K65: 0 | O65: 0 | Q65: 0
B66: 703 | C66: 7032 | D66: 7032500 | E66: Takse mbi lojrat sportive | G66: 0 | H66: 0 | I66: 0 | J66: 0 | K66: 0 | O66: 0 | Q66: 0
B67: 703 | C67: 7032 | D67: 7032900 | E67: Taksa te tjera te ngjashme | G67: 0 | H67: 0 | I67: 0 | J67: 0 | K67: 0 | O67: 0 | Q67: 0
B68: 703 | C68: 7033 | D68: 7033000 | E68: (B) Taksa mbi perdorimin e mallrave ose lejimin e veprimtarive | G68: 0 | H68: 0 | I68: 0 | J68: 0 | K68: 0 | O68: 0 | Q68: 0
B69: 703 | C69: 7033 | D69: 7033001 | E69: Takse nacionale per rregjistrimin e pervitshem te automjeteve | G69: 0 | H69: 0 | I69: 0 | J69: 0 | K69: 0 | O69: 0 | Q69: 0
B70: 703 | C70: 7033 | D70: 7033002 | E70: Takse vjetore nacionale e tonazhit te automjeteve per aks | G70: 0 | H70: 0 | I70: 0 | J70: 0 | K70: 0 | O70: 0 | Q70: 0
B71: 703 | C71: 7033 | D71: 7033003 | E71: Takse nacionale per qarkullimin e automjeteve te huaja | G71: 0 | H71: 0 | I71: 0 | J71: 0 | K71: 0 | O71: 0 | Q71: 0
B72: 703 | C72: 7033 | D72: 7033004 | E72: Takse nacionale per rregjistrimin e lojrave te fatit, llotarive etj | G72: 0 | H72: 0 | I72: 0 | J72: 0 | K72: 0 | O72: 0 | Q72: 0
B73: 703 | C73: 7033 | D73: 7033005 | E73: Takse nacionale vjetore per licensimin e transmetimeve radio-televizive | G73: 0 | H73: 0 | I73: 0 | J73: 0 | K73: 0 | O73: 0 | Q73: 0
B74: 703 | C74: 7033 | D74: 7033006 | E74: Takse nacionale per perdorimin e aparateve Radio - Televizive | G74: 0 | H74: 0 | I74: 0 | J74: 0 | K74: 0 | O74: 0 | Q74: 0
B75: 703 | C75: 7033 | D75: 7033007 | E75: Takse nacioanle per sherbimet e radio-telekomunikacioneve | G75: 0 | H75: 0 | I75: 0 | J75: 0 | K75: 0 | O75: 0 | Q75: 0
B76: 703 | C76: 7033 | D76: 7033008 | E76: Takse nacioanale per perdorimin e aparateve telefonike | G76: 0 | H76: 0 | I76: 0 | J76: 0 | K76: 0 | O76: 0 | Q76: 0
B77: 703 | C77: 7033 | D77: 7033009 | E77: Takse nacionale per lejen e ushtrimit te veprimtarise se peshkimit | G77: 0 | H77: 0 | I77: 0 | J77: 0 | K77: 0 | O77: 0 | Q77: 0
B78: 703 | C78: 7033 | D78: 7033010 | E78: Takse nacionale e karbonit per benzinen, benzolin dhe gazoilin | G78: 0 | H78: 0 | I78: 0 | J78: 0 | K78: 0 | O78: 0 | Q78: 0
B79: 703 | C79: 7033 | D79: 7033011 | E79: Takse nacionale per ambalazhet plastike te lengjeve te ambalazhuara (shishe, bidona etj) | G79: 0 | H79: 0 | I79: 0 | J79: 0 | K79: 0 | O79: 0 | Q79: 0
B80: 703 | C80: 7033 | D80: 7033012 | E80: Takse nacionale per renten Minerare | G80: 0 | H80: 0 | I80: 0 | J80: 0 | K80: 0 | O80: 0 | Q80: 0
B81: 703 | C81: 7033 | D81: 7033013 | E81: Takse mbi te drejten e perdorimit te Truallit Shtetror- nga individet | G81: =M81/Presentation_curr -> 0 | H81: =N81/Presentation_curr -> 0 | I81: =O81/Presentation_curr -> 0 | J81: =P81/Presentation_curr -> 0 | K81: =Q81/Presentation_curr -> 0 | O81: 0 | Q81: 0
B82: 703 | C82: 7033 | D82: 7033014 | E82: Takse mbi te drejten e perdorimit te Truallit Shtetror- nga persona juridik tregtare dhe ndermarrje shtetrore | G82: 0 | H82: 0 | I82: 0 | J82: 0 | K82: 0 | O82: =M82+N82 -> 0 | Q82: =O82-P82 -> 0
B83: 703 | C83: 7033 | D83: 7033015 | E83: Takse mbi te drejten e perdorimit te Truallit Shtetror- nga persona juridik tregtare | G83: 0 | H83: 0 | I83: 0 | J83: 0 | K83: 0 | O83: 0 | Q83: 0
B84: 703 | C84: 7033 | D84: 7033099 | E84: Te tjera taksa kombetare mbi perdorimin e mallrave ose lejimin e veprimtarive | G84: 0 | H84: 0 | I84: 0 | J84: 0 | K84: 0 | O84: 0 | Q84: 0
B85: 703 | C85: 7035 | D85: 7035000 | E85: (B) Taksa te njesive vendore mbi perdorimin e mallrave ose lejimin e veprimtarive | G85: 0 | H85: 0 | I85: 0 | J85: 0 | K85: 0 | O85: 0 | Q85: 0
B86: 703 | C86: 7035 | D86: 7035001 | E86: Takse vendore per rregjistrim biznesi | F86: Local fee on business registration | G86: 0 | H86: 0 | I86: 0 | J86: 0 | K86: 0 | O86: 0 | Q86: 0
B87: 703 | C87: 7035 | D87: 7035002 | E87: Takse vendore per zenien e hapesirave publike | F87: Local fee for use of public space | G87: 0 | H87: 0 | I87: 0 | J87: 0 | K87: 0 | O87: 0 | Q87: 0
B88: 703 | C88: 7035 | D88: 7035003 | E88: Takse vendore e ndikimit te infranstruktures nga ndertimet e reja dhe legalizimet | F88: Local fee from the impact of infrastructure and new constructions and legalization | G88: 0 | H88: 0 | I88: 0 | J88: 0 | K88: 0 | O88: 0 | Q88: 0
B89: 703 | C89: 7035 | D89: 7035004 | E89: Takse gjuetie - vendore | G89: 0 | H89: 0 | I89: 0 | J89: 0 | K89: 0 | O89: 0 | Q89: 0
B90: 703 | C90: 7035 | D90: 7035005 | E90: Takse vendore per fjetjen ne hotel | G90: 0 | H90: 0 | I90: 0 | J90: 0 | K90: 0 | O90: 0 | Q90: 0
B91: 703 | C91: 7035 | D91: 7035006 | E91: Tatim vendor mbi xhiron e hoteleve dhe restoranteve | G91: 0 | H91: 0 | I91: 0 | J91: 0 | K91: 0 | O91: 0 | Q91: 0
B92: 703 | C92: 7035 | D92: 7035007 | E92: Takse per therrjen e bagetive - vendore | F92: Local fee on livestock slaughter | G92: 0 | H92: 0 | I92: 0 | J92: 0 | K92: 0 | O92: 0 | Q92: 0
B93: 703 | C93: 7035 | D93: 7035008 | E93: Takse vendore per reklamat | F93: Local fee on advertising | G93: 0 | H93: 0 | I93: 0 | J93: 0 | K93: 0 | O93: 0 | Q93: 0
B94: 703 | C94: 7035 | D94: 7035009 | E94: Taksa vendore e tabeles | F94: Local fee on billboards | G94: 0 | H94: 0 | I94: 0 | J94: 0 | K94: 0 | O94: 0 | Q94: 0
B95: 703 | C95: 7035 | D95: 7035010 | E95: Tarife perimetrale - vendore | G95: 0 | H95: 0 | I95: 0 | J95: 0 | K95: 0 | O95: 0 | Q95: 0
B96: 703 | C96: 7035 | D96: 7035011 | E96: Tarife vendore per shfrytezimin e lendes drusore | G96: 0 | H96: 0 | I96: 0 | J96: 0 | K96: 0 | O96: 0 | Q96: 0
B97: 703 | C97: 7035 | D97: 7035012 | E97: Taksa vendore te perkohshme | G97: 0 | H97: 0 | I97: 0 | J97: 0 | K97: 0 | O97: 0 | Q97: 0
B98: 703 | C98: 7035 | D98: 7035013 | E98: Taksa vendore e gjelbert | F98: Green local tax | G98: 0 | H98: 0 | I98: 0 | J98: 0 | K98: 0 | O98: 0 | Q98: 0
B99: 703 | C99: 7035 | D99: 7035014 | E99: Taksa vendore e pastrimit | G99: 0 | H99: 0 | I99: 0 | J99: 0 | K99: 0 | O99: 0 | Q99: 0
B100: 703 | C100: 7035 | D100: 7035099 | E100: Te tjera taksa dhe tarifa te njesive vendore te paklasifikuara | F100: Other unclassified fees and tariffs on local units | G100: 0 | H100: 0 | I100: 0 | J100: 0 | K100: 0 | O100: 0 | Q100: 0
B101: 704 | C101: 7040 | D101: 7040000 | E101: (B) Taksa mbi tregtine dhe transaksionet nderkombetare | G101: 0 | H101: 0 | I101: 0 | J101: 0 | K101: 0 | O101: 0 | Q101: 0
B102: 704 | C102: 7040 | D102: 7040100 | E102: Taksa doganore per mallrat e importit | G102: 0 | H102: 0 | I102: 0 | J102: 0 | K102: 0 | O102: 0 | Q102: 0
B103: 704 | C103: 7041 | D103: 7041100 | E103: Taksa doganore per mallrat e eksportit | G103: 0 | H103: 0 | I103: 0 | J103: 0 | K103: 0 | O103: 0 | Q103: 0
B104: 704 | C104: 7042 | D104: 7042100 | E104: Tarife sherbimi doganor dhe koliposte | G104: 0 | H104: 0 | I104: 0 | J104: 0 | K104: 0 | O104: 0 | Q104: 0
B105: 704 | C105: 7049 | D105: 7049000 | E105: (B) Te tjera mbi tregetine e transaksionet nderkombetare | G105: 0 | H105: 0 | I105: 0 | J105: 0 | K105: 0 | O105: 0 | Q105: 0
B106: 704 | C106: 7049 | D106: 7049100 | E106: Takse per importin e automjeteve te perdorura | G106: 0 | H106: 0 | I106: 0 | J106: 0 | K106: 0 | O106: 0 | Q106: 0
B107: 704 | C107: 7049 | D107: 7049200 | E107: Takse tranziti nderkombetar e doganes | G107: 0 | H107: 0 | I107: 0 | J107: 0 | K107: 0 | O107: 0 | Q107: 0
B108: 704 | C108: 7049 | D108: 7049900 | E108: Te tjera taksa per transaksionet nderkombetare | G108: 0 | H108: 0 | I108: 0 | J108: 0 | K108: 0 | O108: 0 | Q108: 0
B109: 705 | C109: 7050 | D109: 7050000 | E109: (B) Taksa e rruges Durres - Kukes | G109: 0 | H109: 0 | I109: 0 | J109: 0 | K109: 0 | O109: 0 | Q109: 0
B110: 705 | C110: 7050 | D110: 7050100 | E110: Mbitaksa per importet e taksueshme | G110: 0 | H110: 0 | I110: 0 | J110: 0 | K110: 0 | O110: 0 | Q110: 0
B111: 705 | C111: 7050 | D111: 7050200 | E111: Takse mbi konsumin e karburantit te importuar | G111: 0 | H111: 0 | I111: 0 | J111: 0 | K111: 0 | O111: 0 | Q111: 0
B112: 705 | C112: 7050 | D112: 7050300 | E112: Takse per konsumin e karburantit te prodhuar ne vend | G112: 0 | H112: 0 | I112: 0 | J112: 0 | K112: 0 | O112: 0 | Q112: 0
B113: 705 | C113: 7050 | D113: 7050400 | E113: Taksa vjetore e rruges per tatim paguesit e TVSH | G113: 0 | H113: 0 | I113: 0 | J113: 0 | K113: 0 | O113: 0 | Q113: 0
B114: 705 | C114: 7050 | D114: 7050500 | E114: Takse vjetore e qarkullimit dhe e perdorimit te karburantit rrugor | G114: 0 | H114: 0 | I114: 0 | J114: 0 | K114: 0 | O114: 0 | Q114: 0
B115: 708 | C115: 7081 | D115: 7081000 | E115: (B) Te tjera taksa kombetare | G115: 0 | H115: 0 | I115: 0 | J115: 0 | K115: 0 | O115: 0 | Q115: 0
B116: 708 | C116: 7081 | D116: 7081001 | E116: Takse e solidaritetit per rendin dhe mbrojtjen | G116: 0 | H116: 0 | I116: 0 | J116: 0 | K116: 0 | O116: 0 | Q116: 0
B117: 708 | C117: 7081 | D117: 7081002 | E117: Takse per kalim kufiri te Republikes se Shqiperise me avion | G117: 0 | H117: 0 | I117: 0 | J117: 0 | K117: 0 | O117: 0 | Q117: 0
B118: 708 | C118: 7081 | D118: 7081003 | E118: Takse per uljen, ngritjen e qendrimin e avioneve ne aeroport | G118: 0 | H118: 0 | I118: 0 | J118: 0 | K118: 0 | O118: 0 | Q118: 0
B119: 708 | C119: 7081 | D119: 7081004 | E119: Takse per mbikalimet ajrore mbi territorin e Rep.se Shqiperise | G119: 0 | H119: 0 | I119: 0 | J119: 0 | K119: 0 | O119: 0 | Q119: 0
B120: 708 | C120: 7081 | D120: 7081005 | E120: Takse portuale | G120: 0 | H120: 0 | I120: 0 | J120: 0 | K120: 0 | O120: 0 | Q120: 0
B121: 708 | C121: 7081 | D121: 7081006 | E121: Taksa e akteve dhe e pulles | G121: 0 | H121: 0 | I121: 0 | J121: 0 | K121: 0 | O121: 0 | Q121: 0
B122: 708 | C122: 7081 | D122: 7081099 | E122: Te tjera taksa kombetare | G122: 0 | H122: 0 | I122: 0 | J122: 0 | K122: 0 | O122: 0 | Q122: 0
B123: 709 | C123: 7090 | D123: 7090100 | E123: Kamatevonesa te Sistemit Tatimor | G123: 0 | H123: 0 | I123: 0 | J123: 0 | K123: 0 | O123: 0 | Q123: 0
B124: 709 | C124: 7090 | D124: 7090101 | E124: Kamatvonesa per sigurimet shoqerore | G124: 0 | H124: 0 | I124: 0 | J124: 0 | K124: 0 | O124: 0 | Q124: 0
B125: 709 | C125: 7090 | D125: 7090102 | E125: Kamat vonesa per TVSH | G125: 0 | H125: 0 | I125: 0 | J125: 0 | K125: 0 | O125: 0 | Q125: 0
B126: 709 | C126: 7090 | D126: 7090103 | E126: Kamat vonesa tatime te tjera | G126: 0 | H126: 0 | I126: 0 | J126: 0 | K126: 0 | O126: 0 | Q126: 0
B127: 709 | C127: 7094 | D127: 7094100 | E127: Kamatvonesa nga gjoba te sistemit doganor per importet | G127: 0 | H127: 0 | I127: 0 | J127: 0 | K127: 0 | O127: 0 | Q127: 0
B128: 709 | C128: 7094 | D128: 7094200 | E128: Kamatvonesa nga gjoba te sistemit doganor per exportet | G128: 0 | H128: 0 | I128: 0 | J128: 0 | K128: 0 | O128: 0 | Q128: 0
B129: 710 | C129: 7100 | D129: 7100000 | E129: (B) Divident_Te Ardhura nga Nd/jet Publike Jo-financiare | G129: 0 | H129: 0 | I129: 0 | J129: 0 | K129: 0 | O129: 0 | Q129: 0
B130: 710 | C130: 7100 | D130: 7100100 | E130: Divident_Te ardhura nga ndermarrjet shteterore | G130: 0 | H130: 0 | I130: 0 | J130: 0 | K130: 0 | O130: 0 | Q130: 0
B131: 710 | C131: 7100 | D131: 7100200 | E131: Divident_Te ardhura shoqerite e perbashketa | G131: 0 | H131: 0 | I131: 0 | J131: 0 | K131: 0 | O131: 0 | Q131: 0
B132: 710 | C132: 7100 | D132: 7100300 | E132: Divident_Te ardhura te tjera nga ndermarrjet publike jofinanciare | G132: 0 | H132: 0 | I132: 0 | J132: 0 | K132: 0 | O132: 0 | Q132: 0
B133: 710 | C133: 7100 | D133: 7100400 | E133: Divident_Te ardhura nga pjesmarrja ne fitim - shoqerite koncensionare | G133: 0 | H133: 0 | I133: 0 | J133: 0 | K133: 0 | O133: 0 | Q133: 0
B134: 710 | C134: 7101 | D134: 7101000 | E134: (B) Divident_Te Ardhura nga Nd/jet Publike Financiare | G134: 0 | H134: 0 | I134: 0 | J134: 0 | K134: 0 | O134: 0 | Q134: 0
B135: 710 | C135: 7101 | D135: 7101100 | E135: Divident_Te ardhura nga Banka e Shqiperise | G135: 0 | H135: 0 | I135: 0 | J135: 0 | K135: 0 | O135: 0 | Q135: 0
B136: 710 | C136: 7101 | D136: 7101200 | E136: Divident_Te ardhura nga bankat tregtare (te nivelit te dyte) | G136: 0 | H136: 0 | I136: 0 | J136: 0 | K136: 0 | O136: 0 | Q136: 0
B137: 710 | C137: 7101 | D137: 7101300 | E137: Divident_Te ardhura nga kompanite e sigurimeve | G137: 0 | H137: 0 | I137: 0 | J137: 0 | K137: 0 | O137: 0 | Q137: 0
B138: 710 | C138: 7101 | D138: 7101900 | E138: Divident_Te ardhura te tjera nga ndermarrjet publike financiare | G138: 0 | H138: 0 | I138: 0 | J138: 0 | K138: 0 | O138: 0 | Q138: 0
B139: 710 | C139: 7109 | D139: 7109000 | E139: (B) Te ardhura te tjera nga ndermarrjet dhe pronesia | G139: 0 | H139: 0 | I139: 0 | J139: 0 | K139: 0 | O139: 0 | Q139: 0
B140: 710 | C140: 7109 | D140: 7109100 | E140: Te ardhura nga qera per toke bujqesore | F140: Income from rentals of agricultural land | G140: 0 | H140: 0 | I140: 0 | J140: 0 | K140: 0 | O140: 0 | Q140: 0
B141: 710 | C141: 7109 | D141: 7109200 | E141: Te ardhura nga qera per troje | F141: Income from rentals of land | G141: 0 | H141: 0 | I141: 0 | J141: 0 | K141: 0 | O141: 0 | Q141: 0
B142: 710 | C142: 7109 | D142: 7109300 | E142: Te ardhura nga renta minerare ose karieres | G142: 0 | H142: 0 | I142: 0 | J142: 0 | K142: 0 | O142: 0 | Q142: 0
B143: 710 | C143: 7109 | D143: 7109400 | E143: Te ardhura nga shfrytezimi i nentokes | G143: 0 | H143: 0 | I143: 0 | J143: 0 | K143: 0 | O143: 0 | Q143: 0
B144: 710 | C144: 7109 | D144: 7109500 | E144: Te ardhura nga llotarite shteterore | G144: 0 | H144: 0 | I144: 0 | J144: 0 | K144: 0 | O144: 0 | Q144: 0
B145: 710 | C145: 7109 | D145: 7109600 | E145: Te ardhura nga qera per ndertesatt | F145: Income form rentals of buildings | G145: =M145/Presentation_curr -> 0 | H145: =N145/Presentation_curr -> 0 | I145: =O145/Presentation_curr -> 0 | J145: =P145/Presentation_curr -> 0 | K145: =Q145/Presentation_curr -> 0 | O145: 0 | Q145: 0
B146: 710 | C146: 7109 | D146: 7109700 | E146: Te ardhura nga qira per paisjet | G146: 0 | H146: 0 | I146: 0 | J146: 0 | K146: 0 | O146: =M146+N146 -> 0 | Q146: =O146-P146 -> 0
B147: 710 | C147: 7109 | D147: 7109800 | E147: Te ardhura korente nga koncensionet | G147: 0 | H147: 0 | I147: 0 | J147: 0 | K147: 0 | O147: 0 | Q147: 0
B148: 710 | C148: 7109 | D148: 7109900 | E148: Te tjera te ardhura nga nderrmarjet dhe pronesia | G148: 0 | H148: 0 | I148: 0 | J148: 0 | K148: 0 | O148: 0 | Q148: 0
B149: 710 | C149: 7109 | D149: 7109999 | E149: (B) Non Tax Budget release | G149: 0 | H149: 0 | I149: 0 | J149: 0 | K149: 0 | O149: 0 | Q149: 0
B150: 711 | C150: 7110 | D150: 7110000 | E150: (B) Tarifa administrative dhe rregullatore | G150: 0 | H150: 0 | I150: 0 | J150: 0 | K150: 0 | O150: 0 | Q150: 0
B151: 711 | C151: 7110 | D151: 7110101 | E151: Tarifa per sherbime konsullore | G151: 0 | H151: 0 | I151: 0 | J151: 0 | K151: 0 | O151: 0 | Q151: 0
B152: 711 | C152: 7110 | D152: 7110102 | E152: Tarifa per pajisjen me deshmi aftesie per drejtim automjeti | G152: 0 | H152: 0 | I152: 0 | J152: 0 | K152: 0 | O152: 0 | Q152: 0
B153: 711 | C153: 7110 | D153: 7110103 | E153: Tarifa per rregjistrimin ne arsim te larte | G153: 0 | H153: 0 | I153: 0 | J153: 0 | K153: 0 | O153: 0 | Q153: 0
B154: 711 | C154: 7110 | D154: 7110104 | E154: Tarifa per pasaporte lundrimi te personave | G154: 0 | H154: 0 | I154: 0 | J154: 0 | K154: 0 | O154: 0 | Q154: 0
B155: 711 | C155: 7110 | D155: 7110105 | E155: Tarifa per aktet administrative | F155: Administrative tariffs | G155: 0 | H155: 0 | I155: 0 | J155: 0 | K155: 0 | O155: 0 | Q155: 0
B156: 711 | C156: 7110 | D156: 7110106 | E156: Tarifa per leje transporti | F156: Tariffs for transportation permits | G156: 0 | H156: 0 | I156: 0 | J156: 0 | K156: 0 | O156: 0 | Q156: 0
B157: 711 | C157: 7110 | D157: 7110107 | E157: Tarifa per rregjistrimin e barreve siguruese | G157: 0 | H157: 0 | I157: 0 | J157: 0 | K157: 0 | O157: 0 | Q157: 0
B158: 711 | C158: 7110 | D158: 7110108 | E158: Tarifa per leje teknike profesionale | G158: 0 | H158: 0 | I158: 0 | J158: 0 | K158: 0 | O158: 0 | Q158: 0
B159: 711 | C159: 7110 | D159: 7110109 | E159: Tarifa shkollimi | G159: 0 | H159: 0 | I159: 0 | J159: 0 | K159: 0 | O159: 0 | Q159: 0
B160: 711 | C160: 7110 | D160: 7110110 | E160: Tarifa nga konkurset | G160: 0 | H160: 0 | I160: 0 | J160: 0 | K160: 0 | O160: 0 | Q160: 0
B161: 711 | C161: 7110 | D161: 7110111 | E161: Tarifa nga lejet per zhvillimin e lojra te fatit | G161: 0 | H161: 0 | I161: 0 | J161: 0 | K161: 0 | O161: 0 | Q161: 0
B162: 711 | C162: 7110 | D162: 7110112 | E162: Tarife sherbimi veprime bankare-ZRPP | G162: 0 | H162: 0 | I162: 0 | J162: 0 | K162: 0 | O162: 0 | Q162: 0
B163: 711 | C163: 7110 | D163: 7110113 | E163: Tarife sherbimi,regjistrim fillestar-ZRPP | G163: 0 | H163: 0 | I163: 0 | J163: 0 | K163: 0 | O163: 0 | Q163: 0
B164: 711 | C164: 7110 | D164: 7110114 | E164: Tarife sherbimi,tjetersimi i oborreve AKKP | G164: 0 | H164: 0 | I164: 0 | J164: 0 | K164: 0 | O164: 0 | Q164: 0
B165: 711 | C165: 7110 | D165: 7110115 | E165: Tarife sherbimi per kalimin e kufirit me avjon | G165: 0 | H165: 0 | I165: 0 | J165: 0 | K165: 0 | O165: 0 | Q165: 0
B166: 711 | C166: 7110 | D166: 7110116 | E166: Tarife sherbimi per licencat radiotelevizive | G166: 0 | H166: 0 | I166: 0 | J166: 0 | K166: 0 | O166: 0 | Q166: 0
B167: 711 | C167: 7110 | D167: 7110117 | E167: Tarife sherbimi per sherbimet e radiokomunikacionit | G167: 0 | H167: 0 | I167: 0 | J167: 0 | K167: 0 | O167: 0 | Q167: 0
B168: 711 | C168: 7110 | D168: 7110118 | E168: Tarife sherbimi per qarkullimin e automjeteve te huaja | G168: 0 | H168: 0 | I168: 0 | J168: 0 | K168: 0 | O168: 0 | Q168: 0
B169: 711 | C169: 7110 | D169: 7110119 | E169: Tarife sherbimi per perdorimin e aparateve televiziv | G169: 0 | H169: 0 | I169: 0 | J169: 0 | K169: 0 | O169: 0 | Q169: 0
B170: 711 | C170: 7110 | D170: 7110120 | E170: Tarifa administrative dhe rregullatore nacionale | G170: 0 | H170: 0 | I170: 0 | J170: 0 | K170: 0 | O170: 0 | Q170: 0
B171: 711 | C171: 7110 | D171: 7110121 | E171: Tarifa administrative per autorizim AKCIZE Kafe | G171: 0 | H171: 0 | I171: 0 | J171: 0 | K171: 0 | O171: 0 | Q171: 0
B172: 711 | C172: 7110 | D172: 7110122 | E172: Tarifa administrative per autorizim AKCIZE Duhan-Cigare | G172: 0 | H172: 0 | I172: 0 | J172: 0 | K172: 0 | O172: 0 | Q172: 0
B173: 711 | C173: 7110 | D173: 7110123 | E173: Tarifa administrative per autorizim AKCIZE -Pije alkolike dhe alkol | G173: 0 | H173: 0 | I173: 0 | J173: 0 | K173: 0 | O173: 0 | Q173: 0
B174: 711 | C174: 7110 | D174: 7110124 | E174: Tarifa administrative per autorizim AKCIZE -Karburant | G174: 0 | H174: 0 | I174: 0 | J174: 0 | K174: 0 | O174: 0 | Q174: 0
B175: 711 | C175: 7110 | D175: 7110125 | E175: Tarifa administrative per autorizim AKCIZE -Pije te ndryshme jo alkolike | G175: 0 | H175: 0 | I175: 0 | J175: 0 | K175: 0 | O175: 0 | Q175: 0
B176: 711 | C176: 7110 | D176: 7110126 | E176: Tarifa administrative per per autorizimin e miratimit te magazines doganore(Kafe) | G176: 0 | H176: 0 | I176: 0 | J176: 0 | K176: 0 | O176: 0 | Q176: 0
B177: 711 | C177: 7110 | D177: 7110127 | E177: Tarifa administrative per per autorizimin miratimit te magazines doganore(Duhan -Cigare)) | G177: 0 | H177: 0 | I177: 0 | J177: 0 | K177: 0 | O177: 0 | Q177: 0
B178: 711 | C178: 7110 | D178: 7110128 | E178: Tarifa administrative per per autorizimin miratimit te magazines doganore(Alkol-pije alkolike) | G178: 0 | H178: 0 | I178: 0 | J178: 0 | K178: 0 | O178: 0 | Q178: 0
B179: 711 | C179: 7110 | D179: 7110129 | E179: Tarifa administrative per per autorizimin miratimit te magazines doganore(Karburant-vajra) | G179: 0 | H179: 0 | I179: 0 | J179: 0 | K179: 0 | O179: 0 | Q179: 0
B180: 711 | C180: 7110 | D180: 7110130 | E180: Tarifa administrative per per autorizimin miratimit te magazines doganore(Pije te tjera joalkolike) | G180: 0 | H180: 0 | I180: 0 | J180: 0 | K180: 0 | O180: 0 | Q180: 0
B181: 711 | C181: 7110 | D181: 7110199 | E181: Te tjera tarifa administrative dhe rregullatore nacionale | G181: 0 | H181: 0 | I181: 0 | J181: 0 | K181: 0 | O181: 0 | Q181: 0
B182: 711 | C182: 7110 | D182: 7110500 | E182: Tarifa administrative dhe rregullatore te njesive vendore | G182: 0 | H182: 0 | I182: 0 | J182: 0 | K182: 0 | O182: 0 | Q182: 0
B183: 711 | C183: 7110 | D183: 7110501 | E183: Tarifa pastrimi dhe higjene | F183: Tariffs for Cleaning and Hygiene | G183: 0 | H183: 0 | I183: 0 | J183: 0 | K183: 0 | O183: 0 | Q183: 0
B184: 711 | C184: 7110 | D184: 7110502 | E184: Kontribut nga publiku per mirembajtjen e rrugeve | G184: 0 | H184: 0 | I184: 0 | J184: 0 | K184: 0 | O184: 0 | Q184: 0
B185: 711 | C185: 7110 | D185: 7110503 | E185: Tarifa per mbajtjen e qenve te luksit | G185: 0 | H185: 0 | I185: 0 | J185: 0 | K185: 0 | O185: 0 | Q185: 0
B186: 711 | C186: 7110 | D186: 7110504 | E186: Tarifa per rregjistrimin e nje vendbanimi te ri | F186: Tariffs for registration of new residence place | G186: 0 | H186: 0 | I186: 0 | J186: 0 | K186: 0 | O186: 0 | Q186: 0
B187: 711 | C187: 7110 | D187: 7110505 | E187: Tarifa per repetitor, perforcues | G187: 0 | H187: 0 | I187: 0 | J187: 0 | K187: 0 | O187: 0 | Q187: 0
B188: 711 | C188: 7110 | D188: 7110506 | E188: Tarife e sherbimit gjate procesit te legalizimit | G188: 0 | H188: 0 | I188: 0 | J188: 0 | K188: 0 | O188: 0 | Q188: 0
B189: 711 | C189: 7110 | D189: 7110599 | E189: Te tjera tarifa administrative dhe rregullatore te njesive vendore | G189: 0 | H189: 0 | I189: 0 | J189: 0 | K189: 0 | O189: 0 | Q189: 0
B190: 711 | C190: 7111 | D190: 7111000 | E190: (B) Te ardhura sekondare dhe pagesa sherbimesh | G190: 0 | H190: 0 | I190: 0 | J190: 0 | K190: 0 | O190: 0 | Q190: 0
B191: 711 | C191: 7111 | D191: 7111001 | E191: Te ardhura nga kopshtet e femijeve | G191: 0 | H191: 0 | I191: 0 | J191: 0 | K191: 0 | O191: 0 | Q191: 0
B192: 711 | C192: 7111 | D192: 7111002 | E192: Te ardhura nga çerdhet | F192: Income from kindergarten | G192: 0 | H192: 0 | I192: 0 | J192: 0 | K192: 0 | O192: 0 | Q192: 0
B193: 711 | C193: 7111 | D193: 7111003 | E193: Te ardhura nga Qendrat e Formimit Profesional | G193: 0 | H193: 0 | I193: 0 | J193: 0 | K193: 0 | O193: 0 | Q193: 0
B194: 711 | C194: 7111 | D194: 7111004 | E194: Te ardhura nga sherbimi mjeksor dhe spitalor | G194: 0 | H194: 0 | I194: 0 | J194: 0 | K194: 0 | O194: 0 | Q194: 0
B195: 711 | C195: 7111 | D195: 7111005 | E195: Te ardhura nga analizat kimike e biologjike | G195: 0 | H195: 0 | I195: 0 | J195: 0 | K195: 0 | O195: 0 | Q195: 0
B196: 711 | C196: 7111 | D196: 7111006 | E196: Te ardhura nga policet e rendit per ruajtjen e godinave | G196: 0 | H196: 0 | I196: 0 | J196: 0 | K196: 0 | O196: 0 | Q196: 0
B197: 711 | C197: 7111 | D197: 7111007 | E197: Te ardhura nga parkingu | F197: Income from parking lots | G197: 0 | H197: 0 | I197: 0 | J197: 0 | K197: 0 | O197: 0 | Q197: 0
B198: 711 | C198: 7111 | D198: 7111008 | E198: Te ardhura nga fotokopjet | G198: 0 | H198: 0 | I198: 0 | J198: 0 | K198: 0 | O198: 0 | Q198: 0
B199: 711 | C199: 7111 | D199: 7111009 | E199: Te ardhura nga sherbimi i transportit per mjetet e bllokuara | G199: 0 | H199: 0 | I199: 0 | J199: 0 | K199: 0 | O199: 0 | Q199: 0
B200: 711 | C200: 7111 | D200: 7111020 | E200: Te ardh.te ISSH nga komisionet per sherbimin e mbledhjes se kontrib.shend.per ISKSH | G200: 0 | H200: 0 | I200: 0 | J200: 0 | K200: 0 | O200: 0 | Q200: 0
B201: 711 | C201: 7111 | D201: 7111021 | E201: Te ardhurat nga liçensat per shoqerite private | G201: 0 | H201: 0 | I201: 0 | J201: 0 | K201: 0 | O201: 0 | Q201: 0
B202: 711 | C202: 7111 | D202: 7111022 | E202: Te ardhura nga lidhje martese me shtetas te huaj | G202: 0 | H202: 0 | I202: 0 | J202: 0 | K202: 0 | O202: 0 | Q202: 0
B203: 711 | C203: 7111 | D203: 7111023 | E203: Te ardhura nga sherbimi per leje qendrimi te te huajve | G203: 0 | H203: 0 | I203: 0 | J203: 0 | K203: 0 | O203: 0 | Q203: 0
B204: 711 | C204: 7111 | D204: 7111024 | E204: Te ardhura nga Policia Kufitare e Lundrimit | G204: 0 | H204: 0 | I204: 0 | J204: 0 | K204: 0 | O204: 0 | Q204: 0
... 173 more rows

Sheet N9 Subsidiaries
A1: ='General information'!A1 -> Project STAR
A2: ='General information'!A2 -> xxx
A3: =B8 -> Supporting evidence to be provided by the LGU
A4: =Checks!A4 -> All checks ok
B7: ='General information'!H12 -> xxx
B8: =Language!$D$119 -> Supporting evidence to be provided by the LGU
B9: =Language!$D$13 -> for the year ended 31 December 2014
B10: =ALL -> (Shumat ne ALL'000, nëse nuk shprehet ndryshe)
B12: =Language!$D$118 -> Supporting evidence: | D12: =Language!$D$171 -> Investment in Subsidiaries
C15: =Language!$D$172 -> Year of establishment | D15: =Language!$D$173 -> Year of acquisition (if applicable) | E15: =Language!$D$174 -> % of ownership | F15: =M15 -> Total equity | G15: Assets | H15: Liabilities | I15: Share of Municipality | J15: Impairment | K15: Carrying value of investment as at 31 December 2014 | M15: =Language!$D$175 -> Total equity | N15: =Language!$D$54 -> Assets | O15: Liabilities | P15: =Language!$D$176 -> Share of Municipality | Q15: =Language!$D$177 -> Impairment | R15: =Language!$D$26 -> Carrying value of investment as at 31 December 2014
B16: Subsidiaries
F17: =M17/Presentation_curr -> 0 | I17: =P17 -> 0 | J17: =Q17/Presentation_curr -> 0 | K17: =R17/Presentation_curr -> 0
F18: =M18/Presentation_curr -> 0 | I18: 0 | J18: =Q18/Presentation_curr -> 0 | K18: =R18/Presentation_curr -> 0
B19: Total invesment in subsidiaries | F19: =SUM(F17:F18) -> 0 | G19: =SUM(G17:G18) -> 0 | H19: =SUM(H17:H18) -> 0 | M19: =SUM(M17:M18) -> 0 | N19: 0 | O19: 0 | P19: 0 | Q19: 0 | R19: 0

Sheet N10 Loans and borrowings
A1: ='General information'!A1 -> Project STAR
A2: ='General information'!A2 -> xxx
A3: =B8 -> Supporting evidence to be provided by the LGU
A4: =Checks!A4 -> All checks ok
B7: ='General information'!H12 -> xxx
B8: =Language!$D$119 -> Supporting evidence to be provided by the LGU
B9: =Language!$D$13 -> for the year ended 31 December 2014
B10: =ALL -> (Shumat ne ALL'000, nëse nuk shprehet ndryshe)
B13: =Language!$D$118 -> Supporting evidence: | E13: =Language!$D$192 -> Loans and borrowings
J15: =O15 -> Total outstanding liability as at 31 December 2014 | O15: =Language!$D$27 -> Total outstanding liability as at 31 December 2014
B16: =Language!$D$184 -> Type of facility | C16: =Language!$D$185 -> Financing institution | D16: =Language!$D$186 -> Facility amount | E16: =Language!$D$187 -> Contract date | F16: =Language!$D$188 -> Term of contract | G16: =Language!$D$189 -> Interest rate | H16: =Language!$D$190 -> Collateral | I16: =Language!$D$191 -> Covenants | J16: =O16 -> Outstanding principal | K16: =P16 -> Accrued interest | L16: =Q16 -> Current portion | M16: =R16 -> Non-current portion | O16: =Language!$D$180 -> Outstanding principal | P16: =Language!$D$181 -> Accrued interest | Q16: =Language!$D$182 -> Current portion | R16: =Language!$D$183 -> Non-current portion
J17: =O17/Presentation_curr -> 0 | K17: 0 | L17: 0 | M17: 0
J18: 0 | K18: 0 | L18: 0 | M18: 0
J19: 0 | K19: 0 | L19: 0 | M19: 0
J20: 0 | K20: 0 | L20: 0 | M20: 0
B21: Total loans and borrowings | O21: =SUM(O18:O20) -> 0 | P21: =SUM(P18:P20) -> 0 | Q21: =SUM(Q18:Q20) -> 0 | R21: =SUM(R18:R20) -> 0

Sheet N11 Donor grants
A1: ='General information'!A1 -> Project STAR
A2: ='General information'!A2 -> xxx
A3: =B8 -> Supporting evidence to be provided by the LGU
A4: =Checks!A4 -> All checks ok
B7: ='General information'!H12 -> xxx
B8: =Language!$D$119 -> Supporting evidence to be provided by the LGU
B9: =Language!$D$13 -> for the year ended 31 December 2014
B10: =ALL -> (Shumat ne ALL'000, nëse nuk shprehet ndryshe)
B13: =Language!$D$118 -> Supporting evidence: | E13: =Language!$D$211 -> Donor Grants
J15: =N15 -> Total outstanding liability as at 31 December 2013 | N15: =Language!$D$28 -> Total outstanding liability as at 31 December 2013
B16: =Language!$D$203 -> Type of facility | C16: =Language!$D$204 -> Financing institution | D16: =Language!$D$205 -> Facility amount | E16: =Language!$D$206 -> Contract date | F16: =Language!$D$207 -> Term of contract | G16: =Language!$D$208 -> Interest rate | H16: =Language!$D$209 -> Collateral | I16: =Language!$D$210 -> Covenants | J16: =N16 -> Outstanding principal | K16: =O16 -> Accrued interest | L16: =P16 -> Total | N16: =Language!$D$201 -> Outstanding principal | O16: =Language!$D$202 -> Accrued interest | P16: =Language!$D$68 -> Total
J17: =N17/Presentation_curr -> 0 | K17: 0 | L17: 0
J18: 0 | K18: 0 | L18: 0
J19: 0 | K19: 0 | L19: 0
B21: Total grants | J21: 0 | K21: 0 | L21: 0 | N21: =SUM(N18:N20) -> 0 | O21: =SUM(O18:O20) -> 0 | P21: =SUM(P18:P20) -> 0

Sheet N12 Rec. of FS with Treasury
A1: ='General information'!A1 -> Project STAR
A2: ='General information'!A2 -> xxx
A3: =B8 -> Reconciliation of Capital Expenditures and Other Expenses in the Financial Statements with Treasury
A4: =Checks!A4 -> All checks ok
B7: ='General information'!H12 -> xxx
B8: =Language!$D$120 -> Reconciliation of Capital Expenditures and Other Expenses in the Financial Statements with Treasury
B9: =Language!$D$13 -> for the year ended 31 December 2014
B10: =ALL -> (Shumat ne ALL'000, nëse nuk shprehet ndryshe)
E15: =Language!$D$212 -> Balances paid during the year, as per Treasury Report | G15: =Language!$D$216 -> Outstanding Liabilities (as per Directive 28, dated 18.12.2014) | K15: =Language!D217 -> Unsettled invoices (as per Directive 28, dated 18.12.2014)
B16: =Language!$D$152 -> Group | C16: Pershkrimi | D16: Description | G16: =Language!$D$213 -> At the beginning of the year | H16: =Language!$D$214 -> At the end of the year | I16: =Language!$D$215 -> Increase (Decrease) during the year | K16: =G16 -> At the beginning of the year | L16: =H16 -> At the end of the year | M16: =I16 -> Increase (Decrease) during the year | O16: =Language!$D$218 -> Calculated Capital Expenditures and Other expenses at year end | Q16: =Language!$D$219 -> Balances as per T1 for Capital Expenditures, and as per T3-1 for other expenses | S16: =Language!$D$220 -> Difference (should be nil)
B17: 1 | D17: 2 | E17: 3 | G17: 4 | H17: 5 | I17: 6=5-4 | K17: 7 | L17: 8 | M17: 9=8-7 | O17: 10=3+6+9 | Q17: 11=T1/T3-1 | S17: 12=10-11
B18: Capital Expenditure
B19: 202 | C19: Studime dhe kerkime | D19: Studies and research | I19: =H19-G19 -> 0 | M19: =L19-K19 -> 0 | O19: =E19+I19+M19 -> 0 | Q19: ='F1'!P16 -> 0 | S19: =I19+M19+Q19 -> 0
B20: 203 | C20: Koncesione, patenta,licenca e tjera ngjashme | D20: Concessions, license, other similar licenses | I20: =H20-G20 -> 0 | M20: =L20-K20 -> 0 | O20: =E20+I20+M20 -> 0 | Q20: ='F1'!P17 -> 0 | S20: =I20+M20+Q20 -> 0
B21: 230 | C21: Shpenzime per rritjen e aktiv.qendr.patrupezuara | D21: Expenses for increase of current intangible assets | I21: 0 | M21: 0 | O21: 0 | Q21: ='F1'!P18 -> 0 | S21: 0
B22: 210 | C22: Toka,troje,Terene | D22: Land | I22: 0 | M22: 0 | O22: 0 | Q22: ='F1'!P22 -> 0 | S22: 0
B23: 211 | C23: Pyje,Kullota Plantacione | D23: Forests, Pasture, Plantation | I23: 0 | M23: 0 | O23: 0 | Q23: ='F1'!P23 -> 0 | S23: 0
B24: 212 | C24: Ndertime e Konstruksione | D24: Building and Constructions | I24: 0 | M24: 0 | O24: 0 | Q24: ='F1'!P24 -> 0 | S24: 0
B25: 213 | C25: Rruge,rrjete,vepra ujore | D25: Roads, networks, water facilities | I25: 0 | M25: 0 | O25: 0 | Q25: ='F1'!P25 -> 0 | S25: 0
B26: 214 | C26: Instalime teknike,makineri,paisje,vegla pune | D26: Technical installment, machinery, equipment, working tools | I26: 0 | M26: 0 | O26: 0 | Q26: ='F1'!P26 -> 0 | S26: 0
B27: 215 | C27: Mjete transporti | D27: Transport vehicles | I27: 0 | M27: 0 | O27: 0 | Q27: ='F1'!P27 -> 0 | S27: 0
B28: 217 | C28: Kafshe pune e prodhimi | D28: Working and production animals | I28: 0 | M28: 0 | O28: 0 | Q28: ='F1'!P28 -> 0 | S28: 0
B29: 218 | C29: Inventar ekonomik | D29: Economic Inventory | I29: 0 | M29: 0 | O29: 0 | Q29: ='F1'!P29 -> 0 | S29: 0
B30: 231 | C30: Shpenzime proces per rritjen e AQT | D30: Expenses in process for increase of current tangible assets | I30: 0 | M30: 0 | O30: 0 | Q30: ='F1'!P31 -> 0 | S30: 0
B31: 232 | C31: Shpenzime proces per transferime kapitale | D31: Expenses in process for capital transfers | I31: 0 | M31: 0 | O31: 0 | Q31: ='F1'!P32 -> 0 | S31: 0
B32: 31 | C32: Materiale | D32: Materials | I32: 0 | M32: 0 | O32: 0 | Q32: ='F1'!P40 -> 0 | S32: 0
B33: 32 | C33: Objekte inventari | D33: Inventory Objects | I33: 0 | M33: 0 | O33: 0 | Q33: ='F1'!P41 -> 0 | S33: 0
B34: 33 | C34: Prodhime, punime e sherbime ne proces | D34: Production, work and services in process | I34: 0 | M34: 0 | O34: 0 | Q34: ='F1'!P42 -> 0 | S34: 0
B35: 34 | C35: Produkte | D35: Products | I35: 0 | M35: 0 | O35: 0 | Q35: ='F1'!P43 -> 0 | S35: 0
B36: 35 | C36: Mallra | D36: Goods | I36: 0 | M36: 0 | O36: 0 | Q36: ='F1'!P44 -> 0 | S36: 0
B37: 36 | C37: Gje e gjalle ne rritje e majmeri | D37: Animals fattening | I37: 0 | M37: 0 | O37: 0 | Q37: ='F1'!P45 -> 0 | S37: 0
B38: 37 | C38: Gjendje te pambritura ose prane te treteve | D38: Undelivered items or close to third party | I38: 0 | M38: 0 | O38: 0 | Q38: ='F1'!P46 -> 0 | S38: 0
D39: Total | E39: =SUM(E19:E38) -> 0 | G39: =SUM(G19:G38) -> 0 | H39: =SUM(H19:H38) -> 0 | I39: =SUM(I19:I38) -> 0 | K39: =SUM(K19:K38) -> 0 | L39: =SUM(L19:L38) -> 0 | M39: =SUM(M19:M38) -> 0 | O39: =SUM(O19:O38) -> 0 | Q39: =SUM(Q19:Q38) -> 0 | S39: =SUM(S19:S38) -> 0
B40: Other Expenses
B41: 600 | C41: Paga,shperblime e te tjera personeli | D41: Salaries, bonuses | I41: =H41-G41 -> 0 | M41: =L41-K41 -> 0 | O41: =E41+I41+M41 -> 0 | Q41: ='F3-1'!P16 -> 0 | S41: =I41+M41+Q41 -> 0
B42: 601 | C42: Kontrib.te sig.shoq.e shendets. | D42: health and social insurance contributions | I42: 0 | M42: 0 | O42: 0 | Q42: ='F3-1'!P21 -> 0 | S42: 0
B43: 602 | C43: Mallra dhe sherbime te tjera | D43: Other goods and services | I43: 0 | M43: 0 | O43: 0 | Q43: ='F3-1'!P24 -> 0 | S43: 0
B44: 603 | C44: Subvencionet | D44: Subsidies | I44: 0 | M44: 0 | O44: 0 | Q44: ='F3-1'!P35 -> 0 | S44: 0
B45: 604 | C45: Transferime korrente te brendshme | D45: Current interanl tranfers | I45: 0 | M45: 0 | O45: 0 | Q45: ='F3-1'!P41 -> 0 | S45: 0
B46: 605 | C46: Transferime korrente me jashte | D46: Current tranfers with outsiders | I46: 0 | M46: 0 | O46: 0 | Q46: ='F3-1'!P46 -> 0 | S46: 0
B47: 606 | C47: Transferta per buxh.familjare e individe | D47: Tranfers family budges and other individuals | I47: 0 | M47: 0 | O47: 0 | Q47: ='F3-1'!P51 -> 0 | S47: 0
B48: 650 | C48: Interesa per bono thesarit dhe kredi direkte | D48: Bond interest rates and direct loans | I48: 0 | M48: 0 | O48: 0 | Q48: ='F3-1'!P62 -> 0 | S48: 0
B49: 651 | C49: Interesa per huamarrje te tj. Brendshme | D49: Borrowing costs related to loans | I49: 0 | M49: 0 | O49: 0 | Q49: ='F3-1'!P63 -> 0 | S49: 0
B50: 652 | C50: Interesa Letra tjera vlere Qeverise | D50: Other interst on government securities | I50: 0 | M50: 0 | O50: 0 | Q50: ='F3-1'!P64 -> 0 | S50: 0
B51: 656 | C51: Shpenz.nga kembimet valutore | D51: foreign exchange expenses | I51: 0 | M51: 0 | O51: 0 | Q51: ='F3-1'!P65 -> 0 | S51: 0
B52: 660 | C52: Interesa per huamarrje nga Qeveri.te Huaja | D52: Interest on loans from Foreign Governments | I52: 0 | M52: 0 | O52: 0 | Q52: ='F3-1'!P67 -> 0 | S52: 0
B53: 661 | C53: Interesa per financime nga Institucionet.nderkomb | D53: Interest on financing from international organizations | I53: 0 | M53: 0 | O53: 0 | Q53: ='F3-1'!P68 -> 0 | S53: 0
B54: 662 | C54: Interesa per huamarrje te tjera jashtme | D54: Interest on other foreign loans | I54: 0 | M54: 0 | O54: 0 | Q54: ='F3-1'!P69 -> 0 | S54: 0
D55: Total | E55: =SUM(E41:E54) -> 0 | G55: =SUM(G41:G54) -> 0 | H55: =SUM(H41:H54) -> 0 | I55: =SUM(I41:I54) -> 0 | K55: =SUM(K41:K54) -> 0 | L55: =SUM(L41:L54) -> 0 | M55: =SUM(M41:M54) -> 0 | O55: =SUM(O41:O54) -> 0 | Q55: =SUM(Q41:Q54) -> 0 | S55: =SUM(S41:S54) -> 0

Sheet _TM_expenses (hidden)
A1: Left | B1: Top | C1: Right | D1: Bottom | E1: Ref
A2: 2 | B2: 6 | C2: 4 | D2: 29 | E2: $B$6:$D$29

Sheet N13 Template for Trial Balance
A1: ='General information'!A1 -> Project STAR
A2: ='General information'!A2 -> xxx
A3: =B8 -> Template for Trial Balance
A4: =Checks!A4 -> All checks ok
B7: ='General information'!H12 -> xxx
B8: =Language!$D$121 -> Template for Trial Balance
B9: =Language!$D$13 -> for the year ended 31 December 2014
B10: (Amounts in ALL'000, unless otherwise stated)
B14: =Language!D221 -> Class | C14: =Language!D222 -> Sub class | D14: =Language!D223 -> Article | E14: =Language!D224 -> Sub article | F14: =Language!D225 -> Analysis | G14: =Language!D226 -> TYPE | H14: P E R S H K R I M I | K14: =Language!$D$59 -> Opening balance | N14: =Language!D228 -> Movement during the year | Q14: =Language!$D$63 -> Closing balance
H15: (Albanian Description) | I15: =Language!$D$227 -> Currency | K15: =Language!$D$46 -> Debit | L15: =Language!$D$47 -> Credit | N15: =K15 -> Debit | O15: =L15 -> Credit | Q15: =N15 -> Debit | R15: =O15 -> Credit
B16: 1 | H16: FONDE TE VETA,HUA DHE DETYRIME TE NGJASHME AFATGJATE
B17: 1 | C17: 10 | G17: F | H17: FONDE TE VETA
B18: 1 | C18: 10 | D18: 101 | G18: F | H18: FONDE BAZE
B19: 1 | C19: 10 | D19: 101 | E19: 1010 | F19: 1010000 | G19: F | H19: Fondi baze
B20: 1 | C20: 10 | D20: 101 | E20: 1011 | F20: 1011000 | G20: F | H20: Shtesa te fondit baze
B21: 1 | C21: 10 | D21: 101 | E21: 1012 | F21: 1012000 | G21: F | H21: Pakesime te fondit baze
B22: 1 | C22: 10 | D22: 101 | E22: 1013 | F22: 1013000 | G22: F | H22: Konsumi i aktiveve te qendrueshme
B23: 1 | C23: 10 | D23: 101 | E23: 1014 | G23: F | H23: Pakesim nga shitja Aktiveve te Qendrushme
B24: 1 | C24: 10 | D24: 101 | E24: 1014 | F24: 1014001 | G24: F | H24: Pakesime, shitje prime emisioni te rimbursimit te huave
B25: 1 | C25: 10 | D25: 101 | E25: 1014 | F25: 1014002 | G25: F | H25: Pakesim,shitje studime e kerkime
B26: 1 | C26: 10 | D26: 101 | E26: 1014 | F26: 1014003 | G26: F | H26: Pakesim, shitje Koncesione,patenta,licenca e tjera
B27: 1 | C27: 10 | D27: 101 | E27: 1014 | F27: 1014004 | G27: F | H27: Pakesim shitje por terene e troje
B28: 1 | C28: 10 | D28: 101 | E28: 1014 | F28: 1014005 | G28: F | H28: Pakesim, shitje per pyje e plantacione
B29: 1 | C29: 10 | D29: 101 | E29: 1014 | F29: 1014006 | G29: F | H29: Pakesim, shitje per ndertime
B30: 1 | C30: 10 | D30: 101 | E30: 1014 | F30: 1014007 | G30: F | H30: Pakesim, shitje rruge, rrjete, vepra ujore
B31: 1 | C31: 10 | D31: 101 | E31: 1014 | F31: 1014008 | G31: F | H31: Pakesim shitje instalime teknike,makineri,paisje e vegla pune
B32: 1 | C32: 10 | D32: 101 | E32: 1014 | F32: 1014009 | G32: F | H32: Pakesim shitje Mjete transporti
B33: 1 | C33: 10 | D33: 101 | E33: 1014 | F33: 1014010 | G33: F | H33: Pakesim shitje Rezerva shteterore
B34: 1 | C34: 10 | D34: 101 | E34: 1014 | F34: 1014011 | G34: F | H34: Pakesim shitje Kafshe pune e prodhimi
B35: 1 | C35: 10 | D35: 101 | E35: 1014 | F35: 1014012 | G35: F | H35: Pakesim shitje Inventar ekonomik
B36: 1 | C36: 10 | D36: 101 | E36: 1014 | F36: 1014013 | G36: F | H36: Pakesim shitje AQ te demtuara
B37: 1 | C37: 10 | D37: 101 | E37: 1015 | G37: F | H37: Pakesim fondi nga nxjerrja jasht perdorimit e Aktiveve te Qendrushme
B38: 1 | C38: 10 | D38: 101 | E38: 1015 | F38: 1015001 | G38: F | H38: Jashte perdorimit Prime emisioni te rimbursimit te huave
B39: 1 | C39: 10 | D39: 101 | E39: 1015 | F39: 1015002 | G39: F | H39: Jashte perdorimit Shpenzime studime e kerkime
B40: 1 | C40: 10 | D40: 101 | E40: 1015 | F40: 1015003 | G40: F | H40: Jashte perdorimit Koncesione,patenta,licenca e tjera
B41: 1 | C41: 10 | D41: 101 | E41: 1015 | F41: 1015004 | G41: F | H41: Jashte perdorimit Per terene e troje
B42: 1 | C42: 10 | D42: 101 | E42: 1015 | F42: 1015005 | G42: F | H42: Jashte perdorimit Per pyje e plantacione
B43: 1 | C43: 10 | D43: 101 | E43: 1015 | F43: 1015006 | G43: F | H43: Jashte perdorimit Per ndertime
B44: 1 | C44: 10 | D44: 101 | E44: 1015 | F44: 1015007 | G44: F | H44: Jashte perdorimit Rruge, rrjete, vepra ujore
B45: 1 | C45: 10 | D45: 101 | E45: 1015 | F45: 1015008 | G45: F | H45: Jashte perdorimit Instalime teknike,makineri,paisje e vegla pune
B46: 1 | C46: 10 | D46: 101 | E46: 1015 | F46: 1015009 | G46: F | H46: Jashte perdorimit Mjete transporti
B47: 1 | C47: 10 | D47: 101 | E47: 1015 | F47: 1015010 | G47: F | H47: Jashte perdorimit Rezerva shteterore
B48: 1 | C48: 10 | D48: 101 | E48: 1015 | F48: 1015011 | G48: F | H48: Jashte perdorimit Kafshe pune e prodhimi
B49: 1 | C49: 10 | D49: 101 | E49: 1015 | F49: 1015012 | G49: F | H49: Jashte perdorimit Inventar ekonomik
B50: 1 | C50: 10 | D50: 101 | E50: 1015 | F50: 1015013 | G50: F | H50: Jashte perdorimit AQ te demtuara
B51: 1 | C51: 10 | D51: 101 | E51: 1016 | G51: F | H51: Pakesim fondi nga transfertat brenda e jashte sistemit te Aktiveve te Qendrushme
B52: 1 | C52: 10 | D52: 101 | E52: 1016 | F52: 1016001 | G52: F | H52: Transferta Prime emisioni te rimbursimit te huave
B53: 1 | C53: 10 | D53: 101 | E53: 1016 | F53: 1016002 | G53: F | H53: Transferta Shpenzime studime e kerkime
B54: 1 | C54: 10 | D54: 101 | E54: 1016 | F54: 1016003 | G54: F | H54: Transferta Koncesione,patenta,licenca e tjera
B55: 1 | C55: 10 | D55: 101 | E55: 1016 | F55: 1016004 | G55: F | H55: Transferta Per terene e troje
B56: 1 | C56: 10 | D56: 101 | E56: 1016 | F56: 1016005 | G56: F | H56: Transferta Per pyje e plantacione
B57: 1 | C57: 10 | D57: 101 | E57: 1016 | F57: 1016006 | G57: F | H57: Transferta Per ndertime
B58: 1 | C58: 10 | D58: 101 | E58: 1016 | F58: 1016007 | G58: F | H58: Transferta Rruge, rrjete, vepra ujore
B59: 1 | C59: 10 | D59: 101 | E59: 1016 | F59: 1016008 | G59: F | H59: Transferta Instalime teknike,makineri,paisje e vegla pune
B60: 1 | C60: 10 | D60: 101 | E60: 1016 | F60: 1016009 | G60: F | H60: Transferta Mjete transporti
B61: 1 | C61: 10 | D61: 101 | E61: 1016 | F61: 1016010 | G61: F | H61: Transferta Rezerva shteterore
B62: 1 | C62: 10 | D62: 101 | E62: 1016 | F62: 1016011 | G62: F | H62: Transferta Kafshe pune e prodhimi
B63: 1 | C63: 10 | D63: 101 | E63: 1016 | F63: 1016012 | G63: F | H63: Transferta Inventar ekonomik
B64: 1 | C64: 10 | D64: 101 | E64: 1016 | F64: 1016013 | G64: F | H64: Transferta AQ te demtuara
B65: 1 | C65: 10 | D65: 105 | G65: F | H65: GRANTE TE BRENDESHME KAPITALE
B66: 1 | C66: 10 | D66: 105 | E66: 1050 | G66: F | H66: Nga i Njejti Nivel Qeverisje
B67: 1 | C67: 10 | D67: 105 | E67: 1050 | F67: 1050100 | G67: F | H67: Transferta midis Institucioneve Qendrore
B68: 1 | C68: 10 | D68: 105 | E68: 1050 | F68: 1050101 | G68: F | H68: Nga nje nivel qeverisje midis institucioneve qendrore, Identifikim projekti e burim fondi
B69: 1 | C69: 10 | D69: 105 | E69: 1050 | F69: 1050199 | G69: F | H69: Nga nje nivel qeverisje midis institucioneve qendrore,te tjera sipas identifikimit
B70: 1 | C70: 10 | D70: 105 | E70: 1050 | F70: 1050200 | G70: F | H70: Transferta midis Organeve te Pushtetit Vendor
B71: 1 | C71: 10 | D71: 105 | E71: 1050 | F71: 1050201 | G71: F | H71: Nga nje nivel qeverisje midis organeve vendore, Identifikim projekti e burim fondi
B72: 1 | C72: 10 | D72: 105 | E72: 1050 | F72: 1050299 | G72: F | H72: Nga nje nivel qeverisje midis organeve vendore,te tjera sipas identifikimit
B73: 1 | C73: 10 | D73: 105 | E73: 1050 | F73: 1050300 | G73: F | H73: Transferta nga Qendra ne Njesi dhe anasjelltas
B74: 1 | C74: 10 | D74: 105 | E74: 1050 | F74: 1050301 | G74: F | H74: Nga nje nivel qeverisje, qendra ne njesi e anasjelltas, Identifikim projekti e burim fondi
B75: 1 | C75: 10 | D75: 105 | E75: 1050 | F75: 1050399 | G75: F | H75: Nga nje nivel qeverisje, qendra ne njesi e anasjelltas,te tjera sipas identifikimit
B76: 1 | C76: 10 | D76: 105 | E76: 1051 | G76: F | H76: Nga nivele te tjera te qeverisjes
